Workbook

Sheet Instruções
A1: http://authenticator.sapphirebusinesstech.com:8080/access/v1/validate
A2: 123456789 | D2: Any use for this file other than sample using and technical analysis without authorization is stricly prohibited and protected by copyright
A3: contact@sapphirebusinesstech.com | D3: Qualquer uso desse arquivo sem autorização outro que uso de exemplo e análise técnica é extritamente proibida e protegida por direitos autorais.
D4: Cualquier uso de este archivo sin autorización que no sea para fines de ejemplo o análisis técnico está estrictamente prohibido y está protegido por derechos de autor.
A5: 200
A7: =IF(A12="",0,TODAY()-A12) -> 0
C12: 📖 GUIA DE USO DA FERRAMENTA
C13: Siga as instruções abaixo para utilizar corretamente o sistema de controle financeiro.
C15: PASSO 1 — CONFIGURAR PARÂMETROS
C16: 1. Acesse a aba PARAMETROS
C17: 2. A tabela 'tb_formas_pagamento' já está pré-preenchida com as condições de pagamento. Adicione novas se necessário.
C18: 3. A tabela 'tb_categorias_despesa' já está pré-preenchida. Adicione novas categorias se necessário.
C19: 4. Verifique a 'Taxa Padrão (%)' na célula J8 — atualmente configurada em 11%. Altere se necessário.
C21: PASSO 2 — REGISTRAR VENDAS
C22: 1. Acesse a aba VENDAS.
C23: 2. Preencha as colunas: N° Pedido/Empresa, Descrição, Preço de Venda, Custo MP, Tubo, Ponteira, Usinagem, Hora/Dobra, Custos Extras, Frete.
C24: 3. A coluna 'Rendimento' é calculada automaticamente (Preço Venda - todos os custos).
C25: 4. Preencha: Cond. Pagamento, Data Fechamento, Status (Entregue ou Cancelado).
C26: 5. Selecione a 'Forma_Pagamento' na lista suspensa — 'Qtd_Parcelas' será preenchido automaticamente.
C27: ATENÇÃO: Após preencher Forma_Pagamento, registre as parcelas manualmente na aba PAGAMENTOS.
C29: PASSO 3 — REGISTRAR PARCELAS (ABA PAGAMENTOS)
C30: 1. Acesse a aba PAGAMENTOS.
C31: 2. Para cada parcela de uma venda, adicione uma linha informando: Nr_Pedido (igual ao N° Pedido/Empresa da venda), Nr_Parcela (1, 2, 3...).
C32: 3. As colunas ID_Parcela, Qtd_Total_Parcelas, Valor_Parcela, Data_Vencimento e Status_Parcela são calculadas automaticamente.
C33: 4. Quando receber o pagamento de uma parcela, marque 'Sim' na coluna 'Pago' e preencha a 'Data_Pagamento'.
C35: PASSO 4 — REGISTRAR DESPESAS
C36: 1. Acesse a aba DESPESAS.
C37: 2. Preencha: Data, Valor (positivo), Descrição e selecione a Categoria na lista suspensa.
C39: PASSO 5 — VISUALIZAR RELATÓRIO
C40: 1. Acesse a aba RELATORIO_FINANCEIRO.
C41: 2. Use os filtros de Período (data inicial/final) e Status para filtrar os indicadores de RECEITAS.
C42: 3. Use os filtros de Período e Categoria para filtrar os indicadores de DESPESAS.
C43: 4. Os cartões de KPI e gráficos atualizam automaticamente conforme os filtros.
C45: LEGENDA DE CORES — ABA PAGAMENTOS
C46: Verde | D46: Parcela paga (Pago = Sim)
C47: Vermelho/Laranja | D47: Parcela em atraso (Data vencida e não paga)
C48: Amarelo | D48: Parcela a vencer em até 7 dias

Sheet VENDAS (hidden)
C4: Faturamento Total | F4: Total Rendimento | G4: A Receber | H4: Total Vendas | I4: Entregues | J4: Canceladas
C5: =SUMIF(tb_vendas[Status],"Entregue",tb_vendas[Preço de Venda]) -> R$ 152,261.38 | F5: =SUMIF(tb_vendas[Status],"Entregue",tb_vendas[Rendimento/Saldo final]) -> R$ 71,394.61 | G5: =SUMIF(tb_vendas[Status],"Entregue",tb_vendas[Valor_Restante]) -> R$ 45,524.50 | H5: =COUNTA(tb_vendas[N° Pedido/Empresa]) -> 55 | I5: =COUNTIF(tb_vendas[Status],"Entregue") -> 49 | J5: =COUNTIF(tb_vendas[Status],"Cancelado") -> 1
C6: 📋 CONTROLE DE VENDAS
C8: N° Pedido/Empresa | D8: Cliente | E8: Descrição | F8: Preço de Venda | G8: Custo 1 | H8: Custo 2 | I8: Custo 3 | J8: Custo 4 | K8: Custo 5 | L8: Custo 6 | M8: Custos Extras | N8: Imposto (%) | O8: Rendimento/Saldo final | P8: Data Fechamento | Q8: Status | R8: Forma_Pagamento | S8: Qtd_Parcelas | T8: Status_Pagamento | U8: Valor_Recebido | V8: Valor_Restante | W8: Qtd_Parcelas_Restantes | X8: R$_Taxas
C9: PED-001 | D9: Grupo Mota | E9: Exemplo de Venda | F9: R$ 1,230.00 | G9: R$ 75.00 | H9: R$ 126.00 | I9: R$ 85.00 | J9: R$ 50.00 | K9: R$ 10.00 | L9: R$ 25.00 | M9: 0 | N9: 11% | O9: =F9-G9-H9-I9-J9-K9-L9-M9-(tb_vendas[[#This Row],[Preço de Venda]]*tb_vendas[[#This Row],[Imposto (%)]]) -> R$ 723.70 | P9: 2026-01-11 | Q9: Entregue | R9: 30/45/60/75 | S9: =IFERROR(INDEX(tb_formas_pagamento[Qtd_Parcelas],MATCH(tb_vendas[[#This Row],[Forma_Pagamento]],tb_formas_pagamento[Nome_Forma],0)),"") -> 4 | T9: =IF(S9=0,"",IF(W9=0,"Pago Total",IF(AND(U9>0,COUNTIFS(tb_pagamentos[Nr_Pedido],C9,tb_pagamentos[Status_Parcela],"Em Atraso")>0),"Pago Parcialmente / Em Atraso",IF(AND(U9=0,COUNTIFS(tb_pagamentos[Nr_Pedido],C9,tb_pagamentos[Status_Parcela],"Em Atraso")>0),"Em Atraso",IF(U9>0,"Pago Parcialmente","Sem Pagamentos"))))) -> Pago Parcialmente / Em Atraso | U9: =SUMIFS(tb_pagamentos[Valor_Parcela],tb_pagamentos[Nr_Pedido],tb_vendas[[#This Row],[N° Pedido/Empresa]],tb_pagamentos[Status_Parcela],"Pago") -> R$ 307.50 | V9: =MAX(0,F9-U9) -> R$ 922.50 | W9: =IFERROR(COUNTIFS(tb_pagamentos[Nr_Pedido],C9,tb_pagamentos[Status_Parcela],"<>Pago"),0) -> 3 | X9: =tb_vendas[[#This Row],[Preço de Venda]]*tb_vendas[[#This Row],[Imposto (%)]] -> R$ 135.30
C10: PED-002 | D10: Tornearia Central | E10: Venda Desc 2 | F10: R$ 860.00 | G10: R$ 50.00 | H10: R$ 25.00 | I10: R$ 85.00 | J10: R$ 120.00 | K10: R$ 45.00 | L10: R$ 20.00 | M10: R$ 50.00 | N10: 5% | O10: =F10-G10-H10-I10-J10-K10-L10-M10-(tb_vendas[[#This Row],[Preço de Venda]]*tb_vendas[[#This Row],[Imposto (%)]]) -> R$ 422.00 | P10: 2026-04-11 | R10: 21/35/49 | S10: =IFERROR(INDEX(tb_formas_pagamento[Qtd_Parcelas],MATCH(tb_vendas[[#This Row],[Forma_Pagamento]],tb_formas_pagamento[Nome_Forma],0)),"") -> 3 | T10: =IF(S10=0,"",IF(W10=0,"Pago Total",IF(AND(U10>0,COUNTIFS(tb_pagamentos[Nr_Pedido],C10,tb_pagamentos[Status_Parcela],"Em Atraso")>0),"Pago Parcialmente / Em Atraso",IF(AND(U10=0,COUNTIFS(tb_pagamentos[Nr_Pedido],C10,tb_pagamentos[Status_Parcela],"Em Atraso")>0),"Em Atraso",IF(U10>0,"Pago Parcialmente","Sem Pagamentos"))))) -> Pago Parcialmente / Em Atraso | U10: =SUMIFS(tb_pagamentos[Valor_Parcela],tb_pagamentos[Nr_Pedido],tb_vendas[[#This Row],[N° Pedido/Empresa]],tb_pagamentos[Status_Parcela],"Pago") -> R$ 286.67 | V10: R$ 573.33 | W10: =IFERROR(COUNTIFS(tb_pagamentos[Nr_Pedido],C10,tb_pagamentos[Status_Parcela],"<>Pago"),0) -> 2 | X10: =tb_vendas[[#This Row],[Preço de Venda]]*tb_vendas[[#This Row],[Imposto (%)]] -> R$ 43.00
C11: PED-003 | D11: Construções Silva | E11: Tubos retangulares cortados | F11: R$ 6,406.56 | G11: R$ 381.78 | H11: R$ 354.60 | I11: R$ 180.66 | J11: R$ 602.64 | K11: R$ 238.76 | L11: R$ 147.62 | M11: 0 | N11: 3% | O11: R$ 4,308.30 | P11: 2025-11-28 | Q11: Entregue | R11: 28/42 | S11: 2 | T11: Pago | U11: R$ 6,406.56 | V11: 0 | W11: 0 | X11: R$ 192.20
C12: PED-004 | D12: Metalúrgica Sousa | E12: Barras com ponteira | F12: R$ 1,847.25 | G12: R$ 122.08 | H12: R$ 232.65 | I12: R$ 131.72 | J12: R$ 78.57 | K12: R$ 89.10 | L12: R$ 179.17 | M12: 0 | N12: 6% | O12: R$ 905.91 | P12: 2026-04-27 | Q12: Entregue | R12: A VISTA | S12: 1 | T12: Pago | U12: R$ 1,847.25 | V12: 0 | W12: 0 | X12: R$ 110.84
C13: PED-005 | D13: Ferragens Norte | E13: Peças usinadas em aço | F13: R$ 3,921.17 | G13: R$ 271.31 | H13: R$ 415.84 | I13: R$ 313.69 | J13: R$ 251.17 | K13: R$ 196.06 | L13: R$ 130.25 | M13: 0 | N13: 12% | O13: R$ 2,029.32 | P13: 2026-11-13 | Q13: Em Produção | R13: 28/42/56 | S13: 3 | T13: A vencer | U13: 0 | V13: R$ 3,921.17 | W13: 3 | X13: R$ 470.54
C14: PED-006 | D14: Indústria Beta Ltda | E14: Lote de perfis dobrados | F14: R$ 7,203.44 | G14: R$ 607.22 | H14: R$ 847.30 | I14: R$ 324.15 | J14: R$ 676.71 | K14: R$ 292.98 | L14: R$ 109.27 | M14: R$ 80.00 | N14: 11% | O14: R$ 3,473.18 | P14: 2024-08-17 | Q14: Entregue | R14: 30/45/60/75 | S14: 4 | T14: Pago | U14: R$ 7,203.44 | V14: 0 | W14: 0 | X14: R$ 792.38
C15: PED-007 | D15: Grupo Mota | E15: Peças torneadas sob medida | F15: R$ 512.88 | G15: R$ 40.31 | H15: R$ 72.84 | I15: R$ 51.29 | J15: R$ 30.77 | K15: R$ 26.36 | L15: R$ 67.00 | M15: 0 | N15: 5% | O15: R$ 199.39 | P15: 2025-01-15 | Q15: Entregue | R15: 14/28 | S15: 2 | T15: Pago | U15: R$ 512.88 | V15: 0 | W15: 0 | X15: R$ 25.64
C16: PED-008 | D16: Usinagem Rápida | E16: Estrutura metálica dobrada | F16: R$ 4,850.00 | G16: R$ 306.72 | H16: R$ 538.35 | I16: R$ 242.50 | J16: R$ 485.00 | K16: R$ 194.00 | L16: R$ 58.12 | M16: R$ 150.00 | N16: 10% | O16: R$ 2,125.31 | P16: 2025-06-12 | Q16: Entregue | R16: 28/56/84 | S16: 3 | T16: Em Atraso | U16: 0 | V16: R$ 4,850.00 | W16: 3 | X16: R$ 485.00
C17: PED-009 | D17: Metalmax Ind. | E17: Conjunto de tubos e flanges | F17: R$ 2,100.50 | G17: R$ 147.04 | H17: R$ 273.07 | I17: R$ 168.04 | J17: R$ 147.04 | K17: R$ 84.02 | L17: R$ 45.00 | M17: R$ 50.00 | N17: 8% | O17: R$ 1,060.29 | P17: 2025-02-12 | Q17: Entregue | R17: 15/30/45 | S17: 3 | T17: Pago Parcialmente / Em Atraso | U17: R$ 700.17 | V17: R$ 1,400.33 | W17: 2 | X17: R$ 168.04
C18: PED-010 | D18: Tornearia Central | E18: Tubos com usinagem especial | F18: R$ 950.00 | G18: R$ 76.00 | H18: R$ 123.50 | I18: R$ 57.00 | J18: R$ 95.00 | K18: R$ 47.50 | L18: R$ 22.00 | M18: 0 | N18: 4% | O18: R$ 491.50 | P18: 2025-04-21 | Q18: Entregue | R18: A VISTA | S18: 1 | T18: Pago | U18: R$ 950.00 | V18: 0 | W18: 0 | X18: R$ 38.00
C19: PED-011 | D19: Fábrica ABC | E19: Kit de conexões metálicas | F19: R$ 3,350.75 | G19: R$ 234.55 | H19: R$ 435.60 | I19: R$ 268.06 | J19: R$ 301.57 | K19: R$ 167.54 | L19: R$ 88.00 | M19: 0 | N19: 6% | O19: R$ 1,655.43 | P19: 2025-07-29 | Q19: Entregue | R19: 30/60 | S19: 2 | T19: Pago | U19: R$ 3,350.75 | V19: 0 | W19: 0 | X19: R$ 201.05
C20: PED-012 | D20: Ferragens Norte | E20: Chapas cortadas e dobradas | F20: R$ 1,560.00 | G20: R$ 109.20 | H20: R$ 202.80 | I20: R$ 109.20 | J20: R$ 140.40 | K20: R$ 62.40 | L20: R$ 30.00 | M20: R$ 80.00 | N20: 5% | O20: R$ 749.20 | P20: 2025-10-15 | Q20: Entregue | R20: 28 DIAS | S20: 1 | T20: Pago | U20: R$ 1,560.00 | V20: 0 | W20: 0 | X20: R$ 78.00
C21: PED-013 | D21: AçoTech | E21: Estrutura para galpão | F21: R$ 8,200.00 | G21: R$ 770.80 | H21: R$ 902.00 | I21: R$ 369.00 | J21: R$ 738.00 | K21: R$ 328.00 | L21: R$ 200.00 | M21: R$ 200.00 | N21: 12% | O21: R$ 3,484.20 | P21: 2024-11-04 | Q21: Entregue | R21: 28/42/56/70 | S21: 4 | T21: Pago Parcialmente / Em Atraso | U21: R$ 2,050.00 | V21: R$ 6,150.00 | W21: 3 | X21: R$ 984.00
C22: PED-014 | D22: Hidráulica Total | E22: Peças de reposição industrial | F22: R$ 620.00 | G22: R$ 43.40 | H22: R$ 80.60 | I22: R$ 43.40 | J22: R$ 55.80 | K22: R$ 24.80 | L22: 0 | M22: 0 | N22: 4% | O22: R$ 334.00 | P22: 2025-12-29 | Q22: Entregue | R22: A VISTA | S22: 1 | T22: Pago | U22: R$ 620.00 | V22: 0 | W22: 0 | X22: R$ 24.80
C23: PED-015 | D23: CNC Express | E23: Tubos galvanizados com ponteira | F23: R$ 2,750.00 | G23: R$ 192.50 | H23: R$ 330.00 | I23: R$ 247.50 | J23: R$ 247.50 | K23: R$ 110.00 | L23: R$ 50.00 | M23: 0 | N23: 8% | O23: R$ 1,322.50 | P23: 2026-03-19 | Q23: Entregue | R23: 21/35/49 | S23: 3 | T23: Pago | U23: R$ 2,750.00 | V23: 0 | W23: 0 | X23: R$ 220.00
C24: PED-016 | D24: Construções Silva | E24: Barras chatas cortadas | F24: R$ 440.00 | G24: R$ 30.80 | H24: R$ 57.20 | I24: R$ 35.20 | J24: R$ 35.20 | K24: R$ 17.60 | L24: R$ 15.00 | M24: 0 | N24: 3% | O24: R$ 231.00 | P24: 2025-08-21 | Q24: Entregue | R24: 14/28 | S24: 2 | T24: Pago | U24: R$ 440.00 | V24: 0 | W24: 0 | X24: R$ 13.20
C25: PED-017 | D25: Peças & Cia | E25: Suportes metálicos usinados | F25: R$ 1,890.00 | G25: R$ 132.30 | H25: R$ 245.70 | I25: R$ 151.20 | J25: R$ 189.00 | K25: R$ 75.60 | L25: R$ 40.00 | M25: R$ 50.00 | N25: 6% | O25: R$ 862.20 | P25: 2025-11-19 | Q25: Entregue | R25: 30/45/60/75 | S25: 4 | T25: Em Atraso | U25: 0 | V25: R$ 1,890.00 | W25: 4 | X25: R$ 113.40
C26: PED-018 | D26: Bobinas SA | E26: Conjunto de perfis U | F26: R$ 5,600.00 | G26: R$ 392.00 | H26: R$ 616.00 | I26: R$ 280.00 | J26: R$ 560.00 | K26: R$ 224.00 | L26: R$ 120.00 | M26: 0 | N26: 10% | O26: R$ 2,688.00 | P26: 2025-03-14 | Q26: Entregue | R26: 28/42/56 | S26: 3 | T26: Pago | U26: R$ 5,600.00 | V26: 0 | W26: 0 | X26: R$ 560.00
C27: PED-019 | D27: Estruturas Fortes | E27: Peças para automação | F27: R$ 3,100.00 | G27: R$ 217.00 | H27: R$ 403.00 | I27: R$ 248.00 | J27: R$ 279.00 | K27: R$ 124.00 | L27: R$ 60.00 | M27: 0 | N27: 6% | O27: R$ 1,459.00 | P27: 2026-06-27 | Q27: Em Produção | R27: 28/56 | S27: 2 | T27: A vencer | U27: 0 | V27: R$ 3,100.00 | W27: 2 | X27: R$ 186.00
C28: PED-020 | D28: Maquinados Alfa | E28: Tubos quadrados furados | F28: R$ 780.00 | G28: R$ 54.60 | H28: R$ 101.40 | I28: R$ 62.40 | J28: R$ 70.20 | K28: R$ 31.20 | L28: 0 | M28: R$ 30.00 | N28: 4% | O28: R$ 391.20 | P28: 2024-12-14 | Q28: Cancelado | R28: 15/30/45 | S28: 3 | T28: Cancelado | U28: 0 | V28: 0 | W28: 0 | X28: R$ 31.20
C29: PED-021 | D29: Industrial Leste | E29: Estrutura para estante | F29: R$ 2,340.00 | G29: R$ 163.80 | H29: R$ 304.20 | I29: R$ 187.20 | J29: R$ 210.60 | K29: R$ 93.60 | L29: R$ 80.00 | M29: 0 | N29: 8% | O29: R$ 1,068.60 | P29: 2025-05-23 | Q29: Entregue | R29: 28/42 | S29: 2 | T29: Pago Parcialmente / Em Atraso | U29: R$ 1,170.00 | V29: R$ 1,170.00 | W29: 1 | X29: R$ 187.20
C30: PED-022 | D30: Ferramentaria Rex | E30: Componentes de fixação | F30: R$ 1,100.00 | G30: R$ 77.00 | H30: R$ 143.00 | I30: R$ 88.00 | J30: R$ 99.00 | K30: R$ 44.00 | L30: R$ 20.00 | M30: 0 | N30: 5% | O30: R$ 545.00 | P30: 2026-02-27 | Q30: Entregue | R30: A VISTA | S30: 1 | T30: Pago | U30: R$ 1,100.00 | V30: 0 | W30: 0 | X30: R$ 55.00
C31: PED-023 | D31: Soldagem Plus | E31: Peças para manutenção industrial | F31: R$ 4,200.00 | G31: R$ 336.00 | H31: R$ 546.00 | I31: R$ 336.00 | J31: R$ 420.00 | K31: R$ 168.00 | L31: R$ 100.00 | M31: R$ 80.00 | N31: 11% | O31: R$ 1,886.00 | P31: 2025-07-12 | Q31: Entregue | R31: 30/60 | S31: 2 | T31: Pago | U31: R$ 4,200.00 | V31: 0 | W31: 0 | X31: R$ 462.00
C32: PED-024 | D32: Corte & Dobra | E32: Perfis L dobrados | F32: R$ 980.00 | G32: R$ 68.60 | H32: R$ 127.40 | I32: R$ 78.40 | J32: R$ 88.20 | K32: R$ 39.20 | L32: 0 | M32: 0 | N32: 4% | O32: R$ 541.20 | P32: 2026-05-08 | Q32: Entregue | R32: 28 DIAS | S32: 1 | T32: Pago | U32: R$ 980.00 | V32: 0 | W32: 0 | X32: R$ 39.20
C33: PED-025 | D33: AutoPeças Lima | E33: Tubos redondos com rosca | F33: R$ 3,600.00 | G33: R$ 252.00 | H33: R$ 468.00 | I33: R$ 288.00 | J33: R$ 324.00 | K33: R$ 144.00 | L33: R$ 70.00 | M33: 0 | N33: 6% | O33: R$ 1,690.00 | P33: 2024-09-25 | Q33: Entregue | R33: 28/42/56/70 | S33: 4 | T33: Pago | U33: R$ 3,600.00 | V33: 0 | W33: 0 | X33: R$ 216.00
C34: PED-026 | D34: Metaforma | E34: Chapa dobrada em canaleta | F34: R$ 2,200.00 | G34: R$ 176.00 | H34: R$ 286.00 | I34: R$ 176.00 | J34: R$ 198.00 | K34: R$ 88.00 | L34: R$ 50.00 | M34: R$ 50.00 | N34: 8% | O34: R$ 990.00 | P34: 2025-10-20 | Q34: Entregue | R34: 21/35/49 | S34: 3 | T34: Pago Parcialmente / Em Atraso | U34: R$ 733.33 | V34: R$ 1,466.67 | W34: 2 | X34: R$ 176.00
C35: PED-027 | D35: Distribuidora Ouro | E35: Kit suporte para tubulação | F35: R$ 650.00 | G35: R$ 45.50 | H35: R$ 84.50 | I35: R$ 52.00 | J35: R$ 58.50 | K35: R$ 26.00 | L35: 0 | M35: 0 | N35: 3% | O35: R$ 357.50 | P35: 2026-01-28 | Q35: Entregue | R35: A VISTA | S35: 1 | T35: Pago | U35: R$ 650.00 | V35: 0 | W35: 0 | X35: R$ 19.50
C36: PED-028 | D36: Chapas & Dobras | E36: Tubos retangulares cortados | F36: R$ 5,100.00 | G36: R$ 357.00 | H36: R$ 612.00 | I36: R$ 408.00 | J36: R$ 459.00 | K36: R$ 204.00 | L36: R$ 150.00 | M36: 0 | N36: 10% | O36: R$ 2,298.00 | P36: 2025-02-12 | Q36: Entregue | R36: 30/45/60/75 | S36: 4 | T36: Pago | U36: R$ 5,100.00 | V36: 0 | W36: 0 | X36: R$ 510.00
C37: PED-029 | D37: Rolamentos OK | E37: Peças usinadas em aço | F37: R$ 1,450.00 | G37: R$ 101.50 | H37: R$ 188.50 | I37: R$ 116.00 | J37: R$ 130.50 | K37: R$ 58.00 | L37: R$ 30.00 | M37: 0 | N37: 5% | O37: R$ 738.00 | P37: 2025-08-01 | Q37: Entregue | R37: 28/42 | S37: 2 | T37: Em Atraso | U37: 0 | V37: R$ 1,450.00 | W37: 2 | X37: R$ 72.50
C38: PED-030 | D38: Mecânica Precisa | E38: Conjunto de tubos e flanges | F38: R$ 7,800.00 | G38: R$ 624.00 | H38: R$ 936.00 | I38: R$ 546.00 | J38: R$ 702.00 | K38: R$ 312.00 | L38: R$ 200.00 | M38: R$ 150.00 | N38: 12% | O38: R$ 3,238.00 | P38: 2024-11-24 | Q38: Entregue | R38: 28/42/56 | S38: 3 | T38: Pago | U38: R$ 7,800.00 | V38: 0 | W38: 0 | X38: R$ 936.00
C39: PED-031 | D39: Perfis & Tubos | E39: Estrutura metálica dobrada | F39: R$ 3,250.00 | G39: R$ 227.50 | H39: R$ 422.50 | I39: R$ 260.00 | J39: R$ 292.50 | K39: R$ 130.00 | L39: R$ 80.00 | M39: 0 | N39: 6% | O39: R$ 1,531.00 | P39: 2025-12-19 | Q39: Entregue | R39: 15/30/45 | S39: 3 | T39: Pago Parcialmente | U39: R$ 975.00 | V39: R$ 2,275.00 | W39: 2 | X39: R$ 195.00
C40: PED-032 | D40: Indústria Verde | E40: Lote de perfis dobrados | F40: R$ 900.00 | G40: R$ 63.00 | H40: R$ 117.00 | I40: R$ 72.00 | J40: R$ 81.00 | K40: R$ 36.00 | L40: 0 | M40: 0 | N40: 4% | O40: R$ 486.00 | P40: 2025-04-03 | Q40: Entregue | R40: A VISTA | S40: 1 | T40: Pago | U40: R$ 900.00 | V40: 0 | W40: 0 | X40: R$ 36.00
C41: PED-033 | D41: Montagem Pro | E41: Barras com ponteira | F41: R$ 4,500.00 | G41: R$ 360.00 | H41: R$ 585.00 | I41: R$ 360.00 | J41: R$ 405.00 | K41: R$ 180.00 | L41: R$ 100.00 | M41: R$ 80.00 | N41: 11% | O41: R$ 2,026.00 | P41: 2025-08-31 | Q41: Entregue | R41: 30/60 | S41: 2 | T41: Pago Parcialmente / Em Atraso | U41: R$ 2,250.00 | V41: R$ 2,250.00 | W41: 1 | X41: R$ 495.00
C42: PED-034 | D42: Metalúrgica Sousa | E42: Peças torneadas sob medida | F42: R$ 2,050.00 | G42: R$ 143.50 | H42: R$ 266.50 | I42: R$ 164.00 | J42: R$ 184.50 | K42: R$ 82.00 | L42: R$ 45.00 | M42: 0 | N42: 5% | O42: R$ 1,041.00 | P42: 2026-02-17 | Q42: Entregue | R42: 28 DIAS | S42: 1 | T42: Em Atraso | U42: 0 | V42: R$ 2,050.00 | W42: 1 | X42: R$ 102.50
C43: PED-035 | D43: Tornearia Central | E43: Kit de conexões metálicas | F43: R$ 6,700.00 | G43: R$ 536.00 | H43: R$ 804.00 | I43: R$ 536.00 | J43: R$ 603.00 | K43: R$ 268.00 | L43: R$ 180.00 | M43: 0 | N43: 10% | O43: R$ 2,973.00 | P43: 2025-01-23 | Q43: Entregue | R43: 28/42/56/70 | S43: 4 | T43: Pago | U43: R$ 6,700.00 | V43: 0 | W43: 0 | X43: R$ 670.00
C44: PED-036 | D44: Grupo Mota | E44: Chapas cortadas e dobradas | F44: R$ 1,350.00 | G44: R$ 94.50 | H44: R$ 175.50 | I44: R$ 108.00 | J44: R$ 121.50 | K44: R$ 54.00 | L44: 0 | M44: R$ 50.00 | N44: 6% | O44: R$ 651.00 | P44: 2025-11-24 | Q44: Entregue | R44: 14/28 | S44: 2 | T44: Pago | U44: R$ 1,350.00 | V44: 0 | W44: 0 | X44: R$ 81.00
C45: PED-037 | D45: Fábrica ABC | E45: Suportes metálicos usinados | F45: R$ 3,800.00 | G45: R$ 304.00 | H45: R$ 494.00 | I45: R$ 304.00 | J45: R$ 342.00 | K45: R$ 152.00 | L45: R$ 90.00 | M45: 0 | N45: 8% | O45: R$ 1,762.00 | P45: 2026-05-18 | Q45: Aguardando Retirada | R45: 21/35/49 | S45: 3 | T45: A vencer | U45: 0 | V45: R$ 3,800.00 | W45: 3 | X45: R$ 304.00
C46: PED-038 | D46: Usinagem Rápida | E46: Tubos com usinagem especial | F46: R$ 560.00 | G46: R$ 39.20 | H46: R$ 72.80 | I46: R$ 44.80 | J46: R$ 50.40 | K46: R$ 22.40 | L46: 0 | M46: 0 | N46: 3% | O46: R$ 297.40 | P46: 2024-10-15 | Q46: Entregue | R46: A VISTA | S46: 1 | T46: Pago | U46: R$ 560.00 | V46: 0 | W46: 0 | X46: R$ 16.80
C47: PED-039 | D47: Estruturas Fortes | E47: Estrutura para galpão | F47: R$ 9,500.00 | G47: R$ 760.00 | H47: R$ 1,140.00 | I47: R$ 760.00 | J47: R$ 855.00 | K47: R$ 380.00 | L47: R$ 250.00 | M47: R$ 200.00 | N47: 12% | O47: R$ 4,155.00 | P47: 2025-05-03 | Q47: Entregue | R47: 30/45/60/75 | S47: 4 | T47: Pago Parcialmente / Em Atraso | U47: R$ 2,375.00 | V47: R$ 7,125.00 | W47: 3 | X47: R$ 1,140.00
C48: PED-040 | D48: AçoTech | E48: Peças de reposição industrial | F48: R$ 730.00 | G48: R$ 51.10 | H48: R$ 94.90 | I48: R$ 58.40 | J48: R$ 65.70 | K48: R$ 29.20 | L48: 0 | M48: 0 | N48: 4% | O48: R$ 394.70 | P48: 2025-07-02 | Q48: Entregue | R48: 28/42 | S48: 2 | T48: Pago | U48: R$ 730.00 | V48: 0 | W48: 0 | X48: R$ 29.20
C49: PED-041 | D49: Hidráulica Total | E49: Tubos galvanizados com ponteira | F49: R$ 2,900.00 | G49: R$ 203.00 | H49: R$ 377.00 | I49: R$ 232.00 | J49: R$ 261.00 | K49: R$ 116.00 | L49: R$ 60.00 | M49: 0 | N49: 6% | O49: R$ 1,356.00 | P49: 2026-07-27 | Q49: Em Produção | R49: 28/56/84 | S49: 3 | T49: A vencer | U49: 0 | V49: R$ 2,900.00 | W49: 3 | X49: R$ 174.00
C50: PED-042 | D50: CNC Express | E50: Barras chatas cortadas | F50: R$ 4,100.00 | G50: R$ 287.00 | H50: R$ 533.00 | I50: R$ 328.00 | J50: R$ 369.00 | K50: R$ 164.00 | L50: R$ 100.00 | M50: 0 | N50: 10% | O50: R$ 1,908.00 | P50: 2025-09-10 | Q50: Entregue | R50: 28/42/56 | S50: 3 | T50: Pago | U50: R$ 4,100.00 | V50: 0 | W50: 0 | X50: R$ 410.00
C51: PED-043 | D51: Peças & Cia | E51: Conjunto de perfis U | F51: R$ 1,750.00 | G51: R$ 122.50 | H51: R$ 227.50 | I51: R$ 140.00 | J51: R$ 157.50 | K51: R$ 70.00 | L51: R$ 30.00 | M51: 0 | N51: 5% | O51: R$ 897.50 | P51: 2026-01-08 | Q51: Entregue | R51: A VISTA | S51: 1 | T51: Pago | U51: R$ 1,750.00 | V51: 0 | W51: 0 | X51: R$ 87.50
C52: PED-044 | D52: Chapas & Dobras | E52: Peças para automação | F52: R$ 6,000.00 | G52: R$ 480.00 | H52: R$ 780.00 | I52: R$ 480.00 | J52: R$ 540.00 | K52: R$ 240.00 | L52: R$ 150.00 | M52: 0 | N52: 11% | O52: R$ 2,538.00 | P52: 2025-07-22 | Q52: Entregue | R52: 30/60 | S52: 2 | T52: Pago | U52: R$ 6,000.00 | V52: 0 | W52: 0 | X52: R$ 660.00
C53: PED-045 | D53: Distribuidora Ouro | E53: Tubos quadrados furados | F53: R$ 830.00 | G53: R$ 58.10 | H53: R$ 107.90 | I53: R$ 66.40 | J53: R$ 74.70 | K53: R$ 33.20 | L53: 0 | M53: R$ 30.00 | N53: 4% | O53: R$ 418.70 | P53: 2025-10-30 | Q53: Entregue | R53: 28 DIAS | S53: 1 | T53: Pago | U53: R$ 830.00 | V53: 0 | W53: 0 | X53: R$ 33.20
C54: PED-046 | D54: Ferramentaria Rex | E54: Estrutura para estante | F54: R$ 3,500.00 | G54: R$ 280.00 | H54: R$ 455.00 | I54: R$ 280.00 | J54: R$ 315.00 | K54: R$ 140.00 | L54: R$ 80.00 | M54: R$ 80.00 | N54: 8% | O54: R$ 1,590.00 | P54: 2025-03-04 | Q54: Entregue | R54: 15/30/45 | S54: 3 | T54: Pago | U54: R$ 3,500.00 | V54: 0 | W54: 0 | X54: R$ 280.00
C55: PED-047 | D55: Corte & Dobra | E55: Componentes de fixação | F55: R$ 1,200.00 | G55: R$ 84.00 | H55: R$ 156.00 | I55: R$ 96.00 | J55: R$ 108.00 | K55: R$ 48.00 | L55: 0 | M55: 0 | N55: 5% | O55: R$ 620.00 | P55: 2026-03-29 | Q55: Entregue | R55: 14/28 | S55: 2 | T55: Em Atraso | U55: 0 | V55: R$ 1,200.00 | W55: 2 | X55: R$ 60.00
C56: PED-048 | D56: AutoPeças Lima | E56: Peças para manutenção industrial | F56: R$ 5,400.00 | G56: R$ 432.00 | H56: R$ 702.00 | I56: R$ 432.00 | J56: R$ 486.00 | K56: R$ 216.00 | L56: R$ 130.00 | M56: 0 | N56: 10% | O56: R$ 2,218.00 | P56: 2025-06-12 | Q56: Entregue | R56: 28/42/56/70 | S56: 4 | T56: Pago Parcialmente / Em Atraso | U56: R$ 1,350.00 | V56: R$ 4,050.00 | W56: 3 | X56: R$ 540.00
C57: PED-049 | D57: Metaforma | E57: Perfis L dobrados | F57: R$ 2,600.00 | G57: R$ 182.00 | H57: R$ 338.00 | I57: R$ 208.00 | J57: R$ 234.00 | K57: R$ 104.00 | L57: R$ 50.00 | M57: 0 | N57: 6% | O57: R$ 1,218.00 | P57: 2026-02-02 | Q57: Entregue | R57: 30/45/60/75 | S57: 4 | T57: Pago Parcialmente | U57: R$ 650.00 | V57: R$ 1,950.00 | W57: 3 | X57: R$ 156.00
C58: PED-050 | D58: Soldagem Plus | E58: Tubos redondos com rosca | F58: R$ 990.00 | G58: R$ 69.30 | H58: R$ 128.70 | I58: R$ 79.20 | J58: R$ 89.10 | K58: R$ 39.60 | L58: 0 | M58: 0 | N58: 4% | O58: R$ 546.10 | P58: 2025-01-23 | Q58: Entregue | R58: A VISTA | S58: 1 | T58: Pago | U58: R$ 990.00 | V58: 0 | W58: 0 | X58: R$ 39.60
C59: PED-051 | D59: Rolamentos OK | E59: Chapa dobrada em canaleta | F59: R$ 4,750.00 | G59: R$ 380.00 | H59: R$ 617.50 | I59: R$ 380.00 | J59: R$ 427.50 | K59: R$ 190.00 | L59: R$ 110.00 | M59: R$ 80.00 | N59: 11% | O59: R$ 2,183.50 | P59: 2025-08-31 | Q59: Entregue | R59: 21/35/49 | S59: 3 | T59: Pago | U59: R$ 4,750.00 | V59: 0 | W59: 0 | X59: R$ 522.50
C60: PED-052 | D60: Indústria Beta Ltda | E60: Kit suporte para tubulação | F60: R$ 1,600.00 | G60: R$ 112.00 | H60: R$ 208.00 | I60: R$ 128.00 | J60: R$ 144.00 | K60: R$ 64.00 | L60: R$ 40.00 | M60: 0 | N60: 5% | O60: R$ 816.00 | P60: 2026-01-03 | Q60: Entregue | R60: 28/42 | S60: 2 | T60: Pago | U60: R$ 1,600.00 | V60: 0 | W60: 0 | X60: R$ 80.00
C61: PED-053 | D61: Mecânica Precisa | E61: Tubos retangulares cortados | F61: R$ 3,100.00 | G61: R$ 248.00 | H61: R$ 403.00 | I61: R$ 248.00 | J61: R$ 279.00 | K61: R$ 124.00 | L61: R$ 70.00 | M61: 0 | N61: 6% | O61: R$ 1,462.00 | P61: 2025-04-23 | Q61: Entregue | R61: 30/60 | S61: 2 | T61: Pago | U61: R$ 3,100.00 | V61: 0 | W61: 0 | X61: R$ 186.00
C62: PED-054 | D62: Metalmax Ind. | E62: Conjunto de tubos e flanges | F62: R$ 870.00 | G62: R$ 60.90 | H62: R$ 113.10 | I62: R$ 69.60 | J62: R$ 78.30 | K62: R$ 34.80 | L62: 0 | M62: 0 | N62: 3% | O62: R$ 476.30 | P62: 2026-03-09 | Q62: Entregue | R62: A VISTA | S62: 1 | T62: Pago | U62: R$ 870.00 | V62: 0 | W62: 0 | X62: R$ 26.10
C63: PED-055 | D63: Montagem Pro | E63: Estrutura metálica dobrada | F63: R$ 7,100.00 | G63: R$ 568.00 | H63: R$ 923.00 | I63: R$ 568.00 | J63: R$ 639.00 | K63: R$ 284.00 | L63: R$ 180.00 | M63: R$ 150.00 | N63: 12% | O63: R$ 2,981.00 | P63: 2024-12-14 | Q63: Entregue | R63: 28/42/56/70 | S63: 4 | T63: Pago Parcialmente / Em Atraso | U63: R$ 1,775.00 | V63: R$ 5,325.00 | W63: 3 | X63: R$ 852.00

Sheet PAGAMENTOS (hidden)
C3: Total Parcelas | D3: Pagas | E3: Em Atraso | F3: A Vencer | G3: Total Recebido | H3: Total em Aberto
C4: =COUNTA(tb_pagamentos[Nr_Pedido])-COUNTBLANK(tb_pagamentos[Nr_Pedido]) -> 133 | D4: =COUNTIF(tb_pagamentos[Status_Parcela],"Pago") -> 79 | E4: =COUNTIF(tb_pagamentos[Status_Parcela],"Em Atraso") -> 47 | F4: =COUNTIF(tb_pagamentos[Status_Parcela],"A Vencer") -> 7 | G4: =SUMIF(tb_pagamentos[Status_Parcela],"Pago",tb_pagamentos[Valor_Parcela]) -> R$ 107,131.88 | H4: =SUMIF(tb_pagamentos[Status_Parcela],"<>Pago",tb_pagamentos[Valor_Parcela]) -> R$ 60,490.67
C5: 💳 CONTROLE DE PAGAMENTOS / PARCELAS
C7: ID_Parcela | D7: Nr_Pedido | E7: Nr_Parcela | F7: Qtd_Total_Parcelas | G7: Valor_Parcela | H7: Data_Vencimento | I7: Data_Pagamento | J7: Status_Parcela
C8: =IF(OR(D8="",E8=""),"",D8&"-"&E8) -> PED-001-1 | D8: =IFERROR(INDEX(CALC_BASE!$N$3:$N$135,MATCH(ROW()-7,CALC_BASE!$M$3:$M$135,0)),"") -> PED-001 | E8: =IFERROR(INDEX(CALC_BASE!$O$3:$O$135,MATCH(ROW()-7,CALC_BASE!$M$3:$M$135,0)),"") -> 1 | F8: =IFERROR(INDEX(CALC_BASE!$P$3:$P$135,MATCH(ROW()-7,CALC_BASE!$M$3:$M$135,0)),"") -> 4 | G8: =IFERROR(IF(D8="","",INDEX(tb_vendas[Preço de Venda],MATCH(D8,tb_vendas[N° Pedido/Empresa],0))/F8),"") -> R$ 307.50 | H8: =IFERROR(IF(D8="","",INDEX(tb_vendas[Data Fechamento],MATCH(D8,tb_vendas[N° Pedido/Empresa],0))+E8*INDEX(tb_formas_pagamento[Dias_Intervalo],MATCH(INDEX(tb_vendas[Forma_Pagamento],MATCH(D8,tb_vendas[N° Pedido/Empresa],0)),tb_formas_pagamento[Nome_Forma],0))),"") -> 2026-01-26 | I8: 2026-01-25 | J8: =IF(OR(tb_pagamentos[[#This Row],[Data_Vencimento]]="",tb_pagamentos[[#This Row],[Valor_Parcela]]="",tb_pagamentos[[#This Row],[Qtd_Total_Parcelas]]="",tb_pagamentos[[#This Row],[Nr_Pedido]]=""),"",IF(tb_pagamentos[[#This Row],[Data_Pagamento]]<>"","Pago",IF(AND(tb_pagamentos[[#This Row],[Data_Pagamento]]="",tb_pagamentos[[#This Row],[Data_Vencimento]]<TODAY()),"Em Atraso","A vencer"))) -> Pago
C9: PED-001-2 | D9: =IFERROR(INDEX(CALC_BASE!$N$3:$N$135,MATCH(ROW()-7,CALC_BASE!$M$3:$M$135,0)),"") -> PED-001 | E9: =IFERROR(INDEX(CALC_BASE!$O$3:$O$135,MATCH(ROW()-7,CALC_BASE!$M$3:$M$135,0)),"") -> 2 | F9: =IFERROR(INDEX(CALC_BASE!$P$3:$P$135,MATCH(ROW()-7,CALC_BASE!$M$3:$M$135,0)),"") -> 4 | G9: =IFERROR(IF(D9="","",INDEX(tb_vendas[Preço de Venda],MATCH(D9,tb_vendas[N° Pedido/Empresa],0))/F9),"") -> R$ 307.50 | H9: =IFERROR(IF(D9="","",INDEX(tb_vendas[Data Fechamento],MATCH(D9,tb_vendas[N° Pedido/Empresa],0))+E9*INDEX(tb_formas_pagamento[Dias_Intervalo],MATCH(INDEX(tb_vendas[Forma_Pagamento],MATCH(D9,tb_vendas[N° Pedido/Empresa],0)),tb_formas_pagamento[Nome_Forma],0))),"") -> 2026-02-10 | J9: =IF(OR(tb_pagamentos[[#This Row],[Data_Vencimento]]="",tb_pagamentos[[#This Row],[Valor_Parcela]]="",tb_pagamentos[[#This Row],[Qtd_Total_Parcelas]]="",tb_pagamentos[[#This Row],[Nr_Pedido]]=""),"",IF(tb_pagamentos[[#This Row],[Data_Pagamento]]<>"","Pago",IF(AND(tb_pagamentos[[#This Row],[Data_Pagamento]]="",tb_pagamentos[[#This Row],[Data_Vencimento]]<TODAY()),"Em Atraso","A vencer"))) -> Em Atraso
C10: PED-001-3 | D10: =IFERROR(INDEX(CALC_BASE!$N$3:$N$135,MATCH(ROW()-7,CALC_BASE!$M$3:$M$135,0)),"") -> PED-001 | E10: =IFERROR(INDEX(CALC_BASE!$O$3:$O$135,MATCH(ROW()-7,CALC_BASE!$M$3:$M$135,0)),"") -> 3 | F10: =IFERROR(INDEX(CALC_BASE!$P$3:$P$135,MATCH(ROW()-7,CALC_BASE!$M$3:$M$135,0)),"") -> 4 | G10: =IFERROR(IF(D10="","",INDEX(tb_vendas[Preço de Venda],MATCH(D10,tb_vendas[N° Pedido/Empresa],0))/F10),"") -> R$ 307.50 | H10: =IFERROR(IF(D10="","",INDEX(tb_vendas[Data Fechamento],MATCH(D10,tb_vendas[N° Pedido/Empresa],0))+E10*INDEX(tb_formas_pagamento[Dias_Intervalo],MATCH(INDEX(tb_vendas[Forma_Pagamento],MATCH(D10,tb_vendas[N° Pedido/Empresa],0)),tb_formas_pagamento[Nome_Forma],0))),"") -> 2026-02-25 | J10: =IF(OR(tb_pagamentos[[#This Row],[Data_Vencimento]]="",tb_pagamentos[[#This Row],[Valor_Parcela]]="",tb_pagamentos[[#This Row],[Qtd_Total_Parcelas]]="",tb_pagamentos[[#This Row],[Nr_Pedido]]=""),"",IF(tb_pagamentos[[#This Row],[Data_Pagamento]]<>"","Pago",IF(AND(tb_pagamentos[[#This Row],[Data_Pagamento]]="",tb_pagamentos[[#This Row],[Data_Vencimento]]<TODAY()),"Em Atraso","A vencer"))) -> Em Atraso
C11: PED-001-4 | D11: =IFERROR(INDEX(CALC_BASE!$N$3:$N$135,MATCH(ROW()-7,CALC_BASE!$M$3:$M$135,0)),"") -> PED-001 | E11: =IFERROR(INDEX(CALC_BASE!$O$3:$O$135,MATCH(ROW()-7,CALC_BASE!$M$3:$M$135,0)),"") -> 4 | F11: =IFERROR(INDEX(CALC_BASE!$P$3:$P$135,MATCH(ROW()-7,CALC_BASE!$M$3:$M$135,0)),"") -> 4 | G11: =IFERROR(IF(D11="","",INDEX(tb_vendas[Preço de Venda],MATCH(D11,tb_vendas[N° Pedido/Empresa],0))/F11),"") -> R$ 307.50 | H11: =IFERROR(IF(D11="","",INDEX(tb_vendas[Data Fechamento],MATCH(D11,tb_vendas[N° Pedido/Empresa],0))+E11*INDEX(tb_formas_pagamento[Dias_Intervalo],MATCH(INDEX(tb_vendas[Forma_Pagamento],MATCH(D11,tb_vendas[N° Pedido/Empresa],0)),tb_formas_pagamento[Nome_Forma],0))),"") -> 2026-03-12 | J11: =IF(OR(tb_pagamentos[[#This Row],[Data_Vencimento]]="",tb_pagamentos[[#This Row],[Valor_Parcela]]="",tb_pagamentos[[#This Row],[Qtd_Total_Parcelas]]="",tb_pagamentos[[#This Row],[Nr_Pedido]]=""),"",IF(tb_pagamentos[[#This Row],[Data_Pagamento]]<>"","Pago",IF(AND(tb_pagamentos[[#This Row],[Data_Pagamento]]="",tb_pagamentos[[#This Row],[Data_Vencimento]]<TODAY()),"Em Atraso","A vencer"))) -> Em Atraso
C12: PED-002-1 | D12: =IFERROR(INDEX(CALC_BASE!$N$3:$N$135,MATCH(ROW()-7,CALC_BASE!$M$3:$M$135,0)),"") -> PED-002 | E12: =IFERROR(INDEX(CALC_BASE!$O$3:$O$135,MATCH(ROW()-7,CALC_BASE!$M$3:$M$135,0)),"") -> 1 | F12: =IFERROR(INDEX(CALC_BASE!$P$3:$P$135,MATCH(ROW()-7,CALC_BASE!$M$3:$M$135,0)),"") -> 3 | G12: =IFERROR(IF(D12="","",INDEX(tb_vendas[Preço de Venda],MATCH(D12,tb_vendas[N° Pedido/Empresa],0))/F12),"") -> R$ 286.67 | H12: =IFERROR(IF(D12="","",INDEX(tb_vendas[Data Fechamento],MATCH(D12,tb_vendas[N° Pedido/Empresa],0))+E12*INDEX(tb_formas_pagamento[Dias_Intervalo],MATCH(INDEX(tb_vendas[Forma_Pagamento],MATCH(D12,tb_vendas[N° Pedido/Empresa],0)),tb_formas_pagamento[Nome_Forma],0))),"") -> 2026-04-25 | I12: 2026-04-26 | J12: =IF(OR(tb_pagamentos[[#This Row],[Data_Vencimento]]="",tb_pagamentos[[#This Row],[Valor_Parcela]]="",tb_pagamentos[[#This Row],[Qtd_Total_Parcelas]]="",tb_pagamentos[[#This Row],[Nr_Pedido]]=""),"",IF(tb_pagamentos[[#This Row],[Data_Pagamento]]<>"","Pago",IF(AND(tb_pagamentos[[#This Row],[Data_Pagamento]]="",tb_pagamentos[[#This Row],[Data_Vencimento]]<TODAY()),"Em Atraso","A vencer"))) -> Pago
C13: PED-002-2 | D13: =IFERROR(INDEX(CALC_BASE!$N$3:$N$135,MATCH(ROW()-7,CALC_BASE!$M$3:$M$135,0)),"") -> PED-002 | E13: =IFERROR(INDEX(CALC_BASE!$O$3:$O$135,MATCH(ROW()-7,CALC_BASE!$M$3:$M$135,0)),"") -> 2 | F13: =IFERROR(INDEX(CALC_BASE!$P$3:$P$135,MATCH(ROW()-7,CALC_BASE!$M$3:$M$135,0)),"") -> 3 | G13: =IFERROR(IF(D13="","",INDEX(tb_vendas[Preço de Venda],MATCH(D13,tb_vendas[N° Pedido/Empresa],0))/F13),"") -> R$ 286.67 | H13: =IFERROR(IF(D13="","",INDEX(tb_vendas[Data Fechamento],MATCH(D13,tb_vendas[N° Pedido/Empresa],0))+E13*INDEX(tb_formas_pagamento[Dias_Intervalo],MATCH(INDEX(tb_vendas[Forma_Pagamento],MATCH(D13,tb_vendas[N° Pedido/Empresa],0)),tb_formas_pagamento[Nome_Forma],0))),"") -> 2026-05-09 | J13: =IF(OR(tb_pagamentos[[#This Row],[Data_Vencimento]]="",tb_pagamentos[[#This Row],[Valor_Parcela]]="",tb_pagamentos[[#This Row],[Qtd_Total_Parcelas]]="",tb_pagamentos[[#This Row],[Nr_Pedido]]=""),"",IF(tb_pagamentos[[#This Row],[Data_Pagamento]]<>"","Pago",IF(AND(tb_pagamentos[[#This Row],[Data_Pagamento]]="",tb_pagamentos[[#This Row],[Data_Vencimento]]<TODAY()),"Em Atraso","A vencer"))) -> Em Atraso
C14: PED-002-3 | D14: =IFERROR(INDEX(CALC_BASE!$N$3:$N$135,MATCH(ROW()-7,CALC_BASE!$M$3:$M$135,0)),"") -> PED-002 | E14: =IFERROR(INDEX(CALC_BASE!$O$3:$O$135,MATCH(ROW()-7,CALC_BASE!$M$3:$M$135,0)),"") -> 3 | F14: =IFERROR(INDEX(CALC_BASE!$P$3:$P$135,MATCH(ROW()-7,CALC_BASE!$M$3:$M$135,0)),"") -> 3 | G14: =IFERROR(IF(D14="","",INDEX(tb_vendas[Preço de Venda],MATCH(D14,tb_vendas[N° Pedido/Empresa],0))/F14),"") -> R$ 286.67 | H14: =IFERROR(IF(D14="","",INDEX(tb_vendas[Data Fechamento],MATCH(D14,tb_vendas[N° Pedido/Empresa],0))+E14*INDEX(tb_formas_pagamento[Dias_Intervalo],MATCH(INDEX(tb_vendas[Forma_Pagamento],MATCH(D14,tb_vendas[N° Pedido/Empresa],0)),tb_formas_pagamento[Nome_Forma],0))),"") -> 2026-05-23 | J14: =IF(OR(tb_pagamentos[[#This Row],[Data_Vencimento]]="",tb_pagamentos[[#This Row],[Valor_Parcela]]="",tb_pagamentos[[#This Row],[Qtd_Total_Parcelas]]="",tb_pagamentos[[#This Row],[Nr_Pedido]]=""),"",IF(tb_pagamentos[[#This Row],[Data_Pagamento]]<>"","Pago",IF(AND(tb_pagamentos[[#This Row],[Data_Pagamento]]="",tb_pagamentos[[#This Row],[Data_Vencimento]]<TODAY()),"Em Atraso","A vencer"))) -> Em Atraso
C15: PED-003-1 | D15: =IFERROR(INDEX(CALC_BASE!$N$3:$N$135,MATCH(ROW()-7,CALC_BASE!$M$3:$M$135,0)),"") -> PED-003 | E15: =IFERROR(INDEX(CALC_BASE!$O$3:$O$135,MATCH(ROW()-7,CALC_BASE!$M$3:$M$135,0)),"") -> 1 | F15: =IFERROR(INDEX(CALC_BASE!$P$3:$P$135,MATCH(ROW()-7,CALC_BASE!$M$3:$M$135,0)),"") -> 2 | G15: =IFERROR(IF(D15="","",INDEX(tb_vendas[Preço de Venda],MATCH(D15,tb_vendas[N° Pedido/Empresa],0))/F15),"") -> R$ 3,203.28 | H15: =IFERROR(IF(D15="","",INDEX(tb_vendas[Data Fechamento],MATCH(D15,tb_vendas[N° Pedido/Empresa],0))+E15*INDEX(tb_formas_pagamento[Dias_Intervalo],MATCH(INDEX(tb_vendas[Forma_Pagamento],MATCH(D15,tb_vendas[N° Pedido/Empresa],0)),tb_formas_pagamento[Nome_Forma],0))),"") -> 2025-12-12 | I15: 2025-12-23 | J15: =IF(OR(tb_pagamentos[[#This Row],[Data_Vencimento]]="",tb_pagamentos[[#This Row],[Valor_Parcela]]="",tb_pagamentos[[#This Row],[Qtd_Total_Parcelas]]="",tb_pagamentos[[#This Row],[Nr_Pedido]]=""),"",IF(tb_pagamentos[[#This Row],[Data_Pagamento]]<>"","Pago",IF(AND(tb_pagamentos[[#This Row],[Data_Pagamento]]="",tb_pagamentos[[#This Row],[Data_Vencimento]]<TODAY()),"Em Atraso","A vencer"))) -> Pago
C16: PED-003-2 | D16: =IFERROR(INDEX(CALC_BASE!$N$3:$N$135,MATCH(ROW()-7,CALC_BASE!$M$3:$M$135,0)),"") -> PED-003 | E16: =IFERROR(INDEX(CALC_BASE!$O$3:$O$135,MATCH(ROW()-7,CALC_BASE!$M$3:$M$135,0)),"") -> 2 | F16: =IFERROR(INDEX(CALC_BASE!$P$3:$P$135,MATCH(ROW()-7,CALC_BASE!$M$3:$M$135,0)),"") -> 2 | G16: =IFERROR(IF(D16="","",INDEX(tb_vendas[Preço de Venda],MATCH(D16,tb_vendas[N° Pedido/Empresa],0))/F16),"") -> R$ 3,203.28 | H16: =IFERROR(IF(D16="","",INDEX(tb_vendas[Data Fechamento],MATCH(D16,tb_vendas[N° Pedido/Empresa],0))+E16*INDEX(tb_formas_pagamento[Dias_Intervalo],MATCH(INDEX(tb_vendas[Forma_Pagamento],MATCH(D16,tb_vendas[N° Pedido/Empresa],0)),tb_formas_pagamento[Nome_Forma],0))),"") -> 2025-12-26 | I16: 2026-01-07 | J16: =IF(OR(tb_pagamentos[[#This Row],[Data_Vencimento]]="",tb_pagamentos[[#This Row],[Valor_Parcela]]="",tb_pagamentos[[#This Row],[Qtd_Total_Parcelas]]="",tb_pagamentos[[#This Row],[Nr_Pedido]]=""),"",IF(tb_pagamentos[[#This Row],[Data_Pagamento]]<>"","Pago",IF(AND(tb_pagamentos[[#This Row],[Data_Pagamento]]="",tb_pagamentos[[#This Row],[Data_Vencimento]]<TODAY()),"Em Atraso","A vencer"))) -> Pago
C17: PED-004-1 | D17: =IFERROR(INDEX(CALC_BASE!$N$3:$N$135,MATCH(ROW()-7,CALC_BASE!$M$3:$M$135,0)),"") -> PED-004 | E17: =IFERROR(INDEX(CALC_BASE!$O$3:$O$135,MATCH(ROW()-7,CALC_BASE!$M$3:$M$135,0)),"") -> 1 | F17: =IFERROR(INDEX(CALC_BASE!$P$3:$P$135,MATCH(ROW()-7,CALC_BASE!$M$3:$M$135,0)),"") -> 1 | G17: =IFERROR(IF(D17="","",INDEX(tb_vendas[Preço de Venda],MATCH(D17,tb_vendas[N° Pedido/Empresa],0))/F17),"") -> R$ 1,847.25 | H17: =IFERROR(IF(D17="","",INDEX(tb_vendas[Data Fechamento],MATCH(D17,tb_vendas[N° Pedido/Empresa],0))+E17*INDEX(tb_formas_pagamento[Dias_Intervalo],MATCH(INDEX(tb_vendas[Forma_Pagamento],MATCH(D17,tb_vendas[N° Pedido/Empresa],0)),tb_formas_pagamento[Nome_Forma],0))),"") -> 2026-04-27 | I17: 2026-04-25 | J17: =IF(OR(tb_pagamentos[[#This Row],[Data_Vencimento]]="",tb_pagamentos[[#This Row],[Valor_Parcela]]="",tb_pagamentos[[#This Row],[Qtd_Total_Parcelas]]="",tb_pagamentos[[#This Row],[Nr_Pedido]]=""),"",IF(tb_pagamentos[[#This Row],[Data_Pagamento]]<>"","Pago",IF(AND(tb_pagamentos[[#This Row],[Data_Pagamento]]="",tb_pagamentos[[#This Row],[Data_Vencimento]]<TODAY()),"Em Atraso","A vencer"))) -> Pago
C18: PED-005-1 | D18: =IFERROR(INDEX(CALC_BASE!$N$3:$N$135,MATCH(ROW()-7,CALC_BASE!$M$3:$M$135,0)),"") -> PED-005 | E18: =IFERROR(INDEX(CALC_BASE!$O$3:$O$135,MATCH(ROW()-7,CALC_BASE!$M$3:$M$135,0)),"") -> 1 | F18: =IFERROR(INDEX(CALC_BASE!$P$3:$P$135,MATCH(ROW()-7,CALC_BASE!$M$3:$M$135,0)),"") -> 3 | G18: =IFERROR(IF(D18="","",INDEX(tb_vendas[Preço de Venda],MATCH(D18,tb_vendas[N° Pedido/Empresa],0))/F18),"") -> R$ 1,307.06 | H18: =IFERROR(IF(D18="","",INDEX(tb_vendas[Data Fechamento],MATCH(D18,tb_vendas[N° Pedido/Empresa],0))+E18*INDEX(tb_formas_pagamento[Dias_Intervalo],MATCH(INDEX(tb_vendas[Forma_Pagamento],MATCH(D18,tb_vendas[N° Pedido/Empresa],0)),tb_formas_pagamento[Nome_Forma],0))),"") -> 2026-11-27 | J18: =IF(OR(tb_pagamentos[[#This Row],[Data_Vencimento]]="",tb_pagamentos[[#This Row],[Valor_Parcela]]="",tb_pagamentos[[#This Row],[Qtd_Total_Parcelas]]="",tb_pagamentos[[#This Row],[Nr_Pedido]]=""),"",IF(tb_pagamentos[[#This Row],[Data_Pagamento]]<>"","Pago",IF(AND(tb_pagamentos[[#This Row],[Data_Pagamento]]="",tb_pagamentos[[#This Row],[Data_Vencimento]]<TODAY()),"Em Atraso","A vencer"))) -> A vencer
C19: PED-005-2 | D19: =IFERROR(INDEX(CALC_BASE!$N$3:$N$135,MATCH(ROW()-7,CALC_BASE!$M$3:$M$135,0)),"") -> PED-005 | E19: =IFERROR(INDEX(CALC_BASE!$O$3:$O$135,MATCH(ROW()-7,CALC_BASE!$M$3:$M$135,0)),"") -> 2 | F19: =IFERROR(INDEX(CALC_BASE!$P$3:$P$135,MATCH(ROW()-7,CALC_BASE!$M$3:$M$135,0)),"") -> 3 | G19: =IFERROR(IF(D19="","",INDEX(tb_vendas[Preço de Venda],MATCH(D19,tb_vendas[N° Pedido/Empresa],0))/F19),"") -> R$ 1,307.06 | H19: =IFERROR(IF(D19="","",INDEX(tb_vendas[Data Fechamento],MATCH(D19,tb_vendas[N° Pedido/Empresa],0))+E19*INDEX(tb_formas_pagamento[Dias_Intervalo],MATCH(INDEX(tb_vendas[Forma_Pagamento],MATCH(D19,tb_vendas[N° Pedido/Empresa],0)),tb_formas_pagamento[Nome_Forma],0))),"") -> 2026-12-11 | J19: =IF(OR(tb_pagamentos[[#This Row],[Data_Vencimento]]="",tb_pagamentos[[#This Row],[Valor_Parcela]]="",tb_pagamentos[[#This Row],[Qtd_Total_Parcelas]]="",tb_pagamentos[[#This Row],[Nr_Pedido]]=""),"",IF(tb_pagamentos[[#This Row],[Data_Pagamento]]<>"","Pago",IF(AND(tb_pagamentos[[#This Row],[Data_Pagamento]]="",tb_pagamentos[[#This Row],[Data_Vencimento]]<TODAY()),"Em Atraso","A vencer"))) -> A vencer
C20: PED-005-3 | D20: =IFERROR(INDEX(CALC_BASE!$N$3:$N$135,MATCH(ROW()-7,CALC_BASE!$M$3:$M$135,0)),"") -> PED-005 | E20: =IFERROR(INDEX(CALC_BASE!$O$3:$O$135,MATCH(ROW()-7,CALC_BASE!$M$3:$M$135,0)),"") -> 3 | F20: =IFERROR(INDEX(CALC_BASE!$P$3:$P$135,MATCH(ROW()-7,CALC_BASE!$M$3:$M$135,0)),"") -> 3 | G20: =IFERROR(IF(D20="","",INDEX(tb_vendas[Preço de Venda],MATCH(D20,tb_vendas[N° Pedido/Empresa],0))/F20),"") -> R$ 1,307.06 | H20: =IFERROR(IF(D20="","",INDEX(tb_vendas[Data Fechamento],MATCH(D20,tb_vendas[N° Pedido/Empresa],0))+E20*INDEX(tb_formas_pagamento[Dias_Intervalo],MATCH(INDEX(tb_vendas[Forma_Pagamento],MATCH(D20,tb_vendas[N° Pedido/Empresa],0)),tb_formas_pagamento[Nome_Forma],0))),"") -> 2026-12-25 | J20: =IF(OR(tb_pagamentos[[#This Row],[Data_Vencimento]]="",tb_pagamentos[[#This Row],[Valor_Parcela]]="",tb_pagamentos[[#This Row],[Qtd_Total_Parcelas]]="",tb_pagamentos[[#This Row],[Nr_Pedido]]=""),"",IF(tb_pagamentos[[#This Row],[Data_Pagamento]]<>"","Pago",IF(AND(tb_pagamentos[[#This Row],[Data_Pagamento]]="",tb_pagamentos[[#This Row],[Data_Vencimento]]<TODAY()),"Em Atraso","A vencer"))) -> A vencer
C21: PED-006-1 | D21: =IFERROR(INDEX(CALC_BASE!$N$3:$N$135,MATCH(ROW()-7,CALC_BASE!$M$3:$M$135,0)),"") -> PED-006 | E21: =IFERROR(INDEX(CALC_BASE!$O$3:$O$135,MATCH(ROW()-7,CALC_BASE!$M$3:$M$135,0)),"") -> 1 | F21: =IFERROR(INDEX(CALC_BASE!$P$3:$P$135,MATCH(ROW()-7,CALC_BASE!$M$3:$M$135,0)),"") -> 4 | G21: =IFERROR(IF(D21="","",INDEX(tb_vendas[Preço de Venda],MATCH(D21,tb_vendas[N° Pedido/Empresa],0))/F21),"") -> R$ 1,800.86 | H21: =IFERROR(IF(D21="","",INDEX(tb_vendas[Data Fechamento],MATCH(D21,tb_vendas[N° Pedido/Empresa],0))+E21*INDEX(tb_formas_pagamento[Dias_Intervalo],MATCH(INDEX(tb_vendas[Forma_Pagamento],MATCH(D21,tb_vendas[N° Pedido/Empresa],0)),tb_formas_pagamento[Nome_Forma],0))),"") -> 2024-09-01 | I21: 2024-09-14 | J21: =IF(OR(tb_pagamentos[[#This Row],[Data_Vencimento]]="",tb_pagamentos[[#This Row],[Valor_Parcela]]="",tb_pagamentos[[#This Row],[Qtd_Total_Parcelas]]="",tb_pagamentos[[#This Row],[Nr_Pedido]]=""),"",IF(tb_pagamentos[[#This Row],[Data_Pagamento]]<>"","Pago",IF(AND(tb_pagamentos[[#This Row],[Data_Pagamento]]="",tb_pagamentos[[#This Row],[Data_Vencimento]]<TODAY()),"Em Atraso","A vencer"))) -> Pago
C22: PED-006-2 | D22: =IFERROR(INDEX(CALC_BASE!$N$3:$N$135,MATCH(ROW()-7,CALC_BASE!$M$3:$M$135,0)),"") -> PED-006 | E22: =IFERROR(INDEX(CALC_BASE!$O$3:$O$135,MATCH(ROW()-7,CALC_BASE!$M$3:$M$135,0)),"") -> 2 | F22: =IFERROR(INDEX(CALC_BASE!$P$3:$P$135,MATCH(ROW()-7,CALC_BASE!$M$3:$M$135,0)),"") -> 4 | G22: =IFERROR(IF(D22="","",INDEX(tb_vendas[Preço de Venda],MATCH(D22,tb_vendas[N° Pedido/Empresa],0))/F22),"") -> R$ 1,800.86 | H22: =IFERROR(IF(D22="","",INDEX(tb_vendas[Data Fechamento],MATCH(D22,tb_vendas[N° Pedido/Empresa],0))+E22*INDEX(tb_formas_pagamento[Dias_Intervalo],MATCH(INDEX(tb_vendas[Forma_Pagamento],MATCH(D22,tb_vendas[N° Pedido/Empresa],0)),tb_formas_pagamento[Nome_Forma],0))),"") -> 2024-09-16 | I22: 2024-09-29 | J22: =IF(OR(tb_pagamentos[[#This Row],[Data_Vencimento]]="",tb_pagamentos[[#This Row],[Valor_Parcela]]="",tb_pagamentos[[#This Row],[Qtd_Total_Parcelas]]="",tb_pagamentos[[#This Row],[Nr_Pedido]]=""),"",IF(tb_pagamentos[[#This Row],[Data_Pagamento]]<>"","Pago",IF(AND(tb_pagamentos[[#This Row],[Data_Pagamento]]="",tb_pagamentos[[#This Row],[Data_Vencimento]]<TODAY()),"Em Atraso","A vencer"))) -> Pago
C23: PED-006-3 | D23: =IFERROR(INDEX(CALC_BASE!$N$3:$N$135,MATCH(ROW()-7,CALC_BASE!$M$3:$M$135,0)),"") -> PED-006 | E23: =IFERROR(INDEX(CALC_BASE!$O$3:$O$135,MATCH(ROW()-7,CALC_BASE!$M$3:$M$135,0)),"") -> 3 | F23: =IFERROR(INDEX(CALC_BASE!$P$3:$P$135,MATCH(ROW()-7,CALC_BASE!$M$3:$M$135,0)),"") -> 4 | G23: =IFERROR(IF(D23="","",INDEX(tb_vendas[Preço de Venda],MATCH(D23,tb_vendas[N° Pedido/Empresa],0))/F23),"") -> R$ 1,800.86 | H23: =IFERROR(IF(D23="","",INDEX(tb_vendas[Data Fechamento],MATCH(D23,tb_vendas[N° Pedido/Empresa],0))+E23*INDEX(tb_formas_pagamento[Dias_Intervalo],MATCH(INDEX(tb_vendas[Forma_Pagamento],MATCH(D23,tb_vendas[N° Pedido/Empresa],0)),tb_formas_pagamento[Nome_Forma],0))),"") -> 2024-10-01 | I23: 2024-10-14 | J23: =IF(OR(tb_pagamentos[[#This Row],[Data_Vencimento]]="",tb_pagamentos[[#This Row],[Valor_Parcela]]="",tb_pagamentos[[#This Row],[Qtd_Total_Parcelas]]="",tb_pagamentos[[#This Row],[Nr_Pedido]]=""),"",IF(tb_pagamentos[[#This Row],[Data_Pagamento]]<>"","Pago",IF(AND(tb_pagamentos[[#This Row],[Data_Pagamento]]="",tb_pagamentos[[#This Row],[Data_Vencimento]]<TODAY()),"Em Atraso","A vencer"))) -> Pago
C24: PED-006-4 | D24: =IFERROR(INDEX(CALC_BASE!$N$3:$N$135,MATCH(ROW()-7,CALC_BASE!$M$3:$M$135,0)),"") -> PED-006 | E24: =IFERROR(INDEX(CALC_BASE!$O$3:$O$135,MATCH(ROW()-7,CALC_BASE!$M$3:$M$135,0)),"") -> 4 | F24: =IFERROR(INDEX(CALC_BASE!$P$3:$P$135,MATCH(ROW()-7,CALC_BASE!$M$3:$M$135,0)),"") -> 4 | G24: =IFERROR(IF(D24="","",INDEX(tb_vendas[Preço de Venda],MATCH(D24,tb_vendas[N° Pedido/Empresa],0))/F24),"") -> R$ 1,800.86 | H24: =IFERROR(IF(D24="","",INDEX(tb_vendas[Data Fechamento],MATCH(D24,tb_vendas[N° Pedido/Empresa],0))+E24*INDEX(tb_formas_pagamento[Dias_Intervalo],MATCH(INDEX(tb_vendas[Forma_Pagamento],MATCH(D24,tb_vendas[N° Pedido/Empresa],0)),tb_formas_pagamento[Nome_Forma],0))),"") -> 2024-10-16 | I24: 2024-10-30 | J24: =IF(OR(tb_pagamentos[[#This Row],[Data_Vencimento]]="",tb_pagamentos[[#This Row],[Valor_Parcela]]="",tb_pagamentos[[#This Row],[Qtd_Total_Parcelas]]="",tb_pagamentos[[#This Row],[Nr_Pedido]]=""),"",IF(tb_pagamentos[[#This Row],[Data_Pagamento]]<>"","Pago",IF(AND(tb_pagamentos[[#This Row],[Data_Pagamento]]="",tb_pagamentos[[#This Row],[Data_Vencimento]]<TODAY()),"Em Atraso","A vencer"))) -> Pago
C25: PED-007-1 | D25: =IFERROR(INDEX(CALC_BASE!$N$3:$N$135,MATCH(ROW()-7,CALC_BASE!$M$3:$M$135,0)),"") -> PED-007 | E25: =IFERROR(INDEX(CALC_BASE!$O$3:$O$135,MATCH(ROW()-7,CALC_BASE!$M$3:$M$135,0)),"") -> 1 | F25: =IFERROR(INDEX(CALC_BASE!$P$3:$P$135,MATCH(ROW()-7,CALC_BASE!$M$3:$M$135,0)),"") -> 2 | G25: =IFERROR(IF(D25="","",INDEX(tb_vendas[Preço de Venda],MATCH(D25,tb_vendas[N° Pedido/Empresa],0))/F25),"") -> R$ 256.44 | H25: =IFERROR(IF(D25="","",INDEX(tb_vendas[Data Fechamento],MATCH(D25,tb_vendas[N° Pedido/Empresa],0))+E25*INDEX(tb_formas_pagamento[Dias_Intervalo],MATCH(INDEX(tb_vendas[Forma_Pagamento],MATCH(D25,tb_vendas[N° Pedido/Empresa],0)),tb_formas_pagamento[Nome_Forma],0))),"") -> 2025-01-29 | I25: 2025-01-28 | J25: =IF(OR(tb_pagamentos[[#This Row],[Data_Vencimento]]="",tb_pagamentos[[#This Row],[Valor_Parcela]]="",tb_pagamentos[[#This Row],[Qtd_Total_Parcelas]]="",tb_pagamentos[[#This Row],[Nr_Pedido]]=""),"",IF(tb_pagamentos[[#This Row],[Data_Pagamento]]<>"","Pago",IF(AND(tb_pagamentos[[#This Row],[Data_Pagamento]]="",tb_pagamentos[[#This Row],[Data_Vencimento]]<TODAY()),"Em Atraso","A vencer"))) -> Pago
C26: PED-007-2 | D26: =IFERROR(INDEX(CALC_BASE!$N$3:$N$135,MATCH(ROW()-7,CALC_BASE!$M$3:$M$135,0)),"") -> PED-007 | E26: =IFERROR(INDEX(CALC_BASE!$O$3:$O$135,MATCH(ROW()-7,CALC_BASE!$M$3:$M$135,0)),"") -> 2 | F26: =IFERROR(INDEX(CALC_BASE!$P$3:$P$135,MATCH(ROW()-7,CALC_BASE!$M$3:$M$135,0)),"") -> 2 | G26: =IFERROR(IF(D26="","",INDEX(tb_vendas[Preço de Venda],MATCH(D26,tb_vendas[N° Pedido/Empresa],0))/F26),"") -> R$ 256.44 | H26: =IFERROR(IF(D26="","",INDEX(tb_vendas[Data Fechamento],MATCH(D26,tb_vendas[N° Pedido/Empresa],0))+E26*INDEX(tb_formas_pagamento[Dias_Intervalo],MATCH(INDEX(tb_vendas[Forma_Pagamento],MATCH(D26,tb_vendas[N° Pedido/Empresa],0)),tb_formas_pagamento[Nome_Forma],0))),"") -> 2025-02-12 | I26: 2025-02-11 | J26: =IF(OR(tb_pagamentos[[#This Row],[Data_Vencimento]]="",tb_pagamentos[[#This Row],[Valor_Parcela]]="",tb_pagamentos[[#This Row],[Qtd_Total_Parcelas]]="",tb_pagamentos[[#This Row],[Nr_Pedido]]=""),"",IF(tb_pagamentos[[#This Row],[Data_Pagamento]]<>"","Pago",IF(AND(tb_pagamentos[[#This Row],[Data_Pagamento]]="",tb_pagamentos[[#This Row],[Data_Vencimento]]<TODAY()),"Em Atraso","A vencer"))) -> Pago
C27: PED-008-1 | D27: =IFERROR(INDEX(CALC_BASE!$N$3:$N$135,MATCH(ROW()-7,CALC_BASE!$M$3:$M$135,0)),"") -> PED-008 | E27: =IFERROR(INDEX(CALC_BASE!$O$3:$O$135,MATCH(ROW()-7,CALC_BASE!$M$3:$M$135,0)),"") -> 1 | F27: =IFERROR(INDEX(CALC_BASE!$P$3:$P$135,MATCH(ROW()-7,CALC_BASE!$M$3:$M$135,0)),"") -> 3 | G27: =IFERROR(IF(D27="","",INDEX(tb_vendas[Preço de Venda],MATCH(D27,tb_vendas[N° Pedido/Empresa],0))/F27),"") -> R$ 1,616.67 | H27: =IFERROR(IF(D27="","",INDEX(tb_vendas[Data Fechamento],MATCH(D27,tb_vendas[N° Pedido/Empresa],0))+E27*INDEX(tb_formas_pagamento[Dias_Intervalo],MATCH(INDEX(tb_vendas[Forma_Pagamento],MATCH(D27,tb_vendas[N° Pedido/Empresa],0)),tb_formas_pagamento[Nome_Forma],0))),"") -> 2025-07-10 | J27: =IF(OR(tb_pagamentos[[#This Row],[Data_Vencimento]]="",tb_pagamentos[[#This Row],[Valor_Parcela]]="",tb_pagamentos[[#This Row],[Qtd_Total_Parcelas]]="",tb_pagamentos[[#This Row],[Nr_Pedido]]=""),"",IF(tb_pagamentos[[#This Row],[Data_Pagamento]]<>"","Pago",IF(AND(tb_pagamentos[[#This Row],[Data_Pagamento]]="",tb_pagamentos[[#This Row],[Data_Vencimento]]<TODAY()),"Em Atraso","A vencer"))) -> Em Atraso
C28: PED-008-2 | D28: =IFERROR(INDEX(CALC_BASE!$N$3:$N$135,MATCH(ROW()-7,CALC_BASE!$M$3:$M$135,0)),"") -> PED-008 | E28: =IFERROR(INDEX(CALC_BASE!$O$3:$O$135,MATCH(ROW()-7,CALC_BASE!$M$3:$M$135,0)),"") -> 2 | F28: =IFERROR(INDEX(CALC_BASE!$P$3:$P$135,MATCH(ROW()-7,CALC_BASE!$M$3:$M$135,0)),"") -> 3 | G28: =IFERROR(IF(D28="","",INDEX(tb_vendas[Preço de Venda],MATCH(D28,tb_vendas[N° Pedido/Empresa],0))/F28),"") -> R$ 1,616.67 | H28: =IFERROR(IF(D28="","",INDEX(tb_vendas[Data Fechamento],MATCH(D28,tb_vendas[N° Pedido/Empresa],0))+E28*INDEX(tb_formas_pagamento[Dias_Intervalo],MATCH(INDEX(tb_vendas[Forma_Pagamento],MATCH(D28,tb_vendas[N° Pedido/Empresa],0)),tb_formas_pagamento[Nome_Forma],0))),"") -> 2025-08-07 | J28: =IF(OR(tb_pagamentos[[#This Row],[Data_Vencimento]]="",tb_pagamentos[[#This Row],[Valor_Parcela]]="",tb_pagamentos[[#This Row],[Qtd_Total_Parcelas]]="",tb_pagamentos[[#This Row],[Nr_Pedido]]=""),"",IF(tb_pagamentos[[#This Row],[Data_Pagamento]]<>"","Pago",IF(AND(tb_pagamentos[[#This Row],[Data_Pagamento]]="",tb_pagamentos[[#This Row],[Data_Vencimento]]<TODAY()),"Em Atraso","A vencer"))) -> Em Atraso
C29: PED-008-3 | D29: =IFERROR(INDEX(CALC_BASE!$N$3:$N$135,MATCH(ROW()-7,CALC_BASE!$M$3:$M$135,0)),"") -> PED-008 | E29: =IFERROR(INDEX(CALC_BASE!$O$3:$O$135,MATCH(ROW()-7,CALC_BASE!$M$3:$M$135,0)),"") -> 3 | F29: =IFERROR(INDEX(CALC_BASE!$P$3:$P$135,MATCH(ROW()-7,CALC_BASE!$M$3:$M$135,0)),"") -> 3 | G29: =IFERROR(IF(D29="","",INDEX(tb_vendas[Preço de Venda],MATCH(D29,tb_vendas[N° Pedido/Empresa],0))/F29),"") -> R$ 1,616.67 | H29: =IFERROR(IF(D29="","",INDEX(tb_vendas[Data Fechamento],MATCH(D29,tb_vendas[N° Pedido/Empresa],0))+E29*INDEX(tb_formas_pagamento[Dias_Intervalo],MATCH(INDEX(tb_vendas[Forma_Pagamento],MATCH(D29,tb_vendas[N° Pedido/Empresa],0)),tb_formas_pagamento[Nome_Forma],0))),"") -> 2025-09-04 | J29: =IF(OR(tb_pagamentos[[#This Row],[Data_Vencimento]]="",tb_pagamentos[[#This Row],[Valor_Parcela]]="",tb_pagamentos[[#This Row],[Qtd_Total_Parcelas]]="",tb_pagamentos[[#This Row],[Nr_Pedido]]=""),"",IF(tb_pagamentos[[#This Row],[Data_Pagamento]]<>"","Pago",IF(AND(tb_pagamentos[[#This Row],[Data_Pagamento]]="",tb_pagamentos[[#This Row],[Data_Vencimento]]<TODAY()),"Em Atraso","A vencer"))) -> Em Atraso
C30: PED-009-1 | D30: =IFERROR(INDEX(CALC_BASE!$N$3:$N$135,MATCH(ROW()-7,CALC_BASE!$M$3:$M$135,0)),"") -> PED-009 | E30: =IFERROR(INDEX(CALC_BASE!$O$3:$O$135,MATCH(ROW()-7,CALC_BASE!$M$3:$M$135,0)),"") -> 1 | F30: =IFERROR(INDEX(CALC_BASE!$P$3:$P$135,MATCH(ROW()-7,CALC_BASE!$M$3:$M$135,0)),"") -> 3 | G30: =IFERROR(IF(D30="","",INDEX(tb_vendas[Preço de Venda],MATCH(D30,tb_vendas[N° Pedido/Empresa],0))/F30),"") -> R$ 700.17 | H30: =IFERROR(IF(D30="","",INDEX(tb_vendas[Data Fechamento],MATCH(D30,tb_vendas[N° Pedido/Empresa],0))+E30*INDEX(tb_formas_pagamento[Dias_Intervalo],MATCH(INDEX(tb_vendas[Forma_Pagamento],MATCH(D30,tb_vendas[N° Pedido/Empresa],0)),tb_formas_pagamento[Nome_Forma],0))),"") -> 2025-02-27 | I30: 2025-02-25 | J30: =IF(OR(tb_pagamentos[[#This Row],[Data_Vencimento]]="",tb_pagamentos[[#This Row],[Valor_Parcela]]="",tb_pagamentos[[#This Row],[Qtd_Total_Parcelas]]="",tb_pagamentos[[#This Row],[Nr_Pedido]]=""),"",IF(tb_pagamentos[[#This Row],[Data_Pagamento]]<>"","Pago",IF(AND(tb_pagamentos[[#This Row],[Data_Pagamento]]="",tb_pagamentos[[#This Row],[Data_Vencimento]]<TODAY()),"Em Atraso","A vencer"))) -> Pago
C31: PED-009-2 | D31: =IFERROR(INDEX(CALC_BASE!$N$3:$N$135,MATCH(ROW()-7,CALC_BASE!$M$3:$M$135,0)),"") -> PED-009 | E31: =IFERROR(INDEX(CALC_BASE!$O$3:$O$135,MATCH(ROW()-7,CALC_BASE!$M$3:$M$135,0)),"") -> 2 | F31: =IFERROR(INDEX(CALC_BASE!$P$3:$P$135,MATCH(ROW()-7,CALC_BASE!$M$3:$M$135,0)),"") -> 3 | G31: =IFERROR(IF(D31="","",INDEX(tb_vendas[Preço de Venda],MATCH(D31,tb_vendas[N° Pedido/Empresa],0))/F31),"") -> R$ 700.17 | H31: =IFERROR(IF(D31="","",INDEX(tb_vendas[Data Fechamento],MATCH(D31,tb_vendas[N° Pedido/Empresa],0))+E31*INDEX(tb_formas_pagamento[Dias_Intervalo],MATCH(INDEX(tb_vendas[Forma_Pagamento],MATCH(D31,tb_vendas[N° Pedido/Empresa],0)),tb_formas_pagamento[Nome_Forma],0))),"") -> 2025-03-14 | J31: =IF(OR(tb_pagamentos[[#This Row],[Data_Vencimento]]="",tb_pagamentos[[#This Row],[Valor_Parcela]]="",tb_pagamentos[[#This Row],[Qtd_Total_Parcelas]]="",tb_pagamentos[[#This Row],[Nr_Pedido]]=""),"",IF(tb_pagamentos[[#This Row],[Data_Pagamento]]<>"","Pago",IF(AND(tb_pagamentos[[#This Row],[Data_Pagamento]]="",tb_pagamentos[[#This Row],[Data_Vencimento]]<TODAY()),"Em Atraso","A vencer"))) -> Em Atraso
C32: PED-009-3 | D32: =IFERROR(INDEX(CALC_BASE!$N$3:$N$135,MATCH(ROW()-7,CALC_BASE!$M$3:$M$135,0)),"") -> PED-009 | E32: =IFERROR(INDEX(CALC_BASE!$O$3:$O$135,MATCH(ROW()-7,CALC_BASE!$M$3:$M$135,0)),"") -> 3 | F32: =IFERROR(INDEX(CALC_BASE!$P$3:$P$135,MATCH(ROW()-7,CALC_BASE!$M$3:$M$135,0)),"") -> 3 | G32: =IFERROR(IF(D32="","",INDEX(tb_vendas[Preço de Venda],MATCH(D32,tb_vendas[N° Pedido/Empresa],0))/F32),"") -> R$ 700.17 | H32: =IFERROR(IF(D32="","",INDEX(tb_vendas[Data Fechamento],MATCH(D32,tb_vendas[N° Pedido/Empresa],0))+E32*INDEX(tb_formas_pagamento[Dias_Intervalo],MATCH(INDEX(tb_vendas[Forma_Pagamento],MATCH(D32,tb_vendas[N° Pedido/Empresa],0)),tb_formas_pagamento[Nome_Forma],0))),"") -> 2025-03-29 | J32: =IF(OR(tb_pagamentos[[#This Row],[Data_Vencimento]]="",tb_pagamentos[[#This Row],[Valor_Parcela]]="",tb_pagamentos[[#This Row],[Qtd_Total_Parcelas]]="",tb_pagamentos[[#This Row],[Nr_Pedido]]=""),"",IF(tb_pagamentos[[#This Row],[Data_Pagamento]]<>"","Pago",IF(AND(tb_pagamentos[[#This Row],[Data_Pagamento]]="",tb_pagamentos[[#This Row],[Data_Vencimento]]<TODAY()),"Em Atraso","A vencer"))) -> Em Atraso
C33: PED-010-1 | D33: =IFERROR(INDEX(CALC_BASE!$N$3:$N$135,MATCH(ROW()-7,CALC_BASE!$M$3:$M$135,0)),"") -> PED-010 | E33: =IFERROR(INDEX(CALC_BASE!$O$3:$O$135,MATCH(ROW()-7,CALC_BASE!$M$3:$M$135,0)),"") -> 1 | F33: =IFERROR(INDEX(CALC_BASE!$P$3:$P$135,MATCH(ROW()-7,CALC_BASE!$M$3:$M$135,0)),"") -> 1 | G33: =IFERROR(IF(D33="","",INDEX(tb_vendas[Preço de Venda],MATCH(D33,tb_vendas[N° Pedido/Empresa],0))/F33),"") -> R$ 950.00 | H33: =IFERROR(IF(D33="","",INDEX(tb_vendas[Data Fechamento],MATCH(D33,tb_vendas[N° Pedido/Empresa],0))+E33*INDEX(tb_formas_pagamento[Dias_Intervalo],MATCH(INDEX(tb_vendas[Forma_Pagamento],MATCH(D33,tb_vendas[N° Pedido/Empresa],0)),tb_formas_pagamento[Nome_Forma],0))),"") -> 2025-04-21 | I33: 2025-04-21 | J33: =IF(OR(tb_pagamentos[[#This Row],[Data_Vencimento]]="",tb_pagamentos[[#This Row],[Valor_Parcela]]="",tb_pagamentos[[#This Row],[Qtd_Total_Parcelas]]="",tb_pagamentos[[#This Row],[Nr_Pedido]]=""),"",IF(tb_pagamentos[[#This Row],[Data_Pagamento]]<>"","Pago",IF(AND(tb_pagamentos[[#This Row],[Data_Pagamento]]="",tb_pagamentos[[#This Row],[Data_Vencimento]]<TODAY()),"Em Atraso","A vencer"))) -> Pago
C34: PED-011-1 | D34: =IFERROR(INDEX(CALC_BASE!$N$3:$N$135,MATCH(ROW()-7,CALC_BASE!$M$3:$M$135,0)),"") -> PED-011 | E34: =IFERROR(INDEX(CALC_BASE!$O$3:$O$135,MATCH(ROW()-7,CALC_BASE!$M$3:$M$135,0)),"") -> 1 | F34: =IFERROR(INDEX(CALC_BASE!$P$3:$P$135,MATCH(ROW()-7,CALC_BASE!$M$3:$M$135,0)),"") -> 2 | G34: =IFERROR(IF(D34="","",INDEX(tb_vendas[Preço de Venda],MATCH(D34,tb_vendas[N° Pedido/Empresa],0))/F34),"") -> R$ 1,675.38 | H34: =IFERROR(IF(D34="","",INDEX(tb_vendas[Data Fechamento],MATCH(D34,tb_vendas[N° Pedido/Empresa],0))+E34*INDEX(tb_formas_pagamento[Dias_Intervalo],MATCH(INDEX(tb_vendas[Forma_Pagamento],MATCH(D34,tb_vendas[N° Pedido/Empresa],0)),tb_formas_pagamento[Nome_Forma],0))),"") -> 2025-08-28 | I34: 2025-08-26 | J34: =IF(OR(tb_pagamentos[[#This Row],[Data_Vencimento]]="",tb_pagamentos[[#This Row],[Valor_Parcela]]="",tb_pagamentos[[#This Row],[Qtd_Total_Parcelas]]="",tb_pagamentos[[#This Row],[Nr_Pedido]]=""),"",IF(tb_pagamentos[[#This Row],[Data_Pagamento]]<>"","Pago",IF(AND(tb_pagamentos[[#This Row],[Data_Pagamento]]="",tb_pagamentos[[#This Row],[Data_Vencimento]]<TODAY()),"Em Atraso","A vencer"))) -> Pago
C35: PED-011-2 | D35: =IFERROR(INDEX(CALC_BASE!$N$3:$N$135,MATCH(ROW()-7,CALC_BASE!$M$3:$M$135,0)),"") -> PED-011 | E35: =IFERROR(INDEX(CALC_BASE!$O$3:$O$135,MATCH(ROW()-7,CALC_BASE!$M$3:$M$135,0)),"") -> 2 | F35: =IFERROR(INDEX(CALC_BASE!$P$3:$P$135,MATCH(ROW()-7,CALC_BASE!$M$3:$M$135,0)),"") -> 2 | G35: =IFERROR(IF(D35="","",INDEX(tb_vendas[Preço de Venda],MATCH(D35,tb_vendas[N° Pedido/Empresa],0))/F35),"") -> R$ 1,675.38 | H35: =IFERROR(IF(D35="","",INDEX(tb_vendas[Data Fechamento],MATCH(D35,tb_vendas[N° Pedido/Empresa],0))+E35*INDEX(tb_formas_pagamento[Dias_Intervalo],MATCH(INDEX(tb_vendas[Forma_Pagamento],MATCH(D35,tb_vendas[N° Pedido/Empresa],0)),tb_formas_pagamento[Nome_Forma],0))),"") -> 2025-09-27 | I35: 2025-09-25 | J35: =IF(OR(tb_pagamentos[[#This Row],[Data_Vencimento]]="",tb_pagamentos[[#This Row],[Valor_Parcela]]="",tb_pagamentos[[#This Row],[Qtd_Total_Parcelas]]="",tb_pagamentos[[#This Row],[Nr_Pedido]]=""),"",IF(tb_pagamentos[[#This Row],[Data_Pagamento]]<>"","Pago",IF(AND(tb_pagamentos[[#This Row],[Data_Pagamento]]="",tb_pagamentos[[#This Row],[Data_Vencimento]]<TODAY()),"Em Atraso","A vencer"))) -> Pago
C36: PED-012-1 | D36: =IFERROR(INDEX(CALC_BASE!$N$3:$N$135,MATCH(ROW()-7,CALC_BASE!$M$3:$M$135,0)),"") -> PED-012 | E36: =IFERROR(INDEX(CALC_BASE!$O$3:$O$135,MATCH(ROW()-7,CALC_BASE!$M$3:$M$135,0)),"") -> 1 | F36: =IFERROR(INDEX(CALC_BASE!$P$3:$P$135,MATCH(ROW()-7,CALC_BASE!$M$3:$M$135,0)),"") -> 1 | G36: =IFERROR(IF(D36="","",INDEX(tb_vendas[Preço de Venda],MATCH(D36,tb_vendas[N° Pedido/Empresa],0))/F36),"") -> R$ 1,560.00 | H36: =IFERROR(IF(D36="","",INDEX(tb_vendas[Data Fechamento],MATCH(D36,tb_vendas[N° Pedido/Empresa],0))+E36*INDEX(tb_formas_pagamento[Dias_Intervalo],MATCH(INDEX(tb_vendas[Forma_Pagamento],MATCH(D36,tb_vendas[N° Pedido/Empresa],0)),tb_formas_pagamento[Nome_Forma],0))),"") -> 2025-11-12 | I36: 2025-11-10 | J36: =IF(OR(tb_pagamentos[[#This Row],[Data_Vencimento]]="",tb_pagamentos[[#This Row],[Valor_Parcela]]="",tb_pagamentos[[#This Row],[Qtd_Total_Parcelas]]="",tb_pagamentos[[#This Row],[Nr_Pedido]]=""),"",IF(tb_pagamentos[[#This Row],[Data_Pagamento]]<>"","Pago",IF(AND(tb_pagamentos[[#This Row],[Data_Pagamento]]="",tb_pagamentos[[#This Row],[Data_Vencimento]]<TODAY()),"Em Atraso","A vencer"))) -> Pago
C37: PED-013-1 | D37: =IFERROR(INDEX(CALC_BASE!$N$3:$N$135,MATCH(ROW()-7,CALC_BASE!$M$3:$M$135,0)),"") -> PED-013 | E37: =IFERROR(INDEX(CALC_BASE!$O$3:$O$135,MATCH(ROW()-7,CALC_BASE!$M$3:$M$135,0)),"") -> 1 | F37: =IFERROR(INDEX(CALC_BASE!$P$3:$P$135,MATCH(ROW()-7,CALC_BASE!$M$3:$M$135,0)),"") -> 4 | G37: =IFERROR(IF(D37="","",INDEX(tb_vendas[Preço de Venda],MATCH(D37,tb_vendas[N° Pedido/Empresa],0))/F37),"") -> R$ 2,050.00 | H37: =IFERROR(IF(D37="","",INDEX(tb_vendas[Data Fechamento],MATCH(D37,tb_vendas[N° Pedido/Empresa],0))+E37*INDEX(tb_formas_pagamento[Dias_Intervalo],MATCH(INDEX(tb_vendas[Forma_Pagamento],MATCH(D37,tb_vendas[N° Pedido/Empresa],0)),tb_formas_pagamento[Nome_Forma],0))),"") -> 2024-11-18 | I37: 2024-12-02 | J37: =IF(OR(tb_pagamentos[[#This Row],[Data_Vencimento]]="",tb_pagamentos[[#This Row],[Valor_Parcela]]="",tb_pagamentos[[#This Row],[Qtd_Total_Parcelas]]="",tb_pagamentos[[#This Row],[Nr_Pedido]]=""),"",IF(tb_pagamentos[[#This Row],[Data_Pagamento]]<>"","Pago",IF(AND(tb_pagamentos[[#This Row],[Data_Pagamento]]="",tb_pagamentos[[#This Row],[Data_Vencimento]]<TODAY()),"Em Atraso","A vencer"))) -> Pago
C38: PED-013-2 | D38: =IFERROR(INDEX(CALC_BASE!$N$3:$N$135,MATCH(ROW()-7,CALC_BASE!$M$3:$M$135,0)),"") -> PED-013 | E38: =IFERROR(INDEX(CALC_BASE!$O$3:$O$135,MATCH(ROW()-7,CALC_BASE!$M$3:$M$135,0)),"") -> 2 | F38: =IFERROR(INDEX(CALC_BASE!$P$3:$P$135,MATCH(ROW()-7,CALC_BASE!$M$3:$M$135,0)),"") -> 4 | G38: =IFERROR(IF(D38="","",INDEX(tb_vendas[Preço de Venda],MATCH(D38,tb_vendas[N° Pedido/Empresa],0))/F38),"") -> R$ 2,050.00 | H38: =IFERROR(IF(D38="","",INDEX(tb_vendas[Data Fechamento],MATCH(D38,tb_vendas[N° Pedido/Empresa],0))+E38*INDEX(tb_formas_pagamento[Dias_Intervalo],MATCH(INDEX(tb_vendas[Forma_Pagamento],MATCH(D38,tb_vendas[N° Pedido/Empresa],0)),tb_formas_pagamento[Nome_Forma],0))),"") -> 2024-12-02 | J38: =IF(OR(tb_pagamentos[[#This Row],[Data_Vencimento]]="",tb_pagamentos[[#This Row],[Valor_Parcela]]="",tb_pagamentos[[#This Row],[Qtd_Total_Parcelas]]="",tb_pagamentos[[#This Row],[Nr_Pedido]]=""),"",IF(tb_pagamentos[[#This Row],[Data_Pagamento]]<>"","Pago",IF(AND(tb_pagamentos[[#This Row],[Data_Pagamento]]="",tb_pagamentos[[#This Row],[Data_Vencimento]]<TODAY()),"Em Atraso","A vencer"))) -> Em Atraso
C39: PED-013-3 | D39: =IFERROR(INDEX(CALC_BASE!$N$3:$N$135,MATCH(ROW()-7,CALC_BASE!$M$3:$M$135,0)),"") -> PED-013 | E39: =IFERROR(INDEX(CALC_BASE!$O$3:$O$135,MATCH(ROW()-7,CALC_BASE!$M$3:$M$135,0)),"") -> 3 | F39: =IFERROR(INDEX(CALC_BASE!$P$3:$P$135,MATCH(ROW()-7,CALC_BASE!$M$3:$M$135,0)),"") -> 4 | G39: =IFERROR(IF(D39="","",INDEX(tb_vendas[Preço de Venda],MATCH(D39,tb_vendas[N° Pedido/Empresa],0))/F39),"") -> R$ 2,050.00 | H39: =IFERROR(IF(D39="","",INDEX(tb_vendas[Data Fechamento],MATCH(D39,tb_vendas[N° Pedido/Empresa],0))+E39*INDEX(tb_formas_pagamento[Dias_Intervalo],MATCH(INDEX(tb_vendas[Forma_Pagamento],MATCH(D39,tb_vendas[N° Pedido/Empresa],0)),tb_formas_pagamento[Nome_Forma],0))),"") -> 2024-12-16 | J39: =IF(OR(tb_pagamentos[[#This Row],[Data_Vencimento]]="",tb_pagamentos[[#This Row],[Valor_Parcela]]="",tb_pagamentos[[#This Row],[Qtd_Total_Parcelas]]="",tb_pagamentos[[#This Row],[Nr_Pedido]]=""),"",IF(tb_pagamentos[[#This Row],[Data_Pagamento]]<>"","Pago",IF(AND(tb_pagamentos[[#This Row],[Data_Pagamento]]="",tb_pagamentos[[#This Row],[Data_Vencimento]]<TODAY()),"Em Atraso","A vencer"))) -> Em Atraso
C40: =IF(OR(D40="",E40=""),"",D40&"-"&E40) -> PED-013-4 | D40: =IFERROR(INDEX(CALC_BASE!$N$3:$N$135,MATCH(ROW()-7,CALC_BASE!$M$3:$M$135,0)),"") -> PED-013 | E40: =IFERROR(INDEX(CALC_BASE!$O$3:$O$135,MATCH(ROW()-7,CALC_BASE!$M$3:$M$135,0)),"") -> 4 | F40: =IFERROR(INDEX(CALC_BASE!$P$3:$P$135,MATCH(ROW()-7,CALC_BASE!$M$3:$M$135,0)),"") -> 4 | G40: =IFERROR(IF(D40="","",INDEX(tb_vendas[Preço de Venda],MATCH(D40,tb_vendas[N° Pedido/Empresa],0))/F40),"") -> R$ 2,050.00 | H40: =IFERROR(IF(D40="","",INDEX(tb_vendas[Data Fechamento],MATCH(D40,tb_vendas[N° Pedido/Empresa],0))+E40*INDEX(tb_formas_pagamento[Dias_Intervalo],MATCH(INDEX(tb_vendas[Forma_Pagamento],MATCH(D40,tb_vendas[N° Pedido/Empresa],0)),tb_formas_pagamento[Nome_Forma],0))),"") -> 2024-12-30 | J40: =IF(OR(tb_pagamentos[[#This Row],[Data_Vencimento]]="",tb_pagamentos[[#This Row],[Valor_Parcela]]="",tb_pagamentos[[#This Row],[Qtd_Total_Parcelas]]="",tb_pagamentos[[#This Row],[Nr_Pedido]]=""),"",IF(tb_pagamentos[[#This Row],[Data_Pagamento]]<>"","Pago",IF(AND(tb_pagamentos[[#This Row],[Data_Pagamento]]="",tb_pagamentos[[#This Row],[Data_Vencimento]]<TODAY()),"Em Atraso","A vencer"))) -> Em Atraso
C41: PED-014-1 | D41: =IFERROR(INDEX(CALC_BASE!$N$3:$N$135,MATCH(ROW()-7,CALC_BASE!$M$3:$M$135,0)),"") -> PED-014 | E41: =IFERROR(INDEX(CALC_BASE!$O$3:$O$135,MATCH(ROW()-7,CALC_BASE!$M$3:$M$135,0)),"") -> 1 | F41: =IFERROR(INDEX(CALC_BASE!$P$3:$P$135,MATCH(ROW()-7,CALC_BASE!$M$3:$M$135,0)),"") -> 1 | G41: =IFERROR(IF(D41="","",INDEX(tb_vendas[Preço de Venda],MATCH(D41,tb_vendas[N° Pedido/Empresa],0))/F41),"") -> R$ 620.00 | H41: =IFERROR(IF(D41="","",INDEX(tb_vendas[Data Fechamento],MATCH(D41,tb_vendas[N° Pedido/Empresa],0))+E41*INDEX(tb_formas_pagamento[Dias_Intervalo],MATCH(INDEX(tb_vendas[Forma_Pagamento],MATCH(D41,tb_vendas[N° Pedido/Empresa],0)),tb_formas_pagamento[Nome_Forma],0))),"") -> 2025-12-29 | I41: 2025-12-27 | J41: =IF(OR(tb_pagamentos[[#This Row],[Data_Vencimento]]="",tb_pagamentos[[#This Row],[Valor_Parcela]]="",tb_pagamentos[[#This Row],[Qtd_Total_Parcelas]]="",tb_pagamentos[[#This Row],[Nr_Pedido]]=""),"",IF(tb_pagamentos[[#This Row],[Data_Pagamento]]<>"","Pago",IF(AND(tb_pagamentos[[#This Row],[Data_Pagamento]]="",tb_pagamentos[[#This Row],[Data_Vencimento]]<TODAY()),"Em Atraso","A vencer"))) -> Pago
C42: PED-015-1 | D42: =IFERROR(INDEX(CALC_BASE!$N$3:$N$135,MATCH(ROW()-7,CALC_BASE!$M$3:$M$135,0)),"") -> PED-015 | E42: =IFERROR(INDEX(CALC_BASE!$O$3:$O$135,MATCH(ROW()-7,CALC_BASE!$M$3:$M$135,0)),"") -> 1 | F42: =IFERROR(INDEX(CALC_BASE!$P$3:$P$135,MATCH(ROW()-7,CALC_BASE!$M$3:$M$135,0)),"") -> 3 | G42: =IFERROR(IF(D42="","",INDEX(tb_vendas[Preço de Venda],MATCH(D42,tb_vendas[N° Pedido/Empresa],0))/F42),"") -> R$ 916.67 | H42: =IFERROR(IF(D42="","",INDEX(tb_vendas[Data Fechamento],MATCH(D42,tb_vendas[N° Pedido/Empresa],0))+E42*INDEX(tb_formas_pagamento[Dias_Intervalo],MATCH(INDEX(tb_vendas[Forma_Pagamento],MATCH(D42,tb_vendas[N° Pedido/Empresa],0)),tb_formas_pagamento[Nome_Forma],0))),"") -> 2026-04-02 | I42: 2026-04-07 | J42: =IF(OR(tb_pagamentos[[#This Row],[Data_Vencimento]]="",tb_pagamentos[[#This Row],[Valor_Parcela]]="",tb_pagamentos[[#This Row],[Qtd_Total_Parcelas]]="",tb_pagamentos[[#This Row],[Nr_Pedido]]=""),"",IF(tb_pagamentos[[#This Row],[Data_Pagamento]]<>"","Pago",IF(AND(tb_pagamentos[[#This Row],[Data_Pagamento]]="",tb_pagamentos[[#This Row],[Data_Vencimento]]<TODAY()),"Em Atraso","A vencer"))) -> Pago
C43: PED-015-2 | D43: =IFERROR(INDEX(CALC_BASE!$N$3:$N$135,MATCH(ROW()-7,CALC_BASE!$M$3:$M$135,0)),"") -> PED-015 | E43: =IFERROR(INDEX(CALC_BASE!$O$3:$O$135,MATCH(ROW()-7,CALC_BASE!$M$3:$M$135,0)),"") -> 2 | F43: =IFERROR(INDEX(CALC_BASE!$P$3:$P$135,MATCH(ROW()-7,CALC_BASE!$M$3:$M$135,0)),"") -> 3 | G43: =IFERROR(IF(D43="","",INDEX(tb_vendas[Preço de Venda],MATCH(D43,tb_vendas[N° Pedido/Empresa],0))/F43),"") -> R$ 916.67 | H43: =IFERROR(IF(D43="","",INDEX(tb_vendas[Data Fechamento],MATCH(D43,tb_vendas[N° Pedido/Empresa],0))+E43*INDEX(tb_formas_pagamento[Dias_Intervalo],MATCH(INDEX(tb_vendas[Forma_Pagamento],MATCH(D43,tb_vendas[N° Pedido/Empresa],0)),tb_formas_pagamento[Nome_Forma],0))),"") -> 2026-04-16 | I43: 2026-04-21 | J43: =IF(OR(tb_pagamentos[[#This Row],[Data_Vencimento]]="",tb_pagamentos[[#This Row],[Valor_Parcela]]="",tb_pagamentos[[#This Row],[Qtd_Total_Parcelas]]="",tb_pagamentos[[#This Row],[Nr_Pedido]]=""),"",IF(tb_pagamentos[[#This Row],[Data_Pagamento]]<>"","Pago",IF(AND(tb_pagamentos[[#This Row],[Data_Pagamento]]="",tb_pagamentos[[#This Row],[Data_Vencimento]]<TODAY()),"Em Atraso","A vencer"))) -> Pago
C44: PED-015-3 | D44: =IFERROR(INDEX(CALC_BASE!$N$3:$N$135,MATCH(ROW()-7,CALC_BASE!$M$3:$M$135,0)),"") -> PED-015 | E44: =IFERROR(INDEX(CALC_BASE!$O$3:$O$135,MATCH(ROW()-7,CALC_BASE!$M$3:$M$135,0)),"") -> 3 | F44: =IFERROR(INDEX(CALC_BASE!$P$3:$P$135,MATCH(ROW()-7,CALC_BASE!$M$3:$M$135,0)),"") -> 3 | G44: =IFERROR(IF(D44="","",INDEX(tb_vendas[Preço de Venda],MATCH(D44,tb_vendas[N° Pedido/Empresa],0))/F44),"") -> R$ 916.67 | H44: =IFERROR(IF(D44="","",INDEX(tb_vendas[Data Fechamento],MATCH(D44,tb_vendas[N° Pedido/Empresa],0))+E44*INDEX(tb_formas_pagamento[Dias_Intervalo],MATCH(INDEX(tb_vendas[Forma_Pagamento],MATCH(D44,tb_vendas[N° Pedido/Empresa],0)),tb_formas_pagamento[Nome_Forma],0))),"") -> 2026-04-30 | I44: 2026-05-05 | J44: =IF(OR(tb_pagamentos[[#This Row],[Data_Vencimento]]="",tb_pagamentos[[#This Row],[Valor_Parcela]]="",tb_pagamentos[[#This Row],[Qtd_Total_Parcelas]]="",tb_pagamentos[[#This Row],[Nr_Pedido]]=""),"",IF(tb_pagamentos[[#This Row],[Data_Pagamento]]<>"","Pago",IF(AND(tb_pagamentos[[#This Row],[Data_Pagamento]]="",tb_pagamentos[[#This Row],[Data_Vencimento]]<TODAY()),"Em Atraso","A vencer"))) -> Pago
C45: PED-016-1 | D45: =IFERROR(INDEX(CALC_BASE!$N$3:$N$135,MATCH(ROW()-7,CALC_BASE!$M$3:$M$135,0)),"") -> PED-016 | E45: =IFERROR(INDEX(CALC_BASE!$O$3:$O$135,MATCH(ROW()-7,CALC_BASE!$M$3:$M$135,0)),"") -> 1 | F45: =IFERROR(INDEX(CALC_BASE!$P$3:$P$135,MATCH(ROW()-7,CALC_BASE!$M$3:$M$135,0)),"") -> 2 | G45: =IFERROR(IF(D45="","",INDEX(tb_vendas[Preço de Venda],MATCH(D45,tb_vendas[N° Pedido/Empresa],0))/F45),"") -> R$ 220.00 | H45: =IFERROR(IF(D45="","",INDEX(tb_vendas[Data Fechamento],MATCH(D45,tb_vendas[N° Pedido/Empresa],0))+E45*INDEX(tb_formas_pagamento[Dias_Intervalo],MATCH(INDEX(tb_vendas[Forma_Pagamento],MATCH(D45,tb_vendas[N° Pedido/Empresa],0)),tb_formas_pagamento[Nome_Forma],0))),"") -> 2025-09-04 | I45: 2025-09-02 | J45: =IF(OR(tb_pagamentos[[#This Row],[Data_Vencimento]]="",tb_pagamentos[[#This Row],[Valor_Parcela]]="",tb_pagamentos[[#This Row],[Qtd_Total_Parcelas]]="",tb_pagamentos[[#This Row],[Nr_Pedido]]=""),"",IF(tb_pagamentos[[#This Row],[Data_Pagamento]]<>"","Pago",IF(AND(tb_pagamentos[[#This Row],[Data_Pagamento]]="",tb_pagamentos[[#This Row],[Data_Vencimento]]<TODAY()),"Em Atraso","A vencer"))) -> Pago
C46: PED-016-2 | D46: =IFERROR(INDEX(CALC_BASE!$N$3:$N$135,MATCH(ROW()-7,CALC_BASE!$M$3:$M$135,0)),"") -> PED-016 | E46: =IFERROR(INDEX(CALC_BASE!$O$3:$O$135,MATCH(ROW()-7,CALC_BASE!$M$3:$M$135,0)),"") -> 2 | F46: =IFERROR(INDEX(CALC_BASE!$P$3:$P$135,MATCH(ROW()-7,CALC_BASE!$M$3:$M$135,0)),"") -> 2 | G46: =IFERROR(IF(D46="","",INDEX(tb_vendas[Preço de Venda],MATCH(D46,tb_vendas[N° Pedido/Empresa],0))/F46),"") -> R$ 220.00 | H46: =IFERROR(IF(D46="","",INDEX(tb_vendas[Data Fechamento],MATCH(D46,tb_vendas[N° Pedido/Empresa],0))+E46*INDEX(tb_formas_pagamento[Dias_Intervalo],MATCH(INDEX(tb_vendas[Forma_Pagamento],MATCH(D46,tb_vendas[N° Pedido/Empresa],0)),tb_formas_pagamento[Nome_Forma],0))),"") -> 2025-09-18 | I46: 2025-09-16 | J46: =IF(OR(tb_pagamentos[[#This Row],[Data_Vencimento]]="",tb_pagamentos[[#This Row],[Valor_Parcela]]="",tb_pagamentos[[#This Row],[Qtd_Total_Parcelas]]="",tb_pagamentos[[#This Row],[Nr_Pedido]]=""),"",IF(tb_pagamentos[[#This Row],[Data_Pagamento]]<>"","Pago",IF(AND(tb_pagamentos[[#This Row],[Data_Pagamento]]="",tb_pagamentos[[#This Row],[Data_Vencimento]]<TODAY()),"Em Atraso","A vencer"))) -> Pago
C47: PED-017-1 | D47: =IFERROR(INDEX(CALC_BASE!$N$3:$N$135,MATCH(ROW()-7,CALC_BASE!$M$3:$M$135,0)),"") -> PED-017 | E47: =IFERROR(INDEX(CALC_BASE!$O$3:$O$135,MATCH(ROW()-7,CALC_BASE!$M$3:$M$135,0)),"") -> 1 | F47: =IFERROR(INDEX(CALC_BASE!$P$3:$P$135,MATCH(ROW()-7,CALC_BASE!$M$3:$M$135,0)),"") -> 4 | G47: =IFERROR(IF(D47="","",INDEX(tb_vendas[Preço de Venda],MATCH(D47,tb_vendas[N° Pedido/Empresa],0))/F47),"") -> R$ 472.50 | H47: =IFERROR(IF(D47="","",INDEX(tb_vendas[Data Fechamento],MATCH(D47,tb_vendas[N° Pedido/Empresa],0))+E47*INDEX(tb_formas_pagamento[Dias_Intervalo],MATCH(INDEX(tb_vendas[Forma_Pagamento],MATCH(D47,tb_vendas[N° Pedido/Empresa],0)),tb_formas_pagamento[Nome_Forma],0))),"") -> 2025-12-04 | J47: =IF(OR(tb_pagamentos[[#This Row],[Data_Vencimento]]="",tb_pagamentos[[#This Row],[Valor_Parcela]]="",tb_pagamentos[[#This Row],[Qtd_Total_Parcelas]]="",tb_pagamentos[[#This Row],[Nr_Pedido]]=""),"",IF(tb_pagamentos[[#This Row],[Data_Pagamento]]<>"","Pago",IF(AND(tb_pagamentos[[#This Row],[Data_Pagamento]]="",tb_pagamentos[[#This Row],[Data_Vencimento]]<TODAY()),"Em Atraso","A vencer"))) -> Em Atraso
C48: PED-017-2 | D48: =IFERROR(INDEX(CALC_BASE!$N$3:$N$135,MATCH(ROW()-7,CALC_BASE!$M$3:$M$135,0)),"") -> PED-017 | E48: =IFERROR(INDEX(CALC_BASE!$O$3:$O$135,MATCH(ROW()-7,CALC_BASE!$M$3:$M$135,0)),"") -> 2 | F48: =IFERROR(INDEX(CALC_BASE!$P$3:$P$135,MATCH(ROW()-7,CALC_BASE!$M$3:$M$135,0)),"") -> 4 | G48: =IFERROR(IF(D48="","",INDEX(tb_vendas[Preço de Venda],MATCH(D48,tb_vendas[N° Pedido/Empresa],0))/F48),"") -> R$ 472.50 | H48: =IFERROR(IF(D48="","",INDEX(tb_vendas[Data Fechamento],MATCH(D48,tb_vendas[N° Pedido/Empresa],0))+E48*INDEX(tb_formas_pagamento[Dias_Intervalo],MATCH(INDEX(tb_vendas[Forma_Pagamento],MATCH(D48,tb_vendas[N° Pedido/Empresa],0)),tb_formas_pagamento[Nome_Forma],0))),"") -> 2025-12-19 | J48: =IF(OR(tb_pagamentos[[#This Row],[Data_Vencimento]]="",tb_pagamentos[[#This Row],[Valor_Parcela]]="",tb_pagamentos[[#This Row],[Qtd_Total_Parcelas]]="",tb_pagamentos[[#This Row],[Nr_Pedido]]=""),"",IF(tb_pagamentos[[#This Row],[Data_Pagamento]]<>"","Pago",IF(AND(tb_pagamentos[[#This Row],[Data_Pagamento]]="",tb_pagamentos[[#This Row],[Data_Vencimento]]<TODAY()),"Em Atraso","A vencer"))) -> Em Atraso
C49: PED-017-3 | D49: =IFERROR(INDEX(CALC_BASE!$N$3:$N$135,MATCH(ROW()-7,CALC_BASE!$M$3:$M$135,0)),"") -> PED-017 | E49: =IFERROR(INDEX(CALC_BASE!$O$3:$O$135,MATCH(ROW()-7,CALC_BASE!$M$3:$M$135,0)),"") -> 3 | F49: =IFERROR(INDEX(CALC_BASE!$P$3:$P$135,MATCH(ROW()-7,CALC_BASE!$M$3:$M$135,0)),"") -> 4 | G49: =IFERROR(IF(D49="","",INDEX(tb_vendas[Preço de Venda],MATCH(D49,tb_vendas[N° Pedido/Empresa],0))/F49),"") -> R$ 472.50 | H49: =IFERROR(IF(D49="","",INDEX(tb_vendas[Data Fechamento],MATCH(D49,tb_vendas[N° Pedido/Empresa],0))+E49*INDEX(tb_formas_pagamento[Dias_Intervalo],MATCH(INDEX(tb_vendas[Forma_Pagamento],MATCH(D49,tb_vendas[N° Pedido/Empresa],0)),tb_formas_pagamento[Nome_Forma],0))),"") -> 2026-01-03 | J49: =IF(OR(tb_pagamentos[[#This Row],[Data_Vencimento]]="",tb_pagamentos[[#This Row],[Valor_Parcela]]="",tb_pagamentos[[#This Row],[Qtd_Total_Parcelas]]="",tb_pagamentos[[#This Row],[Nr_Pedido]]=""),"",IF(tb_pagamentos[[#This Row],[Data_Pagamento]]<>"","Pago",IF(AND(tb_pagamentos[[#This Row],[Data_Pagamento]]="",tb_pagamentos[[#This Row],[Data_Vencimento]]<TODAY()),"Em Atraso","A vencer"))) -> Em Atraso
C50: PED-017-4 | D50: =IFERROR(INDEX(CALC_BASE!$N$3:$N$135,MATCH(ROW()-7,CALC_BASE!$M$3:$M$135,0)),"") -> PED-017 | E50: =IFERROR(INDEX(CALC_BASE!$O$3:$O$135,MATCH(ROW()-7,CALC_BASE!$M$3:$M$135,0)),"") -> 4 | F50: =IFERROR(INDEX(CALC_BASE!$P$3:$P$135,MATCH(ROW()-7,CALC_BASE!$M$3:$M$135,0)),"") -> 4 | G50: =IFERROR(IF(D50="","",INDEX(tb_vendas[Preço de Venda],MATCH(D50,tb_vendas[N° Pedido/Empresa],0))/F50),"") -> R$ 472.50 | H50: =IFERROR(IF(D50="","",INDEX(tb_vendas[Data Fechamento],MATCH(D50,tb_vendas[N° Pedido/Empresa],0))+E50*INDEX(tb_formas_pagamento[Dias_Intervalo],MATCH(INDEX(tb_vendas[Forma_Pagamento],MATCH(D50,tb_vendas[N° Pedido/Empresa],0)),tb_formas_pagamento[Nome_Forma],0))),"") -> 2026-01-18 | J50: =IF(OR(tb_pagamentos[[#This Row],[Data_Vencimento]]="",tb_pagamentos[[#This Row],[Valor_Parcela]]="",tb_pagamentos[[#This Row],[Qtd_Total_Parcelas]]="",tb_pagamentos[[#This Row],[Nr_Pedido]]=""),"",IF(tb_pagamentos[[#This Row],[Data_Pagamento]]<>"","Pago",IF(AND(tb_pagamentos[[#This Row],[Data_Pagamento]]="",tb_pagamentos[[#This Row],[Data_Vencimento]]<TODAY()),"Em Atraso","A vencer"))) -> Em Atraso
C51: PED-018-1 | D51: =IFERROR(INDEX(CALC_BASE!$N$3:$N$135,MATCH(ROW()-7,CALC_BASE!$M$3:$M$135,0)),"") -> PED-018 | E51: =IFERROR(INDEX(CALC_BASE!$O$3:$O$135,MATCH(ROW()-7,CALC_BASE!$M$3:$M$135,0)),"") -> 1 | F51: =IFERROR(INDEX(CALC_BASE!$P$3:$P$135,MATCH(ROW()-7,CALC_BASE!$M$3:$M$135,0)),"") -> 3 | G51: =IFERROR(IF(D51="","",INDEX(tb_vendas[Preço de Venda],MATCH(D51,tb_vendas[N° Pedido/Empresa],0))/F51),"") -> R$ 1,866.67 | H51: =IFERROR(IF(D51="","",INDEX(tb_vendas[Data Fechamento],MATCH(D51,tb_vendas[N° Pedido/Empresa],0))+E51*INDEX(tb_formas_pagamento[Dias_Intervalo],MATCH(INDEX(tb_vendas[Forma_Pagamento],MATCH(D51,tb_vendas[N° Pedido/Empresa],0)),tb_formas_pagamento[Nome_Forma],0))),"") -> 2025-03-28 | I51: 2025-04-09 | J51: =IF(OR(tb_pagamentos[[#This Row],[Data_Vencimento]]="",tb_pagamentos[[#This Row],[Valor_Parcela]]="",tb_pagamentos[[#This Row],[Qtd_Total_Parcelas]]="",tb_pagamentos[[#This Row],[Nr_Pedido]]=""),"",IF(tb_pagamentos[[#This Row],[Data_Pagamento]]<>"","Pago",IF(AND(tb_pagamentos[[#This Row],[Data_Pagamento]]="",tb_pagamentos[[#This Row],[Data_Vencimento]]<TODAY()),"Em Atraso","A vencer"))) -> Pago
C52: PED-018-2 | D52: =IFERROR(INDEX(CALC_BASE!$N$3:$N$135,MATCH(ROW()-7,CALC_BASE!$M$3:$M$135,0)),"") -> PED-018 | E52: =IFERROR(INDEX(CALC_BASE!$O$3:$O$135,MATCH(ROW()-7,CALC_BASE!$M$3:$M$135,0)),"") -> 2 | F52: =IFERROR(INDEX(CALC_BASE!$P$3:$P$135,MATCH(ROW()-7,CALC_BASE!$M$3:$M$135,0)),"") -> 3 | G52: =IFERROR(IF(D52="","",INDEX(tb_vendas[Preço de Venda],MATCH(D52,tb_vendas[N° Pedido/Empresa],0))/F52),"") -> R$ 1,866.67 | H52: =IFERROR(IF(D52="","",INDEX(tb_vendas[Data Fechamento],MATCH(D52,tb_vendas[N° Pedido/Empresa],0))+E52*INDEX(tb_formas_pagamento[Dias_Intervalo],MATCH(INDEX(tb_vendas[Forma_Pagamento],MATCH(D52,tb_vendas[N° Pedido/Empresa],0)),tb_formas_pagamento[Nome_Forma],0))),"") -> 2025-04-11 | I52: 2025-04-23 | J52: =IF(OR(tb_pagamentos[[#This Row],[Data_Vencimento]]="",tb_pagamentos[[#This Row],[Valor_Parcela]]="",tb_pagamentos[[#This Row],[Qtd_Total_Parcelas]]="",tb_pagamentos[[#This Row],[Nr_Pedido]]=""),"",IF(tb_pagamentos[[#This Row],[Data_Pagamento]]<>"","Pago",IF(AND(tb_pagamentos[[#This Row],[Data_Pagamento]]="",tb_pagamentos[[#This Row],[Data_Vencimento]]<TODAY()),"Em Atraso","A vencer"))) -> Pago
C53: PED-018-3 | D53: =IFERROR(INDEX(CALC_BASE!$N$3:$N$135,MATCH(ROW()-7,CALC_BASE!$M$3:$M$135,0)),"") -> PED-018 | E53: =IFERROR(INDEX(CALC_BASE!$O$3:$O$135,MATCH(ROW()-7,CALC_BASE!$M$3:$M$135,0)),"") -> 3 | F53: =IFERROR(INDEX(CALC_BASE!$P$3:$P$135,MATCH(ROW()-7,CALC_BASE!$M$3:$M$135,0)),"") -> 3 | G53: =IFERROR(IF(D53="","",INDEX(tb_vendas[Preço de Venda],MATCH(D53,tb_vendas[N° Pedido/Empresa],0))/F53),"") -> R$ 1,866.67 | H53: =IFERROR(IF(D53="","",INDEX(tb_vendas[Data Fechamento],MATCH(D53,tb_vendas[N° Pedido/Empresa],0))+E53*INDEX(tb_formas_pagamento[Dias_Intervalo],MATCH(INDEX(tb_vendas[Forma_Pagamento],MATCH(D53,tb_vendas[N° Pedido/Empresa],0)),tb_formas_pagamento[Nome_Forma],0))),"") -> 2025-04-25 | I53: 2025-05-07 | J53: =IF(OR(tb_pagamentos[[#This Row],[Data_Vencimento]]="",tb_pagamentos[[#This Row],[Valor_Parcela]]="",tb_pagamentos[[#This Row],[Qtd_Total_Parcelas]]="",tb_pagamentos[[#This Row],[Nr_Pedido]]=""),"",IF(tb_pagamentos[[#This Row],[Data_Pagamento]]<>"","Pago",IF(AND(tb_pagamentos[[#This Row],[Data_Pagamento]]="",tb_pagamentos[[#This Row],[Data_Vencimento]]<TODAY()),"Em Atraso","A vencer"))) -> Pago
C54: PED-019-1 | D54: =IFERROR(INDEX(CALC_BASE!$N$3:$N$135,MATCH(ROW()-7,CALC_BASE!$M$3:$M$135,0)),"") -> PED-019 | E54: =IFERROR(INDEX(CALC_BASE!$O$3:$O$135,MATCH(ROW()-7,CALC_BASE!$M$3:$M$135,0)),"") -> 1 | F54: =IFERROR(INDEX(CALC_BASE!$P$3:$P$135,MATCH(ROW()-7,CALC_BASE!$M$3:$M$135,0)),"") -> 2 | G54: =IFERROR(IF(D54="","",INDEX(tb_vendas[Preço de Venda],MATCH(D54,tb_vendas[N° Pedido/Empresa],0))/F54),"") -> R$ 1,550.00 | H54: =IFERROR(IF(D54="","",INDEX(tb_vendas[Data Fechamento],MATCH(D54,tb_vendas[N° Pedido/Empresa],0))+E54*INDEX(tb_formas_pagamento[Dias_Intervalo],MATCH(INDEX(tb_vendas[Forma_Pagamento],MATCH(D54,tb_vendas[N° Pedido/Empresa],0)),tb_formas_pagamento[Nome_Forma],0))),"") -> 2026-07-25 | J54: =IF(OR(tb_pagamentos[[#This Row],[Data_Vencimento]]="",tb_pagamentos[[#This Row],[Valor_Parcela]]="",tb_pagamentos[[#This Row],[Qtd_Total_Parcelas]]="",tb_pagamentos[[#This Row],[Nr_Pedido]]=""),"",IF(tb_pagamentos[[#This Row],[Data_Pagamento]]<>"","Pago",IF(AND(tb_pagamentos[[#This Row],[Data_Pagamento]]="",tb_pagamentos[[#This Row],[Data_Vencimento]]<TODAY()),"Em Atraso","A vencer"))) -> Em Atraso
C55: PED-019-2 | D55: =IFERROR(INDEX(CALC_BASE!$N$3:$N$135,MATCH(ROW()-7,CALC_BASE!$M$3:$M$135,0)),"") -> PED-019 | E55: =IFERROR(INDEX(CALC_BASE!$O$3:$O$135,MATCH(ROW()-7,CALC_BASE!$M$3:$M$135,0)),"") -> 2 | F55: =IFERROR(INDEX(CALC_BASE!$P$3:$P$135,MATCH(ROW()-7,CALC_BASE!$M$3:$M$135,0)),"") -> 2 | G55: =IFERROR(IF(D55="","",INDEX(tb_vendas[Preço de Venda],MATCH(D55,tb_vendas[N° Pedido/Empresa],0))/F55),"") -> R$ 1,550.00 | H55: =IFERROR(IF(D55="","",INDEX(tb_vendas[Data Fechamento],MATCH(D55,tb_vendas[N° Pedido/Empresa],0))+E55*INDEX(tb_formas_pagamento[Dias_Intervalo],MATCH(INDEX(tb_vendas[Forma_Pagamento],MATCH(D55,tb_vendas[N° Pedido/Empresa],0)),tb_formas_pagamento[Nome_Forma],0))),"") -> 2026-08-22 | J55: =IF(OR(tb_pagamentos[[#This Row],[Data_Vencimento]]="",tb_pagamentos[[#This Row],[Valor_Parcela]]="",tb_pagamentos[[#This Row],[Qtd_Total_Parcelas]]="",tb_pagamentos[[#This Row],[Nr_Pedido]]=""),"",IF(tb_pagamentos[[#This Row],[Data_Pagamento]]<>"","Pago",IF(AND(tb_pagamentos[[#This Row],[Data_Pagamento]]="",tb_pagamentos[[#This Row],[Data_Vencimento]]<TODAY()),"Em Atraso","A vencer"))) -> A vencer
C56: PED-020-1 | D56: =IFERROR(INDEX(CALC_BASE!$N$3:$N$135,MATCH(ROW()-7,CALC_BASE!$M$3:$M$135,0)),"") -> PED-020 | E56: =IFERROR(INDEX(CALC_BASE!$O$3:$O$135,MATCH(ROW()-7,CALC_BASE!$M$3:$M$135,0)),"") -> 1 | F56: =IFERROR(INDEX(CALC_BASE!$P$3:$P$135,MATCH(ROW()-7,CALC_BASE!$M$3:$M$135,0)),"") -> 3 | G56: =IFERROR(IF(D56="","",INDEX(tb_vendas[Preço de Venda],MATCH(D56,tb_vendas[N° Pedido/Empresa],0))/F56),"") -> R$ 260.00 | H56: =IFERROR(IF(D56="","",INDEX(tb_vendas[Data Fechamento],MATCH(D56,tb_vendas[N° Pedido/Empresa],0))+E56*INDEX(tb_formas_pagamento[Dias_Intervalo],MATCH(INDEX(tb_vendas[Forma_Pagamento],MATCH(D56,tb_vendas[N° Pedido/Empresa],0)),tb_formas_pagamento[Nome_Forma],0))),"") -> 2024-12-29 | J56: =IF(OR(tb_pagamentos[[#This Row],[Data_Vencimento]]="",tb_pagamentos[[#This Row],[Valor_Parcela]]="",tb_pagamentos[[#This Row],[Qtd_Total_Parcelas]]="",tb_pagamentos[[#This Row],[Nr_Pedido]]=""),"",IF(tb_pagamentos[[#This Row],[Data_Pagamento]]<>"","Pago",IF(AND(tb_pagamentos[[#This Row],[Data_Pagamento]]="",tb_pagamentos[[#This Row],[Data_Vencimento]]<TODAY()),"Em Atraso","A vencer"))) -> Em Atraso
C57: PED-020-2 | D57: =IFERROR(INDEX(CALC_BASE!$N$3:$N$135,MATCH(ROW()-7,CALC_BASE!$M$3:$M$135,0)),"") -> PED-020 | E57: =IFERROR(INDEX(CALC_BASE!$O$3:$O$135,MATCH(ROW()-7,CALC_BASE!$M$3:$M$135,0)),"") -> 2 | F57: =IFERROR(INDEX(CALC_BASE!$P$3:$P$135,MATCH(ROW()-7,CALC_BASE!$M$3:$M$135,0)),"") -> 3 | G57: =IFERROR(IF(D57="","",INDEX(tb_vendas[Preço de Venda],MATCH(D57,tb_vendas[N° Pedido/Empresa],0))/F57),"") -> R$ 260.00 | H57: =IFERROR(IF(D57="","",INDEX(tb_vendas[Data Fechamento],MATCH(D57,tb_vendas[N° Pedido/Empresa],0))+E57*INDEX(tb_formas_pagamento[Dias_Intervalo],MATCH(INDEX(tb_vendas[Forma_Pagamento],MATCH(D57,tb_vendas[N° Pedido/Empresa],0)),tb_formas_pagamento[Nome_Forma],0))),"") -> 2025-01-13 | J57: =IF(OR(tb_pagamentos[[#This Row],[Data_Vencimento]]="",tb_pagamentos[[#This Row],[Valor_Parcela]]="",tb_pagamentos[[#This Row],[Qtd_Total_Parcelas]]="",tb_pagamentos[[#This Row],[Nr_Pedido]]=""),"",IF(tb_pagamentos[[#This Row],[Data_Pagamento]]<>"","Pago",IF(AND(tb_pagamentos[[#This Row],[Data_Pagamento]]="",tb_pagamentos[[#This Row],[Data_Vencimento]]<TODAY()),"Em Atraso","A vencer"))) -> Em Atraso
C58: PED-020-3 | D58: =IFERROR(INDEX(CALC_BASE!$N$3:$N$135,MATCH(ROW()-7,CALC_BASE!$M$3:$M$135,0)),"") -> PED-020 | E58: =IFERROR(INDEX(CALC_BASE!$O$3:$O$135,MATCH(ROW()-7,CALC_BASE!$M$3:$M$135,0)),"") -> 3 | F58: =IFERROR(INDEX(CALC_BASE!$P$3:$P$135,MATCH(ROW()-7,CALC_BASE!$M$3:$M$135,0)),"") -> 3 | G58: =IFERROR(IF(D58="","",INDEX(tb_vendas[Preço de Venda],MATCH(D58,tb_vendas[N° Pedido/Empresa],0))/F58),"") -> R$ 260.00 | H58: =IFERROR(IF(D58="","",INDEX(tb_vendas[Data Fechamento],MATCH(D58,tb_vendas[N° Pedido/Empresa],0))+E58*INDEX(tb_formas_pagamento[Dias_Intervalo],MATCH(INDEX(tb_vendas[Forma_Pagamento],MATCH(D58,tb_vendas[N° Pedido/Empresa],0)),tb_formas_pagamento[Nome_Forma],0))),"") -> 2025-01-28 | J58: =IF(OR(tb_pagamentos[[#This Row],[Data_Vencimento]]="",tb_pagamentos[[#This Row],[Valor_Parcela]]="",tb_pagamentos[[#This Row],[Qtd_Total_Parcelas]]="",tb_pagamentos[[#This Row],[Nr_Pedido]]=""),"",IF(tb_pagamentos[[#This Row],[Data_Pagamento]]<>"","Pago",IF(AND(tb_pagamentos[[#This Row],[Data_Pagamento]]="",tb_pagamentos[[#This Row],[Data_Vencimento]]<TODAY()),"Em Atraso","A vencer"))) -> Em Atraso
C59: PED-021-1 | D59: =IFERROR(INDEX(CALC_BASE!$N$3:$N$135,MATCH(ROW()-7,CALC_BASE!$M$3:$M$135,0)),"") -> PED-021 | E59: =IFERROR(INDEX(CALC_BASE!$O$3:$O$135,MATCH(ROW()-7,CALC_BASE!$M$3:$M$135,0)),"") -> 1 | F59: =IFERROR(INDEX(CALC_BASE!$P$3:$P$135,MATCH(ROW()-7,CALC_BASE!$M$3:$M$135,0)),"") -> 2 | G59: =IFERROR(IF(D59="","",INDEX(tb_vendas[Preço de Venda],MATCH(D59,tb_vendas[N° Pedido/Empresa],0))/F59),"") -> R$ 1,170.00 | H59: =IFERROR(IF(D59="","",INDEX(tb_vendas[Data Fechamento],MATCH(D59,tb_vendas[N° Pedido/Empresa],0))+E59*INDEX(tb_formas_pagamento[Dias_Intervalo],MATCH(INDEX(tb_vendas[Forma_Pagamento],MATCH(D59,tb_vendas[N° Pedido/Empresa],0)),tb_formas_pagamento[Nome_Forma],0))),"") -> 2025-06-06 | I59: 2025-06-18 | J59: =IF(OR(tb_pagamentos[[#This Row],[Data_Vencimento]]="",tb_pagamentos[[#This Row],[Valor_Parcela]]="",tb_pagamentos[[#This Row],[Qtd_Total_Parcelas]]="",tb_pagamentos[[#This Row],[Nr_Pedido]]=""),"",IF(tb_pagamentos[[#This Row],[Data_Pagamento]]<>"","Pago",IF(AND(tb_pagamentos[[#This Row],[Data_Pagamento]]="",tb_pagamentos[[#This Row],[Data_Vencimento]]<TODAY()),"Em Atraso","A vencer"))) -> Pago
C60: PED-021-2 | D60: =IFERROR(INDEX(CALC_BASE!$N$3:$N$135,MATCH(ROW()-7,CALC_BASE!$M$3:$M$135,0)),"") -> PED-021 | E60: =IFERROR(INDEX(CALC_BASE!$O$3:$O$135,MATCH(ROW()-7,CALC_BASE!$M$3:$M$135,0)),"") -> 2 | F60: =IFERROR(INDEX(CALC_BASE!$P$3:$P$135,MATCH(ROW()-7,CALC_BASE!$M$3:$M$135,0)),"") -> 2 | G60: =IFERROR(IF(D60="","",INDEX(tb_vendas[Preço de Venda],MATCH(D60,tb_vendas[N° Pedido/Empresa],0))/F60),"") -> R$ 1,170.00 | H60: =IFERROR(IF(D60="","",INDEX(tb_vendas[Data Fechamento],MATCH(D60,tb_vendas[N° Pedido/Empresa],0))+E60*INDEX(tb_formas_pagamento[Dias_Intervalo],MATCH(INDEX(tb_vendas[Forma_Pagamento],MATCH(D60,tb_vendas[N° Pedido/Empresa],0)),tb_formas_pagamento[Nome_Forma],0))),"") -> 2025-06-20 | J60: =IF(OR(tb_pagamentos[[#This Row],[Data_Vencimento]]="",tb_pagamentos[[#This Row],[Valor_Parcela]]="",tb_pagamentos[[#This Row],[Qtd_Total_Parcelas]]="",tb_pagamentos[[#This Row],[Nr_Pedido]]=""),"",IF(tb_pagamentos[[#This Row],[Data_Pagamento]]<>"","Pago",IF(AND(tb_pagamentos[[#This Row],[Data_Pagamento]]="",tb_pagamentos[[#This Row],[Data_Vencimento]]<TODAY()),"Em Atraso","A vencer"))) -> Em Atraso
C61: PED-022-1 | D61: =IFERROR(INDEX(CALC_BASE!$N$3:$N$135,MATCH(ROW()-7,CALC_BASE!$M$3:$M$135,0)),"") -> PED-022 | E61: =IFERROR(INDEX(CALC_BASE!$O$3:$O$135,MATCH(ROW()-7,CALC_BASE!$M$3:$M$135,0)),"") -> 1 | F61: =IFERROR(INDEX(CALC_BASE!$P$3:$P$135,MATCH(ROW()-7,CALC_BASE!$M$3:$M$135,0)),"") -> 1 | G61: =IFERROR(IF(D61="","",INDEX(tb_vendas[Preço de Venda],MATCH(D61,tb_vendas[N° Pedido/Empresa],0))/F61),"") -> R$ 1,100.00 | H61: =IFERROR(IF(D61="","",INDEX(tb_vendas[Data Fechamento],MATCH(D61,tb_vendas[N° Pedido/Empresa],0))+E61*INDEX(tb_formas_pagamento[Dias_Intervalo],MATCH(INDEX(tb_vendas[Forma_Pagamento],MATCH(D61,tb_vendas[N° Pedido/Empresa],0)),tb_formas_pagamento[Nome_Forma],0))),"") -> 2026-02-27 | I61: 2026-02-26 | J61: =IF(OR(tb_pagamentos[[#This Row],[Data_Vencimento]]="",tb_pagamentos[[#This Row],[Valor_Parcela]]="",tb_pagamentos[[#This Row],[Qtd_Total_Parcelas]]="",tb_pagamentos[[#This Row],[Nr_Pedido]]=""),"",IF(tb_pagamentos[[#This Row],[Data_Pagamento]]<>"","Pago",IF(AND(tb_pagamentos[[#This Row],[Data_Pagamento]]="",tb_pagamentos[[#This Row],[Data_Vencimento]]<TODAY()),"Em Atraso","A vencer"))) -> Pago
C62: PED-023-1 | D62: =IFERROR(INDEX(CALC_BASE!$N$3:$N$135,MATCH(ROW()-7,CALC_BASE!$M$3:$M$135,0)),"") -> PED-023 | E62: =IFERROR(INDEX(CALC_BASE!$O$3:$O$135,MATCH(ROW()-7,CALC_BASE!$M$3:$M$135,0)),"") -> 1 | F62: =IFERROR(INDEX(CALC_BASE!$P$3:$P$135,MATCH(ROW()-7,CALC_BASE!$M$3:$M$135,0)),"") -> 2 | G62: =IFERROR(IF(D62="","",INDEX(tb_vendas[Preço de Venda],MATCH(D62,tb_vendas[N° Pedido/Empresa],0))/F62),"") -> R$ 2,100.00 | H62: =IFERROR(IF(D62="","",INDEX(tb_vendas[Data Fechamento],MATCH(D62,tb_vendas[N° Pedido/Empresa],0))+E62*INDEX(tb_formas_pagamento[Dias_Intervalo],MATCH(INDEX(tb_vendas[Forma_Pagamento],MATCH(D62,tb_vendas[N° Pedido/Empresa],0)),tb_formas_pagamento[Nome_Forma],0))),"") -> 2025-08-11 | I62: 2025-08-09 | J62: =IF(OR(tb_pagamentos[[#This Row],[Data_Vencimento]]="",tb_pagamentos[[#This Row],[Valor_Parcela]]="",tb_pagamentos[[#This Row],[Qtd_Total_Parcelas]]="",tb_pagamentos[[#This Row],[Nr_Pedido]]=""),"",IF(tb_pagamentos[[#This Row],[Data_Pagamento]]<>"","Pago",IF(AND(tb_pagamentos[[#This Row],[Data_Pagamento]]="",tb_pagamentos[[#This Row],[Data_Vencimento]]<TODAY()),"Em Atraso","A vencer"))) -> Pago
C63: PED-023-2 | D63: =IFERROR(INDEX(CALC_BASE!$N$3:$N$135,MATCH(ROW()-7,CALC_BASE!$M$3:$M$135,0)),"") -> PED-023 | E63: =IFERROR(INDEX(CALC_BASE!$O$3:$O$135,MATCH(ROW()-7,CALC_BASE!$M$3:$M$135,0)),"") -> 2 | F63: =IFERROR(INDEX(CALC_BASE!$P$3:$P$135,MATCH(ROW()-7,CALC_BASE!$M$3:$M$135,0)),"") -> 2 | G63: =IFERROR(IF(D63="","",INDEX(tb_vendas[Preço de Venda],MATCH(D63,tb_vendas[N° Pedido/Empresa],0))/F63),"") -> R$ 2,100.00 | H63: =IFERROR(IF(D63="","",INDEX(tb_vendas[Data Fechamento],MATCH(D63,tb_vendas[N° Pedido/Empresa],0))+E63*INDEX(tb_formas_pagamento[Dias_Intervalo],MATCH(INDEX(tb_vendas[Forma_Pagamento],MATCH(D63,tb_vendas[N° Pedido/Empresa],0)),tb_formas_pagamento[Nome_Forma],0))),"") -> 2025-09-10 | I63: 2025-09-08 | J63: =IF(OR(tb_pagamentos[[#This Row],[Data_Vencimento]]="",tb_pagamentos[[#This Row],[Valor_Parcela]]="",tb_pagamentos[[#This Row],[Qtd_Total_Parcelas]]="",tb_pagamentos[[#This Row],[Nr_Pedido]]=""),"",IF(tb_pagamentos[[#This Row],[Data_Pagamento]]<>"","Pago",IF(AND(tb_pagamentos[[#This Row],[Data_Pagamento]]="",tb_pagamentos[[#This Row],[Data_Vencimento]]<TODAY()),"Em Atraso","A vencer"))) -> Pago
C64: PED-024-1 | D64: =IFERROR(INDEX(CALC_BASE!$N$3:$N$135,MATCH(ROW()-7,CALC_BASE!$M$3:$M$135,0)),"") -> PED-024 | E64: =IFERROR(INDEX(CALC_BASE!$O$3:$O$135,MATCH(ROW()-7,CALC_BASE!$M$3:$M$135,0)),"") -> 1 | F64: =IFERROR(INDEX(CALC_BASE!$P$3:$P$135,MATCH(ROW()-7,CALC_BASE!$M$3:$M$135,0)),"") -> 1 | G64: =IFERROR(IF(D64="","",INDEX(tb_vendas[Preço de Venda],MATCH(D64,tb_vendas[N° Pedido/Empresa],0))/F64),"") -> R$ 980.00 | H64: =IFERROR(IF(D64="","",INDEX(tb_vendas[Data Fechamento],MATCH(D64,tb_vendas[N° Pedido/Empresa],0))+E64*INDEX(tb_formas_pagamento[Dias_Intervalo],MATCH(INDEX(tb_vendas[Forma_Pagamento],MATCH(D64,tb_vendas[N° Pedido/Empresa],0)),tb_formas_pagamento[Nome_Forma],0))),"") -> 2026-06-05 | I64: 2026-06-03 | J64: =IF(OR(tb_pagamentos[[#This Row],[Data_Vencimento]]="",tb_pagamentos[[#This Row],[Valor_Parcela]]="",tb_pagamentos[[#This Row],[Qtd_Total_Parcelas]]="",tb_pagamentos[[#This Row],[Nr_Pedido]]=""),"",IF(tb_pagamentos[[#This Row],[Data_Pagamento]]<>"","Pago",IF(AND(tb_pagamentos[[#This Row],[Data_Pagamento]]="",tb_pagamentos[[#This Row],[Data_Vencimento]]<TODAY()),"Em Atraso","A vencer"))) -> Pago
C65: PED-025-1 | D65: =IFERROR(INDEX(CALC_BASE!$N$3:$N$135,MATCH(ROW()-7,CALC_BASE!$M$3:$M$135,0)),"") -> PED-025 | E65: =IFERROR(INDEX(CALC_BASE!$O$3:$O$135,MATCH(ROW()-7,CALC_BASE!$M$3:$M$135,0)),"") -> 1 | F65: =IFERROR(INDEX(CALC_BASE!$P$3:$P$135,MATCH(ROW()-7,CALC_BASE!$M$3:$M$135,0)),"") -> 4 | G65: =IFERROR(IF(D65="","",INDEX(tb_vendas[Preço de Venda],MATCH(D65,tb_vendas[N° Pedido/Empresa],0))/F65),"") -> R$ 900.00 | H65: =IFERROR(IF(D65="","",INDEX(tb_vendas[Data Fechamento],MATCH(D65,tb_vendas[N° Pedido/Empresa],0))+E65*INDEX(tb_formas_pagamento[Dias_Intervalo],MATCH(INDEX(tb_vendas[Forma_Pagamento],MATCH(D65,tb_vendas[N° Pedido/Empresa],0)),tb_formas_pagamento[Nome_Forma],0))),"") -> 2024-10-09 | I65: 2024-10-21 | J65: =IF(OR(tb_pagamentos[[#This Row],[Data_Vencimento]]="",tb_pagamentos[[#This Row],[Valor_Parcela]]="",tb_pagamentos[[#This Row],[Qtd_Total_Parcelas]]="",tb_pagamentos[[#This Row],[Nr_Pedido]]=""),"",IF(tb_pagamentos[[#This Row],[Data_Pagamento]]<>"","Pago",IF(AND(tb_pagamentos[[#This Row],[Data_Pagamento]]="",tb_pagamentos[[#This Row],[Data_Vencimento]]<TODAY()),"Em Atraso","A vencer"))) -> Pago
C66: PED-025-2 | D66: =IFERROR(INDEX(CALC_BASE!$N$3:$N$135,MATCH(ROW()-7,CALC_BASE!$M$3:$M$135,0)),"") -> PED-025 | E66: =IFERROR(INDEX(CALC_BASE!$O$3:$O$135,MATCH(ROW()-7,CALC_BASE!$M$3:$M$135,0)),"") -> 2 | F66: =IFERROR(INDEX(CALC_BASE!$P$3:$P$135,MATCH(ROW()-7,CALC_BASE!$M$3:$M$135,0)),"") -> 4 | G66: =IFERROR(IF(D66="","",INDEX(tb_vendas[Preço de Venda],MATCH(D66,tb_vendas[N° Pedido/Empresa],0))/F66),"") -> R$ 900.00 | H66: =IFERROR(IF(D66="","",INDEX(tb_vendas[Data Fechamento],MATCH(D66,tb_vendas[N° Pedido/Empresa],0))+E66*INDEX(tb_formas_pagamento[Dias_Intervalo],MATCH(INDEX(tb_vendas[Forma_Pagamento],MATCH(D66,tb_vendas[N° Pedido/Empresa],0)),tb_formas_pagamento[Nome_Forma],0))),"") -> 2024-10-23 | I66: 2024-11-04 | J66: =IF(OR(tb_pagamentos[[#This Row],[Data_Vencimento]]="",tb_pagamentos[[#This Row],[Valor_Parcela]]="",tb_pagamentos[[#This Row],[Qtd_Total_Parcelas]]="",tb_pagamentos[[#This Row],[Nr_Pedido]]=""),"",IF(tb_pagamentos[[#This Row],[Data_Pagamento]]<>"","Pago",IF(AND(tb_pagamentos[[#This Row],[Data_Pagamento]]="",tb_pagamentos[[#This Row],[Data_Vencimento]]<TODAY()),"Em Atraso","A vencer"))) -> Pago
C67: PED-025-3 | D67: =IFERROR(INDEX(CALC_BASE!$N$3:$N$135,MATCH(ROW()-7,CALC_BASE!$M$3:$M$135,0)),"") -> PED-025 | E67: =IFERROR(INDEX(CALC_BASE!$O$3:$O$135,MATCH(ROW()-7,CALC_BASE!$M$3:$M$135,0)),"") -> 3 | F67: =IFERROR(INDEX(CALC_BASE!$P$3:$P$135,MATCH(ROW()-7,CALC_BASE!$M$3:$M$135,0)),"") -> 4 | G67: =IFERROR(IF(D67="","",INDEX(tb_vendas[Preço de Venda],MATCH(D67,tb_vendas[N° Pedido/Empresa],0))/F67),"") -> R$ 900.00 | H67: =IFERROR(IF(D67="","",INDEX(tb_vendas[Data Fechamento],MATCH(D67,tb_vendas[N° Pedido/Empresa],0))+E67*INDEX(tb_formas_pagamento[Dias_Intervalo],MATCH(INDEX(tb_vendas[Forma_Pagamento],MATCH(D67,tb_vendas[N° Pedido/Empresa],0)),tb_formas_pagamento[Nome_Forma],0))),"") -> 2024-11-06 | I67: 2024-11-18 | J67: =IF(OR(tb_pagamentos[[#This Row],[Data_Vencimento]]="",tb_pagamentos[[#This Row],[Valor_Parcela]]="",tb_pagamentos[[#This Row],[Qtd_Total_Parcelas]]="",tb_pagamentos[[#This Row],[Nr_Pedido]]=""),"",IF(tb_pagamentos[[#This Row],[Data_Pagamento]]<>"","Pago",IF(AND(tb_pagamentos[[#This Row],[Data_Pagamento]]="",tb_pagamentos[[#This Row],[Data_Vencimento]]<TODAY()),"Em Atraso","A vencer"))) -> Pago
C68: PED-025-4 | D68: =IFERROR(INDEX(CALC_BASE!$N$3:$N$135,MATCH(ROW()-7,CALC_BASE!$M$3:$M$135,0)),"") -> PED-025 | E68: =IFERROR(INDEX(CALC_BASE!$O$3:$O$135,MATCH(ROW()-7,CALC_BASE!$M$3:$M$135,0)),"") -> 4 | F68: =IFERROR(INDEX(CALC_BASE!$P$3:$P$135,MATCH(ROW()-7,CALC_BASE!$M$3:$M$135,0)),"") -> 4 | G68: =IFERROR(IF(D68="","",INDEX(tb_vendas[Preço de Venda],MATCH(D68,tb_vendas[N° Pedido/Empresa],0))/F68),"") -> R$ 900.00 | H68: =IFERROR(IF(D68="","",INDEX(tb_vendas[Data Fechamento],MATCH(D68,tb_vendas[N° Pedido/Empresa],0))+E68*INDEX(tb_formas_pagamento[Dias_Intervalo],MATCH(INDEX(tb_vendas[Forma_Pagamento],MATCH(D68,tb_vendas[N° Pedido/Empresa],0)),tb_formas_pagamento[Nome_Forma],0))),"") -> 2024-11-20 | I68: 2024-12-02 | J68: =IF(OR(tb_pagamentos[[#This Row],[Data_Vencimento]]="",tb_pagamentos[[#This Row],[Valor_Parcela]]="",tb_pagamentos[[#This Row],[Qtd_Total_Parcelas]]="",tb_pagamentos[[#This Row],[Nr_Pedido]]=""),"",IF(tb_pagamentos[[#This Row],[Data_Pagamento]]<>"","Pago",IF(AND(tb_pagamentos[[#This Row],[Data_Pagamento]]="",tb_pagamentos[[#This Row],[Data_Vencimento]]<TODAY()),"Em Atraso","A vencer"))) -> Pago
C69: PED-026-1 | D69: =IFERROR(INDEX(CALC_BASE!$N$3:$N$135,MATCH(ROW()-7,CALC_BASE!$M$3:$M$135,0)),"") -> PED-026 | E69: =IFERROR(INDEX(CALC_BASE!$O$3:$O$135,MATCH(ROW()-7,CALC_BASE!$M$3:$M$135,0)),"") -> 1 | F69: =IFERROR(INDEX(CALC_BASE!$P$3:$P$135,MATCH(ROW()-7,CALC_BASE!$M$3:$M$135,0)),"") -> 3 | G69: =IFERROR(IF(D69="","",INDEX(tb_vendas[Preço de Venda],MATCH(D69,tb_vendas[N° Pedido/Empresa],0))/F69),"") -> R$ 733.33 | H69: =IFERROR(IF(D69="","",INDEX(tb_vendas[Data Fechamento],MATCH(D69,tb_vendas[N° Pedido/Empresa],0))+E69*INDEX(tb_formas_pagamento[Dias_Intervalo],MATCH(INDEX(tb_vendas[Forma_Pagamento],MATCH(D69,tb_vendas[N° Pedido/Empresa],0)),tb_formas_pagamento[Nome_Forma],0))),"") -> 2025-11-03 | I69: 2025-11-08 | J69: =IF(OR(tb_pagamentos[[#This Row],[Data_Vencimento]]="",tb_pagamentos[[#This Row],[Valor_Parcela]]="",tb_pagamentos[[#This Row],[Qtd_Total_Parcelas]]="",tb_pagamentos[[#This Row],[Nr_Pedido]]=""),"",IF(tb_pagamentos[[#This Row],[Data_Pagamento]]<>"","Pago",IF(AND(tb_pagamentos[[#This Row],[Data_Pagamento]]="",tb_pagamentos[[#This Row],[Data_Vencimento]]<TODAY()),"Em Atraso","A vencer"))) -> Pago
C70: PED-026-2 | D70: =IFERROR(INDEX(CALC_BASE!$N$3:$N$135,MATCH(ROW()-7,CALC_BASE!$M$3:$M$135,0)),"") -> PED-026 | E70: =IFERROR(INDEX(CALC_BASE!$O$3:$O$135,MATCH(ROW()-7,CALC_BASE!$M$3:$M$135,0)),"") -> 2 | F70: =IFERROR(INDEX(CALC_BASE!$P$3:$P$135,MATCH(ROW()-7,CALC_BASE!$M$3:$M$135,0)),"") -> 3 | G70: =IFERROR(IF(D70="","",INDEX(tb_vendas[Preço de Venda],MATCH(D70,tb_vendas[N° Pedido/Empresa],0))/F70),"") -> R$ 733.33 | H70: =IFERROR(IF(D70="","",INDEX(tb_vendas[Data Fechamento],MATCH(D70,tb_vendas[N° Pedido/Empresa],0))+E70*INDEX(tb_formas_pagamento[Dias_Intervalo],MATCH(INDEX(tb_vendas[Forma_Pagamento],MATCH(D70,tb_vendas[N° Pedido/Empresa],0)),tb_formas_pagamento[Nome_Forma],0))),"") -> 2025-11-17 | J70: =IF(OR(tb_pagamentos[[#This Row],[Data_Vencimento]]="",tb_pagamentos[[#This Row],[Valor_Parcela]]="",tb_pagamentos[[#This Row],[Qtd_Total_Parcelas]]="",tb_pagamentos[[#This Row],[Nr_Pedido]]=""),"",IF(tb_pagamentos[[#This Row],[Data_Pagamento]]<>"","Pago",IF(AND(tb_pagamentos[[#This Row],[Data_Pagamento]]="",tb_pagamentos[[#This Row],[Data_Vencimento]]<TODAY()),"Em Atraso","A vencer"))) -> Em Atraso
C71: PED-026-3 | D71: =IFERROR(INDEX(CALC_BASE!$N$3:$N$135,MATCH(ROW()-7,CALC_BASE!$M$3:$M$135,0)),"") -> PED-026 | E71: =IFERROR(INDEX(CALC_BASE!$O$3:$O$135,MATCH(ROW()-7,CALC_BASE!$M$3:$M$135,0)),"") -> 3 | F71: =IFERROR(INDEX(CALC_BASE!$P$3:$P$135,MATCH(ROW()-7,CALC_BASE!$M$3:$M$135,0)),"") -> 3 | G71: =IFERROR(IF(D71="","",INDEX(tb_vendas[Preço de Venda],MATCH(D71,tb_vendas[N° Pedido/Empresa],0))/F71),"") -> R$ 733.33 | H71: =IFERROR(IF(D71="","",INDEX(tb_vendas[Data Fechamento],MATCH(D71,tb_vendas[N° Pedido/Empresa],0))+E71*INDEX(tb_formas_pagamento[Dias_Intervalo],MATCH(INDEX(tb_vendas[Forma_Pagamento],MATCH(D71,tb_vendas[N° Pedido/Empresa],0)),tb_formas_pagamento[Nome_Forma],0))),"") -> 2025-12-01 | J71: =IF(OR(tb_pagamentos[[#This Row],[Data_Vencimento]]="",tb_pagamentos[[#This Row],[Valor_Parcela]]="",tb_pagamentos[[#This Row],[Qtd_Total_Parcelas]]="",tb_pagamentos[[#This Row],[Nr_Pedido]]=""),"",IF(tb_pagamentos[[#This Row],[Data_Pagamento]]<>"","Pago",IF(AND(tb_pagamentos[[#This Row],[Data_Pagamento]]="",tb_pagamentos[[#This Row],[Data_Vencimento]]<TODAY()),"Em Atraso","A vencer"))) -> Em Atraso
C72: =IF(OR(D72="",E72=""),"",D72&"-"&E72) -> PED-027-1 | D72: =IFERROR(INDEX(CALC_BASE!$N$3:$N$135,MATCH(ROW()-7,CALC_BASE!$M$3:$M$135,0)),"") -> PED-027 | E72: =IFERROR(INDEX(CALC_BASE!$O$3:$O$135,MATCH(ROW()-7,CALC_BASE!$M$3:$M$135,0)),"") -> 1 | F72: =IFERROR(INDEX(CALC_BASE!$P$3:$P$135,MATCH(ROW()-7,CALC_BASE!$M$3:$M$135,0)),"") -> 1 | G72: =IFERROR(IF(D72="","",INDEX(tb_vendas[Preço de Venda],MATCH(D72,tb_vendas[N° Pedido/Empresa],0))/F72),"") -> R$ 650.00 | H72: =IFERROR(IF(D72="","",INDEX(tb_vendas[Data Fechamento],MATCH(D72,tb_vendas[N° Pedido/Empresa],0))+E72*INDEX(tb_formas_pagamento[Dias_Intervalo],MATCH(INDEX(tb_vendas[Forma_Pagamento],MATCH(D72,tb_vendas[N° Pedido/Empresa],0)),tb_formas_pagamento[Nome_Forma],0))),"") -> 2026-01-28 | I72: 2026-01-27 | J72: =IF(OR(tb_pagamentos[[#This Row],[Data_Vencimento]]="",tb_pagamentos[[#This Row],[Valor_Parcela]]="",tb_pagamentos[[#This Row],[Qtd_Total_Parcelas]]="",tb_pagamentos[[#This Row],[Nr_Pedido]]=""),"",IF(tb_pagamentos[[#This Row],[Data_Pagamento]]<>"","Pago",IF(AND(tb_pagamentos[[#This Row],[Data_Pagamento]]="",tb_pagamentos[[#This Row],[Data_Vencimento]]<TODAY()),"Em Atraso","A vencer"))) -> Pago
C73: PED-028-1 | D73: =IFERROR(INDEX(CALC_BASE!$N$3:$N$135,MATCH(ROW()-7,CALC_BASE!$M$3:$M$135,0)),"") -> PED-028 | E73: =IFERROR(INDEX(CALC_BASE!$O$3:$O$135,MATCH(ROW()-7,CALC_BASE!$M$3:$M$135,0)),"") -> 1 | F73: =IFERROR(INDEX(CALC_BASE!$P$3:$P$135,MATCH(ROW()-7,CALC_BASE!$M$3:$M$135,0)),"") -> 4 | G73: =IFERROR(IF(D73="","",INDEX(tb_vendas[Preço de Venda],MATCH(D73,tb_vendas[N° Pedido/Empresa],0))/F73),"") -> R$ 1,275.00 | H73: =IFERROR(IF(D73="","",INDEX(tb_vendas[Data Fechamento],MATCH(D73,tb_vendas[N° Pedido/Empresa],0))+E73*INDEX(tb_formas_pagamento[Dias_Intervalo],MATCH(INDEX(tb_vendas[Forma_Pagamento],MATCH(D73,tb_vendas[N° Pedido/Empresa],0)),tb_formas_pagamento[Nome_Forma],0))),"") -> 2025-02-27 | I73: 2025-03-12 | J73: =IF(OR(tb_pagamentos[[#This Row],[Data_Vencimento]]="",tb_pagamentos[[#This Row],[Valor_Parcela]]="",tb_pagamentos[[#This Row],[Qtd_Total_Parcelas]]="",tb_pagamentos[[#This Row],[Nr_Pedido]]=""),"",IF(tb_pagamentos[[#This Row],[Data_Pagamento]]<>"","Pago",IF(AND(tb_pagamentos[[#This Row],[Data_Pagamento]]="",tb_pagamentos[[#This Row],[Data_Vencimento]]<TODAY()),"Em Atraso","A vencer"))) -> Pago
C74: PED-028-2 | D74: =IFERROR(INDEX(CALC_BASE!$N$3:$N$135,MATCH(ROW()-7,CALC_BASE!$M$3:$M$135,0)),"") -> PED-028 | E74: =IFERROR(INDEX(CALC_BASE!$O$3:$O$135,MATCH(ROW()-7,CALC_BASE!$M$3:$M$135,0)),"") -> 2 | F74: =IFERROR(INDEX(CALC_BASE!$P$3:$P$135,MATCH(ROW()-7,CALC_BASE!$M$3:$M$135,0)),"") -> 4 | G74: =IFERROR(IF(D74="","",INDEX(tb_vendas[Preço de Venda],MATCH(D74,tb_vendas[N° Pedido/Empresa],0))/F74),"") -> R$ 1,275.00 | H74: =IFERROR(IF(D74="","",INDEX(tb_vendas[Data Fechamento],MATCH(D74,tb_vendas[N° Pedido/Empresa],0))+E74*INDEX(tb_formas_pagamento[Dias_Intervalo],MATCH(INDEX(tb_vendas[Forma_Pagamento],MATCH(D74,tb_vendas[N° Pedido/Empresa],0)),tb_formas_pagamento[Nome_Forma],0))),"") -> 2025-03-14 | I74: 2025-03-27 | J74: =IF(OR(tb_pagamentos[[#This Row],[Data_Vencimento]]="",tb_pagamentos[[#This Row],[Valor_Parcela]]="",tb_pagamentos[[#This Row],[Qtd_Total_Parcelas]]="",tb_pagamentos[[#This Row],[Nr_Pedido]]=""),"",IF(tb_pagamentos[[#This Row],[Data_Pagamento]]<>"","Pago",IF(AND(tb_pagamentos[[#This Row],[Data_Pagamento]]="",tb_pagamentos[[#This Row],[Data_Vencimento]]<TODAY()),"Em Atraso","A vencer"))) -> Pago
C75: PED-028-3 | D75: =IFERROR(INDEX(CALC_BASE!$N$3:$N$135,MATCH(ROW()-7,CALC_BASE!$M$3:$M$135,0)),"") -> PED-028 | E75: =IFERROR(INDEX(CALC_BASE!$O$3:$O$135,MATCH(ROW()-7,CALC_BASE!$M$3:$M$135,0)),"") -> 3 | F75: =IFERROR(INDEX(CALC_BASE!$P$3:$P$135,MATCH(ROW()-7,CALC_BASE!$M$3:$M$135,0)),"") -> 4 | G75: =IFERROR(IF(D75="","",INDEX(tb_vendas[Preço de Venda],MATCH(D75,tb_vendas[N° Pedido/Empresa],0))/F75),"") -> R$ 1,275.00 | H75: =IFERROR(IF(D75="","",INDEX(tb_vendas[Data Fechamento],MATCH(D75,tb_vendas[N° Pedido/Empresa],0))+E75*INDEX(tb_formas_pagamento[Dias_Intervalo],MATCH(INDEX(tb_vendas[Forma_Pagamento],MATCH(D75,tb_vendas[N° Pedido/Empresa],0)),tb_formas_pagamento[Nome_Forma],0))),"") -> 2025-03-29 | I75: 2025-04-11 | J75: =IF(OR(tb_pagamentos[[#This Row],[Data_Vencimento]]="",tb_pagamentos[[#This Row],[Valor_Parcela]]="",tb_pagamentos[[#This Row],[Qtd_Total_Parcelas]]="",tb_pagamentos[[#This Row],[Nr_Pedido]]=""),"",IF(tb_pagamentos[[#This Row],[Data_Pagamento]]<>"","Pago",IF(AND(tb_pagamentos[[#This Row],[Data_Pagamento]]="",tb_pagamentos[[#This Row],[Data_Vencimento]]<TODAY()),"Em Atraso","A vencer"))) -> Pago
C76: PED-028-4 | D76: =IFERROR(INDEX(CALC_BASE!$N$3:$N$135,MATCH(ROW()-7,CALC_BASE!$M$3:$M$135,0)),"") -> PED-028 | E76: =IFERROR(INDEX(CALC_BASE!$O$3:$O$135,MATCH(ROW()-7,CALC_BASE!$M$3:$M$135,0)),"") -> 4 | F76: =IFERROR(INDEX(CALC_BASE!$P$3:$P$135,MATCH(ROW()-7,CALC_BASE!$M$3:$M$135,0)),"") -> 4 | G76: =IFERROR(IF(D76="","",INDEX(tb_vendas[Preço de Venda],MATCH(D76,tb_vendas[N° Pedido/Empresa],0))/F76),"") -> R$ 1,275.00 | H76: =IFERROR(IF(D76="","",INDEX(tb_vendas[Data Fechamento],MATCH(D76,tb_vendas[N° Pedido/Empresa],0))+E76*INDEX(tb_formas_pagamento[Dias_Intervalo],MATCH(INDEX(tb_vendas[Forma_Pagamento],MATCH(D76,tb_vendas[N° Pedido/Empresa],0)),tb_formas_pagamento[Nome_Forma],0))),"") -> 2025-04-13 | I76: 2025-04-26 | J76: =IF(OR(tb_pagamentos[[#This Row],[Data_Vencimento]]="",tb_pagamentos[[#This Row],[Valor_Parcela]]="",tb_pagamentos[[#This Row],[Qtd_Total_Parcelas]]="",tb_pagamentos[[#This Row],[Nr_Pedido]]=""),"",IF(tb_pagamentos[[#This Row],[Data_Pagamento]]<>"","Pago",IF(AND(tb_pagamentos[[#This Row],[Data_Pagamento]]="",tb_pagamentos[[#This Row],[Data_Vencimento]]<TODAY()),"Em Atraso","A vencer"))) -> Pago
C77: PED-029-1 | D77: =IFERROR(INDEX(CALC_BASE!$N$3:$N$135,MATCH(ROW()-7,CALC_BASE!$M$3:$M$135,0)),"") -> PED-029 | E77: =IFERROR(INDEX(CALC_BASE!$O$3:$O$135,MATCH(ROW()-7,CALC_BASE!$M$3:$M$135,0)),"") -> 1 | F77: =IFERROR(INDEX(CALC_BASE!$P$3:$P$135,MATCH(ROW()-7,CALC_BASE!$M$3:$M$135,0)),"") -> 2 | G77: =IFERROR(IF(D77="","",INDEX(tb_vendas[Preço de Venda],MATCH(D77,tb_vendas[N° Pedido/Empresa],0))/F77),"") -> R$ 725.00 | H77: =IFERROR(IF(D77="","",INDEX(tb_vendas[Data Fechamento],MATCH(D77,tb_vendas[N° Pedido/Empresa],0))+E77*INDEX(tb_formas_pagamento[Dias_Intervalo],MATCH(INDEX(tb_vendas[Forma_Pagamento],MATCH(D77,tb_vendas[N° Pedido/Empresa],0)),tb_formas_pagamento[Nome_Forma],0))),"") -> 2025-08-15 | J77: =IF(OR(tb_pagamentos[[#This Row],[Data_Vencimento]]="",tb_pagamentos[[#This Row],[Valor_Parcela]]="",tb_pagamentos[[#This Row],[Qtd_Total_Parcelas]]="",tb_pagamentos[[#This Row],[Nr_Pedido]]=""),"",IF(tb_pagamentos[[#This Row],[Data_Pagamento]]<>"","Pago",IF(AND(tb_pagamentos[[#This Row],[Data_Pagamento]]="",tb_pagamentos[[#This Row],[Data_Vencimento]]<TODAY()),"Em Atraso","A vencer"))) -> Em Atraso
C78: PED-029-2 | D78: =IFERROR(INDEX(CALC_BASE!$N$3:$N$135,MATCH(ROW()-7,CALC_BASE!$M$3:$M$135,0)),"") -> PED-029 | E78: =IFERROR(INDEX(CALC_BASE!$O$3:$O$135,MATCH(ROW()-7,CALC_BASE!$M$3:$M$135,0)),"") -> 2 | F78: =IFERROR(INDEX(CALC_BASE!$P$3:$P$135,MATCH(ROW()-7,CALC_BASE!$M$3:$M$135,0)),"") -> 2 | G78: =IFERROR(IF(D78="","",INDEX(tb_vendas[Preço de Venda],MATCH(D78,tb_vendas[N° Pedido/Empresa],0))/F78),"") -> R$ 725.00 | H78: =IFERROR(IF(D78="","",INDEX(tb_vendas[Data Fechamento],MATCH(D78,tb_vendas[N° Pedido/Empresa],0))+E78*INDEX(tb_formas_pagamento[Dias_Intervalo],MATCH(INDEX(tb_vendas[Forma_Pagamento],MATCH(D78,tb_vendas[N° Pedido/Empresa],0)),tb_formas_pagamento[Nome_Forma],0))),"") -> 2025-08-29 | J78: =IF(OR(tb_pagamentos[[#This Row],[Data_Vencimento]]="",tb_pagamentos[[#This Row],[Valor_Parcela]]="",tb_pagamentos[[#This Row],[Qtd_Total_Parcelas]]="",tb_pagamentos[[#This Row],[Nr_Pedido]]=""),"",IF(tb_pagamentos[[#This Row],[Data_Pagamento]]<>"","Pago",IF(AND(tb_pagamentos[[#This Row],[Data_Pagamento]]="",tb_pagamentos[[#This Row],[Data_Vencimento]]<TODAY()),"Em Atraso","A vencer"))) -> Em Atraso
C79: PED-030-1 | D79: =IFERROR(INDEX(CALC_BASE!$N$3:$N$135,MATCH(ROW()-7,CALC_BASE!$M$3:$M$135,0)),"") -> PED-030 | E79: =IFERROR(INDEX(CALC_BASE!$O$3:$O$135,MATCH(ROW()-7,CALC_BASE!$M$3:$M$135,0)),"") -> 1 | F79: =IFERROR(INDEX(CALC_BASE!$P$3:$P$135,MATCH(ROW()-7,CALC_BASE!$M$3:$M$135,0)),"") -> 3 | G79: =IFERROR(IF(D79="","",INDEX(tb_vendas[Preço de Venda],MATCH(D79,tb_vendas[N° Pedido/Empresa],0))/F79),"") -> R$ 2,600.00 | H79: =IFERROR(IF(D79="","",INDEX(tb_vendas[Data Fechamento],MATCH(D79,tb_vendas[N° Pedido/Empresa],0))+E79*INDEX(tb_formas_pagamento[Dias_Intervalo],MATCH(INDEX(tb_vendas[Forma_Pagamento],MATCH(D79,tb_vendas[N° Pedido/Empresa],0)),tb_formas_pagamento[Nome_Forma],0))),"") -> 2024-12-08 | I79: 2024-12-20 | J79: =IF(OR(tb_pagamentos[[#This Row],[Data_Vencimento]]="",tb_pagamentos[[#This Row],[Valor_Parcela]]="",tb_pagamentos[[#This Row],[Qtd_Total_Parcelas]]="",tb_pagamentos[[#This Row],[Nr_Pedido]]=""),"",IF(tb_pagamentos[[#This Row],[Data_Pagamento]]<>"","Pago",IF(AND(tb_pagamentos[[#This Row],[Data_Pagamento]]="",tb_pagamentos[[#This Row],[Data_Vencimento]]<TODAY()),"Em Atraso","A vencer"))) -> Pago
C80: PED-030-2 | D80: =IFERROR(INDEX(CALC_BASE!$N$3:$N$135,MATCH(ROW()-7,CALC_BASE!$M$3:$M$135,0)),"") -> PED-030 | E80: =IFERROR(INDEX(CALC_BASE!$O$3:$O$135,MATCH(ROW()-7,CALC_BASE!$M$3:$M$135,0)),"") -> 2 | F80: =IFERROR(INDEX(CALC_BASE!$P$3:$P$135,MATCH(ROW()-7,CALC_BASE!$M$3:$M$135,0)),"") -> 3 | G80: =IFERROR(IF(D80="","",INDEX(tb_vendas[Preço de Venda],MATCH(D80,tb_vendas[N° Pedido/Empresa],0))/F80),"") -> R$ 2,600.00 | H80: =IFERROR(IF(D80="","",INDEX(tb_vendas[Data Fechamento],MATCH(D80,tb_vendas[N° Pedido/Empresa],0))+E80*INDEX(tb_formas_pagamento[Dias_Intervalo],MATCH(INDEX(tb_vendas[Forma_Pagamento],MATCH(D80,tb_vendas[N° Pedido/Empresa],0)),tb_formas_pagamento[Nome_Forma],0))),"") -> 2024-12-22 | I80: 2025-01-03 | J80: =IF(OR(tb_pagamentos[[#This Row],[Data_Vencimento]]="",tb_pagamentos[[#This Row],[Valor_Parcela]]="",tb_pagamentos[[#This Row],[Qtd_Total_Parcelas]]="",tb_pagamentos[[#This Row],[Nr_Pedido]]=""),"",IF(tb_pagamentos[[#This Row],[Data_Pagamento]]<>"","Pago",IF(AND(tb_pagamentos[[#This Row],[Data_Pagamento]]="",tb_pagamentos[[#This Row],[Data_Vencimento]]<TODAY()),"Em Atraso","A vencer"))) -> Pago
C81: PED-030-3 | D81: =IFERROR(INDEX(CALC_BASE!$N$3:$N$135,MATCH(ROW()-7,CALC_BASE!$M$3:$M$135,0)),"") -> PED-030 | E81: =IFERROR(INDEX(CALC_BASE!$O$3:$O$135,MATCH(ROW()-7,CALC_BASE!$M$3:$M$135,0)),"") -> 3 | F81: =IFERROR(INDEX(CALC_BASE!$P$3:$P$135,MATCH(ROW()-7,CALC_BASE!$M$3:$M$135,0)),"") -> 3 | G81: =IFERROR(IF(D81="","",INDEX(tb_vendas[Preço de Venda],MATCH(D81,tb_vendas[N° Pedido/Empresa],0))/F81),"") -> R$ 2,600.00 | H81: =IFERROR(IF(D81="","",INDEX(tb_vendas[Data Fechamento],MATCH(D81,tb_vendas[N° Pedido/Empresa],0))+E81*INDEX(tb_formas_pagamento[Dias_Intervalo],MATCH(INDEX(tb_vendas[Forma_Pagamento],MATCH(D81,tb_vendas[N° Pedido/Empresa],0)),tb_formas_pagamento[Nome_Forma],0))),"") -> 2025-01-05 | I81: 2025-01-17 | J81: =IF(OR(tb_pagamentos[[#This Row],[Data_Vencimento]]="",tb_pagamentos[[#This Row],[Valor_Parcela]]="",tb_pagamentos[[#This Row],[Qtd_Total_Parcelas]]="",tb_pagamentos[[#This Row],[Nr_Pedido]]=""),"",IF(tb_pagamentos[[#This Row],[Data_Pagamento]]<>"","Pago",IF(AND(tb_pagamentos[[#This Row],[Data_Pagamento]]="",tb_pagamentos[[#This Row],[Data_Vencimento]]<TODAY()),"Em Atraso","A vencer"))) -> Pago
C82: PED-031-1 | D82: =IFERROR(INDEX(CALC_BASE!$N$3:$N$135,MATCH(ROW()-7,CALC_BASE!$M$3:$M$135,0)),"") -> PED-031 | E82: =IFERROR(INDEX(CALC_BASE!$O$3:$O$135,MATCH(ROW()-7,CALC_BASE!$M$3:$M$135,0)),"") -> 1 | F82: =IFERROR(INDEX(CALC_BASE!$P$3:$P$135,MATCH(ROW()-7,CALC_BASE!$M$3:$M$135,0)),"") -> 3 | G82: =IFERROR(IF(D82="","",INDEX(tb_vendas[Preço de Venda],MATCH(D82,tb_vendas[N° Pedido/Empresa],0))/F82),"") -> R$ 1,083.33 | H82: =IFERROR(IF(D82="","",INDEX(tb_vendas[Data Fechamento],MATCH(D82,tb_vendas[N° Pedido/Empresa],0))+E82*INDEX(tb_formas_pagamento[Dias_Intervalo],MATCH(INDEX(tb_vendas[Forma_Pagamento],MATCH(D82,tb_vendas[N° Pedido/Empresa],0)),tb_formas_pagamento[Nome_Forma],0))),"") -> 2026-01-03 | I82: 2026-01-01 | J82: =IF(OR(tb_pagamentos[[#This Row],[Data_Vencimento]]="",tb_pagamentos[[#This Row],[Valor_Parcela]]="",tb_pagamentos[[#This Row],[Qtd_Total_Parcelas]]="",tb_pagamentos[[#This Row],[Nr_Pedido]]=""),"",IF(tb_pagamentos[[#This Row],[Data_Pagamento]]<>"","Pago",IF(AND(tb_pagamentos[[#This Row],[Data_Pagamento]]="",tb_pagamentos[[#This Row],[Data_Vencimento]]<TODAY()),"Em Atraso","A vencer"))) -> Pago
C83: PED-031-2 | D83: =IFERROR(INDEX(CALC_BASE!$N$3:$N$135,MATCH(ROW()-7,CALC_BASE!$M$3:$M$135,0)),"") -> PED-031 | E83: =IFERROR(INDEX(CALC_BASE!$O$3:$O$135,MATCH(ROW()-7,CALC_BASE!$M$3:$M$135,0)),"") -> 2 | F83: =IFERROR(INDEX(CALC_BASE!$P$3:$P$135,MATCH(ROW()-7,CALC_BASE!$M$3:$M$135,0)),"") -> 3 | G83: =IFERROR(IF(D83="","",INDEX(tb_vendas[Preço de Venda],MATCH(D83,tb_vendas[N° Pedido/Empresa],0))/F83),"") -> R$ 1,083.33 | H83: =IFERROR(IF(D83="","",INDEX(tb_vendas[Data Fechamento],MATCH(D83,tb_vendas[N° Pedido/Empresa],0))+E83*INDEX(tb_formas_pagamento[Dias_Intervalo],MATCH(INDEX(tb_vendas[Forma_Pagamento],MATCH(D83,tb_vendas[N° Pedido/Empresa],0)),tb_formas_pagamento[Nome_Forma],0))),"") -> 2026-01-18 | J83: =IF(OR(tb_pagamentos[[#This Row],[Data_Vencimento]]="",tb_pagamentos[[#This Row],[Valor_Parcela]]="",tb_pagamentos[[#This Row],[Qtd_Total_Parcelas]]="",tb_pagamentos[[#This Row],[Nr_Pedido]]=""),"",IF(tb_pagamentos[[#This Row],[Data_Pagamento]]<>"","Pago",IF(AND(tb_pagamentos[[#This Row],[Data_Pagamento]]="",tb_pagamentos[[#This Row],[Data_Vencimento]]<TODAY()),"Em Atraso","A vencer"))) -> Em Atraso
C84: PED-031-3 | D84: =IFERROR(INDEX(CALC_BASE!$N$3:$N$135,MATCH(ROW()-7,CALC_BASE!$M$3:$M$135,0)),"") -> PED-031 | E84: =IFERROR(INDEX(CALC_BASE!$O$3:$O$135,MATCH(ROW()-7,CALC_BASE!$M$3:$M$135,0)),"") -> 3 | F84: =IFERROR(INDEX(CALC_BASE!$P$3:$P$135,MATCH(ROW()-7,CALC_BASE!$M$3:$M$135,0)),"") -> 3 | G84: =IFERROR(IF(D84="","",INDEX(tb_vendas[Preço de Venda],MATCH(D84,tb_vendas[N° Pedido/Empresa],0))/F84),"") -> R$ 1,083.33 | H84: =IFERROR(IF(D84="","",INDEX(tb_vendas[Data Fechamento],MATCH(D84,tb_vendas[N° Pedido/Empresa],0))+E84*INDEX(tb_formas_pagamento[Dias_Intervalo],MATCH(INDEX(tb_vendas[Forma_Pagamento],MATCH(D84,tb_vendas[N° Pedido/Empresa],0)),tb_formas_pagamento[Nome_Forma],0))),"") -> 2026-02-02 | J84: =IF(OR(tb_pagamentos[[#This Row],[Data_Vencimento]]="",tb_pagamentos[[#This Row],[Valor_Parcela]]="",tb_pagamentos[[#This Row],[Qtd_Total_Parcelas]]="",tb_pagamentos[[#This Row],[Nr_Pedido]]=""),"",IF(tb_pagamentos[[#This Row],[Data_Pagamento]]<>"","Pago",IF(AND(tb_pagamentos[[#This Row],[Data_Pagamento]]="",tb_pagamentos[[#This Row],[Data_Vencimento]]<TODAY()),"Em Atraso","A vencer"))) -> Em Atraso
C85: PED-032-1 | D85: =IFERROR(INDEX(CALC_BASE!$N$3:$N$135,MATCH(ROW()-7,CALC_BASE!$M$3:$M$135,0)),"") -> PED-032 | E85: =IFERROR(INDEX(CALC_BASE!$O$3:$O$135,MATCH(ROW()-7,CALC_BASE!$M$3:$M$135,0)),"") -> 1 | F85: =IFERROR(INDEX(CALC_BASE!$P$3:$P$135,MATCH(ROW()-7,CALC_BASE!$M$3:$M$135,0)),"") -> 1 | G85: =IFERROR(IF(D85="","",INDEX(tb_vendas[Preço de Venda],MATCH(D85,tb_vendas[N° Pedido/Empresa],0))/F85),"") -> R$ 900.00 | H85: =IFERROR(IF(D85="","",INDEX(tb_vendas[Data Fechamento],MATCH(D85,tb_vendas[N° Pedido/Empresa],0))+E85*INDEX(tb_formas_pagamento[Dias_Intervalo],MATCH(INDEX(tb_vendas[Forma_Pagamento],MATCH(D85,tb_vendas[N° Pedido/Empresa],0)),tb_formas_pagamento[Nome_Forma],0))),"") -> 2025-04-03 | I85: 2025-04-02 | J85: =IF(OR(tb_pagamentos[[#This Row],[Data_Vencimento]]="",tb_pagamentos[[#This Row],[Valor_Parcela]]="",tb_pagamentos[[#This Row],[Qtd_Total_Parcelas]]="",tb_pagamentos[[#This Row],[Nr_Pedido]]=""),"",IF(tb_pagamentos[[#This Row],[Data_Pagamento]]<>"","Pago",IF(AND(tb_pagamentos[[#This Row],[Data_Pagamento]]="",tb_pagamentos[[#This Row],[Data_Vencimento]]<TODAY()),"Em Atraso","A vencer"))) -> Pago
C86: PED-033-1 | D86: =IFERROR(INDEX(CALC_BASE!$N$3:$N$135,MATCH(ROW()-7,CALC_BASE!$M$3:$M$135,0)),"") -> PED-033 | E86: =IFERROR(INDEX(CALC_BASE!$O$3:$O$135,MATCH(ROW()-7,CALC_BASE!$M$3:$M$135,0)),"") -> 1 | F86: =IFERROR(INDEX(CALC_BASE!$P$3:$P$135,MATCH(ROW()-7,CALC_BASE!$M$3:$M$135,0)),"") -> 2 | G86: =IFERROR(IF(D86="","",INDEX(tb_vendas[Preço de Venda],MATCH(D86,tb_vendas[N° Pedido/Empresa],0))/F86),"") -> R$ 2,250.00 | H86: =IFERROR(IF(D86="","",INDEX(tb_vendas[Data Fechamento],MATCH(D86,tb_vendas[N° Pedido/Empresa],0))+E86*INDEX(tb_formas_pagamento[Dias_Intervalo],MATCH(INDEX(tb_vendas[Forma_Pagamento],MATCH(D86,tb_vendas[N° Pedido/Empresa],0)),tb_formas_pagamento[Nome_Forma],0))),"") -> 2025-09-30 | I86: 2025-09-28 | J86: =IF(OR(tb_pagamentos[[#This Row],[Data_Vencimento]]="",tb_pagamentos[[#This Row],[Valor_Parcela]]="",tb_pagamentos[[#This Row],[Qtd_Total_Parcelas]]="",tb_pagamentos[[#This Row],[Nr_Pedido]]=""),"",IF(tb_pagamentos[[#This Row],[Data_Pagamento]]<>"","Pago",IF(AND(tb_pagamentos[[#This Row],[Data_Pagamento]]="",tb_pagamentos[[#This Row],[Data_Vencimento]]<TODAY()),"Em Atraso","A vencer"))) -> Pago
C87: PED-033-2 | D87: =IFERROR(INDEX(CALC_BASE!$N$3:$N$135,MATCH(ROW()-7,CALC_BASE!$M$3:$M$135,0)),"") -> PED-033 | E87: =IFERROR(INDEX(CALC_BASE!$O$3:$O$135,MATCH(ROW()-7,CALC_BASE!$M$3:$M$135,0)),"") -> 2 | F87: =IFERROR(INDEX(CALC_BASE!$P$3:$P$135,MATCH(ROW()-7,CALC_BASE!$M$3:$M$135,0)),"") -> 2 | G87: =IFERROR(IF(D87="","",INDEX(tb_vendas[Preço de Venda],MATCH(D87,tb_vendas[N° Pedido/Empresa],0))/F87),"") -> R$ 2,250.00 | H87: =IFERROR(IF(D87="","",INDEX(tb_vendas[Data Fechamento],MATCH(D87,tb_vendas[N° Pedido/Empresa],0))+E87*INDEX(tb_formas_pagamento[Dias_Intervalo],MATCH(INDEX(tb_vendas[Forma_Pagamento],MATCH(D87,tb_vendas[N° Pedido/Empresa],0)),tb_formas_pagamento[Nome_Forma],0))),"") -> 2025-10-30 | J87: =IF(OR(tb_pagamentos[[#This Row],[Data_Vencimento]]="",tb_pagamentos[[#This Row],[Valor_Parcela]]="",tb_pagamentos[[#This Row],[Qtd_Total_Parcelas]]="",tb_pagamentos[[#This Row],[Nr_Pedido]]=""),"",IF(tb_pagamentos[[#This Row],[Data_Pagamento]]<>"","Pago",IF(AND(tb_pagamentos[[#This Row],[Data_Pagamento]]="",tb_pagamentos[[#This Row],[Data_Vencimento]]<TODAY()),"Em Atraso","A vencer"))) -> Em Atraso
C88: PED-034-1 | D88: =IFERROR(INDEX(CALC_BASE!$N$3:$N$135,MATCH(ROW()-7,CALC_BASE!$M$3:$M$135,0)),"") -> PED-034 | E88: =IFERROR(INDEX(CALC_BASE!$O$3:$O$135,MATCH(ROW()-7,CALC_BASE!$M$3:$M$135,0)),"") -> 1 | F88: =IFERROR(INDEX(CALC_BASE!$P$3:$P$135,MATCH(ROW()-7,CALC_BASE!$M$3:$M$135,0)),"") -> 1 | G88: =IFERROR(IF(D88="","",INDEX(tb_vendas[Preço de Venda],MATCH(D88,tb_vendas[N° Pedido/Empresa],0))/F88),"") -> R$ 2,050.00 | H88: =IFERROR(IF(D88="","",INDEX(tb_vendas[Data Fechamento],MATCH(D88,tb_vendas[N° Pedido/Empresa],0))+E88*INDEX(tb_formas_pagamento[Dias_Intervalo],MATCH(INDEX(tb_vendas[Forma_Pagamento],MATCH(D88,tb_vendas[N° Pedido/Empresa],0)),tb_formas_pagamento[Nome_Forma],0))),"") -> 2026-03-17 | J88: =IF(OR(tb_pagamentos[[#This Row],[Data_Vencimento]]="",tb_pagamentos[[#This Row],[Valor_Parcela]]="",tb_pagamentos[[#This Row],[Qtd_Total_Parcelas]]="",tb_pagamentos[[#This Row],[Nr_Pedido]]=""),"",IF(tb_pagamentos[[#This Row],[Data_Pagamento]]<>"","Pago",IF(AND(tb_pagamentos[[#This Row],[Data_Pagamento]]="",tb_pagamentos[[#This Row],[Data_Vencimento]]<TODAY()),"Em Atraso","A vencer"))) -> Em Atraso
C89: PED-035-1 | D89: =IFERROR(INDEX(CALC_BASE!$N$3:$N$135,MATCH(ROW()-7,CALC_BASE!$M$3:$M$135,0)),"") -> PED-035 | E89: =IFERROR(INDEX(CALC_BASE!$O$3:$O$135,MATCH(ROW()-7,CALC_BASE!$M$3:$M$135,0)),"") -> 1 | F89: =IFERROR(INDEX(CALC_BASE!$P$3:$P$135,MATCH(ROW()-7,CALC_BASE!$M$3:$M$135,0)),"") -> 4 | G89: =IFERROR(IF(D89="","",INDEX(tb_vendas[Preço de Venda],MATCH(D89,tb_vendas[N° Pedido/Empresa],0))/F89),"") -> R$ 1,675.00 | H89: =IFERROR(IF(D89="","",INDEX(tb_vendas[Data Fechamento],MATCH(D89,tb_vendas[N° Pedido/Empresa],0))+E89*INDEX(tb_formas_pagamento[Dias_Intervalo],MATCH(INDEX(tb_vendas[Forma_Pagamento],MATCH(D89,tb_vendas[N° Pedido/Empresa],0)),tb_formas_pagamento[Nome_Forma],0))),"") -> 2025-02-06 | I89: 2025-02-18 | J89: =IF(OR(tb_pagamentos[[#This Row],[Data_Vencimento]]="",tb_pagamentos[[#This Row],[Valor_Parcela]]="",tb_pagamentos[[#This Row],[Qtd_Total_Parcelas]]="",tb_pagamentos[[#This Row],[Nr_Pedido]]=""),"",IF(tb_pagamentos[[#This Row],[Data_Pagamento]]<>"","Pago",IF(AND(tb_pagamentos[[#This Row],[Data_Pagamento]]="",tb_pagamentos[[#This Row],[Data_Vencimento]]<TODAY()),"Em Atraso","A vencer"))) -> Pago
C90: PED-035-2 | D90: =IFERROR(INDEX(CALC_BASE!$N$3:$N$135,MATCH(ROW()-7,CALC_BASE!$M$3:$M$135,0)),"") -> PED-035 | E90: =IFERROR(INDEX(CALC_BASE!$O$3:$O$135,MATCH(ROW()-7,CALC_BASE!$M$3:$M$135,0)),"") -> 2 | F90: =IFERROR(INDEX(CALC_BASE!$P$3:$P$135,MATCH(ROW()-7,CALC_BASE!$M$3:$M$135,0)),"") -> 4 | G90: =IFERROR(IF(D90="","",INDEX(tb_vendas[Preço de Venda],MATCH(D90,tb_vendas[N° Pedido/Empresa],0))/F90),"") -> R$ 1,675.00 | H90: =IFERROR(IF(D90="","",INDEX(tb_vendas[Data Fechamento],MATCH(D90,tb_vendas[N° Pedido/Empresa],0))+E90*INDEX(tb_formas_pagamento[Dias_Intervalo],MATCH(INDEX(tb_vendas[Forma_Pagamento],MATCH(D90,tb_vendas[N° Pedido/Empresa],0)),tb_formas_pagamento[Nome_Forma],0))),"") -> 2025-02-20 | I90: 2025-03-04 | J90: =IF(OR(tb_pagamentos[[#This Row],[Data_Vencimento]]="",tb_pagamentos[[#This Row],[Valor_Parcela]]="",tb_pagamentos[[#This Row],[Qtd_Total_Parcelas]]="",tb_pagamentos[[#This Row],[Nr_Pedido]]=""),"",IF(tb_pagamentos[[#This Row],[Data_Pagamento]]<>"","Pago",IF(AND(tb_pagamentos[[#This Row],[Data_Pagamento]]="",tb_pagamentos[[#This Row],[Data_Vencimento]]<TODAY()),"Em Atraso","A vencer"))) -> Pago
C91: PED-035-3 | D91: =IFERROR(INDEX(CALC_BASE!$N$3:$N$135,MATCH(ROW()-7,CALC_BASE!$M$3:$M$135,0)),"") -> PED-035 | E91: =IFERROR(INDEX(CALC_BASE!$O$3:$O$135,MATCH(ROW()-7,CALC_BASE!$M$3:$M$135,0)),"") -> 3 | F91: =IFERROR(INDEX(CALC_BASE!$P$3:$P$135,MATCH(ROW()-7,CALC_BASE!$M$3:$M$135,0)),"") -> 4 | G91: =IFERROR(IF(D91="","",INDEX(tb_vendas[Preço de Venda],MATCH(D91,tb_vendas[N° Pedido/Empresa],0))/F91),"") -> R$ 1,675.00 | H91: =IFERROR(IF(D91="","",INDEX(tb_vendas[Data Fechamento],MATCH(D91,tb_vendas[N° Pedido/Empresa],0))+E91*INDEX(tb_formas_pagamento[Dias_Intervalo],MATCH(INDEX(tb_vendas[Forma_Pagamento],MATCH(D91,tb_vendas[N° Pedido/Empresa],0)),tb_formas_pagamento[Nome_Forma],0))),"") -> 2025-03-06 | I91: 2025-03-18 | J91: =IF(OR(tb_pagamentos[[#This Row],[Data_Vencimento]]="",tb_pagamentos[[#This Row],[Valor_Parcela]]="",tb_pagamentos[[#This Row],[Qtd_Total_Parcelas]]="",tb_pagamentos[[#This Row],[Nr_Pedido]]=""),"",IF(tb_pagamentos[[#This Row],[Data_Pagamento]]<>"","Pago",IF(AND(tb_pagamentos[[#This Row],[Data_Pagamento]]="",tb_pagamentos[[#This Row],[Data_Vencimento]]<TODAY()),"Em Atraso","A vencer"))) -> Pago
C92: PED-035-4 | D92: =IFERROR(INDEX(CALC_BASE!$N$3:$N$135,MATCH(ROW()-7,CALC_BASE!$M$3:$M$135,0)),"") -> PED-035 | E92: =IFERROR(INDEX(CALC_BASE!$O$3:$O$135,MATCH(ROW()-7,CALC_BASE!$M$3:$M$135,0)),"") -> 4 | F92: =IFERROR(INDEX(CALC_BASE!$P$3:$P$135,MATCH(ROW()-7,CALC_BASE!$M$3:$M$135,0)),"") -> 4 | G92: =IFERROR(IF(D92="","",INDEX(tb_vendas[Preço de Venda],MATCH(D92,tb_vendas[N° Pedido/Empresa],0))/F92),"") -> R$ 1,675.00 | H92: =IFERROR(IF(D92="","",INDEX(tb_vendas[Data Fechamento],MATCH(D92,tb_vendas[N° Pedido/Empresa],0))+E92*INDEX(tb_formas_pagamento[Dias_Intervalo],MATCH(INDEX(tb_vendas[Forma_Pagamento],MATCH(D92,tb_vendas[N° Pedido/Empresa],0)),tb_formas_pagamento[Nome_Forma],0))),"") -> 2025-03-20 | I92: 2025-04-01 | J92: =IF(OR(tb_pagamentos[[#This Row],[Data_Vencimento]]="",tb_pagamentos[[#This Row],[Valor_Parcela]]="",tb_pagamentos[[#This Row],[Qtd_Total_Parcelas]]="",tb_pagamentos[[#This Row],[Nr_Pedido]]=""),"",IF(tb_pagamentos[[#This Row],[Data_Pagamento]]<>"","Pago",IF(AND(tb_pagamentos[[#This Row],[Data_Pagamento]]="",tb_pagamentos[[#This Row],[Data_Vencimento]]<TODAY()),"Em Atraso","A vencer"))) -> Pago
C93: PED-036-1 | D93: =IFERROR(INDEX(CALC_BASE!$N$3:$N$135,MATCH(ROW()-7,CALC_BASE!$M$3:$M$135,0)),"") -> PED-036 | E93: =IFERROR(INDEX(CALC_BASE!$O$3:$O$135,MATCH(ROW()-7,CALC_BASE!$M$3:$M$135,0)),"") -> 1 | F93: =IFERROR(INDEX(CALC_BASE!$P$3:$P$135,MATCH(ROW()-7,CALC_BASE!$M$3:$M$135,0)),"") -> 2 | G93: =IFERROR(IF(D93="","",INDEX(tb_vendas[Preço de Venda],MATCH(D93,tb_vendas[N° Pedido/Empresa],0))/F93),"") -> R$ 675.00 | H93: =IFERROR(IF(D93="","",INDEX(tb_vendas[Data Fechamento],MATCH(D93,tb_vendas[N° Pedido/Empresa],0))+E93*INDEX(tb_formas_pagamento[Dias_Intervalo],MATCH(INDEX(tb_vendas[Forma_Pagamento],MATCH(D93,tb_vendas[N° Pedido/Empresa],0)),tb_formas_pagamento[Nome_Forma],0))),"") -> 2025-12-08 | I93: 2025-12-06 | J93: =IF(OR(tb_pagamentos[[#This Row],[Data_Vencimento]]="",tb_pagamentos[[#This Row],[Valor_Parcela]]="",tb_pagamentos[[#This Row],[Qtd_Total_Parcelas]]="",tb_pagamentos[[#This Row],[Nr_Pedido]]=""),"",IF(tb_pagamentos[[#This Row],[Data_Pagamento]]<>"","Pago",IF(AND(tb_pagamentos[[#This Row],[Data_Pagamento]]="",tb_pagamentos[[#This Row],[Data_Vencimento]]<TODAY()),"Em Atraso","A vencer"))) -> Pago
C94: PED-036-2 | D94: =IFERROR(INDEX(CALC_BASE!$N$3:$N$135,MATCH(ROW()-7,CALC_BASE!$M$3:$M$135,0)),"") -> PED-036 | E94: =IFERROR(INDEX(CALC_BASE!$O$3:$O$135,MATCH(ROW()-7,CALC_BASE!$M$3:$M$135,0)),"") -> 2 | F94: =IFERROR(INDEX(CALC_BASE!$P$3:$P$135,MATCH(ROW()-7,CALC_BASE!$M$3:$M$135,0)),"") -> 2 | G94: =IFERROR(IF(D94="","",INDEX(tb_vendas[Preço de Venda],MATCH(D94,tb_vendas[N° Pedido/Empresa],0))/F94),"") -> R$ 675.00 | H94: =IFERROR(IF(D94="","",INDEX(tb_vendas[Data Fechamento],MATCH(D94,tb_vendas[N° Pedido/Empresa],0))+E94*INDEX(tb_formas_pagamento[Dias_Intervalo],MATCH(INDEX(tb_vendas[Forma_Pagamento],MATCH(D94,tb_vendas[N° Pedido/Empresa],0)),tb_formas_pagamento[Nome_Forma],0))),"") -> 2025-12-22 | I94: 2025-12-20 | J94: =IF(OR(tb_pagamentos[[#This Row],[Data_Vencimento]]="",tb_pagamentos[[#This Row],[Valor_Parcela]]="",tb_pagamentos[[#This Row],[Qtd_Total_Parcelas]]="",tb_pagamentos[[#This Row],[Nr_Pedido]]=""),"",IF(tb_pagamentos[[#This Row],[Data_Pagamento]]<>"","Pago",IF(AND(tb_pagamentos[[#This Row],[Data_Pagamento]]="",tb_pagamentos[[#This Row],[Data_Vencimento]]<TODAY()),"Em Atraso","A vencer"))) -> Pago
C95: PED-037-1 | D95: =IFERROR(INDEX(CALC_BASE!$N$3:$N$135,MATCH(ROW()-7,CALC_BASE!$M$3:$M$135,0)),"") -> PED-037 | E95: =IFERROR(INDEX(CALC_BASE!$O$3:$O$135,MATCH(ROW()-7,CALC_BASE!$M$3:$M$135,0)),"") -> 1 | F95: =IFERROR(INDEX(CALC_BASE!$P$3:$P$135,MATCH(ROW()-7,CALC_BASE!$M$3:$M$135,0)),"") -> 3 | G95: =IFERROR(IF(D95="","",INDEX(tb_vendas[Preço de Venda],MATCH(D95,tb_vendas[N° Pedido/Empresa],0))/F95),"") -> R$ 1,266.67 | H95: =IFERROR(IF(D95="","",INDEX(tb_vendas[Data Fechamento],MATCH(D95,tb_vendas[N° Pedido/Empresa],0))+E95*INDEX(tb_formas_pagamento[Dias_Intervalo],MATCH(INDEX(tb_vendas[Forma_Pagamento],MATCH(D95,tb_vendas[N° Pedido/Empresa],0)),tb_formas_pagamento[Nome_Forma],0))),"") -> 2026-06-01 | J95: =IF(OR(tb_pagamentos[[#This Row],[Data_Vencimento]]="",tb_pagamentos[[#This Row],[Valor_Parcela]]="",tb_pagamentos[[#This Row],[Qtd_Total_Parcelas]]="",tb_pagamentos[[#This Row],[Nr_Pedido]]=""),"",IF(tb_pagamentos[[#This Row],[Data_Pagamento]]<>"","Pago",IF(AND(tb_pagamentos[[#This Row],[Data_Pagamento]]="",tb_pagamentos[[#This Row],[Data_Vencimento]]<TODAY()),"Em Atraso","A vencer"))) -> Em Atraso
C96: PED-037-2 | D96: =IFERROR(INDEX(CALC_BASE!$N$3:$N$135,MATCH(ROW()-7,CALC_BASE!$M$3:$M$135,0)),"") -> PED-037 | E96: =IFERROR(INDEX(CALC_BASE!$O$3:$O$135,MATCH(ROW()-7,CALC_BASE!$M$3:$M$135,0)),"") -> 2 | F96: =IFERROR(INDEX(CALC_BASE!$P$3:$P$135,MATCH(ROW()-7,CALC_BASE!$M$3:$M$135,0)),"") -> 3 | G96: =IFERROR(IF(D96="","",INDEX(tb_vendas[Preço de Venda],MATCH(D96,tb_vendas[N° Pedido/Empresa],0))/F96),"") -> R$ 1,266.67 | H96: =IFERROR(IF(D96="","",INDEX(tb_vendas[Data Fechamento],MATCH(D96,tb_vendas[N° Pedido/Empresa],0))+E96*INDEX(tb_formas_pagamento[Dias_Intervalo],MATCH(INDEX(tb_vendas[Forma_Pagamento],MATCH(D96,tb_vendas[N° Pedido/Empresa],0)),tb_formas_pagamento[Nome_Forma],0))),"") -> 2026-06-15 | J96: =IF(OR(tb_pagamentos[[#This Row],[Data_Vencimento]]="",tb_pagamentos[[#This Row],[Valor_Parcela]]="",tb_pagamentos[[#This Row],[Qtd_Total_Parcelas]]="",tb_pagamentos[[#This Row],[Nr_Pedido]]=""),"",IF(tb_pagamentos[[#This Row],[Data_Pagamento]]<>"","Pago",IF(AND(tb_pagamentos[[#This Row],[Data_Pagamento]]="",tb_pagamentos[[#This Row],[Data_Vencimento]]<TODAY()),"Em Atraso","A vencer"))) -> Em Atraso
C97: PED-037-3 | D97: =IFERROR(INDEX(CALC_BASE!$N$3:$N$135,MATCH(ROW()-7,CALC_BASE!$M$3:$M$135,0)),"") -> PED-037 | E97: =IFERROR(INDEX(CALC_BASE!$O$3:$O$135,MATCH(ROW()-7,CALC_BASE!$M$3:$M$135,0)),"") -> 3 | F97: =IFERROR(INDEX(CALC_BASE!$P$3:$P$135,MATCH(ROW()-7,CALC_BASE!$M$3:$M$135,0)),"") -> 3 | G97: =IFERROR(IF(D97="","",INDEX(tb_vendas[Preço de Venda],MATCH(D97,tb_vendas[N° Pedido/Empresa],0))/F97),"") -> R$ 1,266.67 | H97: =IFERROR(IF(D97="","",INDEX(tb_vendas[Data Fechamento],MATCH(D97,tb_vendas[N° Pedido/Empresa],0))+E97*INDEX(tb_formas_pagamento[Dias_Intervalo],MATCH(INDEX(tb_vendas[Forma_Pagamento],MATCH(D97,tb_vendas[N° Pedido/Empresa],0)),tb_formas_pagamento[Nome_Forma],0))),"") -> 2026-06-29 | J97: =IF(OR(tb_pagamentos[[#This Row],[Data_Vencimento]]="",tb_pagamentos[[#This Row],[Valor_Parcela]]="",tb_pagamentos[[#This Row],[Qtd_Total_Parcelas]]="",tb_pagamentos[[#This Row],[Nr_Pedido]]=""),"",IF(tb_pagamentos[[#This Row],[Data_Pagamento]]<>"","Pago",IF(AND(tb_pagamentos[[#This Row],[Data_Pagamento]]="",tb_pagamentos[[#This Row],[Data_Vencimento]]<TODAY()),"Em Atraso","A vencer"))) -> Em Atraso
C98: PED-038-1 | D98: =IFERROR(INDEX(CALC_BASE!$N$3:$N$135,MATCH(ROW()-7,CALC_BASE!$M$3:$M$135,0)),"") -> PED-038 | E98: =IFERROR(INDEX(CALC_BASE!$O$3:$O$135,MATCH(ROW()-7,CALC_BASE!$M$3:$M$135,0)),"") -> 1 | F98: =IFERROR(INDEX(CALC_BASE!$P$3:$P$135,MATCH(ROW()-7,CALC_BASE!$M$3:$M$135,0)),"") -> 1 | G98: =IFERROR(IF(D98="","",INDEX(tb_vendas[Preço de Venda],MATCH(D98,tb_vendas[N° Pedido/Empresa],0))/F98),"") -> R$ 560.00 | H98: =IFERROR(IF(D98="","",INDEX(tb_vendas[Data Fechamento],MATCH(D98,tb_vendas[N° Pedido/Empresa],0))+E98*INDEX(tb_formas_pagamento[Dias_Intervalo],MATCH(INDEX(tb_vendas[Forma_Pagamento],MATCH(D98,tb_vendas[N° Pedido/Empresa],0)),tb_formas_pagamento[Nome_Forma],0))),"") -> 2024-10-15 | I98: 2024-10-14 | J98: =IF(OR(tb_pagamentos[[#This Row],[Data_Vencimento]]="",tb_pagamentos[[#This Row],[Valor_Parcela]]="",tb_pagamentos[[#This Row],[Qtd_Total_Parcelas]]="",tb_pagamentos[[#This Row],[Nr_Pedido]]=""),"",IF(tb_pagamentos[[#This Row],[Data_Pagamento]]<>"","Pago",IF(AND(tb_pagamentos[[#This Row],[Data_Pagamento]]="",tb_pagamentos[[#This Row],[Data_Vencimento]]<TODAY()),"Em Atraso","A vencer"))) -> Pago
C99: PED-039-1 | D99: =IFERROR(INDEX(CALC_BASE!$N$3:$N$135,MATCH(ROW()-7,CALC_BASE!$M$3:$M$135,0)),"") -> PED-039 | E99: =IFERROR(INDEX(CALC_BASE!$O$3:$O$135,MATCH(ROW()-7,CALC_BASE!$M$3:$M$135,0)),"") -> 1 | F99: =IFERROR(INDEX(CALC_BASE!$P$3:$P$135,MATCH(ROW()-7,CALC_BASE!$M$3:$M$135,0)),"") -> 4 | G99: =IFERROR(IF(D99="","",INDEX(tb_vendas[Preço de Venda],MATCH(D99,tb_vendas[N° Pedido/Empresa],0))/F99),"") -> R$ 2,375.00 | H99: =IFERROR(IF(D99="","",INDEX(tb_vendas[Data Fechamento],MATCH(D99,tb_vendas[N° Pedido/Empresa],0))+E99*INDEX(tb_formas_pagamento[Dias_Intervalo],MATCH(INDEX(tb_vendas[Forma_Pagamento],MATCH(D99,tb_vendas[N° Pedido/Empresa],0)),tb_formas_pagamento[Nome_Forma],0))),"") -> 2025-05-18 | I99: 2025-05-31 | J99: =IF(OR(tb_pagamentos[[#This Row],[Data_Vencimento]]="",tb_pagamentos[[#This Row],[Valor_Parcela]]="",tb_pagamentos[[#This Row],[Qtd_Total_Parcelas]]="",tb_pagamentos[[#This Row],[Nr_Pedido]]=""),"",IF(tb_pagamentos[[#This Row],[Data_Pagamento]]<>"","Pago",IF(AND(tb_pagamentos[[#This Row],[Data_Pagamento]]="",tb_pagamentos[[#This Row],[Data_Vencimento]]<TODAY()),"Em Atraso","A vencer"))) -> Pago
C100: PED-039-2 | D100: =IFERROR(INDEX(CALC_BASE!$N$3:$N$135,MATCH(ROW()-7,CALC_BASE!$M$3:$M$135,0)),"") -> PED-039 | E100: =IFERROR(INDEX(CALC_BASE!$O$3:$O$135,MATCH(ROW()-7,CALC_BASE!$M$3:$M$135,0)),"") -> 2 | F100: =IFERROR(INDEX(CALC_BASE!$P$3:$P$135,MATCH(ROW()-7,CALC_BASE!$M$3:$M$135,0)),"") -> 4 | G100: =IFERROR(IF(D100="","",INDEX(tb_vendas[Preço de Venda],MATCH(D100,tb_vendas[N° Pedido/Empresa],0))/F100),"") -> R$ 2,375.00 | H100: =IFERROR(IF(D100="","",INDEX(tb_vendas[Data Fechamento],MATCH(D100,tb_vendas[N° Pedido/Empresa],0))+E100*INDEX(tb_formas_pagamento[Dias_Intervalo],MATCH(INDEX(tb_vendas[Forma_Pagamento],MATCH(D100,tb_vendas[N° Pedido/Empresa],0)),tb_formas_pagamento[Nome_Forma],0))),"") -> 2025-06-02 | J100: =IF(OR(tb_pagamentos[[#This Row],[Data_Vencimento]]="",tb_pagamentos[[#This Row],[Valor_Parcela]]="",tb_pagamentos[[#This Row],[Qtd_Total_Parcelas]]="",tb_pagamentos[[#This Row],[Nr_Pedido]]=""),"",IF(tb_pagamentos[[#This Row],[Data_Pagamento]]<>"","Pago",IF(AND(tb_pagamentos[[#This Row],[Data_Pagamento]]="",tb_pagamentos[[#This Row],[Data_Vencimento]]<TODAY()),"Em Atraso","A vencer"))) -> Em Atraso
C101: PED-039-3 | D101: =IFERROR(INDEX(CALC_BASE!$N$3:$N$135,MATCH(ROW()-7,CALC_BASE!$M$3:$M$135,0)),"") -> PED-039 | E101: =IFERROR(INDEX(CALC_BASE!$O$3:$O$135,MATCH(ROW()-7,CALC_BASE!$M$3:$M$135,0)),"") -> 3 | F101: =IFERROR(INDEX(CALC_BASE!$P$3:$P$135,MATCH(ROW()-7,CALC_BASE!$M$3:$M$135,0)),"") -> 4 | G101: =IFERROR(IF(D101="","",INDEX(tb_vendas[Preço de Venda],MATCH(D101,tb_vendas[N° Pedido/Empresa],0))/F101),"") -> R$ 2,375.00 | H101: =IFERROR(IF(D101="","",INDEX(tb_vendas[Data Fechamento],MATCH(D101,tb_vendas[N° Pedido/Empresa],0))+E101*INDEX(tb_formas_pagamento[Dias_Intervalo],MATCH(INDEX(tb_vendas[Forma_Pagamento],MATCH(D101,tb_vendas[N° Pedido/Empresa],0)),tb_formas_pagamento[Nome_Forma],0))),"") -> 2025-06-17 | J101: =IF(OR(tb_pagamentos[[#This Row],[Data_Vencimento]]="",tb_pagamentos[[#This Row],[Valor_Parcela]]="",tb_pagamentos[[#This Row],[Qtd_Total_Parcelas]]="",tb_pagamentos[[#This Row],[Nr_Pedido]]=""),"",IF(tb_pagamentos[[#This Row],[Data_Pagamento]]<>"","Pago",IF(AND(tb_pagamentos[[#This Row],[Data_Pagamento]]="",tb_pagamentos[[#This Row],[Data_Vencimento]]<TODAY()),"Em Atraso","A vencer"))) -> Em Atraso
C102: PED-039-4 | D102: =IFERROR(INDEX(CALC_BASE!$N$3:$N$135,MATCH(ROW()-7,CALC_BASE!$M$3:$M$135,0)),"") -> PED-039 | E102: =IFERROR(INDEX(CALC_BASE!$O$3:$O$135,MATCH(ROW()-7,CALC_BASE!$M$3:$M$135,0)),"") -> 4 | F102: =IFERROR(INDEX(CALC_BASE!$P$3:$P$135,MATCH(ROW()-7,CALC_BASE!$M$3:$M$135,0)),"") -> 4 | G102: =IFERROR(IF(D102="","",INDEX(tb_vendas[Preço de Venda],MATCH(D102,tb_vendas[N° Pedido/Empresa],0))/F102),"") -> R$ 2,375.00 | H102: =IFERROR(IF(D102="","",INDEX(tb_vendas[Data Fechamento],MATCH(D102,tb_vendas[N° Pedido/Empresa],0))+E102*INDEX(tb_formas_pagamento[Dias_Intervalo],MATCH(INDEX(tb_vendas[Forma_Pagamento],MATCH(D102,tb_vendas[N° Pedido/Empresa],0)),tb_formas_pagamento[Nome_Forma],0))),"") -> 2025-07-02 | J102: =IF(OR(tb_pagamentos[[#This Row],[Data_Vencimento]]="",tb_pagamentos[[#This Row],[Valor_Parcela]]="",tb_pagamentos[[#This Row],[Qtd_Total_Parcelas]]="",tb_pagamentos[[#This Row],[Nr_Pedido]]=""),"",IF(tb_pagamentos[[#This Row],[Data_Pagamento]]<>"","Pago",IF(AND(tb_pagamentos[[#This Row],[Data_Pagamento]]="",tb_pagamentos[[#This Row],[Data_Vencimento]]<TODAY()),"Em Atraso","A vencer"))) -> Em Atraso
C103: PED-040-1 | D103: =IFERROR(INDEX(CALC_BASE!$N$3:$N$135,MATCH(ROW()-7,CALC_BASE!$M$3:$M$135,0)),"") -> PED-040 | E103: =IFERROR(INDEX(CALC_BASE!$O$3:$O$135,MATCH(ROW()-7,CALC_BASE!$M$3:$M$135,0)),"") -> 1 | F103: =IFERROR(INDEX(CALC_BASE!$P$3:$P$135,MATCH(ROW()-7,CALC_BASE!$M$3:$M$135,0)),"") -> 2 | G103: =IFERROR(IF(D103="","",INDEX(tb_vendas[Preço de Venda],MATCH(D103,tb_vendas[N° Pedido/Empresa],0))/F103),"") -> R$ 365.00 | H103: =IFERROR(IF(D103="","",INDEX(tb_vendas[Data Fechamento],MATCH(D103,tb_vendas[N° Pedido/Empresa],0))+E103*INDEX(tb_formas_pagamento[Dias_Intervalo],MATCH(INDEX(tb_vendas[Forma_Pagamento],MATCH(D103,tb_vendas[N° Pedido/Empresa],0)),tb_formas_pagamento[Nome_Forma],0))),"") -> 2025-07-16 | I103: 2025-07-28 | J103: =IF(OR(tb_pagamentos[[#This Row],[Data_Vencimento]]="",tb_pagamentos[[#This Row],[Valor_Parcela]]="",tb_pagamentos[[#This Row],[Qtd_Total_Parcelas]]="",tb_pagamentos[[#This Row],[Nr_Pedido]]=""),"",IF(tb_pagamentos[[#This Row],[Data_Pagamento]]<>"","Pago",IF(AND(tb_pagamentos[[#This Row],[Data_Pagamento]]="",tb_pagamentos[[#This Row],[Data_Vencimento]]<TODAY()),"Em Atraso","A vencer"))) -> Pago
C104: =IF(OR(D104="",E104=""),"",D104&"-"&E104) -> PED-040-2 | D104: =IFERROR(INDEX(CALC_BASE!$N$3:$N$135,MATCH(ROW()-7,CALC_BASE!$M$3:$M$135,0)),"") -> PED-040 | E104: =IFERROR(INDEX(CALC_BASE!$O$3:$O$135,MATCH(ROW()-7,CALC_BASE!$M$3:$M$135,0)),"") -> 2 | F104: =IFERROR(INDEX(CALC_BASE!$P$3:$P$135,MATCH(ROW()-7,CALC_BASE!$M$3:$M$135,0)),"") -> 2 | G104: =IFERROR(IF(D104="","",INDEX(tb_vendas[Preço de Venda],MATCH(D104,tb_vendas[N° Pedido/Empresa],0))/F104),"") -> R$ 365.00 | H104: =IFERROR(IF(D104="","",INDEX(tb_vendas[Data Fechamento],MATCH(D104,tb_vendas[N° Pedido/Empresa],0))+E104*INDEX(tb_formas_pagamento[Dias_Intervalo],MATCH(INDEX(tb_vendas[Forma_Pagamento],MATCH(D104,tb_vendas[N° Pedido/Empresa],0)),tb_formas_pagamento[Nome_Forma],0))),"") -> 2025-07-30 | I104: 2025-08-11 | J104: =IF(OR(tb_pagamentos[[#This Row],[Data_Vencimento]]="",tb_pagamentos[[#This Row],[Valor_Parcela]]="",tb_pagamentos[[#This Row],[Qtd_Total_Parcelas]]="",tb_pagamentos[[#This Row],[Nr_Pedido]]=""),"",IF(tb_pagamentos[[#This Row],[Data_Pagamento]]<>"","Pago",IF(AND(tb_pagamentos[[#This Row],[Data_Pagamento]]="",tb_pagamentos[[#This Row],[Data_Vencimento]]<TODAY()),"Em Atraso","A vencer"))) -> Pago
C105: PED-041-1 | D105: =IFERROR(INDEX(CALC_BASE!$N$3:$N$135,MATCH(ROW()-7,CALC_BASE!$M$3:$M$135,0)),"") -> PED-041 | E105: =IFERROR(INDEX(CALC_BASE!$O$3:$O$135,MATCH(ROW()-7,CALC_BASE!$M$3:$M$135,0)),"") -> 1 | F105: =IFERROR(INDEX(CALC_BASE!$P$3:$P$135,MATCH(ROW()-7,CALC_BASE!$M$3:$M$135,0)),"") -> 3 | G105: =IFERROR(IF(D105="","",INDEX(tb_vendas[Preço de Venda],MATCH(D105,tb_vendas[N° Pedido/Empresa],0))/F105),"") -> R$ 966.67 | H105: =IFERROR(IF(D105="","",INDEX(tb_vendas[Data Fechamento],MATCH(D105,tb_vendas[N° Pedido/Empresa],0))+E105*INDEX(tb_formas_pagamento[Dias_Intervalo],MATCH(INDEX(tb_vendas[Forma_Pagamento],MATCH(D105,tb_vendas[N° Pedido/Empresa],0)),tb_formas_pagamento[Nome_Forma],0))),"") -> 2026-08-24 | J105: =IF(OR(tb_pagamentos[[#This Row],[Data_Vencimento]]="",tb_pagamentos[[#This Row],[Valor_Parcela]]="",tb_pagamentos[[#This Row],[Qtd_Total_Parcelas]]="",tb_pagamentos[[#This Row],[Nr_Pedido]]=""),"",IF(tb_pagamentos[[#This Row],[Data_Pagamento]]<>"","Pago",IF(AND(tb_pagamentos[[#This Row],[Data_Pagamento]]="",tb_pagamentos[[#This Row],[Data_Vencimento]]<TODAY()),"Em Atraso","A vencer"))) -> A vencer
C106: PED-041-2 | D106: =IFERROR(INDEX(CALC_BASE!$N$3:$N$135,MATCH(ROW()-7,CALC_BASE!$M$3:$M$135,0)),"") -> PED-041 | E106: =IFERROR(INDEX(CALC_BASE!$O$3:$O$135,MATCH(ROW()-7,CALC_BASE!$M$3:$M$135,0)),"") -> 2 | F106: =IFERROR(INDEX(CALC_BASE!$P$3:$P$135,MATCH(ROW()-7,CALC_BASE!$M$3:$M$135,0)),"") -> 3 | G106: =IFERROR(IF(D106="","",INDEX(tb_vendas[Preço de Venda],MATCH(D106,tb_vendas[N° Pedido/Empresa],0))/F106),"") -> R$ 966.67 | H106: =IFERROR(IF(D106="","",INDEX(tb_vendas[Data Fechamento],MATCH(D106,tb_vendas[N° Pedido/Empresa],0))+E106*INDEX(tb_formas_pagamento[Dias_Intervalo],MATCH(INDEX(tb_vendas[Forma_Pagamento],MATCH(D106,tb_vendas[N° Pedido/Empresa],0)),tb_formas_pagamento[Nome_Forma],0))),"") -> 2026-09-21 | J106: =IF(OR(tb_pagamentos[[#This Row],[Data_Vencimento]]="",tb_pagamentos[[#This Row],[Valor_Parcela]]="",tb_pagamentos[[#This Row],[Qtd_Total_Parcelas]]="",tb_pagamentos[[#This Row],[Nr_Pedido]]=""),"",IF(tb_pagamentos[[#This Row],[Data_Pagamento]]<>"","Pago",IF(AND(tb_pagamentos[[#This Row],[Data_Pagamento]]="",tb_pagamentos[[#This Row],[Data_Vencimento]]<TODAY()),"Em Atraso","A vencer"))) -> A vencer
C107: PED-041-3 | D107: =IFERROR(INDEX(CALC_BASE!$N$3:$N$135,MATCH(ROW()-7,CALC_BASE!$M$3:$M$135,0)),"") -> PED-041 | E107: =IFERROR(INDEX(CALC_BASE!$O$3:$O$135,MATCH(ROW()-7,CALC_BASE!$M$3:$M$135,0)),"") -> 3 | F107: =IFERROR(INDEX(CALC_BASE!$P$3:$P$135,MATCH(ROW()-7,CALC_BASE!$M$3:$M$135,0)),"") -> 3 | G107: =IFERROR(IF(D107="","",INDEX(tb_vendas[Preço de Venda],MATCH(D107,tb_vendas[N° Pedido/Empresa],0))/F107),"") -> R$ 966.67 | H107: =IFERROR(IF(D107="","",INDEX(tb_vendas[Data Fechamento],MATCH(D107,tb_vendas[N° Pedido/Empresa],0))+E107*INDEX(tb_formas_pagamento[Dias_Intervalo],MATCH(INDEX(tb_vendas[Forma_Pagamento],MATCH(D107,tb_vendas[N° Pedido/Empresa],0)),tb_formas_pagamento[Nome_Forma],0))),"") -> 2026-10-19 | J107: =IF(OR(tb_pagamentos[[#This Row],[Data_Vencimento]]="",tb_pagamentos[[#This Row],[Valor_Parcela]]="",tb_pagamentos[[#This Row],[Qtd_Total_Parcelas]]="",tb_pagamentos[[#This Row],[Nr_Pedido]]=""),"",IF(tb_pagamentos[[#This Row],[Data_Pagamento]]<>"","Pago",IF(AND(tb_pagamentos[[#This Row],[Data_Pagamento]]="",tb_pagamentos[[#This Row],[Data_Vencimento]]<TODAY()),"Em Atraso","A vencer"))) -> A vencer
C108: PED-042-1 | D108: =IFERROR(INDEX(CALC_BASE!$N$3:$N$135,MATCH(ROW()-7,CALC_BASE!$M$3:$M$135,0)),"") -> PED-042 | E108: =IFERROR(INDEX(CALC_BASE!$O$3:$O$135,MATCH(ROW()-7,CALC_BASE!$M$3:$M$135,0)),"") -> 1 | F108: =IFERROR(INDEX(CALC_BASE!$P$3:$P$135,MATCH(ROW()-7,CALC_BASE!$M$3:$M$135,0)),"") -> 3 | G108: =IFERROR(IF(D108="","",INDEX(tb_vendas[Preço de Venda],MATCH(D108,tb_vendas[N° Pedido/Empresa],0))/F108),"") -> R$ 1,366.67 | H108: =IFERROR(IF(D108="","",INDEX(tb_vendas[Data Fechamento],MATCH(D108,tb_vendas[N° Pedido/Empresa],0))+E108*INDEX(tb_formas_pagamento[Dias_Intervalo],MATCH(INDEX(tb_vendas[Forma_Pagamento],MATCH(D108,tb_vendas[N° Pedido/Empresa],0)),tb_formas_pagamento[Nome_Forma],0))),"") -> 2025-09-24 | I108: 2025-10-06 | J108: =IF(OR(tb_pagamentos[[#This Row],[Data_Vencimento]]="",tb_pagamentos[[#This Row],[Valor_Parcela]]="",tb_pagamentos[[#This Row],[Qtd_Total_Parcelas]]="",tb_pagamentos[[#This Row],[Nr_Pedido]]=""),"",IF(tb_pagamentos[[#This Row],[Data_Pagamento]]<>"","Pago",IF(AND(tb_pagamentos[[#This Row],[Data_Pagamento]]="",tb_pagamentos[[#This Row],[Data_Vencimento]]<TODAY()),"Em Atraso","A vencer"))) -> Pago
C109: PED-042-2 | D109: =IFERROR(INDEX(CALC_BASE!$N$3:$N$135,MATCH(ROW()-7,CALC_BASE!$M$3:$M$135,0)),"") -> PED-042 | E109: =IFERROR(INDEX(CALC_BASE!$O$3:$O$135,MATCH(ROW()-7,CALC_BASE!$M$3:$M$135,0)),"") -> 2 | F109: =IFERROR(INDEX(CALC_BASE!$P$3:$P$135,MATCH(ROW()-7,CALC_BASE!$M$3:$M$135,0)),"") -> 3 | G109: =IFERROR(IF(D109="","",INDEX(tb_vendas[Preço de Venda],MATCH(D109,tb_vendas[N° Pedido/Empresa],0))/F109),"") -> R$ 1,366.67 | H109: =IFERROR(IF(D109="","",INDEX(tb_vendas[Data Fechamento],MATCH(D109,tb_vendas[N° Pedido/Empresa],0))+E109*INDEX(tb_formas_pagamento[Dias_Intervalo],MATCH(INDEX(tb_vendas[Forma_Pagamento],MATCH(D109,tb_vendas[N° Pedido/Empresa],0)),tb_formas_pagamento[Nome_Forma],0))),"") -> 2025-10-08 | I109: 2025-10-20 | J109: =IF(OR(tb_pagamentos[[#This Row],[Data_Vencimento]]="",tb_pagamentos[[#This Row],[Valor_Parcela]]="",tb_pagamentos[[#This Row],[Qtd_Total_Parcelas]]="",tb_pagamentos[[#This Row],[Nr_Pedido]]=""),"",IF(tb_pagamentos[[#This Row],[Data_Pagamento]]<>"","Pago",IF(AND(tb_pagamentos[[#This Row],[Data_Pagamento]]="",tb_pagamentos[[#This Row],[Data_Vencimento]]<TODAY()),"Em Atraso","A vencer"))) -> Pago
C110: PED-042-3 | D110: =IFERROR(INDEX(CALC_BASE!$N$3:$N$135,MATCH(ROW()-7,CALC_BASE!$M$3:$M$135,0)),"") -> PED-042 | E110: =IFERROR(INDEX(CALC_BASE!$O$3:$O$135,MATCH(ROW()-7,CALC_BASE!$M$3:$M$135,0)),"") -> 3 | F110: =IFERROR(INDEX(CALC_BASE!$P$3:$P$135,MATCH(ROW()-7,CALC_BASE!$M$3:$M$135,0)),"") -> 3 | G110: =IFERROR(IF(D110="","",INDEX(tb_vendas[Preço de Venda],MATCH(D110,tb_vendas[N° Pedido/Empresa],0))/F110),"") -> R$ 1,366.67 | H110: =IFERROR(IF(D110="","",INDEX(tb_vendas[Data Fechamento],MATCH(D110,tb_vendas[N° Pedido/Empresa],0))+E110*INDEX(tb_formas_pagamento[Dias_Intervalo],MATCH(INDEX(tb_vendas[Forma_Pagamento],MATCH(D110,tb_vendas[N° Pedido/Empresa],0)),tb_formas_pagamento[Nome_Forma],0))),"") -> 2025-10-22 | I110: 2025-11-03 | J110: =IF(OR(tb_pagamentos[[#This Row],[Data_Vencimento]]="",tb_pagamentos[[#This Row],[Valor_Parcela]]="",tb_pagamentos[[#This Row],[Qtd_Total_Parcelas]]="",tb_pagamentos[[#This Row],[Nr_Pedido]]=""),"",IF(tb_pagamentos[[#This Row],[Data_Pagamento]]<>"","Pago",IF(AND(tb_pagamentos[[#This Row],[Data_Pagamento]]="",tb_pagamentos[[#This Row],[Data_Vencimento]]<TODAY()),"Em Atraso","A vencer"))) -> Pago
C111: PED-043-1 | D111: =IFERROR(INDEX(CALC_BASE!$N$3:$N$135,MATCH(ROW()-7,CALC_BASE!$M$3:$M$135,0)),"") -> PED-043 | E111: =IFERROR(INDEX(CALC_BASE!$O$3:$O$135,MATCH(ROW()-7,CALC_BASE!$M$3:$M$135,0)),"") -> 1 | F111: =IFERROR(INDEX(CALC_BASE!$P$3:$P$135,MATCH(ROW()-7,CALC_BASE!$M$3:$M$135,0)),"") -> 1 | G111: =IFERROR(IF(D111="","",INDEX(tb_vendas[Preço de Venda],MATCH(D111,tb_vendas[N° Pedido/Empresa],0))/F111),"") -> R$ 1,750.00 | H111: =IFERROR(IF(D111="","",INDEX(tb_vendas[Data Fechamento],MATCH(D111,tb_vendas[N° Pedido/Empresa],0))+E111*INDEX(tb_formas_pagamento[Dias_Intervalo],MATCH(INDEX(tb_vendas[Forma_Pagamento],MATCH(D111,tb_vendas[N° Pedido/Empresa],0)),tb_formas_pagamento[Nome_Forma],0))),"") -> 2026-01-08 | I111: 2026-01-07 | J111: =IF(OR(tb_pagamentos[[#This Row],[Data_Vencimento]]="",tb_pagamentos[[#This Row],[Valor_Parcela]]="",tb_pagamentos[[#This Row],[Qtd_Total_Parcelas]]="",tb_pagamentos[[#This Row],[Nr_Pedido]]=""),"",IF(tb_pagamentos[[#This Row],[Data_Pagamento]]<>"","Pago",IF(AND(tb_pagamentos[[#This Row],[Data_Pagamento]]="",tb_pagamentos[[#This Row],[Data_Vencimento]]<TODAY()),"Em Atraso","A vencer"))) -> Pago
C112: PED-044-1 | D112: =IFERROR(INDEX(CALC_BASE!$N$3:$N$135,MATCH(ROW()-7,CALC_BASE!$M$3:$M$135,0)),"") -> PED-044 | E112: =IFERROR(INDEX(CALC_BASE!$O$3:$O$135,MATCH(ROW()-7,CALC_BASE!$M$3:$M$135,0)),"") -> 1 | F112: =IFERROR(INDEX(CALC_BASE!$P$3:$P$135,MATCH(ROW()-7,CALC_BASE!$M$3:$M$135,0)),"") -> 2 | G112: =IFERROR(IF(D112="","",INDEX(tb_vendas[Preço de Venda],MATCH(D112,tb_vendas[N° Pedido/Empresa],0))/F112),"") -> R$ 3,000.00 | H112: =IFERROR(IF(D112="","",INDEX(tb_vendas[Data Fechamento],MATCH(D112,tb_vendas[N° Pedido/Empresa],0))+E112*INDEX(tb_formas_pagamento[Dias_Intervalo],MATCH(INDEX(tb_vendas[Forma_Pagamento],MATCH(D112,tb_vendas[N° Pedido/Empresa],0)),tb_formas_pagamento[Nome_Forma],0))),"") -> 2025-08-21 | I112: 2025-08-19 | J112: =IF(OR(tb_pagamentos[[#This Row],[Data_Vencimento]]="",tb_pagamentos[[#This Row],[Valor_Parcela]]="",tb_pagamentos[[#This Row],[Qtd_Total_Parcelas]]="",tb_pagamentos[[#This Row],[Nr_Pedido]]=""),"",IF(tb_pagamentos[[#This Row],[Data_Pagamento]]<>"","Pago",IF(AND(tb_pagamentos[[#This Row],[Data_Pagamento]]="",tb_pagamentos[[#This Row],[Data_Vencimento]]<TODAY()),"Em Atraso","A vencer"))) -> Pago
C113: PED-044-2 | D113: =IFERROR(INDEX(CALC_BASE!$N$3:$N$135,MATCH(ROW()-7,CALC_BASE!$M$3:$M$135,0)),"") -> PED-044 | E113: =IFERROR(INDEX(CALC_BASE!$O$3:$O$135,MATCH(ROW()-7,CALC_BASE!$M$3:$M$135,0)),"") -> 2 | F113: =IFERROR(INDEX(CALC_BASE!$P$3:$P$135,MATCH(ROW()-7,CALC_BASE!$M$3:$M$135,0)),"") -> 2 | G113: =IFERROR(IF(D113="","",INDEX(tb_vendas[Preço de Venda],MATCH(D113,tb_vendas[N° Pedido/Empresa],0))/F113),"") -> R$ 3,000.00 | H113: =IFERROR(IF(D113="","",INDEX(tb_vendas[Data Fechamento],MATCH(D113,tb_vendas[N° Pedido/Empresa],0))+E113*INDEX(tb_formas_pagamento[Dias_Intervalo],MATCH(INDEX(tb_vendas[Forma_Pagamento],MATCH(D113,tb_vendas[N° Pedido/Empresa],0)),tb_formas_pagamento[Nome_Forma],0))),"") -> 2025-09-20 | I113: 2025-09-18 | J113: =IF(OR(tb_pagamentos[[#This Row],[Data_Vencimento]]="",tb_pagamentos[[#This Row],[Valor_Parcela]]="",tb_pagamentos[[#This Row],[Qtd_Total_Parcelas]]="",tb_pagamentos[[#This Row],[Nr_Pedido]]=""),"",IF(tb_pagamentos[[#This Row],[Data_Pagamento]]<>"","Pago",IF(AND(tb_pagamentos[[#This Row],[Data_Pagamento]]="",tb_pagamentos[[#This Row],[Data_Vencimento]]<TODAY()),"Em Atraso","A vencer"))) -> Pago
C114: PED-045-1 | D114: =IFERROR(INDEX(CALC_BASE!$N$3:$N$135,MATCH(ROW()-7,CALC_BASE!$M$3:$M$135,0)),"") -> PED-045 | E114: =IFERROR(INDEX(CALC_BASE!$O$3:$O$135,MATCH(ROW()-7,CALC_BASE!$M$3:$M$135,0)),"") -> 1 | F114: =IFERROR(INDEX(CALC_BASE!$P$3:$P$135,MATCH(ROW()-7,CALC_BASE!$M$3:$M$135,0)),"") -> 1 | G114: =IFERROR(IF(D114="","",INDEX(tb_vendas[Preço de Venda],MATCH(D114,tb_vendas[N° Pedido/Empresa],0))/F114),"") -> R$ 830.00 | H114: =IFERROR(IF(D114="","",INDEX(tb_vendas[Data Fechamento],MATCH(D114,tb_vendas[N° Pedido/Empresa],0))+E114*INDEX(tb_formas_pagamento[Dias_Intervalo],MATCH(INDEX(tb_vendas[Forma_Pagamento],MATCH(D114,tb_vendas[N° Pedido/Empresa],0)),tb_formas_pagamento[Nome_Forma],0))),"") -> 2025-11-27 | I114: 2025-11-25 | J114: =IF(OR(tb_pagamentos[[#This Row],[Data_Vencimento]]="",tb_pagamentos[[#This Row],[Valor_Parcela]]="",tb_pagamentos[[#This Row],[Qtd_Total_Parcelas]]="",tb_pagamentos[[#This Row],[Nr_Pedido]]=""),"",IF(tb_pagamentos[[#This Row],[Data_Pagamento]]<>"","Pago",IF(AND(tb_pagamentos[[#This Row],[Data_Pagamento]]="",tb_pagamentos[[#This Row],[Data_Vencimento]]<TODAY()),"Em Atraso","A vencer"))) -> Pago
C115: PED-046-1 | D115: =IFERROR(INDEX(CALC_BASE!$N$3:$N$135,MATCH(ROW()-7,CALC_BASE!$M$3:$M$135,0)),"") -> PED-046 | E115: =IFERROR(INDEX(CALC_BASE!$O$3:$O$135,MATCH(ROW()-7,CALC_BASE!$M$3:$M$135,0)),"") -> 1 | F115: =IFERROR(INDEX(CALC_BASE!$P$3:$P$135,MATCH(ROW()-7,CALC_BASE!$M$3:$M$135,0)),"") -> 3 | G115: =IFERROR(IF(D115="","",INDEX(tb_vendas[Preço de Venda],MATCH(D115,tb_vendas[N° Pedido/Empresa],0))/F115),"") -> R$ 1,166.67 | H115: =IFERROR(IF(D115="","",INDEX(tb_vendas[Data Fechamento],MATCH(D115,tb_vendas[N° Pedido/Empresa],0))+E115*INDEX(tb_formas_pagamento[Dias_Intervalo],MATCH(INDEX(tb_vendas[Forma_Pagamento],MATCH(D115,tb_vendas[N° Pedido/Empresa],0)),tb_formas_pagamento[Nome_Forma],0))),"") -> 2025-03-19 | I115: 2025-03-17 | J115: =IF(OR(tb_pagamentos[[#This Row],[Data_Vencimento]]="",tb_pagamentos[[#This Row],[Valor_Parcela]]="",tb_pagamentos[[#This Row],[Qtd_Total_Parcelas]]="",tb_pagamentos[[#This Row],[Nr_Pedido]]=""),"",IF(tb_pagamentos[[#This Row],[Data_Pagamento]]<>"","Pago",IF(AND(tb_pagamentos[[#This Row],[Data_Pagamento]]="",tb_pagamentos[[#This Row],[Data_Vencimento]]<TODAY()),"Em Atraso","A vencer"))) -> Pago
C116: PED-046-2 | D116: =IFERROR(INDEX(CALC_BASE!$N$3:$N$135,MATCH(ROW()-7,CALC_BASE!$M$3:$M$135,0)),"") -> PED-046 | E116: =IFERROR(INDEX(CALC_BASE!$O$3:$O$135,MATCH(ROW()-7,CALC_BASE!$M$3:$M$135,0)),"") -> 2 | F116: =IFERROR(INDEX(CALC_BASE!$P$3:$P$135,MATCH(ROW()-7,CALC_BASE!$M$3:$M$135,0)),"") -> 3 | G116: =IFERROR(IF(D116="","",INDEX(tb_vendas[Preço de Venda],MATCH(D116,tb_vendas[N° Pedido/Empresa],0))/F116),"") -> R$ 1,166.67 | H116: =IFERROR(IF(D116="","",INDEX(tb_vendas[Data Fechamento],MATCH(D116,tb_vendas[N° Pedido/Empresa],0))+E116*INDEX(tb_formas_pagamento[Dias_Intervalo],MATCH(INDEX(tb_vendas[Forma_Pagamento],MATCH(D116,tb_vendas[N° Pedido/Empresa],0)),tb_formas_pagamento[Nome_Forma],0))),"") -> 2025-04-03 | I116: 2025-04-01 | J116: =IF(OR(tb_pagamentos[[#This Row],[Data_Vencimento]]="",tb_pagamentos[[#This Row],[Valor_Parcela]]="",tb_pagamentos[[#This Row],[Qtd_Total_Parcelas]]="",tb_pagamentos[[#This Row],[Nr_Pedido]]=""),"",IF(tb_pagamentos[[#This Row],[Data_Pagamento]]<>"","Pago",IF(AND(tb_pagamentos[[#This Row],[Data_Pagamento]]="",tb_pagamentos[[#This Row],[Data_Vencimento]]<TODAY()),"Em Atraso","A vencer"))) -> Pago
C117: PED-046-3 | D117: =IFERROR(INDEX(CALC_BASE!$N$3:$N$135,MATCH(ROW()-7,CALC_BASE!$M$3:$M$135,0)),"") -> PED-046 | E117: =IFERROR(INDEX(CALC_BASE!$O$3:$O$135,MATCH(ROW()-7,CALC_BASE!$M$3:$M$135,0)),"") -> 3 | F117: =IFERROR(INDEX(CALC_BASE!$P$3:$P$135,MATCH(ROW()-7,CALC_BASE!$M$3:$M$135,0)),"") -> 3 | G117: =IFERROR(IF(D117="","",INDEX(tb_vendas[Preço de Venda],MATCH(D117,tb_vendas[N° Pedido/Empresa],0))/F117),"") -> R$ 1,166.67 | H117: =IFERROR(IF(D117="","",INDEX(tb_vendas[Data Fechamento],MATCH(D117,tb_vendas[N° Pedido/Empresa],0))+E117*INDEX(tb_formas_pagamento[Dias_Intervalo],MATCH(INDEX(tb_vendas[Forma_Pagamento],MATCH(D117,tb_vendas[N° Pedido/Empresa],0)),tb_formas_pagamento[Nome_Forma],0))),"") -> 2025-04-18 | I117: 2025-04-16 | J117: =IF(OR(tb_pagamentos[[#This Row],[Data_Vencimento]]="",tb_pagamentos[[#This Row],[Valor_Parcela]]="",tb_pagamentos[[#This Row],[Qtd_Total_Parcelas]]="",tb_pagamentos[[#This Row],[Nr_Pedido]]=""),"",IF(tb_pagamentos[[#This Row],[Data_Pagamento]]<>"","Pago",IF(AND(tb_pagamentos[[#This Row],[Data_Pagamento]]="",tb_pagamentos[[#This Row],[Data_Vencimento]]<TODAY()),"Em Atraso","A vencer"))) -> Pago
C118: PED-047-1 | D118: =IFERROR(INDEX(CALC_BASE!$N$3:$N$135,MATCH(ROW()-7,CALC_BASE!$M$3:$M$135,0)),"") -> PED-047 | E118: =IFERROR(INDEX(CALC_BASE!$O$3:$O$135,MATCH(ROW()-7,CALC_BASE!$M$3:$M$135,0)),"") -> 1 | F118: =IFERROR(INDEX(CALC_BASE!$P$3:$P$135,MATCH(ROW()-7,CALC_BASE!$M$3:$M$135,0)),"") -> 2 | G118: =IFERROR(IF(D118="","",INDEX(tb_vendas[Preço de Venda],MATCH(D118,tb_vendas[N° Pedido/Empresa],0))/F118),"") -> R$ 600.00 | H118: =IFERROR(IF(D118="","",INDEX(tb_vendas[Data Fechamento],MATCH(D118,tb_vendas[N° Pedido/Empresa],0))+E118*INDEX(tb_formas_pagamento[Dias_Intervalo],MATCH(INDEX(tb_vendas[Forma_Pagamento],MATCH(D118,tb_vendas[N° Pedido/Empresa],0)),tb_formas_pagamento[Nome_Forma],0))),"") -> 2026-04-12 | J118: =IF(OR(tb_pagamentos[[#This Row],[Data_Vencimento]]="",tb_pagamentos[[#This Row],[Valor_Parcela]]="",tb_pagamentos[[#This Row],[Qtd_Total_Parcelas]]="",tb_pagamentos[[#This Row],[Nr_Pedido]]=""),"",IF(tb_pagamentos[[#This Row],[Data_Pagamento]]<>"","Pago",IF(AND(tb_pagamentos[[#This Row],[Data_Pagamento]]="",tb_pagamentos[[#This Row],[Data_Vencimento]]<TODAY()),"Em Atraso","A vencer"))) -> Em Atraso
C119: PED-047-2 | D119: =IFERROR(INDEX(CALC_BASE!$N$3:$N$135,MATCH(ROW()-7,CALC_BASE!$M$3:$M$135,0)),"") -> PED-047 | E119: =IFERROR(INDEX(CALC_BASE!$O$3:$O$135,MATCH(ROW()-7,CALC_BASE!$M$3:$M$135,0)),"") -> 2 | F119: =IFERROR(INDEX(CALC_BASE!$P$3:$P$135,MATCH(ROW()-7,CALC_BASE!$M$3:$M$135,0)),"") -> 2 | G119: =IFERROR(IF(D119="","",INDEX(tb_vendas[Preço de Venda],MATCH(D119,tb_vendas[N° Pedido/Empresa],0))/F119),"") -> R$ 600.00 | H119: =IFERROR(IF(D119="","",INDEX(tb_vendas[Data Fechamento],MATCH(D119,tb_vendas[N° Pedido/Empresa],0))+E119*INDEX(tb_formas_pagamento[Dias_Intervalo],MATCH(INDEX(tb_vendas[Forma_Pagamento],MATCH(D119,tb_vendas[N° Pedido/Empresa],0)),tb_formas_pagamento[Nome_Forma],0))),"") -> 2026-04-26 | J119: =IF(OR(tb_pagamentos[[#This Row],[Data_Vencimento]]="",tb_pagamentos[[#This Row],[Valor_Parcela]]="",tb_pagamentos[[#This Row],[Qtd_Total_Parcelas]]="",tb_pagamentos[[#This Row],[Nr_Pedido]]=""),"",IF(tb_pagamentos[[#This Row],[Data_Pagamento]]<>"","Pago",IF(AND(tb_pagamentos[[#This Row],[Data_Pagamento]]="",tb_pagamentos[[#This Row],[Data_Vencimento]]<TODAY()),"Em Atraso","A vencer"))) -> Em Atraso
C120: PED-048-1 | D120: =IFERROR(INDEX(CALC_BASE!$N$3:$N$135,MATCH(ROW()-7,CALC_BASE!$M$3:$M$135,0)),"") -> PED-048 | E120: =IFERROR(INDEX(CALC_BASE!$O$3:$O$135,MATCH(ROW()-7,CALC_BASE!$M$3:$M$135,0)),"") -> 1 | F120: =IFERROR(INDEX(CALC_BASE!$P$3:$P$135,MATCH(ROW()-7,CALC_BASE!$M$3:$M$135,0)),"") -> 4 | G120: =IFERROR(IF(D120="","",INDEX(tb_vendas[Preço de Venda],MATCH(D120,tb_vendas[N° Pedido/Empresa],0))/F120),"") -> R$ 1,350.00 | H120: =IFERROR(IF(D120="","",INDEX(tb_vendas[Data Fechamento],MATCH(D120,tb_vendas[N° Pedido/Empresa],0))+E120*INDEX(tb_formas_pagamento[Dias_Intervalo],MATCH(INDEX(tb_vendas[Forma_Pagamento],MATCH(D120,tb_vendas[N° Pedido/Empresa],0)),tb_formas_pagamento[Nome_Forma],0))),"") -> 2025-06-26 | I120: 2025-07-08 | J120: =IF(OR(tb_pagamentos[[#This Row],[Data_Vencimento]]="",tb_pagamentos[[#This Row],[Valor_Parcela]]="",tb_pagamentos[[#This Row],[Qtd_Total_Parcelas]]="",tb_pagamentos[[#This Row],[Nr_Pedido]]=""),"",IF(tb_pagamentos[[#This Row],[Data_Pagamento]]<>"","Pago",IF(AND(tb_pagamentos[[#This Row],[Data_Pagamento]]="",tb_pagamentos[[#This Row],[Data_Vencimento]]<TODAY()),"Em Atraso","A vencer"))) -> Pago
C121: PED-048-2 | D121: =IFERROR(INDEX(CALC_BASE!$N$3:$N$135,MATCH(ROW()-7,CALC_BASE!$M$3:$M$135,0)),"") -> PED-048 | E121: =IFERROR(INDEX(CALC_BASE!$O$3:$O$135,MATCH(ROW()-7,CALC_BASE!$M$3:$M$135,0)),"") -> 2 | F121: =IFERROR(INDEX(CALC_BASE!$P$3:$P$135,MATCH(ROW()-7,CALC_BASE!$M$3:$M$135,0)),"") -> 4 | G121: =IFERROR(IF(D121="","",INDEX(tb_vendas[Preço de Venda],MATCH(D121,tb_vendas[N° Pedido/Empresa],0))/F121),"") -> R$ 1,350.00 | H121: =IFERROR(IF(D121="","",INDEX(tb_vendas[Data Fechamento],MATCH(D121,tb_vendas[N° Pedido/Empresa],0))+E121*INDEX(tb_formas_pagamento[Dias_Intervalo],MATCH(INDEX(tb_vendas[Forma_Pagamento],MATCH(D121,tb_vendas[N° Pedido/Empresa],0)),tb_formas_pagamento[Nome_Forma],0))),"") -> 2025-07-10 | J121: =IF(OR(tb_pagamentos[[#This Row],[Data_Vencimento]]="",tb_pagamentos[[#This Row],[Valor_Parcela]]="",tb_pagamentos[[#This Row],[Qtd_Total_Parcelas]]="",tb_pagamentos[[#This Row],[Nr_Pedido]]=""),"",IF(tb_pagamentos[[#This Row],[Data_Pagamento]]<>"","Pago",IF(AND(tb_pagamentos[[#This Row],[Data_Pagamento]]="",tb_pagamentos[[#This Row],[Data_Vencimento]]<TODAY()),"Em Atraso","A vencer"))) -> Em Atraso
C122: PED-048-3 | D122: =IFERROR(INDEX(CALC_BASE!$N$3:$N$135,MATCH(ROW()-7,CALC_BASE!$M$3:$M$135,0)),"") -> PED-048 | E122: =IFERROR(INDEX(CALC_BASE!$O$3:$O$135,MATCH(ROW()-7,CALC_BASE!$M$3:$M$135,0)),"") -> 3 | F122: =IFERROR(INDEX(CALC_BASE!$P$3:$P$135,MATCH(ROW()-7,CALC_BASE!$M$3:$M$135,0)),"") -> 4 | G122: =IFERROR(IF(D122="","",INDEX(tb_vendas[Preço de Venda],MATCH(D122,tb_vendas[N° Pedido/Empresa],0))/F122),"") -> R$ 1,350.00 | H122: =IFERROR(IF(D122="","",INDEX(tb_vendas[Data Fechamento],MATCH(D122,tb_vendas[N° Pedido/Empresa],0))+E122*INDEX(tb_formas_pagamento[Dias_Intervalo],MATCH(INDEX(tb_vendas[Forma_Pagamento],MATCH(D122,tb_vendas[N° Pedido/Empresa],0)),tb_formas_pagamento[Nome_Forma],0))),"") -> 2025-07-24 | J122: =IF(OR(tb_pagamentos[[#This Row],[Data_Vencimento]]="",tb_pagamentos[[#This Row],[Valor_Parcela]]="",tb_pagamentos[[#This Row],[Qtd_Total_Parcelas]]="",tb_pagamentos[[#This Row],[Nr_Pedido]]=""),"",IF(tb_pagamentos[[#This Row],[Data_Pagamento]]<>"","Pago",IF(AND(tb_pagamentos[[#This Row],[Data_Pagamento]]="",tb_pagamentos[[#This Row],[Data_Vencimento]]<TODAY()),"Em Atraso","A vencer"))) -> Em Atraso
C123: PED-048-4 | D123: =IFERROR(INDEX(CALC_BASE!$N$3:$N$135,MATCH(ROW()-7,CALC_BASE!$M$3:$M$135,0)),"") -> PED-048 | E123: =IFERROR(INDEX(CALC_BASE!$O$3:$O$135,MATCH(ROW()-7,CALC_BASE!$M$3:$M$135,0)),"") -> 4 | F123: =IFERROR(INDEX(CALC_BASE!$P$3:$P$135,MATCH(ROW()-7,CALC_BASE!$M$3:$M$135,0)),"") -> 4 | G123: =IFERROR(IF(D123="","",INDEX(tb_vendas[Preço de Venda],MATCH(D123,tb_vendas[N° Pedido/Empresa],0))/F123),"") -> R$ 1,350.00 | H123: =IFERROR(IF(D123="","",INDEX(tb_vendas[Data Fechamento],MATCH(D123,tb_vendas[N° Pedido/Empresa],0))+E123*INDEX(tb_formas_pagamento[Dias_Intervalo],MATCH(INDEX(tb_vendas[Forma_Pagamento],MATCH(D123,tb_vendas[N° Pedido/Empresa],0)),tb_formas_pagamento[Nome_Forma],0))),"") -> 2025-08-07 | J123: =IF(OR(tb_pagamentos[[#This Row],[Data_Vencimento]]="",tb_pagamentos[[#This Row],[Valor_Parcela]]="",tb_pagamentos[[#This Row],[Qtd_Total_Parcelas]]="",tb_pagamentos[[#This Row],[Nr_Pedido]]=""),"",IF(tb_pagamentos[[#This Row],[Data_Pagamento]]<>"","Pago",IF(AND(tb_pagamentos[[#This Row],[Data_Pagamento]]="",tb_pagamentos[[#This Row],[Data_Vencimento]]<TODAY()),"Em Atraso","A vencer"))) -> Em Atraso
C124: PED-049-1 | D124: =IFERROR(INDEX(CALC_BASE!$N$3:$N$135,MATCH(ROW()-7,CALC_BASE!$M$3:$M$135,0)),"") -> PED-049 | E124: =IFERROR(INDEX(CALC_BASE!$O$3:$O$135,MATCH(ROW()-7,CALC_BASE!$M$3:$M$135,0)),"") -> 1 | F124: =IFERROR(INDEX(CALC_BASE!$P$3:$P$135,MATCH(ROW()-7,CALC_BASE!$M$3:$M$135,0)),"") -> 4 | G124: =IFERROR(IF(D124="","",INDEX(tb_vendas[Preço de Venda],MATCH(D124,tb_vendas[N° Pedido/Empresa],0))/F124),"") -> R$ 650.00 | H124: =IFERROR(IF(D124="","",INDEX(tb_vendas[Data Fechamento],MATCH(D124,tb_vendas[N° Pedido/Empresa],0))+E124*INDEX(tb_formas_pagamento[Dias_Intervalo],MATCH(INDEX(tb_vendas[Forma_Pagamento],MATCH(D124,tb_vendas[N° Pedido/Empresa],0)),tb_formas_pagamento[Nome_Forma],0))),"") -> 2026-02-17 | I124: 2026-03-02 | J124: =IF(OR(tb_pagamentos[[#This Row],[Data_Vencimento]]="",tb_pagamentos[[#This Row],[Valor_Parcela]]="",tb_pagamentos[[#This Row],[Qtd_Total_Parcelas]]="",tb_pagamentos[[#This Row],[Nr_Pedido]]=""),"",IF(tb_pagamentos[[#This Row],[Data_Pagamento]]<>"","Pago",IF(AND(tb_pagamentos[[#This Row],[Data_Pagamento]]="",tb_pagamentos[[#This Row],[Data_Vencimento]]<TODAY()),"Em Atraso","A vencer"))) -> Pago
C125: PED-049-2 | D125: =IFERROR(INDEX(CALC_BASE!$N$3:$N$135,MATCH(ROW()-7,CALC_BASE!$M$3:$M$135,0)),"") -> PED-049 | E125: =IFERROR(INDEX(CALC_BASE!$O$3:$O$135,MATCH(ROW()-7,CALC_BASE!$M$3:$M$135,0)),"") -> 2 | F125: =IFERROR(INDEX(CALC_BASE!$P$3:$P$135,MATCH(ROW()-7,CALC_BASE!$M$3:$M$135,0)),"") -> 4 | G125: =IFERROR(IF(D125="","",INDEX(tb_vendas[Preço de Venda],MATCH(D125,tb_vendas[N° Pedido/Empresa],0))/F125),"") -> R$ 650.00 | H125: =IFERROR(IF(D125="","",INDEX(tb_vendas[Data Fechamento],MATCH(D125,tb_vendas[N° Pedido/Empresa],0))+E125*INDEX(tb_formas_pagamento[Dias_Intervalo],MATCH(INDEX(tb_vendas[Forma_Pagamento],MATCH(D125,tb_vendas[N° Pedido/Empresa],0)),tb_formas_pagamento[Nome_Forma],0))),"") -> 2026-03-04 | J125: =IF(OR(tb_pagamentos[[#This Row],[Data_Vencimento]]="",tb_pagamentos[[#This Row],[Valor_Parcela]]="",tb_pagamentos[[#This Row],[Qtd_Total_Parcelas]]="",tb_pagamentos[[#This Row],[Nr_Pedido]]=""),"",IF(tb_pagamentos[[#This Row],[Data_Pagamento]]<>"","Pago",IF(AND(tb_pagamentos[[#This Row],[Data_Pagamento]]="",tb_pagamentos[[#This Row],[Data_Vencimento]]<TODAY()),"Em Atraso","A vencer"))) -> Em Atraso
C126: PED-049-3 | D126: =IFERROR(INDEX(CALC_BASE!$N$3:$N$135,MATCH(ROW()-7,CALC_BASE!$M$3:$M$135,0)),"") -> PED-049 | E126: =IFERROR(INDEX(CALC_BASE!$O$3:$O$135,MATCH(ROW()-7,CALC_BASE!$M$3:$M$135,0)),"") -> 3 | F126: =IFERROR(INDEX(CALC_BASE!$P$3:$P$135,MATCH(ROW()-7,CALC_BASE!$M$3:$M$135,0)),"") -> 4 | G126: =IFERROR(IF(D126="","",INDEX(tb_vendas[Preço de Venda],MATCH(D126,tb_vendas[N° Pedido/Empresa],0))/F126),"") -> R$ 650.00 | H126: =IFERROR(IF(D126="","",INDEX(tb_vendas[Data Fechamento],MATCH(D126,tb_vendas[N° Pedido/Empresa],0))+E126*INDEX(tb_formas_pagamento[Dias_Intervalo],MATCH(INDEX(tb_vendas[Forma_Pagamento],MATCH(D126,tb_vendas[N° Pedido/Empresa],0)),tb_formas_pagamento[Nome_Forma],0))),"") -> 2026-03-19 | J126: =IF(OR(tb_pagamentos[[#This Row],[Data_Vencimento]]="",tb_pagamentos[[#This Row],[Valor_Parcela]]="",tb_pagamentos[[#This Row],[Qtd_Total_Parcelas]]="",tb_pagamentos[[#This Row],[Nr_Pedido]]=""),"",IF(tb_pagamentos[[#This Row],[Data_Pagamento]]<>"","Pago",IF(AND(tb_pagamentos[[#This Row],[Data_Pagamento]]="",tb_pagamentos[[#This Row],[Data_Vencimento]]<TODAY()),"Em Atraso","A vencer"))) -> Em Atraso
C127: PED-049-4 | D127: =IFERROR(INDEX(CALC_BASE!$N$3:$N$135,MATCH(ROW()-7,CALC_BASE!$M$3:$M$135,0)),"") -> PED-049 | E127: =IFERROR(INDEX(CALC_BASE!$O$3:$O$135,MATCH(ROW()-7,CALC_BASE!$M$3:$M$135,0)),"") -> 4 | F127: =IFERROR(INDEX(CALC_BASE!$P$3:$P$135,MATCH(ROW()-7,CALC_BASE!$M$3:$M$135,0)),"") -> 4 | G127: =IFERROR(IF(D127="","",INDEX(tb_vendas[Preço de Venda],MATCH(D127,tb_vendas[N° Pedido/Empresa],0))/F127),"") -> R$ 650.00 | H127: =IFERROR(IF(D127="","",INDEX(tb_vendas[Data Fechamento],MATCH(D127,tb_vendas[N° Pedido/Empresa],0))+E127*INDEX(tb_formas_pagamento[Dias_Intervalo],MATCH(INDEX(tb_vendas[Forma_Pagamento],MATCH(D127,tb_vendas[N° Pedido/Empresa],0)),tb_formas_pagamento[Nome_Forma],0))),"") -> 2026-04-03 | J127: =IF(OR(tb_pagamentos[[#This Row],[Data_Vencimento]]="",tb_pagamentos[[#This Row],[Valor_Parcela]]="",tb_pagamentos[[#This Row],[Qtd_Total_Parcelas]]="",tb_pagamentos[[#This Row],[Nr_Pedido]]=""),"",IF(tb_pagamentos[[#This Row],[Data_Pagamento]]<>"","Pago",IF(AND(tb_pagamentos[[#This Row],[Data_Pagamento]]="",tb_pagamentos[[#This Row],[Data_Vencimento]]<TODAY()),"Em Atraso","A vencer"))) -> Em Atraso
C128: PED-050-1 | D128: =IFERROR(INDEX(CALC_BASE!$N$3:$N$135,MATCH(ROW()-7,CALC_BASE!$M$3:$M$135,0)),"") -> PED-050 | E128: =IFERROR(INDEX(CALC_BASE!$O$3:$O$135,MATCH(ROW()-7,CALC_BASE!$M$3:$M$135,0)),"") -> 1 | F128: =IFERROR(INDEX(CALC_BASE!$P$3:$P$135,MATCH(ROW()-7,CALC_BASE!$M$3:$M$135,0)),"") -> 1 | G128: =IFERROR(IF(D128="","",INDEX(tb_vendas[Preço de Venda],MATCH(D128,tb_vendas[N° Pedido/Empresa],0))/F128),"") -> R$ 990.00 | H128: =IFERROR(IF(D128="","",INDEX(tb_vendas[Data Fechamento],MATCH(D128,tb_vendas[N° Pedido/Empresa],0))+E128*INDEX(tb_formas_pagamento[Dias_Intervalo],MATCH(INDEX(tb_vendas[Forma_Pagamento],MATCH(D128,tb_vendas[N° Pedido/Empresa],0)),tb_formas_pagamento[Nome_Forma],0))),"") -> 2025-01-23 | I128: 2025-01-22 | J128: =IF(OR(tb_pagamentos[[#This Row],[Data_Vencimento]]="",tb_pagamentos[[#This Row],[Valor_Parcela]]="",tb_pagamentos[[#This Row],[Qtd_Total_Parcelas]]="",tb_pagamentos[[#This Row],[Nr_Pedido]]=""),"",IF(tb_pagamentos[[#This Row],[Data_Pagamento]]<>"","Pago",IF(AND(tb_pagamentos[[#This Row],[Data_Pagamento]]="",tb_pagamentos[[#This Row],[Data_Vencimento]]<TODAY()),"Em Atraso","A vencer"))) -> Pago
C129: PED-051-1 | D129: =IFERROR(INDEX(CALC_BASE!$N$3:$N$135,MATCH(ROW()-7,CALC_BASE!$M$3:$M$135,0)),"") -> PED-051 | E129: =IFERROR(INDEX(CALC_BASE!$O$3:$O$135,MATCH(ROW()-7,CALC_BASE!$M$3:$M$135,0)),"") -> 1 | F129: =IFERROR(INDEX(CALC_BASE!$P$3:$P$135,MATCH(ROW()-7,CALC_BASE!$M$3:$M$135,0)),"") -> 3 | G129: =IFERROR(IF(D129="","",INDEX(tb_vendas[Preço de Venda],MATCH(D129,tb_vendas[N° Pedido/Empresa],0))/F129),"") -> R$ 1,583.33 | H129: =IFERROR(IF(D129="","",INDEX(tb_vendas[Data Fechamento],MATCH(D129,tb_vendas[N° Pedido/Empresa],0))+E129*INDEX(tb_formas_pagamento[Dias_Intervalo],MATCH(INDEX(tb_vendas[Forma_Pagamento],MATCH(D129,tb_vendas[N° Pedido/Empresa],0)),tb_formas_pagamento[Nome_Forma],0))),"") -> 2025-09-14 | I129: 2025-09-19 | J129: =IF(OR(tb_pagamentos[[#This Row],[Data_Vencimento]]="",tb_pagamentos[[#This Row],[Valor_Parcela]]="",tb_pagamentos[[#This Row],[Qtd_Total_Parcelas]]="",tb_pagamentos[[#This Row],[Nr_Pedido]]=""),"",IF(tb_pagamentos[[#This Row],[Data_Pagamento]]<>"","Pago",IF(AND(tb_pagamentos[[#This Row],[Data_Pagamento]]="",tb_pagamentos[[#This Row],[Data_Vencimento]]<TODAY()),"Em Atraso","A vencer"))) -> Pago
C130: PED-051-2 | D130: =IFERROR(INDEX(CALC_BASE!$N$3:$N$135,MATCH(ROW()-7,CALC_BASE!$M$3:$M$135,0)),"") -> PED-051 | E130: =IFERROR(INDEX(CALC_BASE!$O$3:$O$135,MATCH(ROW()-7,CALC_BASE!$M$3:$M$135,0)),"") -> 2 | F130: =IFERROR(INDEX(CALC_BASE!$P$3:$P$135,MATCH(ROW()-7,CALC_BASE!$M$3:$M$135,0)),"") -> 3 | G130: =IFERROR(IF(D130="","",INDEX(tb_vendas[Preço de Venda],MATCH(D130,tb_vendas[N° Pedido/Empresa],0))/F130),"") -> R$ 1,583.33 | H130: =IFERROR(IF(D130="","",INDEX(tb_vendas[Data Fechamento],MATCH(D130,tb_vendas[N° Pedido/Empresa],0))+E130*INDEX(tb_formas_pagamento[Dias_Intervalo],MATCH(INDEX(tb_vendas[Forma_Pagamento],MATCH(D130,tb_vendas[N° Pedido/Empresa],0)),tb_formas_pagamento[Nome_Forma],0))),"") -> 2025-09-28 | I130: 2025-10-03 | J130: =IF(OR(tb_pagamentos[[#This Row],[Data_Vencimento]]="",tb_pagamentos[[#This Row],[Valor_Parcela]]="",tb_pagamentos[[#This Row],[Qtd_Total_Parcelas]]="",tb_pagamentos[[#This Row],[Nr_Pedido]]=""),"",IF(tb_pagamentos[[#This Row],[Data_Pagamento]]<>"","Pago",IF(AND(tb_pagamentos[[#This Row],[Data_Pagamento]]="",tb_pagamentos[[#This Row],[Data_Vencimento]]<TODAY()),"Em Atraso","A vencer"))) -> Pago
C131: PED-051-3 | D131: =IFERROR(INDEX(CALC_BASE!$N$3:$N$135,MATCH(ROW()-7,CALC_BASE!$M$3:$M$135,0)),"") -> PED-051 | E131: =IFERROR(INDEX(CALC_BASE!$O$3:$O$135,MATCH(ROW()-7,CALC_BASE!$M$3:$M$135,0)),"") -> 3 | F131: =IFERROR(INDEX(CALC_BASE!$P$3:$P$135,MATCH(ROW()-7,CALC_BASE!$M$3:$M$135,0)),"") -> 3 | G131: =IFERROR(IF(D131="","",INDEX(tb_vendas[Preço de Venda],MATCH(D131,tb_vendas[N° Pedido/Empresa],0))/F131),"") -> R$ 1,583.33 | H131: =IFERROR(IF(D131="","",INDEX(tb_vendas[Data Fechamento],MATCH(D131,tb_vendas[N° Pedido/Empresa],0))+E131*INDEX(tb_formas_pagamento[Dias_Intervalo],MATCH(INDEX(tb_vendas[Forma_Pagamento],MATCH(D131,tb_vendas[N° Pedido/Empresa],0)),tb_formas_pagamento[Nome_Forma],0))),"") -> 2025-10-12 | I131: 2025-10-17 | J131: =IF(OR(tb_pagamentos[[#This Row],[Data_Vencimento]]="",tb_pagamentos[[#This Row],[Valor_Parcela]]="",tb_pagamentos[[#This Row],[Qtd_Total_Parcelas]]="",tb_pagamentos[[#This Row],[Nr_Pedido]]=""),"",IF(tb_pagamentos[[#This Row],[Data_Pagamento]]<>"","Pago",IF(AND(tb_pagamentos[[#This Row],[Data_Pagamento]]="",tb_pagamentos[[#This Row],[Data_Vencimento]]<TODAY()),"Em Atraso","A vencer"))) -> Pago
C132: PED-052-1 | D132: =IFERROR(INDEX(CALC_BASE!$N$3:$N$135,MATCH(ROW()-7,CALC_BASE!$M$3:$M$135,0)),"") -> PED-052 | E132: =IFERROR(INDEX(CALC_BASE!$O$3:$O$135,MATCH(ROW()-7,CALC_BASE!$M$3:$M$135,0)),"") -> 1 | F132: =IFERROR(INDEX(CALC_BASE!$P$3:$P$135,MATCH(ROW()-7,CALC_BASE!$M$3:$M$135,0)),"") -> 2 | G132: =IFERROR(IF(D132="","",INDEX(tb_vendas[Preço de Venda],MATCH(D132,tb_vendas[N° Pedido/Empresa],0))/F132),"") -> R$ 800.00 | H132: =IFERROR(IF(D132="","",INDEX(tb_vendas[Data Fechamento],MATCH(D132,tb_vendas[N° Pedido/Empresa],0))+E132*INDEX(tb_formas_pagamento[Dias_Intervalo],MATCH(INDEX(tb_vendas[Forma_Pagamento],MATCH(D132,tb_vendas[N° Pedido/Empresa],0)),tb_formas_pagamento[Nome_Forma],0))),"") -> 2026-01-17 | I132: 2026-01-29 | J132: =IF(OR(tb_pagamentos[[#This Row],[Data_Vencimento]]="",tb_pagamentos[[#This Row],[Valor_Parcela]]="",tb_pagamentos[[#This Row],[Qtd_Total_Parcelas]]="",tb_pagamentos[[#This Row],[Nr_Pedido]]=""),"",IF(tb_pagamentos[[#This Row],[Data_Pagamento]]<>"","Pago",IF(AND(tb_pagamentos[[#This Row],[Data_Pagamento]]="",tb_pagamentos[[#This Row],[Data_Vencimento]]<TODAY()),"Em Atraso","A vencer"))) -> Pago
C133: PED-052-2 | D133: =IFERROR(INDEX(CALC_BASE!$N$3:$N$135,MATCH(ROW()-7,CALC_BASE!$M$3:$M$135,0)),"") -> PED-052 | E133: =IFERROR(INDEX(CALC_BASE!$O$3:$O$135,MATCH(ROW()-7,CALC_BASE!$M$3:$M$135,0)),"") -> 2 | F133: =IFERROR(INDEX(CALC_BASE!$P$3:$P$135,MATCH(ROW()-7,CALC_BASE!$M$3:$M$135,0)),"") -> 2 | G133: =IFERROR(IF(D133="","",INDEX(tb_vendas[Preço de Venda],MATCH(D133,tb_vendas[N° Pedido/Empresa],0))/F133),"") -> R$ 800.00 | H133: =IFERROR(IF(D133="","",INDEX(tb_vendas[Data Fechamento],MATCH(D133,tb_vendas[N° Pedido/Empresa],0))+E133*INDEX(tb_formas_pagamento[Dias_Intervalo],MATCH(INDEX(tb_vendas[Forma_Pagamento],MATCH(D133,tb_vendas[N° Pedido/Empresa],0)),tb_formas_pagamento[Nome_Forma],0))),"") -> 2026-01-31 | I133: 2026-02-12 | J133: =IF(OR(tb_pagamentos[[#This Row],[Data_Vencimento]]="",tb_pagamentos[[#This Row],[Valor_Parcela]]="",tb_pagamentos[[#This Row],[Qtd_Total_Parcelas]]="",tb_pagamentos[[#This Row],[Nr_Pedido]]=""),"",IF(tb_pagamentos[[#This Row],[Data_Pagamento]]<>"","Pago",IF(AND(tb_pagamentos[[#This Row],[Data_Pagamento]]="",tb_pagamentos[[#This Row],[Data_Vencimento]]<TODAY()),"Em Atraso","A vencer"))) -> Pago
C134: PED-053-1 | D134: =IFERROR(INDEX(CALC_BASE!$N$3:$N$135,MATCH(ROW()-7,CALC_BASE!$M$3:$M$135,0)),"") -> PED-053 | E134: =IFERROR(INDEX(CALC_BASE!$O$3:$O$135,MATCH(ROW()-7,CALC_BASE!$M$3:$M$135,0)),"") -> 1 | F134: =IFERROR(INDEX(CALC_BASE!$P$3:$P$135,MATCH(ROW()-7,CALC_BASE!$M$3:$M$135,0)),"") -> 2 | G134: =IFERROR(IF(D134="","",INDEX(tb_vendas[Preço de Venda],MATCH(D134,tb_vendas[N° Pedido/Empresa],0))/F134),"") -> R$ 1,550.00 | H134: =IFERROR(IF(D134="","",INDEX(tb_vendas[Data Fechamento],MATCH(D134,tb_vendas[N° Pedido/Empresa],0))+E134*INDEX(tb_formas_pagamento[Dias_Intervalo],MATCH(INDEX(tb_vendas[Forma_Pagamento],MATCH(D134,tb_vendas[N° Pedido/Empresa],0)),tb_formas_pagamento[Nome_Forma],0))),"") -> 2025-05-23 | I134: 2025-05-21 | J134: =IF(OR(tb_pagamentos[[#This Row],[Data_Vencimento]]="",tb_pagamentos[[#This Row],[Valor_Parcela]]="",tb_pagamentos[[#This Row],[Qtd_Total_Parcelas]]="",tb_pagamentos[[#This Row],[Nr_Pedido]]=""),"",IF(tb_pagamentos[[#This Row],[Data_Pagamento]]<>"","Pago",IF(AND(tb_pagamentos[[#This Row],[Data_Pagamento]]="",tb_pagamentos[[#This Row],[Data_Vencimento]]<TODAY()),"Em Atraso","A vencer"))) -> Pago
C135: PED-053-2 | D135: =IFERROR(INDEX(CALC_BASE!$N$3:$N$135,MATCH(ROW()-7,CALC_BASE!$M$3:$M$135,0)),"") -> PED-053 | E135: =IFERROR(INDEX(CALC_BASE!$O$3:$O$135,MATCH(ROW()-7,CALC_BASE!$M$3:$M$135,0)),"") -> 2 | F135: =IFERROR(INDEX(CALC_BASE!$P$3:$P$135,MATCH(ROW()-7,CALC_BASE!$M$3:$M$135,0)),"") -> 2 | G135: =IFERROR(IF(D135="","",INDEX(tb_vendas[Preço de Venda],MATCH(D135,tb_vendas[N° Pedido/Empresa],0))/F135),"") -> R$ 1,550.00 | H135: =IFERROR(IF(D135="","",INDEX(tb_vendas[Data Fechamento],MATCH(D135,tb_vendas[N° Pedido/Empresa],0))+E135*INDEX(tb_formas_pagamento[Dias_Intervalo],MATCH(INDEX(tb_vendas[Forma_Pagamento],MATCH(D135,tb_vendas[N° Pedido/Empresa],0)),tb_formas_pagamento[Nome_Forma],0))),"") -> 2025-06-22 | I135: 2025-06-20 | J135: =IF(OR(tb_pagamentos[[#This Row],[Data_Vencimento]]="",tb_pagamentos[[#This Row],[Valor_Parcela]]="",tb_pagamentos[[#This Row],[Qtd_Total_Parcelas]]="",tb_pagamentos[[#This Row],[Nr_Pedido]]=""),"",IF(tb_pagamentos[[#This Row],[Data_Pagamento]]<>"","Pago",IF(AND(tb_pagamentos[[#This Row],[Data_Pagamento]]="",tb_pagamentos[[#This Row],[Data_Vencimento]]<TODAY()),"Em Atraso","A vencer"))) -> Pago
C136: =IF(OR(D136="",E136=""),"",D136&"-"&E136) -> PED-054-1 | D136: =IFERROR(INDEX(CALC_BASE!$N$3:$N$135,MATCH(ROW()-7,CALC_BASE!$M$3:$M$135,0)),"") -> PED-054 | E136: =IFERROR(INDEX(CALC_BASE!$O$3:$O$135,MATCH(ROW()-7,CALC_BASE!$M$3:$M$135,0)),"") -> 1 | F136: =IFERROR(INDEX(CALC_BASE!$P$3:$P$135,MATCH(ROW()-7,CALC_BASE!$M$3:$M$135,0)),"") -> 1 | G136: =IFERROR(IF(D136="","",INDEX(tb_vendas[Preço de Venda],MATCH(D136,tb_vendas[N° Pedido/Empresa],0))/F136),"") -> R$ 870.00 | H136: =IFERROR(IF(D136="","",INDEX(tb_vendas[Data Fechamento],MATCH(D136,tb_vendas[N° Pedido/Empresa],0))+E136*INDEX(tb_formas_pagamento[Dias_Intervalo],MATCH(INDEX(tb_vendas[Forma_Pagamento],MATCH(D136,tb_vendas[N° Pedido/Empresa],0)),tb_formas_pagamento[Nome_Forma],0))),"") -> 2026-03-09 | I136: 2026-03-08 | J136: =IF(OR(tb_pagamentos[[#This Row],[Data_Vencimento]]="",tb_pagamentos[[#This Row],[Valor_Parcela]]="",tb_pagamentos[[#This Row],[Qtd_Total_Parcelas]]="",tb_pagamentos[[#This Row],[Nr_Pedido]]=""),"",IF(tb_pagamentos[[#This Row],[Data_Pagamento]]<>"","Pago",IF(AND(tb_pagamentos[[#This Row],[Data_Pagamento]]="",tb_pagamentos[[#This Row],[Data_Vencimento]]<TODAY()),"Em Atraso","A vencer"))) -> Pago
C137: PED-055-1 | D137: =IFERROR(INDEX(CALC_BASE!$N$3:$N$135,MATCH(ROW()-7,CALC_BASE!$M$3:$M$135,0)),"") -> PED-055 | E137: =IFERROR(INDEX(CALC_BASE!$O$3:$O$135,MATCH(ROW()-7,CALC_BASE!$M$3:$M$135,0)),"") -> 1 | F137: =IFERROR(INDEX(CALC_BASE!$P$3:$P$135,MATCH(ROW()-7,CALC_BASE!$M$3:$M$135,0)),"") -> 4 | G137: =IFERROR(IF(D137="","",INDEX(tb_vendas[Preço de Venda],MATCH(D137,tb_vendas[N° Pedido/Empresa],0))/F137),"") -> R$ 1,775.00 | H137: =IFERROR(IF(D137="","",INDEX(tb_vendas[Data Fechamento],MATCH(D137,tb_vendas[N° Pedido/Empresa],0))+E137*INDEX(tb_formas_pagamento[Dias_Intervalo],MATCH(INDEX(tb_vendas[Forma_Pagamento],MATCH(D137,tb_vendas[N° Pedido/Empresa],0)),tb_formas_pagamento[Nome_Forma],0))),"") -> 2024-12-28 | I137: 2025-01-09 | J137: =IF(OR(tb_pagamentos[[#This Row],[Data_Vencimento]]="",tb_pagamentos[[#This Row],[Valor_Parcela]]="",tb_pagamentos[[#This Row],[Qtd_Total_Parcelas]]="",tb_pagamentos[[#This Row],[Nr_Pedido]]=""),"",IF(tb_pagamentos[[#This Row],[Data_Pagamento]]<>"","Pago",IF(AND(tb_pagamentos[[#This Row],[Data_Pagamento]]="",tb_pagamentos[[#This Row],[Data_Vencimento]]<TODAY()),"Em Atraso","A vencer"))) -> Pago
C138: PED-055-2 | D138: =IFERROR(INDEX(CALC_BASE!$N$3:$N$135,MATCH(ROW()-7,CALC_BASE!$M$3:$M$135,0)),"") -> PED-055 | E138: =IFERROR(INDEX(CALC_BASE!$O$3:$O$135,MATCH(ROW()-7,CALC_BASE!$M$3:$M$135,0)),"") -> 2 | F138: =IFERROR(INDEX(CALC_BASE!$P$3:$P$135,MATCH(ROW()-7,CALC_BASE!$M$3:$M$135,0)),"") -> 4 | G138: =IFERROR(IF(D138="","",INDEX(tb_vendas[Preço de Venda],MATCH(D138,tb_vendas[N° Pedido/Empresa],0))/F138),"") -> R$ 1,775.00 | H138: =IFERROR(IF(D138="","",INDEX(tb_vendas[Data Fechamento],MATCH(D138,tb_vendas[N° Pedido/Empresa],0))+E138*INDEX(tb_formas_pagamento[Dias_Intervalo],MATCH(INDEX(tb_vendas[Forma_Pagamento],MATCH(D138,tb_vendas[N° Pedido/Empresa],0)),tb_formas_pagamento[Nome_Forma],0))),"") -> 2025-01-11 | J138: =IF(OR(tb_pagamentos[[#This Row],[Data_Vencimento]]="",tb_pagamentos[[#This Row],[Valor_Parcela]]="",tb_pagamentos[[#This Row],[Qtd_Total_Parcelas]]="",tb_pagamentos[[#This Row],[Nr_Pedido]]=""),"",IF(tb_pagamentos[[#This Row],[Data_Pagamento]]<>"","Pago",IF(AND(tb_pagamentos[[#This Row],[Data_Pagamento]]="",tb_pagamentos[[#This Row],[Data_Vencimento]]<TODAY()),"Em Atraso","A vencer"))) -> Em Atraso
C139: PED-055-3 | D139: =IFERROR(INDEX(CALC_BASE!$N$3:$N$135,MATCH(ROW()-7,CALC_BASE!$M$3:$M$135,0)),"") -> PED-055 | E139: =IFERROR(INDEX(CALC_BASE!$O$3:$O$135,MATCH(ROW()-7,CALC_BASE!$M$3:$M$135,0)),"") -> 3 | F139: =IFERROR(INDEX(CALC_BASE!$P$3:$P$135,MATCH(ROW()-7,CALC_BASE!$M$3:$M$135,0)),"") -> 4 | G139: =IFERROR(IF(D139="","",INDEX(tb_vendas[Preço de Venda],MATCH(D139,tb_vendas[N° Pedido/Empresa],0))/F139),"") -> R$ 1,775.00 | H139: =IFERROR(IF(D139="","",INDEX(tb_vendas[Data Fechamento],MATCH(D139,tb_vendas[N° Pedido/Empresa],0))+E139*INDEX(tb_formas_pagamento[Dias_Intervalo],MATCH(INDEX(tb_vendas[Forma_Pagamento],MATCH(D139,tb_vendas[N° Pedido/Empresa],0)),tb_formas_pagamento[Nome_Forma],0))),"") -> 2025-01-25 | J139: =IF(OR(tb_pagamentos[[#This Row],[Data_Vencimento]]="",tb_pagamentos[[#This Row],[Valor_Parcela]]="",tb_pagamentos[[#This Row],[Qtd_Total_Parcelas]]="",tb_pagamentos[[#This Row],[Nr_Pedido]]=""),"",IF(tb_pagamentos[[#This Row],[Data_Pagamento]]<>"","Pago",IF(AND(tb_pagamentos[[#This Row],[Data_Pagamento]]="",tb_pagamentos[[#This Row],[Data_Vencimento]]<TODAY()),"Em Atraso","A vencer"))) -> Em Atraso
C140: PED-055-4 | D140: =IFERROR(INDEX(CALC_BASE!$N$3:$N$135,MATCH(ROW()-7,CALC_BASE!$M$3:$M$135,0)),"") -> PED-055 | E140: =IFERROR(INDEX(CALC_BASE!$O$3:$O$135,MATCH(ROW()-7,CALC_BASE!$M$3:$M$135,0)),"") -> 4 | F140: =IFERROR(INDEX(CALC_BASE!$P$3:$P$135,MATCH(ROW()-7,CALC_BASE!$M$3:$M$135,0)),"") -> 4 | G140: =IFERROR(IF(D140="","",INDEX(tb_vendas[Preço de Venda],MATCH(D140,tb_vendas[N° Pedido/Empresa],0))/F140),"") -> R$ 1,775.00 | H140: =IFERROR(IF(D140="","",INDEX(tb_vendas[Data Fechamento],MATCH(D140,tb_vendas[N° Pedido/Empresa],0))+E140*INDEX(tb_formas_pagamento[Dias_Intervalo],MATCH(INDEX(tb_vendas[Forma_Pagamento],MATCH(D140,tb_vendas[N° Pedido/Empresa],0)),tb_formas_pagamento[Nome_Forma],0))),"") -> 2025-02-08 | J140: =IF(OR(tb_pagamentos[[#This Row],[Data_Vencimento]]="",tb_pagamentos[[#This Row],[Valor_Parcela]]="",tb_pagamentos[[#This Row],[Qtd_Total_Parcelas]]="",tb_pagamentos[[#This Row],[Nr_Pedido]]=""),"",IF(tb_pagamentos[[#This Row],[Data_Pagamento]]<>"","Pago",IF(AND(tb_pagamentos[[#This Row],[Data_Pagamento]]="",tb_pagamentos[[#This Row],[Data_Vencimento]]<TODAY()),"Em Atraso","A vencer"))) -> Em Atraso
C141: =IF(OR(D141="",E141=""),"",D141&"-"&E141) ->  | D141: =IFERROR(INDEX(CALC_BASE!$N$3:$N$52,MATCH(ROW()-7,CALC_BASE!$M$3:$M$52,0)),"") ->  | E141: =IFERROR(INDEX(CALC_BASE!$O$3:$O$52,MATCH(ROW()-7,CALC_BASE!$M$3:$M$52,0)),"") ->  | F141: =IFERROR(INDEX(CALC_BASE!$P$3:$P$52,MATCH(ROW()-7,CALC_BASE!$M$3:$M$52,0)),"") ->  | G141: =IFERROR(IF(D141="","",INDEX(tb_vendas[Preço de Venda],MATCH(D141,tb_vendas[N° Pedido/Empresa],0))/F141),"") ->  | H141: =IFERROR(IF(D141="","",INDEX(tb_vendas[Data Fechamento],MATCH(D141,tb_vendas[N° Pedido/Empresa],0))+E141*INDEX(tb_formas_pagamento[Dias_Intervalo],MATCH(INDEX(tb_vendas[Forma_Pagamento],MATCH(D141,tb_vendas[N° Pedido/Empresa],0)),tb_formas_pagamento[Nome_Forma],0))),"") ->  | J141: =IF(OR(tb_pagamentos[[#This Row],[Data_Vencimento]]="",tb_pagamentos[[#This Row],[Valor_Parcela]]="",tb_pagamentos[[#This Row],[Qtd_Total_Parcelas]]="",tb_pagamentos[[#This Row],[Nr_Pedido]]=""),"",IF(tb_pagamentos[[#This Row],[Data_Pagamento]]<>"","Pago",IF(AND(tb_pagamentos[[#This Row],[Data_Pagamento]]="",tb_pagamentos[[#This Row],[Data_Vencimento]]<TODAY()),"Em Atraso","A vencer"))) -> 
D142: =IFERROR(INDEX(CALC_BASE!$N$3:$N$52,MATCH(ROW()-7,CALC_BASE!$M$3:$M$52,0)),"") ->  | E142: =IFERROR(INDEX(CALC_BASE!$O$3:$O$52,MATCH(ROW()-7,CALC_BASE!$M$3:$M$52,0)),"") ->  | F142: =IFERROR(INDEX(CALC_BASE!$P$3:$P$52,MATCH(ROW()-7,CALC_BASE!$M$3:$M$52,0)),"") ->  | G142: =IFERROR(IF(D142="","",INDEX(tb_vendas[Preço de Venda],MATCH(D142,tb_vendas[N° Pedido/Empresa],0))/F142),"") ->  | H142: =IFERROR(IF(D142="","",INDEX(tb_vendas[Data Fechamento],MATCH(D142,tb_vendas[N° Pedido/Empresa],0))+E142*INDEX(tb_formas_pagamento[Dias_Intervalo],MATCH(INDEX(tb_vendas[Forma_Pagamento],MATCH(D142,tb_vendas[N° Pedido/Empresa],0)),tb_formas_pagamento[Nome_Forma],0))),"") ->  | J142: =IF(OR(tb_pagamentos[[#This Row],[Data_Vencimento]]="",tb_pagamentos[[#This Row],[Valor_Parcela]]="",tb_pagamentos[[#This Row],[Qtd_Total_Parcelas]]="",tb_pagamentos[[#This Row],[Nr_Pedido]]=""),"",IF(tb_pagamentos[[#This Row],[Data_Pagamento]]<>"","Pago",IF(AND(tb_pagamentos[[#This Row],[Data_Pagamento]]="",tb_pagamentos[[#This Row],[Data_Vencimento]]<TODAY()),"Em Atraso","A vencer"))) -> 
C143: =IF(OR(D143="",E143=""),"",D143&"-"&E143) ->  | D143: =IFERROR(INDEX(CALC_BASE!$N$3:$N$52,MATCH(ROW()-7,CALC_BASE!$M$3:$M$52,0)),"") ->  | E143: =IFERROR(INDEX(CALC_BASE!$O$3:$O$52,MATCH(ROW()-7,CALC_BASE!$M$3:$M$52,0)),"") ->  | F143: =IFERROR(INDEX(CALC_BASE!$P$3:$P$52,MATCH(ROW()-7,CALC_BASE!$M$3:$M$52,0)),"") ->  | G143: =IFERROR(IF(D143="","",INDEX(tb_vendas[Preço de Venda],MATCH(D143,tb_vendas[N° Pedido/Empresa],0))/F143),"") ->  | H143: =IFERROR(IF(D143="","",INDEX(tb_vendas[Data Fechamento],MATCH(D143,tb_vendas[N° Pedido/Empresa],0))+E143*INDEX(tb_formas_pagamento[Dias_Intervalo],MATCH(INDEX(tb_vendas[Forma_Pagamento],MATCH(D143,tb_vendas[N° Pedido/Empresa],0)),tb_formas_pagamento[Nome_Forma],0))),"") ->  | J143: =IF(OR(tb_pagamentos[[#This Row],[Data_Vencimento]]="",tb_pagamentos[[#This Row],[Valor_Parcela]]="",tb_pagamentos[[#This Row],[Qtd_Total_Parcelas]]="",tb_pagamentos[[#This Row],[Nr_Pedido]]=""),"",IF(tb_pagamentos[[#This Row],[Data_Pagamento]]<>"","Pago",IF(AND(tb_pagamentos[[#This Row],[Data_Pagamento]]="",tb_pagamentos[[#This Row],[Data_Vencimento]]<TODAY()),"Em Atraso","A vencer"))) -> 
D144: =IFERROR(INDEX(CALC_BASE!$N$3:$N$52,MATCH(ROW()-7,CALC_BASE!$M$3:$M$52,0)),"") ->  | E144: =IFERROR(INDEX(CALC_BASE!$O$3:$O$52,MATCH(ROW()-7,CALC_BASE!$M$3:$M$52,0)),"") ->  | F144: =IFERROR(INDEX(CALC_BASE!$P$3:$P$52,MATCH(ROW()-7,CALC_BASE!$M$3:$M$52,0)),"") ->  | G144: =IFERROR(IF(D144="","",INDEX(tb_vendas[Preço de Venda],MATCH(D144,tb_vendas[N° Pedido/Empresa],0))/F144),"") ->  | H144: =IFERROR(IF(D144="","",INDEX(tb_vendas[Data Fechamento],MATCH(D144,tb_vendas[N° Pedido/Empresa],0))+E144*INDEX(tb_formas_pagamento[Dias_Intervalo],MATCH(INDEX(tb_vendas[Forma_Pagamento],MATCH(D144,tb_vendas[N° Pedido/Empresa],0)),tb_formas_pagamento[Nome_Forma],0))),"") ->  | J144: =IF(OR(tb_pagamentos[[#This Row],[Data_Vencimento]]="",tb_pagamentos[[#This Row],[Valor_Parcela]]="",tb_pagamentos[[#This Row],[Qtd_Total_Parcelas]]="",tb_pagamentos[[#This Row],[Nr_Pedido]]=""),"",IF(tb_pagamentos[[#This Row],[Data_Pagamento]]<>"","Pago",IF(AND(tb_pagamentos[[#This Row],[Data_Pagamento]]="",tb_pagamentos[[#This Row],[Data_Vencimento]]<TODAY()),"Em Atraso","A vencer"))) -> 
D145: =IFERROR(INDEX(CALC_BASE!$N$3:$N$52,MATCH(ROW()-7,CALC_BASE!$M$3:$M$52,0)),"") ->  | E145: =IFERROR(INDEX(CALC_BASE!$O$3:$O$52,MATCH(ROW()-7,CALC_BASE!$M$3:$M$52,0)),"") ->  | F145: =IFERROR(INDEX(CALC_BASE!$P$3:$P$52,MATCH(ROW()-7,CALC_BASE!$M$3:$M$52,0)),"") ->  | G145: =IFERROR(IF(D145="","",INDEX(tb_vendas[Preço de Venda],MATCH(D145,tb_vendas[N° Pedido/Empresa],0))/F145),"") ->  | H145: =IFERROR(IF(D145="","",INDEX(tb_vendas[Data Fechamento],MATCH(D145,tb_vendas[N° Pedido/Empresa],0))+E145*INDEX(tb_formas_pagamento[Dias_Intervalo],MATCH(INDEX(tb_vendas[Forma_Pagamento],MATCH(D145,tb_vendas[N° Pedido/Empresa],0)),tb_formas_pagamento[Nome_Forma],0))),"") ->  | J145: =IF(OR(tb_pagamentos[[#This Row],[Data_Vencimento]]="",tb_pagamentos[[#This Row],[Valor_Parcela]]="",tb_pagamentos[[#This Row],[Qtd_Total_Parcelas]]="",tb_pagamentos[[#This Row],[Nr_Pedido]]=""),"",IF(tb_pagamentos[[#This Row],[Data_Pagamento]]<>"","Pago",IF(AND(tb_pagamentos[[#This Row],[Data_Pagamento]]="",tb_pagamentos[[#This Row],[Data_Vencimento]]<TODAY()),"Em Atraso","A vencer"))) -> 
D146: =IFERROR(INDEX(CALC_BASE!$N$3:$N$52,MATCH(ROW()-7,CALC_BASE!$M$3:$M$52,0)),"") ->  | E146: =IFERROR(INDEX(CALC_BASE!$O$3:$O$52,MATCH(ROW()-7,CALC_BASE!$M$3:$M$52,0)),"") ->  | F146: =IFERROR(INDEX(CALC_BASE!$P$3:$P$52,MATCH(ROW()-7,CALC_BASE!$M$3:$M$52,0)),"") ->  | G146: =IFERROR(IF(D146="","",INDEX(tb_vendas[Preço de Venda],MATCH(D146,tb_vendas[N° Pedido/Empresa],0))/F146),"") ->  | H146: =IFERROR(IF(D146="","",INDEX(tb_vendas[Data Fechamento],MATCH(D146,tb_vendas[N° Pedido/Empresa],0))+E146*INDEX(tb_formas_pagamento[Dias_Intervalo],MATCH(INDEX(tb_vendas[Forma_Pagamento],MATCH(D146,tb_vendas[N° Pedido/Empresa],0)),tb_formas_pagamento[Nome_Forma],0))),"") ->  | J146: =IF(OR(tb_pagamentos[[#This Row],[Data_Vencimento]]="",tb_pagamentos[[#This Row],[Valor_Parcela]]="",tb_pagamentos[[#This Row],[Qtd_Total_Parcelas]]="",tb_pagamentos[[#This Row],[Nr_Pedido]]=""),"",IF(tb_pagamentos[[#This Row],[Data_Pagamento]]<>"","Pago",IF(AND(tb_pagamentos[[#This Row],[Data_Pagamento]]="",tb_pagamentos[[#This Row],[Data_Vencimento]]<TODAY()),"Em Atraso","A vencer"))) -> 
D147: =IFERROR(INDEX(CALC_BASE!$N$3:$N$52,MATCH(ROW()-7,CALC_BASE!$M$3:$M$52,0)),"") ->  | E147: =IFERROR(INDEX(CALC_BASE!$O$3:$O$52,MATCH(ROW()-7,CALC_BASE!$M$3:$M$52,0)),"") ->  | F147: =IFERROR(INDEX(CALC_BASE!$P$3:$P$52,MATCH(ROW()-7,CALC_BASE!$M$3:$M$52,0)),"") ->  | G147: =IFERROR(IF(D147="","",INDEX(tb_vendas[Preço de Venda],MATCH(D147,tb_vendas[N° Pedido/Empresa],0))/F147),"") ->  | H147: =IFERROR(IF(D147="","",INDEX(tb_vendas[Data Fechamento],MATCH(D147,tb_vendas[N° Pedido/Empresa],0))+E147*INDEX(tb_formas_pagamento[Dias_Intervalo],MATCH(INDEX(tb_vendas[Forma_Pagamento],MATCH(D147,tb_vendas[N° Pedido/Empresa],0)),tb_formas_pagamento[Nome_Forma],0))),"") ->  | J147: =IF(OR(tb_pagamentos[[#This Row],[Data_Vencimento]]="",tb_pagamentos[[#This Row],[Valor_Parcela]]="",tb_pagamentos[[#This Row],[Qtd_Total_Parcelas]]="",tb_pagamentos[[#This Row],[Nr_Pedido]]=""),"",IF(tb_pagamentos[[#This Row],[Data_Pagamento]]<>"","Pago",IF(AND(tb_pagamentos[[#This Row],[Data_Pagamento]]="",tb_pagamentos[[#This Row],[Data_Vencimento]]<TODAY()),"Em Atraso","A vencer"))) -> 
D148: =IFERROR(INDEX(CALC_BASE!$N$3:$N$52,MATCH(ROW()-7,CALC_BASE!$M$3:$M$52,0)),"") ->  | E148: =IFERROR(INDEX(CALC_BASE!$O$3:$O$52,MATCH(ROW()-7,CALC_BASE!$M$3:$M$52,0)),"") ->  | F148: =IFERROR(INDEX(CALC_BASE!$P$3:$P$52,MATCH(ROW()-7,CALC_BASE!$M$3:$M$52,0)),"") ->  | G148: =IFERROR(IF(D148="","",INDEX(tb_vendas[Preço de Venda],MATCH(D148,tb_vendas[N° Pedido/Empresa],0))/F148),"") ->  | H148: =IFERROR(IF(D148="","",INDEX(tb_vendas[Data Fechamento],MATCH(D148,tb_vendas[N° Pedido/Empresa],0))+E148*INDEX(tb_formas_pagamento[Dias_Intervalo],MATCH(INDEX(tb_vendas[Forma_Pagamento],MATCH(D148,tb_vendas[N° Pedido/Empresa],0)),tb_formas_pagamento[Nome_Forma],0))),"") ->  | J148: =IF(OR(tb_pagamentos[[#This Row],[Data_Vencimento]]="",tb_pagamentos[[#This Row],[Valor_Parcela]]="",tb_pagamentos[[#This Row],[Qtd_Total_Parcelas]]="",tb_pagamentos[[#This Row],[Nr_Pedido]]=""),"",IF(tb_pagamentos[[#This Row],[Data_Pagamento]]<>"","Pago",IF(AND(tb_pagamentos[[#This Row],[Data_Pagamento]]="",tb_pagamentos[[#This Row],[Data_Vencimento]]<TODAY()),"Em Atraso","A vencer"))) -> 
D149: =IFERROR(INDEX(CALC_BASE!$N$3:$N$52,MATCH(ROW()-7,CALC_BASE!$M$3:$M$52,0)),"") ->  | E149: =IFERROR(INDEX(CALC_BASE!$O$3:$O$52,MATCH(ROW()-7,CALC_BASE!$M$3:$M$52,0)),"") ->  | F149: =IFERROR(INDEX(CALC_BASE!$P$3:$P$52,MATCH(ROW()-7,CALC_BASE!$M$3:$M$52,0)),"") ->  | G149: =IFERROR(IF(D149="","",INDEX(tb_vendas[Preço de Venda],MATCH(D149,tb_vendas[N° Pedido/Empresa],0))/F149),"") ->  | H149: =IFERROR(IF(D149="","",INDEX(tb_vendas[Data Fechamento],MATCH(D149,tb_vendas[N° Pedido/Empresa],0))+E149*INDEX(tb_formas_pagamento[Dias_Intervalo],MATCH(INDEX(tb_vendas[Forma_Pagamento],MATCH(D149,tb_vendas[N° Pedido/Empresa],0)),tb_formas_pagamento[Nome_Forma],0))),"") ->  | J149: =IF(OR(tb_pagamentos[[#This Row],[Data_Vencimento]]="",tb_pagamentos[[#This Row],[Valor_Parcela]]="",tb_pagamentos[[#This Row],[Qtd_Total_Parcelas]]="",tb_pagamentos[[#This Row],[Nr_Pedido]]=""),"",IF(tb_pagamentos[[#This Row],[Data_Pagamento]]<>"","Pago",IF(AND(tb_pagamentos[[#This Row],[Data_Pagamento]]="",tb_pagamentos[[#This Row],[Data_Vencimento]]<TODAY()),"Em Atraso","A vencer"))) -> 
D150: =IFERROR(INDEX(CALC_BASE!$N$3:$N$52,MATCH(ROW()-7,CALC_BASE!$M$3:$M$52,0)),"") ->  | E150: =IFERROR(INDEX(CALC_BASE!$O$3:$O$52,MATCH(ROW()-7,CALC_BASE!$M$3:$M$52,0)),"") ->  | F150: =IFERROR(INDEX(CALC_BASE!$P$3:$P$52,MATCH(ROW()-7,CALC_BASE!$M$3:$M$52,0)),"") ->  | G150: =IFERROR(IF(D150="","",INDEX(tb_vendas[Preço de Venda],MATCH(D150,tb_vendas[N° Pedido/Empresa],0))/F150),"") ->  | H150: =IFERROR(IF(D150="","",INDEX(tb_vendas[Data Fechamento],MATCH(D150,tb_vendas[N° Pedido/Empresa],0))+E150*INDEX(tb_formas_pagamento[Dias_Intervalo],MATCH(INDEX(tb_vendas[Forma_Pagamento],MATCH(D150,tb_vendas[N° Pedido/Empresa],0)),tb_formas_pagamento[Nome_Forma],0))),"") ->  | J150: =IF(OR(tb_pagamentos[[#This Row],[Data_Vencimento]]="",tb_pagamentos[[#This Row],[Valor_Parcela]]="",tb_pagamentos[[#This Row],[Qtd_Total_Parcelas]]="",tb_pagamentos[[#This Row],[Nr_Pedido]]=""),"",IF(tb_pagamentos[[#This Row],[Data_Pagamento]]<>"","Pago",IF(AND(tb_pagamentos[[#This Row],[Data_Pagamento]]="",tb_pagamentos[[#This Row],[Data_Vencimento]]<TODAY()),"Em Atraso","A vencer"))) -> 
D151: =IFERROR(INDEX(CALC_BASE!$N$3:$N$52,MATCH(ROW()-7,CALC_BASE!$M$3:$M$52,0)),"") ->  | E151: =IFERROR(INDEX(CALC_BASE!$O$3:$O$52,MATCH(ROW()-7,CALC_BASE!$M$3:$M$52,0)),"") ->  | F151: =IFERROR(INDEX(CALC_BASE!$P$3:$P$52,MATCH(ROW()-7,CALC_BASE!$M$3:$M$52,0)),"") ->  | G151: =IFERROR(IF(D151="","",INDEX(tb_vendas[Preço de Venda],MATCH(D151,tb_vendas[N° Pedido/Empresa],0))/F151),"") ->  | H151: =IFERROR(IF(D151="","",INDEX(tb_vendas[Data Fechamento],MATCH(D151,tb_vendas[N° Pedido/Empresa],0))+E151*INDEX(tb_formas_pagamento[Dias_Intervalo],MATCH(INDEX(tb_vendas[Forma_Pagamento],MATCH(D151,tb_vendas[N° Pedido/Empresa],0)),tb_formas_pagamento[Nome_Forma],0))),"") ->  | J151: =IF(OR(tb_pagamentos[[#This Row],[Data_Vencimento]]="",tb_pagamentos[[#This Row],[Valor_Parcela]]="",tb_pagamentos[[#This Row],[Qtd_Total_Parcelas]]="",tb_pagamentos[[#This Row],[Nr_Pedido]]=""),"",IF(tb_pagamentos[[#This Row],[Data_Pagamento]]<>"","Pago",IF(AND(tb_pagamentos[[#This Row],[Data_Pagamento]]="",tb_pagamentos[[#This Row],[Data_Vencimento]]<TODAY()),"Em Atraso","A vencer"))) -> 
D152: =IFERROR(INDEX(CALC_BASE!$N$3:$N$52,MATCH(ROW()-7,CALC_BASE!$M$3:$M$52,0)),"") ->  | E152: =IFERROR(INDEX(CALC_BASE!$O$3:$O$52,MATCH(ROW()-7,CALC_BASE!$M$3:$M$52,0)),"") ->  | F152: =IFERROR(INDEX(CALC_BASE!$P$3:$P$52,MATCH(ROW()-7,CALC_BASE!$M$3:$M$52,0)),"") ->  | G152: =IFERROR(IF(D152="","",INDEX(tb_vendas[Preço de Venda],MATCH(D152,tb_vendas[N° Pedido/Empresa],0))/F152),"") ->  | H152: =IFERROR(IF(D152="","",INDEX(tb_vendas[Data Fechamento],MATCH(D152,tb_vendas[N° Pedido/Empresa],0))+E152*INDEX(tb_formas_pagamento[Dias_Intervalo],MATCH(INDEX(tb_vendas[Forma_Pagamento],MATCH(D152,tb_vendas[N° Pedido/Empresa],0)),tb_formas_pagamento[Nome_Forma],0))),"") ->  | J152: =IF(OR(tb_pagamentos[[#This Row],[Data_Vencimento]]="",tb_pagamentos[[#This Row],[Valor_Parcela]]="",tb_pagamentos[[#This Row],[Qtd_Total_Parcelas]]="",tb_pagamentos[[#This Row],[Nr_Pedido]]=""),"",IF(tb_pagamentos[[#This Row],[Data_Pagamento]]<>"","Pago",IF(AND(tb_pagamentos[[#This Row],[Data_Pagamento]]="",tb_pagamentos[[#This Row],[Data_Vencimento]]<TODAY()),"Em Atraso","A vencer"))) -> 
D153: =IFERROR(INDEX(CALC_BASE!$N$3:$N$52,MATCH(ROW()-7,CALC_BASE!$M$3:$M$52,0)),"") ->  | E153: =IFERROR(INDEX(CALC_BASE!$O$3:$O$52,MATCH(ROW()-7,CALC_BASE!$M$3:$M$52,0)),"") ->  | F153: =IFERROR(INDEX(CALC_BASE!$P$3:$P$52,MATCH(ROW()-7,CALC_BASE!$M$3:$M$52,0)),"") ->  | G153: =IFERROR(IF(D153="","",INDEX(tb_vendas[Preço de Venda],MATCH(D153,tb_vendas[N° Pedido/Empresa],0))/F153),"") ->  | H153: =IFERROR(IF(D153="","",INDEX(tb_vendas[Data Fechamento],MATCH(D153,tb_vendas[N° Pedido/Empresa],0))+E153*INDEX(tb_formas_pagamento[Dias_Intervalo],MATCH(INDEX(tb_vendas[Forma_Pagamento],MATCH(D153,tb_vendas[N° Pedido/Empresa],0)),tb_formas_pagamento[Nome_Forma],0))),"") ->  | J153: =IF(OR(tb_pagamentos[[#This Row],[Data_Vencimento]]="",tb_pagamentos[[#This Row],[Valor_Parcela]]="",tb_pagamentos[[#This Row],[Qtd_Total_Parcelas]]="",tb_pagamentos[[#This Row],[Nr_Pedido]]=""),"",IF(tb_pagamentos[[#This Row],[Data_Pagamento]]<>"","Pago",IF(AND(tb_pagamentos[[#This Row],[Data_Pagamento]]="",tb_pagamentos[[#This Row],[Data_Vencimento]]<TODAY()),"Em Atraso","A vencer"))) -> 
D154: =IFERROR(INDEX(CALC_BASE!$N$3:$N$52,MATCH(ROW()-7,CALC_BASE!$M$3:$M$52,0)),"") ->  | E154: =IFERROR(INDEX(CALC_BASE!$O$3:$O$52,MATCH(ROW()-7,CALC_BASE!$M$3:$M$52,0)),"") ->  | F154: =IFERROR(INDEX(CALC_BASE!$P$3:$P$52,MATCH(ROW()-7,CALC_BASE!$M$3:$M$52,0)),"") ->  | G154: =IFERROR(IF(D154="","",INDEX(tb_vendas[Preço de Venda],MATCH(D154,tb_vendas[N° Pedido/Empresa],0))/F154),"") ->  | H154: =IFERROR(IF(D154="","",INDEX(tb_vendas[Data Fechamento],MATCH(D154,tb_vendas[N° Pedido/Empresa],0))+E154*INDEX(tb_formas_pagamento[Dias_Intervalo],MATCH(INDEX(tb_vendas[Forma_Pagamento],MATCH(D154,tb_vendas[N° Pedido/Empresa],0)),tb_formas_pagamento[Nome_Forma],0))),"") ->  | J154: =IF(OR(tb_pagamentos[[#This Row],[Data_Vencimento]]="",tb_pagamentos[[#This Row],[Valor_Parcela]]="",tb_pagamentos[[#This Row],[Qtd_Total_Parcelas]]="",tb_pagamentos[[#This Row],[Nr_Pedido]]=""),"",IF(tb_pagamentos[[#This Row],[Data_Pagamento]]<>"","Pago",IF(AND(tb_pagamentos[[#This Row],[Data_Pagamento]]="",tb_pagamentos[[#This Row],[Data_Vencimento]]<TODAY()),"Em Atraso","A vencer"))) -> 
D155: =IFERROR(INDEX(CALC_BASE!$N$3:$N$52,MATCH(ROW()-7,CALC_BASE!$M$3:$M$52,0)),"") ->  | E155: =IFERROR(INDEX(CALC_BASE!$O$3:$O$52,MATCH(ROW()-7,CALC_BASE!$M$3:$M$52,0)),"") ->  | F155: =IFERROR(INDEX(CALC_BASE!$P$3:$P$52,MATCH(ROW()-7,CALC_BASE!$M$3:$M$52,0)),"") ->  | G155: =IFERROR(IF(D155="","",INDEX(tb_vendas[Preço de Venda],MATCH(D155,tb_vendas[N° Pedido/Empresa],0))/F155),"") ->  | H155: =IFERROR(IF(D155="","",INDEX(tb_vendas[Data Fechamento],MATCH(D155,tb_vendas[N° Pedido/Empresa],0))+E155*INDEX(tb_formas_pagamento[Dias_Intervalo],MATCH(INDEX(tb_vendas[Forma_Pagamento],MATCH(D155,tb_vendas[N° Pedido/Empresa],0)),tb_formas_pagamento[Nome_Forma],0))),"") ->  | J155: =IF(OR(tb_pagamentos[[#This Row],[Data_Vencimento]]="",tb_pagamentos[[#This Row],[Valor_Parcela]]="",tb_pagamentos[[#This Row],[Qtd_Total_Parcelas]]="",tb_pagamentos[[#This Row],[Nr_Pedido]]=""),"",IF(tb_pagamentos[[#This Row],[Data_Pagamento]]<>"","Pago",IF(AND(tb_pagamentos[[#This Row],[Data_Pagamento]]="",tb_pagamentos[[#This Row],[Data_Vencimento]]<TODAY()),"Em Atraso","A vencer"))) -> 
D156: =IFERROR(INDEX(CALC_BASE!$N$3:$N$52,MATCH(ROW()-7,CALC_BASE!$M$3:$M$52,0)),"") ->  | E156: =IFERROR(INDEX(CALC_BASE!$O$3:$O$52,MATCH(ROW()-7,CALC_BASE!$M$3:$M$52,0)),"") ->  | F156: =IFERROR(INDEX(CALC_BASE!$P$3:$P$52,MATCH(ROW()-7,CALC_BASE!$M$3:$M$52,0)),"") ->  | G156: =IFERROR(IF(D156="","",INDEX(tb_vendas[Preço de Venda],MATCH(D156,tb_vendas[N° Pedido/Empresa],0))/F156),"") ->  | H156: =IFERROR(IF(D156="","",INDEX(tb_vendas[Data Fechamento],MATCH(D156,tb_vendas[N° Pedido/Empresa],0))+E156*INDEX(tb_formas_pagamento[Dias_Intervalo],MATCH(INDEX(tb_vendas[Forma_Pagamento],MATCH(D156,tb_vendas[N° Pedido/Empresa],0)),tb_formas_pagamento[Nome_Forma],0))),"") ->  | J156: =IF(OR(tb_pagamentos[[#This Row],[Data_Vencimento]]="",tb_pagamentos[[#This Row],[Valor_Parcela]]="",tb_pagamentos[[#This Row],[Qtd_Total_Parcelas]]="",tb_pagamentos[[#This Row],[Nr_Pedido]]=""),"",IF(tb_pagamentos[[#This Row],[Data_Pagamento]]<>"","Pago",IF(AND(tb_pagamentos[[#This Row],[Data_Pagamento]]="",tb_pagamentos[[#This Row],[Data_Vencimento]]<TODAY()),"Em Atraso","A vencer"))) -> 
D157: =IFERROR(INDEX(CALC_BASE!$N$3:$N$52,MATCH(ROW()-7,CALC_BASE!$M$3:$M$52,0)),"") ->  | E157: =IFERROR(INDEX(CALC_BASE!$O$3:$O$52,MATCH(ROW()-7,CALC_BASE!$M$3:$M$52,0)),"") ->  | F157: =IFERROR(INDEX(CALC_BASE!$P$3:$P$52,MATCH(ROW()-7,CALC_BASE!$M$3:$M$52,0)),"") ->  | G157: =IFERROR(IF(D157="","",INDEX(tb_vendas[Preço de Venda],MATCH(D157,tb_vendas[N° Pedido/Empresa],0))/F157),"") ->  | H157: =IFERROR(IF(D157="","",INDEX(tb_vendas[Data Fechamento],MATCH(D157,tb_vendas[N° Pedido/Empresa],0))+E157*INDEX(tb_formas_pagamento[Dias_Intervalo],MATCH(INDEX(tb_vendas[Forma_Pagamento],MATCH(D157,tb_vendas[N° Pedido/Empresa],0)),tb_formas_pagamento[Nome_Forma],0))),"") ->  | J157: =IF(OR(tb_pagamentos[[#This Row],[Data_Vencimento]]="",tb_pagamentos[[#This Row],[Valor_Parcela]]="",tb_pagamentos[[#This Row],[Qtd_Total_Parcelas]]="",tb_pagamentos[[#This Row],[Nr_Pedido]]=""),"",IF(tb_pagamentos[[#This Row],[Data_Pagamento]]<>"","Pago",IF(AND(tb_pagamentos[[#This Row],[Data_Pagamento]]="",tb_pagamentos[[#This Row],[Data_Vencimento]]<TODAY()),"Em Atraso","A vencer"))) -> 
D158: =IFERROR(INDEX(CALC_BASE!$N$3:$N$52,MATCH(ROW()-7,CALC_BASE!$M$3:$M$52,0)),"") ->  | E158: =IFERROR(INDEX(CALC_BASE!$O$3:$O$52,MATCH(ROW()-7,CALC_BASE!$M$3:$M$52,0)),"") ->  | F158: =IFERROR(INDEX(CALC_BASE!$P$3:$P$52,MATCH(ROW()-7,CALC_BASE!$M$3:$M$52,0)),"") ->  | G158: =IFERROR(IF(D158="","",INDEX(tb_vendas[Preço de Venda],MATCH(D158,tb_vendas[N° Pedido/Empresa],0))/F158),"") ->  | H158: =IFERROR(IF(D158="","",INDEX(tb_vendas[Data Fechamento],MATCH(D158,tb_vendas[N° Pedido/Empresa],0))+E158*INDEX(tb_formas_pagamento[Dias_Intervalo],MATCH(INDEX(tb_vendas[Forma_Pagamento],MATCH(D158,tb_vendas[N° Pedido/Empresa],0)),tb_formas_pagamento[Nome_Forma],0))),"") ->  | J158: =IF(OR(tb_pagamentos[[#This Row],[Data_Vencimento]]="",tb_pagamentos[[#This Row],[Valor_Parcela]]="",tb_pagamentos[[#This Row],[Qtd_Total_Parcelas]]="",tb_pagamentos[[#This Row],[Nr_Pedido]]=""),"",IF(tb_pagamentos[[#This Row],[Data_Pagamento]]<>"","Pago",IF(AND(tb_pagamentos[[#This Row],[Data_Pagamento]]="",tb_pagamentos[[#This Row],[Data_Vencimento]]<TODAY()),"Em Atraso","A vencer"))) -> 
D159: =IFERROR(INDEX(CALC_BASE!$N$3:$N$52,MATCH(ROW()-7,CALC_BASE!$M$3:$M$52,0)),"") ->  | E159: =IFERROR(INDEX(CALC_BASE!$O$3:$O$52,MATCH(ROW()-7,CALC_BASE!$M$3:$M$52,0)),"") ->  | F159: =IFERROR(INDEX(CALC_BASE!$P$3:$P$52,MATCH(ROW()-7,CALC_BASE!$M$3:$M$52,0)),"") ->  | G159: =IFERROR(IF(D159="","",INDEX(tb_vendas[Preço de Venda],MATCH(D159,tb_vendas[N° Pedido/Empresa],0))/F159),"") ->  | H159: =IFERROR(IF(D159="","",INDEX(tb_vendas[Data Fechamento],MATCH(D159,tb_vendas[N° Pedido/Empresa],0))+E159*INDEX(tb_formas_pagamento[Dias_Intervalo],MATCH(INDEX(tb_vendas[Forma_Pagamento],MATCH(D159,tb_vendas[N° Pedido/Empresa],0)),tb_formas_pagamento[Nome_Forma],0))),"") ->  | J159: =IF(OR(tb_pagamentos[[#This Row],[Data_Vencimento]]="",tb_pagamentos[[#This Row],[Valor_Parcela]]="",tb_pagamentos[[#This Row],[Qtd_Total_Parcelas]]="",tb_pagamentos[[#This Row],[Nr_Pedido]]=""),"",IF(tb_pagamentos[[#This Row],[Data_Pagamento]]<>"","Pago",IF(AND(tb_pagamentos[[#This Row],[Data_Pagamento]]="",tb_pagamentos[[#This Row],[Data_Vencimento]]<TODAY()),"Em Atraso","A vencer"))) -> 
D160: =IFERROR(INDEX(CALC_BASE!$N$3:$N$52,MATCH(ROW()-7,CALC_BASE!$M$3:$M$52,0)),"") ->  | E160: =IFERROR(INDEX(CALC_BASE!$O$3:$O$52,MATCH(ROW()-7,CALC_BASE!$M$3:$M$52,0)),"") ->  | F160: =IFERROR(INDEX(CALC_BASE!$P$3:$P$52,MATCH(ROW()-7,CALC_BASE!$M$3:$M$52,0)),"") ->  | G160: =IFERROR(IF(D160="","",INDEX(tb_vendas[Preço de Venda],MATCH(D160,tb_vendas[N° Pedido/Empresa],0))/F160),"") ->  | H160: =IFERROR(IF(D160="","",INDEX(tb_vendas[Data Fechamento],MATCH(D160,tb_vendas[N° Pedido/Empresa],0))+E160*INDEX(tb_formas_pagamento[Dias_Intervalo],MATCH(INDEX(tb_vendas[Forma_Pagamento],MATCH(D160,tb_vendas[N° Pedido/Empresa],0)),tb_formas_pagamento[Nome_Forma],0))),"") ->  | J160: =IF(OR(tb_pagamentos[[#This Row],[Data_Vencimento]]="",tb_pagamentos[[#This Row],[Valor_Parcela]]="",tb_pagamentos[[#This Row],[Qtd_Total_Parcelas]]="",tb_pagamentos[[#This Row],[Nr_Pedido]]=""),"",IF(tb_pagamentos[[#This Row],[Data_Pagamento]]<>"","Pago",IF(AND(tb_pagamentos[[#This Row],[Data_Pagamento]]="",tb_pagamentos[[#This Row],[Data_Vencimento]]<TODAY()),"Em Atraso","A vencer"))) -> 
D161: =IFERROR(INDEX(CALC_BASE!$N$3:$N$52,MATCH(ROW()-7,CALC_BASE!$M$3:$M$52,0)),"") ->  | E161: =IFERROR(INDEX(CALC_BASE!$O$3:$O$52,MATCH(ROW()-7,CALC_BASE!$M$3:$M$52,0)),"") ->  | F161: =IFERROR(INDEX(CALC_BASE!$P$3:$P$52,MATCH(ROW()-7,CALC_BASE!$M$3:$M$52,0)),"") ->  | G161: =IFERROR(IF(D161="","",INDEX(tb_vendas[Preço de Venda],MATCH(D161,tb_vendas[N° Pedido/Empresa],0))/F161),"") ->  | H161: =IFERROR(IF(D161="","",INDEX(tb_vendas[Data Fechamento],MATCH(D161,tb_vendas[N° Pedido/Empresa],0))+E161*INDEX(tb_formas_pagamento[Dias_Intervalo],MATCH(INDEX(tb_vendas[Forma_Pagamento],MATCH(D161,tb_vendas[N° Pedido/Empresa],0)),tb_formas_pagamento[Nome_Forma],0))),"") ->  | J161: =IF(OR(tb_pagamentos[[#This Row],[Data_Vencimento]]="",tb_pagamentos[[#This Row],[Valor_Parcela]]="",tb_pagamentos[[#This Row],[Qtd_Total_Parcelas]]="",tb_pagamentos[[#This Row],[Nr_Pedido]]=""),"",IF(tb_pagamentos[[#This Row],[Data_Pagamento]]<>"","Pago",IF(AND(tb_pagamentos[[#This Row],[Data_Pagamento]]="",tb_pagamentos[[#This Row],[Data_Vencimento]]<TODAY()),"Em Atraso","A vencer"))) -> 
D162: =IFERROR(INDEX(CALC_BASE!$N$3:$N$52,MATCH(ROW()-7,CALC_BASE!$M$3:$M$52,0)),"") ->  | E162: =IFERROR(INDEX(CALC_BASE!$O$3:$O$52,MATCH(ROW()-7,CALC_BASE!$M$3:$M$52,0)),"") ->  | F162: =IFERROR(INDEX(CALC_BASE!$P$3:$P$52,MATCH(ROW()-7,CALC_BASE!$M$3:$M$52,0)),"") ->  | G162: =IFERROR(IF(D162="","",INDEX(tb_vendas[Preço de Venda],MATCH(D162,tb_vendas[N° Pedido/Empresa],0))/F162),"") ->  | H162: =IFERROR(IF(D162="","",INDEX(tb_vendas[Data Fechamento],MATCH(D162,tb_vendas[N° Pedido/Empresa],0))+E162*INDEX(tb_formas_pagamento[Dias_Intervalo],MATCH(INDEX(tb_vendas[Forma_Pagamento],MATCH(D162,tb_vendas[N° Pedido/Empresa],0)),tb_formas_pagamento[Nome_Forma],0))),"") ->  | J162: =IF(OR(tb_pagamentos[[#This Row],[Data_Vencimento]]="",tb_pagamentos[[#This Row],[Valor_Parcela]]="",tb_pagamentos[[#This Row],[Qtd_Total_Parcelas]]="",tb_pagamentos[[#This Row],[Nr_Pedido]]=""),"",IF(tb_pagamentos[[#This Row],[Data_Pagamento]]<>"","Pago",IF(AND(tb_pagamentos[[#This Row],[Data_Pagamento]]="",tb_pagamentos[[#This Row],[Data_Vencimento]]<TODAY()),"Em Atraso","A vencer"))) -> 
D163: =IFERROR(INDEX(CALC_BASE!$N$3:$N$52,MATCH(ROW()-7,CALC_BASE!$M$3:$M$52,0)),"") ->  | E163: =IFERROR(INDEX(CALC_BASE!$O$3:$O$52,MATCH(ROW()-7,CALC_BASE!$M$3:$M$52,0)),"") ->  | F163: =IFERROR(INDEX(CALC_BASE!$P$3:$P$52,MATCH(ROW()-7,CALC_BASE!$M$3:$M$52,0)),"") ->  | G163: =IFERROR(IF(D163="","",INDEX(tb_vendas[Preço de Venda],MATCH(D163,tb_vendas[N° Pedido/Empresa],0))/F163),"") ->  | H163: =IFERROR(IF(D163="","",INDEX(tb_vendas[Data Fechamento],MATCH(D163,tb_vendas[N° Pedido/Empresa],0))+E163*INDEX(tb_formas_pagamento[Dias_Intervalo],MATCH(INDEX(tb_vendas[Forma_Pagamento],MATCH(D163,tb_vendas[N° Pedido/Empresa],0)),tb_formas_pagamento[Nome_Forma],0))),"") ->  | J163: =IF(OR(tb_pagamentos[[#This Row],[Data_Vencimento]]="",tb_pagamentos[[#This Row],[Valor_Parcela]]="",tb_pagamentos[[#This Row],[Qtd_Total_Parcelas]]="",tb_pagamentos[[#This Row],[Nr_Pedido]]=""),"",IF(tb_pagamentos[[#This Row],[Data_Pagamento]]<>"","Pago",IF(AND(tb_pagamentos[[#This Row],[Data_Pagamento]]="",tb_pagamentos[[#This Row],[Data_Vencimento]]<TODAY()),"Em Atraso","A vencer"))) -> 
D164: =IFERROR(INDEX(CALC_BASE!$N$3:$N$52,MATCH(ROW()-7,CALC_BASE!$M$3:$M$52,0)),"") ->  | E164: =IFERROR(INDEX(CALC_BASE!$O$3:$O$52,MATCH(ROW()-7,CALC_BASE!$M$3:$M$52,0)),"") ->  | F164: =IFERROR(INDEX(CALC_BASE!$P$3:$P$52,MATCH(ROW()-7,CALC_BASE!$M$3:$M$52,0)),"") ->  | G164: =IFERROR(IF(D164="","",INDEX(tb_vendas[Preço de Venda],MATCH(D164,tb_vendas[N° Pedido/Empresa],0))/F164),"") ->  | H164: =IFERROR(IF(D164="","",INDEX(tb_vendas[Data Fechamento],MATCH(D164,tb_vendas[N° Pedido/Empresa],0))+E164*INDEX(tb_formas_pagamento[Dias_Intervalo],MATCH(INDEX(tb_vendas[Forma_Pagamento],MATCH(D164,tb_vendas[N° Pedido/Empresa],0)),tb_formas_pagamento[Nome_Forma],0))),"") ->  | J164: =IF(OR(tb_pagamentos[[#This Row],[Data_Vencimento]]="",tb_pagamentos[[#This Row],[Valor_Parcela]]="",tb_pagamentos[[#This Row],[Qtd_Total_Parcelas]]="",tb_pagamentos[[#This Row],[Nr_Pedido]]=""),"",IF(tb_pagamentos[[#This Row],[Data_Pagamento]]<>"","Pago",IF(AND(tb_pagamentos[[#This Row],[Data_Pagamento]]="",tb_pagamentos[[#This Row],[Data_Vencimento]]<TODAY()),"Em Atraso","A vencer"))) -> 
D165: =IFERROR(INDEX(CALC_BASE!$N$3:$N$52,MATCH(ROW()-7,CALC_BASE!$M$3:$M$52,0)),"") ->  | E165: =IFERROR(INDEX(CALC_BASE!$O$3:$O$52,MATCH(ROW()-7,CALC_BASE!$M$3:$M$52,0)),"") ->  | F165: =IFERROR(INDEX(CALC_BASE!$P$3:$P$52,MATCH(ROW()-7,CALC_BASE!$M$3:$M$52,0)),"") ->  | G165: =IFERROR(IF(D165="","",INDEX(tb_vendas[Preço de Venda],MATCH(D165,tb_vendas[N° Pedido/Empresa],0))/F165),"") ->  | H165: =IFERROR(IF(D165="","",INDEX(tb_vendas[Data Fechamento],MATCH(D165,tb_vendas[N° Pedido/Empresa],0))+E165*INDEX(tb_formas_pagamento[Dias_Intervalo],MATCH(INDEX(tb_vendas[Forma_Pagamento],MATCH(D165,tb_vendas[N° Pedido/Empresa],0)),tb_formas_pagamento[Nome_Forma],0))),"") ->  | J165: =IF(OR(tb_pagamentos[[#This Row],[Data_Vencimento]]="",tb_pagamentos[[#This Row],[Valor_Parcela]]="",tb_pagamentos[[#This Row],[Qtd_Total_Parcelas]]="",tb_pagamentos[[#This Row],[Nr_Pedido]]=""),"",IF(tb_pagamentos[[#This Row],[Data_Pagamento]]<>"","Pago",IF(AND(tb_pagamentos[[#This Row],[Data_Pagamento]]="",tb_pagamentos[[#This Row],[Data_Vencimento]]<TODAY()),"Em Atraso","A vencer"))) -> 
D166: =IFERROR(INDEX(CALC_BASE!$N$3:$N$52,MATCH(ROW()-7,CALC_BASE!$M$3:$M$52,0)),"") ->  | E166: =IFERROR(INDEX(CALC_BASE!$O$3:$O$52,MATCH(ROW()-7,CALC_BASE!$M$3:$M$52,0)),"") ->  | F166: =IFERROR(INDEX(CALC_BASE!$P$3:$P$52,MATCH(ROW()-7,CALC_BASE!$M$3:$M$52,0)),"") ->  | G166: =IFERROR(IF(D166="","",INDEX(tb_vendas[Preço de Venda],MATCH(D166,tb_vendas[N° Pedido/Empresa],0))/F166),"") ->  | H166: =IFERROR(IF(D166="","",INDEX(tb_vendas[Data Fechamento],MATCH(D166,tb_vendas[N° Pedido/Empresa],0))+E166*INDEX(tb_formas_pagamento[Dias_Intervalo],MATCH(INDEX(tb_vendas[Forma_Pagamento],MATCH(D166,tb_vendas[N° Pedido/Empresa],0)),tb_formas_pagamento[Nome_Forma],0))),"") ->  | J166: =IF(OR(tb_pagamentos[[#This Row],[Data_Vencimento]]="",tb_pagamentos[[#This Row],[Valor_Parcela]]="",tb_pagamentos[[#This Row],[Qtd_Total_Parcelas]]="",tb_pagamentos[[#This Row],[Nr_Pedido]]=""),"",IF(tb_pagamentos[[#This Row],[Data_Pagamento]]<>"","Pago",IF(AND(tb_pagamentos[[#This Row],[Data_Pagamento]]="",tb_pagamentos[[#This Row],[Data_Vencimento]]<TODAY()),"Em Atraso","A vencer"))) -> 
D167: =IFERROR(INDEX(CALC_BASE!$N$3:$N$52,MATCH(ROW()-7,CALC_BASE!$M$3:$M$52,0)),"") ->  | E167: =IFERROR(INDEX(CALC_BASE!$O$3:$O$52,MATCH(ROW()-7,CALC_BASE!$M$3:$M$52,0)),"") ->  | F167: =IFERROR(INDEX(CALC_BASE!$P$3:$P$52,MATCH(ROW()-7,CALC_BASE!$M$3:$M$52,0)),"") ->  | G167: =IFERROR(IF(D167="","",INDEX(tb_vendas[Preço de Venda],MATCH(D167,tb_vendas[N° Pedido/Empresa],0))/F167),"") ->  | H167: =IFERROR(IF(D167="","",INDEX(tb_vendas[Data Fechamento],MATCH(D167,tb_vendas[N° Pedido/Empresa],0))+E167*INDEX(tb_formas_pagamento[Dias_Intervalo],MATCH(INDEX(tb_vendas[Forma_Pagamento],MATCH(D167,tb_vendas[N° Pedido/Empresa],0)),tb_formas_pagamento[Nome_Forma],0))),"") ->  | J167: =IF(OR(tb_pagamentos[[#This Row],[Data_Vencimento]]="",tb_pagamentos[[#This Row],[Valor_Parcela]]="",tb_pagamentos[[#This Row],[Qtd_Total_Parcelas]]="",tb_pagamentos[[#This Row],[Nr_Pedido]]=""),"",IF(tb_pagamentos[[#This Row],[Data_Pagamento]]<>"","Pago",IF(AND(tb_pagamentos[[#This Row],[Data_Pagamento]]="",tb_pagamentos[[#This Row],[Data_Vencimento]]<TODAY()),"Em Atraso","A vencer"))) -> 
D168: =IFERROR(INDEX(CALC_BASE!$N$3:$N$52,MATCH(ROW()-7,CALC_BASE!$M$3:$M$52,0)),"") ->  | E168: =IFERROR(INDEX(CALC_BASE!$O$3:$O$52,MATCH(ROW()-7,CALC_BASE!$M$3:$M$52,0)),"") ->  | F168: =IFERROR(INDEX(CALC_BASE!$P$3:$P$52,MATCH(ROW()-7,CALC_BASE!$M$3:$M$52,0)),"") ->  | G168: =IFERROR(IF(D168="","",INDEX(tb_vendas[Preço de Venda],MATCH(D168,tb_vendas[N° Pedido/Empresa],0))/F168),"") ->  | H168: =IFERROR(IF(D168="","",INDEX(tb_vendas[Data Fechamento],MATCH(D168,tb_vendas[N° Pedido/Empresa],0))+E168*INDEX(tb_formas_pagamento[Dias_Intervalo],MATCH(INDEX(tb_vendas[Forma_Pagamento],MATCH(D168,tb_vendas[N° Pedido/Empresa],0)),tb_formas_pagamento[Nome_Forma],0))),"") ->  | J168: =IF(OR(tb_pagamentos[[#This Row],[Data_Vencimento]]="",tb_pagamentos[[#This Row],[Valor_Parcela]]="",tb_pagamentos[[#This Row],[Qtd_Total_Parcelas]]="",tb_pagamentos[[#This Row],[Nr_Pedido]]=""),"",IF(tb_pagamentos[[#This Row],[Data_Pagamento]]<>"","Pago",IF(AND(tb_pagamentos[[#This Row],[Data_Pagamento]]="",tb_pagamentos[[#This Row],[Data_Vencimento]]<TODAY()),"Em Atraso","A vencer"))) -> 
D169: =IFERROR(INDEX(CALC_BASE!$N$3:$N$52,MATCH(ROW()-7,CALC_BASE!$M$3:$M$52,0)),"") ->  | E169: =IFERROR(INDEX(CALC_BASE!$O$3:$O$52,MATCH(ROW()-7,CALC_BASE!$M$3:$M$52,0)),"") ->  | F169: =IFERROR(INDEX(CALC_BASE!$P$3:$P$52,MATCH(ROW()-7,CALC_BASE!$M$3:$M$52,0)),"") ->  | G169: =IFERROR(IF(D169="","",INDEX(tb_vendas[Preço de Venda],MATCH(D169,tb_vendas[N° Pedido/Empresa],0))/F169),"") ->  | H169: =IFERROR(IF(D169="","",INDEX(tb_vendas[Data Fechamento],MATCH(D169,tb_vendas[N° Pedido/Empresa],0))+E169*INDEX(tb_formas_pagamento[Dias_Intervalo],MATCH(INDEX(tb_vendas[Forma_Pagamento],MATCH(D169,tb_vendas[N° Pedido/Empresa],0)),tb_formas_pagamento[Nome_Forma],0))),"") ->  | J169: =IF(OR(tb_pagamentos[[#This Row],[Data_Vencimento]]="",tb_pagamentos[[#This Row],[Valor_Parcela]]="",tb_pagamentos[[#This Row],[Qtd_Total_Parcelas]]="",tb_pagamentos[[#This Row],[Nr_Pedido]]=""),"",IF(tb_pagamentos[[#This Row],[Data_Pagamento]]<>"","Pago",IF(AND(tb_pagamentos[[#This Row],[Data_Pagamento]]="",tb_pagamentos[[#This Row],[Data_Vencimento]]<TODAY()),"Em Atraso","A vencer"))) -> 
D170: =IFERROR(INDEX(CALC_BASE!$N$3:$N$52,MATCH(ROW()-7,CALC_BASE!$M$3:$M$52,0)),"") ->  | E170: =IFERROR(INDEX(CALC_BASE!$O$3:$O$52,MATCH(ROW()-7,CALC_BASE!$M$3:$M$52,0)),"") ->  | F170: =IFERROR(INDEX(CALC_BASE!$P$3:$P$52,MATCH(ROW()-7,CALC_BASE!$M$3:$M$52,0)),"") ->  | G170: =IFERROR(IF(D170="","",INDEX(tb_vendas[Preço de Venda],MATCH(D170,tb_vendas[N° Pedido/Empresa],0))/F170),"") ->  | H170: =IFERROR(IF(D170="","",INDEX(tb_vendas[Data Fechamento],MATCH(D170,tb_vendas[N° Pedido/Empresa],0))+E170*INDEX(tb_formas_pagamento[Dias_Intervalo],MATCH(INDEX(tb_vendas[Forma_Pagamento],MATCH(D170,tb_vendas[N° Pedido/Empresa],0)),tb_formas_pagamento[Nome_Forma],0))),"") ->  | J170: =IF(OR(tb_pagamentos[[#This Row],[Data_Vencimento]]="",tb_pagamentos[[#This Row],[Valor_Parcela]]="",tb_pagamentos[[#This Row],[Qtd_Total_Parcelas]]="",tb_pagamentos[[#This Row],[Nr_Pedido]]=""),"",IF(tb_pagamentos[[#This Row],[Data_Pagamento]]<>"","Pago",IF(AND(tb_pagamentos[[#This Row],[Data_Pagamento]]="",tb_pagamentos[[#This Row],[Data_Vencimento]]<TODAY()),"Em Atraso","A vencer"))) -> 
D171: =IFERROR(INDEX(CALC_BASE!$N$3:$N$52,MATCH(ROW()-7,CALC_BASE!$M$3:$M$52,0)),"") ->  | E171: =IFERROR(INDEX(CALC_BASE!$O$3:$O$52,MATCH(ROW()-7,CALC_BASE!$M$3:$M$52,0)),"") ->  | F171: =IFERROR(INDEX(CALC_BASE!$P$3:$P$52,MATCH(ROW()-7,CALC_BASE!$M$3:$M$52,0)),"") ->  | G171: =IFERROR(IF(D171="","",INDEX(tb_vendas[Preço de Venda],MATCH(D171,tb_vendas[N° Pedido/Empresa],0))/F171),"") ->  | H171: =IFERROR(IF(D171="","",INDEX(tb_vendas[Data Fechamento],MATCH(D171,tb_vendas[N° Pedido/Empresa],0))+E171*INDEX(tb_formas_pagamento[Dias_Intervalo],MATCH(INDEX(tb_vendas[Forma_Pagamento],MATCH(D171,tb_vendas[N° Pedido/Empresa],0)),tb_formas_pagamento[Nome_Forma],0))),"") ->  | J171: =IF(OR(tb_pagamentos[[#This Row],[Data_Vencimento]]="",tb_pagamentos[[#This Row],[Valor_Parcela]]="",tb_pagamentos[[#This Row],[Qtd_Total_Parcelas]]="",tb_pagamentos[[#This Row],[Nr_Pedido]]=""),"",IF(tb_pagamentos[[#This Row],[Data_Pagamento]]<>"","Pago",IF(AND(tb_pagamentos[[#This Row],[Data_Pagamento]]="",tb_pagamentos[[#This Row],[Data_Vencimento]]<TODAY()),"Em Atraso","A vencer"))) -> 
D172: =IFERROR(INDEX(CALC_BASE!$N$3:$N$52,MATCH(ROW()-7,CALC_BASE!$M$3:$M$52,0)),"") ->  | E172: =IFERROR(INDEX(CALC_BASE!$O$3:$O$52,MATCH(ROW()-7,CALC_BASE!$M$3:$M$52,0)),"") ->  | F172: =IFERROR(INDEX(CALC_BASE!$P$3:$P$52,MATCH(ROW()-7,CALC_BASE!$M$3:$M$52,0)),"") ->  | G172: =IFERROR(IF(D172="","",INDEX(tb_vendas[Preço de Venda],MATCH(D172,tb_vendas[N° Pedido/Empresa],0))/F172),"") ->  | H172: =IFERROR(IF(D172="","",INDEX(tb_vendas[Data Fechamento],MATCH(D172,tb_vendas[N° Pedido/Empresa],0))+E172*INDEX(tb_formas_pagamento[Dias_Intervalo],MATCH(INDEX(tb_vendas[Forma_Pagamento],MATCH(D172,tb_vendas[N° Pedido/Empresa],0)),tb_formas_pagamento[Nome_Forma],0))),"") ->  | J172: =IF(OR(tb_pagamentos[[#This Row],[Data_Vencimento]]="",tb_pagamentos[[#This Row],[Valor_Parcela]]="",tb_pagamentos[[#This Row],[Qtd_Total_Parcelas]]="",tb_pagamentos[[#This Row],[Nr_Pedido]]=""),"",IF(tb_pagamentos[[#This Row],[Data_Pagamento]]<>"","Pago",IF(AND(tb_pagamentos[[#This Row],[Data_Pagamento]]="",tb_pagamentos[[#This Row],[Data_Vencimento]]<TODAY()),"Em Atraso","A vencer"))) -> 
D173: =IFERROR(INDEX(CALC_BASE!$N$3:$N$52,MATCH(ROW()-7,CALC_BASE!$M$3:$M$52,0)),"") ->  | E173: =IFERROR(INDEX(CALC_BASE!$O$3:$O$52,MATCH(ROW()-7,CALC_BASE!$M$3:$M$52,0)),"") ->  | F173: =IFERROR(INDEX(CALC_BASE!$P$3:$P$52,MATCH(ROW()-7,CALC_BASE!$M$3:$M$52,0)),"") ->  | G173: =IFERROR(IF(D173="","",INDEX(tb_vendas[Preço de Venda],MATCH(D173,tb_vendas[N° Pedido/Empresa],0))/F173),"") ->  | H173: =IFERROR(IF(D173="","",INDEX(tb_vendas[Data Fechamento],MATCH(D173,tb_vendas[N° Pedido/Empresa],0))+E173*INDEX(tb_formas_pagamento[Dias_Intervalo],MATCH(INDEX(tb_vendas[Forma_Pagamento],MATCH(D173,tb_vendas[N° Pedido/Empresa],0)),tb_formas_pagamento[Nome_Forma],0))),"") ->  | J173: =IF(OR(tb_pagamentos[[#This Row],[Data_Vencimento]]="",tb_pagamentos[[#This Row],[Valor_Parcela]]="",tb_pagamentos[[#This Row],[Qtd_Total_Parcelas]]="",tb_pagamentos[[#This Row],[Nr_Pedido]]=""),"",IF(tb_pagamentos[[#This Row],[Data_Pagamento]]<>"","Pago",IF(AND(tb_pagamentos[[#This Row],[Data_Pagamento]]="",tb_pagamentos[[#This Row],[Data_Vencimento]]<TODAY()),"Em Atraso","A vencer"))) -> 
D174: =IFERROR(INDEX(CALC_BASE!$N$3:$N$52,MATCH(ROW()-7,CALC_BASE!$M$3:$M$52,0)),"") ->  | E174: =IFERROR(INDEX(CALC_BASE!$O$3:$O$52,MATCH(ROW()-7,CALC_BASE!$M$3:$M$52,0)),"") ->  | F174: =IFERROR(INDEX(CALC_BASE!$P$3:$P$52,MATCH(ROW()-7,CALC_BASE!$M$3:$M$52,0)),"") ->  | G174: =IFERROR(IF(D174="","",INDEX(tb_vendas[Preço de Venda],MATCH(D174,tb_vendas[N° Pedido/Empresa],0))/F174),"") ->  | H174: =IFERROR(IF(D174="","",INDEX(tb_vendas[Data Fechamento],MATCH(D174,tb_vendas[N° Pedido/Empresa],0))+E174*INDEX(tb_formas_pagamento[Dias_Intervalo],MATCH(INDEX(tb_vendas[Forma_Pagamento],MATCH(D174,tb_vendas[N° Pedido/Empresa],0)),tb_formas_pagamento[Nome_Forma],0))),"") ->  | J174: =IF(OR(tb_pagamentos[[#This Row],[Data_Vencimento]]="",tb_pagamentos[[#This Row],[Valor_Parcela]]="",tb_pagamentos[[#This Row],[Qtd_Total_Parcelas]]="",tb_pagamentos[[#This Row],[Nr_Pedido]]=""),"",IF(tb_pagamentos[[#This Row],[Data_Pagamento]]<>"","Pago",IF(AND(tb_pagamentos[[#This Row],[Data_Pagamento]]="",tb_pagamentos[[#This Row],[Data_Vencimento]]<TODAY()),"Em Atraso","A vencer"))) -> 
D175: =IFERROR(INDEX(CALC_BASE!$N$3:$N$52,MATCH(ROW()-7,CALC_BASE!$M$3:$M$52,0)),"") ->  | E175: =IFERROR(INDEX(CALC_BASE!$O$3:$O$52,MATCH(ROW()-7,CALC_BASE!$M$3:$M$52,0)),"") ->  | F175: =IFERROR(INDEX(CALC_BASE!$P$3:$P$52,MATCH(ROW()-7,CALC_BASE!$M$3:$M$52,0)),"") ->  | G175: =IFERROR(IF(D175="","",INDEX(tb_vendas[Preço de Venda],MATCH(D175,tb_vendas[N° Pedido/Empresa],0))/F175),"") ->  | H175: =IFERROR(IF(D175="","",INDEX(tb_vendas[Data Fechamento],MATCH(D175,tb_vendas[N° Pedido/Empresa],0))+E175*INDEX(tb_formas_pagamento[Dias_Intervalo],MATCH(INDEX(tb_vendas[Forma_Pagamento],MATCH(D175,tb_vendas[N° Pedido/Empresa],0)),tb_formas_pagamento[Nome_Forma],0))),"") ->  | J175: =IF(OR(tb_pagamentos[[#This Row],[Data_Vencimento]]="",tb_pagamentos[[#This Row],[Valor_Parcela]]="",tb_pagamentos[[#This Row],[Qtd_Total_Parcelas]]="",tb_pagamentos[[#This Row],[Nr_Pedido]]=""),"",IF(tb_pagamentos[[#This Row],[Data_Pagamento]]<>"","Pago",IF(AND(tb_pagamentos[[#This Row],[Data_Pagamento]]="",tb_pagamentos[[#This Row],[Data_Vencimento]]<TODAY()),"Em Atraso","A vencer"))) -> 
D176: =IFERROR(INDEX(CALC_BASE!$N$3:$N$52,MATCH(ROW()-7,CALC_BASE!$M$3:$M$52,0)),"") ->  | E176: =IFERROR(INDEX(CALC_BASE!$O$3:$O$52,MATCH(ROW()-7,CALC_BASE!$M$3:$M$52,0)),"") ->  | F176: =IFERROR(INDEX(CALC_BASE!$P$3:$P$52,MATCH(ROW()-7,CALC_BASE!$M$3:$M$52,0)),"") ->  | G176: =IFERROR(IF(D176="","",INDEX(tb_vendas[Preço de Venda],MATCH(D176,tb_vendas[N° Pedido/Empresa],0))/F176),"") ->  | H176: =IFERROR(IF(D176="","",INDEX(tb_vendas[Data Fechamento],MATCH(D176,tb_vendas[N° Pedido/Empresa],0))+E176*INDEX(tb_formas_pagamento[Dias_Intervalo],MATCH(INDEX(tb_vendas[Forma_Pagamento],MATCH(D176,tb_vendas[N° Pedido/Empresa],0)),tb_formas_pagamento[Nome_Forma],0))),"") ->  | J176: =IF(OR(tb_pagamentos[[#This Row],[Data_Vencimento]]="",tb_pagamentos[[#This Row],[Valor_Parcela]]="",tb_pagamentos[[#This Row],[Qtd_Total_Parcelas]]="",tb_pagamentos[[#This Row],[Nr_Pedido]]=""),"",IF(tb_pagamentos[[#This Row],[Data_Pagamento]]<>"","Pago",IF(AND(tb_pagamentos[[#This Row],[Data_Pagamento]]="",tb_pagamentos[[#This Row],[Data_Vencimento]]<TODAY()),"Em Atraso","A vencer"))) -> 
D177: =IFERROR(INDEX(CALC_BASE!$N$3:$N$52,MATCH(ROW()-7,CALC_BASE!$M$3:$M$52,0)),"") ->  | E177: =IFERROR(INDEX(CALC_BASE!$O$3:$O$52,MATCH(ROW()-7,CALC_BASE!$M$3:$M$52,0)),"") ->  | F177: =IFERROR(INDEX(CALC_BASE!$P$3:$P$52,MATCH(ROW()-7,CALC_BASE!$M$3:$M$52,0)),"") ->  | G177: =IFERROR(IF(D177="","",INDEX(tb_vendas[Preço de Venda],MATCH(D177,tb_vendas[N° Pedido/Empresa],0))/F177),"") ->  | H177: =IFERROR(IF(D177="","",INDEX(tb_vendas[Data Fechamento],MATCH(D177,tb_vendas[N° Pedido/Empresa],0))+E177*INDEX(tb_formas_pagamento[Dias_Intervalo],MATCH(INDEX(tb_vendas[Forma_Pagamento],MATCH(D177,tb_vendas[N° Pedido/Empresa],0)),tb_formas_pagamento[Nome_Forma],0))),"") ->  | J177: =IF(OR(tb_pagamentos[[#This Row],[Data_Vencimento]]="",tb_pagamentos[[#This Row],[Valor_Parcela]]="",tb_pagamentos[[#This Row],[Qtd_Total_Parcelas]]="",tb_pagamentos[[#This Row],[Nr_Pedido]]=""),"",IF(tb_pagamentos[[#This Row],[Data_Pagamento]]<>"","Pago",IF(AND(tb_pagamentos[[#This Row],[Data_Pagamento]]="",tb_pagamentos[[#This Row],[Data_Vencimento]]<TODAY()),"Em Atraso","A vencer"))) -> 
D178: =IFERROR(INDEX(CALC_BASE!$N$3:$N$52,MATCH(ROW()-7,CALC_BASE!$M$3:$M$52,0)),"") ->  | E178: =IFERROR(INDEX(CALC_BASE!$O$3:$O$52,MATCH(ROW()-7,CALC_BASE!$M$3:$M$52,0)),"") ->  | F178: =IFERROR(INDEX(CALC_BASE!$P$3:$P$52,MATCH(ROW()-7,CALC_BASE!$M$3:$M$52,0)),"") ->  | G178: =IFERROR(IF(D178="","",INDEX(tb_vendas[Preço de Venda],MATCH(D178,tb_vendas[N° Pedido/Empresa],0))/F178),"") ->  | H178: =IFERROR(IF(D178="","",INDEX(tb_vendas[Data Fechamento],MATCH(D178,tb_vendas[N° Pedido/Empresa],0))+E178*INDEX(tb_formas_pagamento[Dias_Intervalo],MATCH(INDEX(tb_vendas[Forma_Pagamento],MATCH(D178,tb_vendas[N° Pedido/Empresa],0)),tb_formas_pagamento[Nome_Forma],0))),"") ->  | J178: =IF(OR(tb_pagamentos[[#This Row],[Data_Vencimento]]="",tb_pagamentos[[#This Row],[Valor_Parcela]]="",tb_pagamentos[[#This Row],[Qtd_Total_Parcelas]]="",tb_pagamentos[[#This Row],[Nr_Pedido]]=""),"",IF(tb_pagamentos[[#This Row],[Data_Pagamento]]<>"","Pago",IF(AND(tb_pagamentos[[#This Row],[Data_Pagamento]]="",tb_pagamentos[[#This Row],[Data_Vencimento]]<TODAY()),"Em Atraso","A vencer"))) -> 
D179: =IFERROR(INDEX(CALC_BASE!$N$3:$N$52,MATCH(ROW()-7,CALC_BASE!$M$3:$M$52,0)),"") ->  | E179: =IFERROR(INDEX(CALC_BASE!$O$3:$O$52,MATCH(ROW()-7,CALC_BASE!$M$3:$M$52,0)),"") ->  | F179: =IFERROR(INDEX(CALC_BASE!$P$3:$P$52,MATCH(ROW()-7,CALC_BASE!$M$3:$M$52,0)),"") ->  | G179: =IFERROR(IF(D179="","",INDEX(tb_vendas[Preço de Venda],MATCH(D179,tb_vendas[N° Pedido/Empresa],0))/F179),"") ->  | H179: =IFERROR(IF(D179="","",INDEX(tb_vendas[Data Fechamento],MATCH(D179,tb_vendas[N° Pedido/Empresa],0))+E179*INDEX(tb_formas_pagamento[Dias_Intervalo],MATCH(INDEX(tb_vendas[Forma_Pagamento],MATCH(D179,tb_vendas[N° Pedido/Empresa],0)),tb_formas_pagamento[Nome_Forma],0))),"") ->  | J179: =IF(OR(tb_pagamentos[[#This Row],[Data_Vencimento]]="",tb_pagamentos[[#This Row],[Valor_Parcela]]="",tb_pagamentos[[#This Row],[Qtd_Total_Parcelas]]="",tb_pagamentos[[#This Row],[Nr_Pedido]]=""),"",IF(tb_pagamentos[[#This Row],[Data_Pagamento]]<>"","Pago",IF(AND(tb_pagamentos[[#This Row],[Data_Pagamento]]="",tb_pagamentos[[#This Row],[Data_Vencimento]]<TODAY()),"Em Atraso","A vencer"))) -> 
D180: =IFERROR(INDEX(CALC_BASE!$N$3:$N$52,MATCH(ROW()-7,CALC_BASE!$M$3:$M$52,0)),"") ->  | E180: =IFERROR(INDEX(CALC_BASE!$O$3:$O$52,MATCH(ROW()-7,CALC_BASE!$M$3:$M$52,0)),"") ->  | F180: =IFERROR(INDEX(CALC_BASE!$P$3:$P$52,MATCH(ROW()-7,CALC_BASE!$M$3:$M$52,0)),"") ->  | G180: =IFERROR(IF(D180="","",INDEX(tb_vendas[Preço de Venda],MATCH(D180,tb_vendas[N° Pedido/Empresa],0))/F180),"") ->  | H180: =IFERROR(IF(D180="","",INDEX(tb_vendas[Data Fechamento],MATCH(D180,tb_vendas[N° Pedido/Empresa],0))+E180*INDEX(tb_formas_pagamento[Dias_Intervalo],MATCH(INDEX(tb_vendas[Forma_Pagamento],MATCH(D180,tb_vendas[N° Pedido/Empresa],0)),tb_formas_pagamento[Nome_Forma],0))),"") ->  | J180: =IF(OR(tb_pagamentos[[#This Row],[Data_Vencimento]]="",tb_pagamentos[[#This Row],[Valor_Parcela]]="",tb_pagamentos[[#This Row],[Qtd_Total_Parcelas]]="",tb_pagamentos[[#This Row],[Nr_Pedido]]=""),"",IF(tb_pagamentos[[#This Row],[Data_Pagamento]]<>"","Pago",IF(AND(tb_pagamentos[[#This Row],[Data_Pagamento]]="",tb_pagamentos[[#This Row],[Data_Vencimento]]<TODAY()),"Em Atraso","A vencer"))) -> 
D181: =IFERROR(INDEX(CALC_BASE!$N$3:$N$52,MATCH(ROW()-7,CALC_BASE!$M$3:$M$52,0)),"") ->  | E181: =IFERROR(INDEX(CALC_BASE!$O$3:$O$52,MATCH(ROW()-7,CALC_BASE!$M$3:$M$52,0)),"") ->  | F181: =IFERROR(INDEX(CALC_BASE!$P$3:$P$52,MATCH(ROW()-7,CALC_BASE!$M$3:$M$52,0)),"") ->  | G181: =IFERROR(IF(D181="","",INDEX(tb_vendas[Preço de Venda],MATCH(D181,tb_vendas[N° Pedido/Empresa],0))/F181),"") ->  | H181: =IFERROR(IF(D181="","",INDEX(tb_vendas[Data Fechamento],MATCH(D181,tb_vendas[N° Pedido/Empresa],0))+E181*INDEX(tb_formas_pagamento[Dias_Intervalo],MATCH(INDEX(tb_vendas[Forma_Pagamento],MATCH(D181,tb_vendas[N° Pedido/Empresa],0)),tb_formas_pagamento[Nome_Forma],0))),"") ->  | J181: =IF(OR(tb_pagamentos[[#This Row],[Data_Vencimento]]="",tb_pagamentos[[#This Row],[Valor_Parcela]]="",tb_pagamentos[[#This Row],[Qtd_Total_Parcelas]]="",tb_pagamentos[[#This Row],[Nr_Pedido]]=""),"",IF(tb_pagamentos[[#This Row],[Data_Pagamento]]<>"","Pago",IF(AND(tb_pagamentos[[#This Row],[Data_Pagamento]]="",tb_pagamentos[[#This Row],[Data_Vencimento]]<TODAY()),"Em Atraso","A vencer"))) -> 
D182: =IFERROR(INDEX(CALC_BASE!$N$3:$N$52,MATCH(ROW()-7,CALC_BASE!$M$3:$M$52,0)),"") ->  | E182: =IFERROR(INDEX(CALC_BASE!$O$3:$O$52,MATCH(ROW()-7,CALC_BASE!$M$3:$M$52,0)),"") ->  | F182: =IFERROR(INDEX(CALC_BASE!$P$3:$P$52,MATCH(ROW()-7,CALC_BASE!$M$3:$M$52,0)),"") ->  | G182: =IFERROR(IF(D182="","",INDEX(tb_vendas[Preço de Venda],MATCH(D182,tb_vendas[N° Pedido/Empresa],0))/F182),"") ->  | H182: =IFERROR(IF(D182="","",INDEX(tb_vendas[Data Fechamento],MATCH(D182,tb_vendas[N° Pedido/Empresa],0))+E182*INDEX(tb_formas_pagamento[Dias_Intervalo],MATCH(INDEX(tb_vendas[Forma_Pagamento],MATCH(D182,tb_vendas[N° Pedido/Empresa],0)),tb_formas_pagamento[Nome_Forma],0))),"") ->  | J182: =IF(OR(tb_pagamentos[[#This Row],[Data_Vencimento]]="",tb_pagamentos[[#This Row],[Valor_Parcela]]="",tb_pagamentos[[#This Row],[Qtd_Total_Parcelas]]="",tb_pagamentos[[#This Row],[Nr_Pedido]]=""),"",IF(tb_pagamentos[[#This Row],[Data_Pagamento]]<>"","Pago",IF(AND(tb_pagamentos[[#This Row],[Data_Pagamento]]="",tb_pagamentos[[#This Row],[Data_Vencimento]]<TODAY()),"Em Atraso","A vencer"))) -> 
D183: =IFERROR(INDEX(CALC_BASE!$N$3:$N$52,MATCH(ROW()-7,CALC_BASE!$M$3:$M$52,0)),"") ->  | E183: =IFERROR(INDEX(CALC_BASE!$O$3:$O$52,MATCH(ROW()-7,CALC_BASE!$M$3:$M$52,0)),"") ->  | F183: =IFERROR(INDEX(CALC_BASE!$P$3:$P$52,MATCH(ROW()-7,CALC_BASE!$M$3:$M$52,0)),"") ->  | G183: =IFERROR(IF(D183="","",INDEX(tb_vendas[Preço de Venda],MATCH(D183,tb_vendas[N° Pedido/Empresa],0))/F183),"") ->  | H183: =IFERROR(IF(D183="","",INDEX(tb_vendas[Data Fechamento],MATCH(D183,tb_vendas[N° Pedido/Empresa],0))+E183*INDEX(tb_formas_pagamento[Dias_Intervalo],MATCH(INDEX(tb_vendas[Forma_Pagamento],MATCH(D183,tb_vendas[N° Pedido/Empresa],0)),tb_formas_pagamento[Nome_Forma],0))),"") ->  | J183: =IF(OR(tb_pagamentos[[#This Row],[Data_Vencimento]]="",tb_pagamentos[[#This Row],[Valor_Parcela]]="",tb_pagamentos[[#This Row],[Qtd_Total_Parcelas]]="",tb_pagamentos[[#This Row],[Nr_Pedido]]=""),"",IF(tb_pagamentos[[#This Row],[Data_Pagamento]]<>"","Pago",IF(AND(tb_pagamentos[[#This Row],[Data_Pagamento]]="",tb_pagamentos[[#This Row],[Data_Vencimento]]<TODAY()),"Em Atraso","A vencer"))) -> 
D184: =IFERROR(INDEX(CALC_BASE!$N$3:$N$52,MATCH(ROW()-7,CALC_BASE!$M$3:$M$52,0)),"") ->  | E184: =IFERROR(INDEX(CALC_BASE!$O$3:$O$52,MATCH(ROW()-7,CALC_BASE!$M$3:$M$52,0)),"") ->  | F184: =IFERROR(INDEX(CALC_BASE!$P$3:$P$52,MATCH(ROW()-7,CALC_BASE!$M$3:$M$52,0)),"") ->  | G184: =IFERROR(IF(D184="","",INDEX(tb_vendas[Preço de Venda],MATCH(D184,tb_vendas[N° Pedido/Empresa],0))/F184),"") ->  | H184: =IFERROR(IF(D184="","",INDEX(tb_vendas[Data Fechamento],MATCH(D184,tb_vendas[N° Pedido/Empresa],0))+E184*INDEX(tb_formas_pagamento[Dias_Intervalo],MATCH(INDEX(tb_vendas[Forma_Pagamento],MATCH(D184,tb_vendas[N° Pedido/Empresa],0)),tb_formas_pagamento[Nome_Forma],0))),"") ->  | J184: =IF(OR(tb_pagamentos[[#This Row],[Data_Vencimento]]="",tb_pagamentos[[#This Row],[Valor_Parcela]]="",tb_pagamentos[[#This Row],[Qtd_Total_Parcelas]]="",tb_pagamentos[[#This Row],[Nr_Pedido]]=""),"",IF(tb_pagamentos[[#This Row],[Data_Pagamento]]<>"","Pago",IF(AND(tb_pagamentos[[#This Row],[Data_Pagamento]]="",tb_pagamentos[[#This Row],[Data_Vencimento]]<TODAY()),"Em Atraso","A vencer"))) -> 
D185: =IFERROR(INDEX(CALC_BASE!$N$3:$N$52,MATCH(ROW()-7,CALC_BASE!$M$3:$M$52,0)),"") ->  | E185: =IFERROR(INDEX(CALC_BASE!$O$3:$O$52,MATCH(ROW()-7,CALC_BASE!$M$3:$M$52,0)),"") ->  | F185: =IFERROR(INDEX(CALC_BASE!$P$3:$P$52,MATCH(ROW()-7,CALC_BASE!$M$3:$M$52,0)),"") ->  | G185: =IFERROR(IF(D185="","",INDEX(tb_vendas[Preço de Venda],MATCH(D185,tb_vendas[N° Pedido/Empresa],0))/F185),"") ->  | H185: =IFERROR(IF(D185="","",INDEX(tb_vendas[Data Fechamento],MATCH(D185,tb_vendas[N° Pedido/Empresa],0))+E185*INDEX(tb_formas_pagamento[Dias_Intervalo],MATCH(INDEX(tb_vendas[Forma_Pagamento],MATCH(D185,tb_vendas[N° Pedido/Empresa],0)),tb_formas_pagamento[Nome_Forma],0))),"") ->  | J185: =IF(OR(tb_pagamentos[[#This Row],[Data_Vencimento]]="",tb_pagamentos[[#This Row],[Valor_Parcela]]="",tb_pagamentos[[#This Row],[Qtd_Total_Parcelas]]="",tb_pagamentos[[#This Row],[Nr_Pedido]]=""),"",IF(tb_pagamentos[[#This Row],[Data_Pagamento]]<>"","Pago",IF(AND(tb_pagamentos[[#This Row],[Data_Pagamento]]="",tb_pagamentos[[#This Row],[Data_Vencimento]]<TODAY()),"Em Atraso","A vencer"))) -> 
D186: =IFERROR(INDEX(CALC_BASE!$N$3:$N$52,MATCH(ROW()-7,CALC_BASE!$M$3:$M$52,0)),"") ->  | E186: =IFERROR(INDEX(CALC_BASE!$O$3:$O$52,MATCH(ROW()-7,CALC_BASE!$M$3:$M$52,0)),"") ->  | F186: =IFERROR(INDEX(CALC_BASE!$P$3:$P$52,MATCH(ROW()-7,CALC_BASE!$M$3:$M$52,0)),"") ->  | G186: =IFERROR(IF(D186="","",INDEX(tb_vendas[Preço de Venda],MATCH(D186,tb_vendas[N° Pedido/Empresa],0))/F186),"") ->  | H186: =IFERROR(IF(D186="","",INDEX(tb_vendas[Data Fechamento],MATCH(D186,tb_vendas[N° Pedido/Empresa],0))+E186*INDEX(tb_formas_pagamento[Dias_Intervalo],MATCH(INDEX(tb_vendas[Forma_Pagamento],MATCH(D186,tb_vendas[N° Pedido/Empresa],0)),tb_formas_pagamento[Nome_Forma],0))),"") ->  | J186: =IF(OR(tb_pagamentos[[#This Row],[Data_Vencimento]]="",tb_pagamentos[[#This Row],[Valor_Parcela]]="",tb_pagamentos[[#This Row],[Qtd_Total_Parcelas]]="",tb_pagamentos[[#This Row],[Nr_Pedido]]=""),"",IF(tb_pagamentos[[#This Row],[Data_Pagamento]]<>"","Pago",IF(AND(tb_pagamentos[[#This Row],[Data_Pagamento]]="",tb_pagamentos[[#This Row],[Data_Vencimento]]<TODAY()),"Em Atraso","A vencer"))) -> 
D187: =IFERROR(INDEX(CALC_BASE!$N$3:$N$52,MATCH(ROW()-7,CALC_BASE!$M$3:$M$52,0)),"") ->  | E187: =IFERROR(INDEX(CALC_BASE!$O$3:$O$52,MATCH(ROW()-7,CALC_BASE!$M$3:$M$52,0)),"") ->  | F187: =IFERROR(INDEX(CALC_BASE!$P$3:$P$52,MATCH(ROW()-7,CALC_BASE!$M$3:$M$52,0)),"") ->  | G187: =IFERROR(IF(D187="","",INDEX(tb_vendas[Preço de Venda],MATCH(D187,tb_vendas[N° Pedido/Empresa],0))/F187),"") ->  | H187: =IFERROR(IF(D187="","",INDEX(tb_vendas[Data Fechamento],MATCH(D187,tb_vendas[N° Pedido/Empresa],0))+E187*INDEX(tb_formas_pagamento[Dias_Intervalo],MATCH(INDEX(tb_vendas[Forma_Pagamento],MATCH(D187,tb_vendas[N° Pedido/Empresa],0)),tb_formas_pagamento[Nome_Forma],0))),"") ->  | J187: =IF(OR(tb_pagamentos[[#This Row],[Data_Vencimento]]="",tb_pagamentos[[#This Row],[Valor_Parcela]]="",tb_pagamentos[[#This Row],[Qtd_Total_Parcelas]]="",tb_pagamentos[[#This Row],[Nr_Pedido]]=""),"",IF(tb_pagamentos[[#This Row],[Data_Pagamento]]<>"","Pago",IF(AND(tb_pagamentos[[#This Row],[Data_Pagamento]]="",tb_pagamentos[[#This Row],[Data_Vencimento]]<TODAY()),"Em Atraso","A vencer"))) -> 
D188: =IFERROR(INDEX(CALC_BASE!$N$3:$N$52,MATCH(ROW()-7,CALC_BASE!$M$3:$M$52,0)),"") ->  | E188: =IFERROR(INDEX(CALC_BASE!$O$3:$O$52,MATCH(ROW()-7,CALC_BASE!$M$3:$M$52,0)),"") ->  | F188: =IFERROR(INDEX(CALC_BASE!$P$3:$P$52,MATCH(ROW()-7,CALC_BASE!$M$3:$M$52,0)),"") ->  | G188: =IFERROR(IF(D188="","",INDEX(tb_vendas[Preço de Venda],MATCH(D188,tb_vendas[N° Pedido/Empresa],0))/F188),"") ->  | H188: =IFERROR(IF(D188="","",INDEX(tb_vendas[Data Fechamento],MATCH(D188,tb_vendas[N° Pedido/Empresa],0))+E188*INDEX(tb_formas_pagamento[Dias_Intervalo],MATCH(INDEX(tb_vendas[Forma_Pagamento],MATCH(D188,tb_vendas[N° Pedido/Empresa],0)),tb_formas_pagamento[Nome_Forma],0))),"") ->  | J188: =IF(OR(tb_pagamentos[[#This Row],[Data_Vencimento]]="",tb_pagamentos[[#This Row],[Valor_Parcela]]="",tb_pagamentos[[#This Row],[Qtd_Total_Parcelas]]="",tb_pagamentos[[#This Row],[Nr_Pedido]]=""),"",IF(tb_pagamentos[[#This Row],[Data_Pagamento]]<>"","Pago",IF(AND(tb_pagamentos[[#This Row],[Data_Pagamento]]="",tb_pagamentos[[#This Row],[Data_Vencimento]]<TODAY()),"Em Atraso","A vencer"))) -> 
D189: =IFERROR(INDEX(CALC_BASE!$N$3:$N$52,MATCH(ROW()-7,CALC_BASE!$M$3:$M$52,0)),"") ->  | E189: =IFERROR(INDEX(CALC_BASE!$O$3:$O$52,MATCH(ROW()-7,CALC_BASE!$M$3:$M$52,0)),"") ->  | F189: =IFERROR(INDEX(CALC_BASE!$P$3:$P$52,MATCH(ROW()-7,CALC_BASE!$M$3:$M$52,0)),"") ->  | G189: =IFERROR(IF(D189="","",INDEX(tb_vendas[Preço de Venda],MATCH(D189,tb_vendas[N° Pedido/Empresa],0))/F189),"") ->  | H189: =IFERROR(IF(D189="","",INDEX(tb_vendas[Data Fechamento],MATCH(D189,tb_vendas[N° Pedido/Empresa],0))+E189*INDEX(tb_formas_pagamento[Dias_Intervalo],MATCH(INDEX(tb_vendas[Forma_Pagamento],MATCH(D189,tb_vendas[N° Pedido/Empresa],0)),tb_formas_pagamento[Nome_Forma],0))),"") ->  | J189: =IF(OR(tb_pagamentos[[#This Row],[Data_Vencimento]]="",tb_pagamentos[[#This Row],[Valor_Parcela]]="",tb_pagamentos[[#This Row],[Qtd_Total_Parcelas]]="",tb_pagamentos[[#This Row],[Nr_Pedido]]=""),"",IF(tb_pagamentos[[#This Row],[Data_Pagamento]]<>"","Pago",IF(AND(tb_pagamentos[[#This Row],[Data_Pagamento]]="",tb_pagamentos[[#This Row],[Data_Vencimento]]<TODAY()),"Em Atraso","A vencer"))) -> 
D190: =IFERROR(INDEX(CALC_BASE!$N$3:$N$52,MATCH(ROW()-7,CALC_BASE!$M$3:$M$52,0)),"") ->  | E190: =IFERROR(INDEX(CALC_BASE!$O$3:$O$52,MATCH(ROW()-7,CALC_BASE!$M$3:$M$52,0)),"") ->  | F190: =IFERROR(INDEX(CALC_BASE!$P$3:$P$52,MATCH(ROW()-7,CALC_BASE!$M$3:$M$52,0)),"") ->  | G190: =IFERROR(IF(D190="","",INDEX(tb_vendas[Preço de Venda],MATCH(D190,tb_vendas[N° Pedido/Empresa],0))/F190),"") ->  | H190: =IFERROR(IF(D190="","",INDEX(tb_vendas[Data Fechamento],MATCH(D190,tb_vendas[N° Pedido/Empresa],0))+E190*INDEX(tb_formas_pagamento[Dias_Intervalo],MATCH(INDEX(tb_vendas[Forma_Pagamento],MATCH(D190,tb_vendas[N° Pedido/Empresa],0)),tb_formas_pagamento[Nome_Forma],0))),"") ->  | J190: =IF(OR(tb_pagamentos[[#This Row],[Data_Vencimento]]="",tb_pagamentos[[#This Row],[Valor_Parcela]]="",tb_pagamentos[[#This Row],[Qtd_Total_Parcelas]]="",tb_pagamentos[[#This Row],[Nr_Pedido]]=""),"",IF(tb_pagamentos[[#This Row],[Data_Pagamento]]<>"","Pago",IF(AND(tb_pagamentos[[#This Row],[Data_Pagamento]]="",tb_pagamentos[[#This Row],[Data_Vencimento]]<TODAY()),"Em Atraso","A vencer"))) -> 
D191: =IFERROR(INDEX(CALC_BASE!$N$3:$N$52,MATCH(ROW()-7,CALC_BASE!$M$3:$M$52,0)),"") ->  | E191: =IFERROR(INDEX(CALC_BASE!$O$3:$O$52,MATCH(ROW()-7,CALC_BASE!$M$3:$M$52,0)),"") ->  | F191: =IFERROR(INDEX(CALC_BASE!$P$3:$P$52,MATCH(ROW()-7,CALC_BASE!$M$3:$M$52,0)),"") ->  | G191: =IFERROR(IF(D191="","",INDEX(tb_vendas[Preço de Venda],MATCH(D191,tb_vendas[N° Pedido/Empresa],0))/F191),"") ->  | H191: =IFERROR(IF(D191="","",INDEX(tb_vendas[Data Fechamento],MATCH(D191,tb_vendas[N° Pedido/Empresa],0))+E191*INDEX(tb_formas_pagamento[Dias_Intervalo],MATCH(INDEX(tb_vendas[Forma_Pagamento],MATCH(D191,tb_vendas[N° Pedido/Empresa],0)),tb_formas_pagamento[Nome_Forma],0))),"") ->  | J191: =IF(OR(tb_pagamentos[[#This Row],[Data_Vencimento]]="",tb_pagamentos[[#This Row],[Valor_Parcela]]="",tb_pagamentos[[#This Row],[Qtd_Total_Parcelas]]="",tb_pagamentos[[#This Row],[Nr_Pedido]]=""),"",IF(tb_pagamentos[[#This Row],[Data_Pagamento]]<>"","Pago",IF(AND(tb_pagamentos[[#This Row],[Data_Pagamento]]="",tb_pagamentos[[#This Row],[Data_Vencimento]]<TODAY()),"Em Atraso","A vencer"))) -> 
D192: =IFERROR(INDEX(CALC_BASE!$N$3:$N$52,MATCH(ROW()-7,CALC_BASE!$M$3:$M$52,0)),"") ->  | E192: =IFERROR(INDEX(CALC_BASE!$O$3:$O$52,MATCH(ROW()-7,CALC_BASE!$M$3:$M$52,0)),"") ->  | F192: =IFERROR(INDEX(CALC_BASE!$P$3:$P$52,MATCH(ROW()-7,CALC_BASE!$M$3:$M$52,0)),"") ->  | G192: =IFERROR(IF(D192="","",INDEX(tb_vendas[Preço de Venda],MATCH(D192,tb_vendas[N° Pedido/Empresa],0))/F192),"") ->  | H192: =IFERROR(IF(D192="","",INDEX(tb_vendas[Data Fechamento],MATCH(D192,tb_vendas[N° Pedido/Empresa],0))+E192*INDEX(tb_formas_pagamento[Dias_Intervalo],MATCH(INDEX(tb_vendas[Forma_Pagamento],MATCH(D192,tb_vendas[N° Pedido/Empresa],0)),tb_formas_pagamento[Nome_Forma],0))),"") ->  | J192: =IF(OR(tb_pagamentos[[#This Row],[Data_Vencimento]]="",tb_pagamentos[[#This Row],[Valor_Parcela]]="",tb_pagamentos[[#This Row],[Qtd_Total_Parcelas]]="",tb_pagamentos[[#This Row],[Nr_Pedido]]=""),"",IF(tb_pagamentos[[#This Row],[Data_Pagamento]]<>"","Pago",IF(AND(tb_pagamentos[[#This Row],[Data_Pagamento]]="",tb_pagamentos[[#This Row],[Data_Vencimento]]<TODAY()),"Em Atraso","A vencer"))) -> 
D193: =IFERROR(INDEX(CALC_BASE!$N$3:$N$52,MATCH(ROW()-7,CALC_BASE!$M$3:$M$52,0)),"") ->  | E193: =IFERROR(INDEX(CALC_BASE!$O$3:$O$52,MATCH(ROW()-7,CALC_BASE!$M$3:$M$52,0)),"") ->  | F193: =IFERROR(INDEX(CALC_BASE!$P$3:$P$52,MATCH(ROW()-7,CALC_BASE!$M$3:$M$52,0)),"") ->  | G193: =IFERROR(IF(D193="","",INDEX(tb_vendas[Preço de Venda],MATCH(D193,tb_vendas[N° Pedido/Empresa],0))/F193),"") ->  | H193: =IFERROR(IF(D193="","",INDEX(tb_vendas[Data Fechamento],MATCH(D193,tb_vendas[N° Pedido/Empresa],0))+E193*INDEX(tb_formas_pagamento[Dias_Intervalo],MATCH(INDEX(tb_vendas[Forma_Pagamento],MATCH(D193,tb_vendas[N° Pedido/Empresa],0)),tb_formas_pagamento[Nome_Forma],0))),"") ->  | J193: =IF(OR(tb_pagamentos[[#This Row],[Data_Vencimento]]="",tb_pagamentos[[#This Row],[Valor_Parcela]]="",tb_pagamentos[[#This Row],[Qtd_Total_Parcelas]]="",tb_pagamentos[[#This Row],[Nr_Pedido]]=""),"",IF(tb_pagamentos[[#This Row],[Data_Pagamento]]<>"","Pago",IF(AND(tb_pagamentos[[#This Row],[Data_Pagamento]]="",tb_pagamentos[[#This Row],[Data_Vencimento]]<TODAY()),"Em Atraso","A vencer"))) -> 
D194: =IFERROR(INDEX(CALC_BASE!$N$3:$N$52,MATCH(ROW()-7,CALC_BASE!$M$3:$M$52,0)),"") ->  | E194: =IFERROR(INDEX(CALC_BASE!$O$3:$O$52,MATCH(ROW()-7,CALC_BASE!$M$3:$M$52,0)),"") ->  | F194: =IFERROR(INDEX(CALC_BASE!$P$3:$P$52,MATCH(ROW()-7,CALC_BASE!$M$3:$M$52,0)),"") ->  | G194: =IFERROR(IF(D194="","",INDEX(tb_vendas[Preço de Venda],MATCH(D194,tb_vendas[N° Pedido/Empresa],0))/F194),"") ->  | H194: =IFERROR(IF(D194="","",INDEX(tb_vendas[Data Fechamento],MATCH(D194,tb_vendas[N° Pedido/Empresa],0))+E194*INDEX(tb_formas_pagamento[Dias_Intervalo],MATCH(INDEX(tb_vendas[Forma_Pagamento],MATCH(D194,tb_vendas[N° Pedido/Empresa],0)),tb_formas_pagamento[Nome_Forma],0))),"") ->  | J194: =IF(OR(tb_pagamentos[[#This Row],[Data_Vencimento]]="",tb_pagamentos[[#This Row],[Valor_Parcela]]="",tb_pagamentos[[#This Row],[Qtd_Total_Parcelas]]="",tb_pagamentos[[#This Row],[Nr_Pedido]]=""),"",IF(tb_pagamentos[[#This Row],[Data_Pagamento]]<>"","Pago",IF(AND(tb_pagamentos[[#This Row],[Data_Pagamento]]="",tb_pagamentos[[#This Row],[Data_Vencimento]]<TODAY()),"Em Atraso","A vencer"))) -> 
D195: =IFERROR(INDEX(CALC_BASE!$N$3:$N$52,MATCH(ROW()-7,CALC_BASE!$M$3:$M$52,0)),"") ->  | E195: =IFERROR(INDEX(CALC_BASE!$O$3:$O$52,MATCH(ROW()-7,CALC_BASE!$M$3:$M$52,0)),"") ->  | F195: =IFERROR(INDEX(CALC_BASE!$P$3:$P$52,MATCH(ROW()-7,CALC_BASE!$M$3:$M$52,0)),"") ->  | G195: =IFERROR(IF(D195="","",INDEX(tb_vendas[Preço de Venda],MATCH(D195,tb_vendas[N° Pedido/Empresa],0))/F195),"") ->  | H195: =IFERROR(IF(D195="","",INDEX(tb_vendas[Data Fechamento],MATCH(D195,tb_vendas[N° Pedido/Empresa],0))+E195*INDEX(tb_formas_pagamento[Dias_Intervalo],MATCH(INDEX(tb_vendas[Forma_Pagamento],MATCH(D195,tb_vendas[N° Pedido/Empresa],0)),tb_formas_pagamento[Nome_Forma],0))),"") ->  | J195: =IF(OR(tb_pagamentos[[#This Row],[Data_Vencimento]]="",tb_pagamentos[[#This Row],[Valor_Parcela]]="",tb_pagamentos[[#This Row],[Qtd_Total_Parcelas]]="",tb_pagamentos[[#This Row],[Nr_Pedido]]=""),"",IF(tb_pagamentos[[#This Row],[Data_Pagamento]]<>"","Pago",IF(AND(tb_pagamentos[[#This Row],[Data_Pagamento]]="",tb_pagamentos[[#This Row],[Data_Vencimento]]<TODAY()),"Em Atraso","A vencer"))) -> 
D196: =IFERROR(INDEX(CALC_BASE!$N$3:$N$52,MATCH(ROW()-7,CALC_BASE!$M$3:$M$52,0)),"") ->  | E196: =IFERROR(INDEX(CALC_BASE!$O$3:$O$52,MATCH(ROW()-7,CALC_BASE!$M$3:$M$52,0)),"") ->  | F196: =IFERROR(INDEX(CALC_BASE!$P$3:$P$52,MATCH(ROW()-7,CALC_BASE!$M$3:$M$52,0)),"") ->  | G196: =IFERROR(IF(D196="","",INDEX(tb_vendas[Preço de Venda],MATCH(D196,tb_vendas[N° Pedido/Empresa],0))/F196),"") ->  | H196: =IFERROR(IF(D196="","",INDEX(tb_vendas[Data Fechamento],MATCH(D196,tb_vendas[N° Pedido/Empresa],0))+E196*INDEX(tb_formas_pagamento[Dias_Intervalo],MATCH(INDEX(tb_vendas[Forma_Pagamento],MATCH(D196,tb_vendas[N° Pedido/Empresa],0)),tb_formas_pagamento[Nome_Forma],0))),"") ->  | J196: =IF(OR(tb_pagamentos[[#This Row],[Data_Vencimento]]="",tb_pagamentos[[#This Row],[Valor_Parcela]]="",tb_pagamentos[[#This Row],[Qtd_Total_Parcelas]]="",tb_pagamentos[[#This Row],[Nr_Pedido]]=""),"",IF(tb_pagamentos[[#This Row],[Data_Pagamento]]<>"","Pago",IF(AND(tb_pagamentos[[#This Row],[Data_Pagamento]]="",tb_pagamentos[[#This Row],[Data_Vencimento]]<TODAY()),"Em Atraso","A vencer"))) -> 
D197: =IFERROR(INDEX(CALC_BASE!$N$3:$N$52,MATCH(ROW()-7,CALC_BASE!$M$3:$M$52,0)),"") ->  | E197: =IFERROR(INDEX(CALC_BASE!$O$3:$O$52,MATCH(ROW()-7,CALC_BASE!$M$3:$M$52,0)),"") ->  | F197: =IFERROR(INDEX(CALC_BASE!$P$3:$P$52,MATCH(ROW()-7,CALC_BASE!$M$3:$M$52,0)),"") ->  | G197: =IFERROR(IF(D197="","",INDEX(tb_vendas[Preço de Venda],MATCH(D197,tb_vendas[N° Pedido/Empresa],0))/F197),"") ->  | H197: =IFERROR(IF(D197="","",INDEX(tb_vendas[Data Fechamento],MATCH(D197,tb_vendas[N° Pedido/Empresa],0))+E197*INDEX(tb_formas_pagamento[Dias_Intervalo],MATCH(INDEX(tb_vendas[Forma_Pagamento],MATCH(D197,tb_vendas[N° Pedido/Empresa],0)),tb_formas_pagamento[Nome_Forma],0))),"") ->  | J197: =IF(OR(tb_pagamentos[[#This Row],[Data_Vencimento]]="",tb_pagamentos[[#This Row],[Valor_Parcela]]="",tb_pagamentos[[#This Row],[Qtd_Total_Parcelas]]="",tb_pagamentos[[#This Row],[Nr_Pedido]]=""),"",IF(tb_pagamentos[[#This Row],[Data_Pagamento]]<>"","Pago",IF(AND(tb_pagamentos[[#This Row],[Data_Pagamento]]="",tb_pagamentos[[#This Row],[Data_Vencimento]]<TODAY()),"Em Atraso","A vencer"))) -> 
D198: =IFERROR(INDEX(CALC_BASE!$N$3:$N$52,MATCH(ROW()-7,CALC_BASE!$M$3:$M$52,0)),"") ->  | E198: =IFERROR(INDEX(CALC_BASE!$O$3:$O$52,MATCH(ROW()-7,CALC_BASE!$M$3:$M$52,0)),"") ->  | F198: =IFERROR(INDEX(CALC_BASE!$P$3:$P$52,MATCH(ROW()-7,CALC_BASE!$M$3:$M$52,0)),"") ->  | G198: =IFERROR(IF(D198="","",INDEX(tb_vendas[Preço de Venda],MATCH(D198,tb_vendas[N° Pedido/Empresa],0))/F198),"") ->  | H198: =IFERROR(IF(D198="","",INDEX(tb_vendas[Data Fechamento],MATCH(D198,tb_vendas[N° Pedido/Empresa],0))+E198*INDEX(tb_formas_pagamento[Dias_Intervalo],MATCH(INDEX(tb_vendas[Forma_Pagamento],MATCH(D198,tb_vendas[N° Pedido/Empresa],0)),tb_formas_pagamento[Nome_Forma],0))),"") ->  | J198: =IF(OR(tb_pagamentos[[#This Row],[Data_Vencimento]]="",tb_pagamentos[[#This Row],[Valor_Parcela]]="",tb_pagamentos[[#This Row],[Qtd_Total_Parcelas]]="",tb_pagamentos[[#This Row],[Nr_Pedido]]=""),"",IF(tb_pagamentos[[#This Row],[Data_Pagamento]]<>"","Pago",IF(AND(tb_pagamentos[[#This Row],[Data_Pagamento]]="",tb_pagamentos[[#This Row],[Data_Vencimento]]<TODAY()),"Em Atraso","A vencer"))) -> 
D199: =IFERROR(INDEX(CALC_BASE!$N$3:$N$52,MATCH(ROW()-7,CALC_BASE!$M$3:$M$52,0)),"") ->  | E199: =IFERROR(INDEX(CALC_BASE!$O$3:$O$52,MATCH(ROW()-7,CALC_BASE!$M$3:$M$52,0)),"") ->  | F199: =IFERROR(INDEX(CALC_BASE!$P$3:$P$52,MATCH(ROW()-7,CALC_BASE!$M$3:$M$52,0)),"") ->  | G199: =IFERROR(IF(D199="","",INDEX(tb_vendas[Preço de Venda],MATCH(D199,tb_vendas[N° Pedido/Empresa],0))/F199),"") ->  | H199: =IFERROR(IF(D199="","",INDEX(tb_vendas[Data Fechamento],MATCH(D199,tb_vendas[N° Pedido/Empresa],0))+E199*INDEX(tb_formas_pagamento[Dias_Intervalo],MATCH(INDEX(tb_vendas[Forma_Pagamento],MATCH(D199,tb_vendas[N° Pedido/Empresa],0)),tb_formas_pagamento[Nome_Forma],0))),"") ->  | J199: =IF(OR(tb_pagamentos[[#This Row],[Data_Vencimento]]="",tb_pagamentos[[#This Row],[Valor_Parcela]]="",tb_pagamentos[[#This Row],[Qtd_Total_Parcelas]]="",tb_pagamentos[[#This Row],[Nr_Pedido]]=""),"",IF(tb_pagamentos[[#This Row],[Data_Pagamento]]<>"","Pago",IF(AND(tb_pagamentos[[#This Row],[Data_Pagamento]]="",tb_pagamentos[[#This Row],[Data_Vencimento]]<TODAY()),"Em Atraso","A vencer"))) -> 
D200: =IFERROR(INDEX(CALC_BASE!$N$3:$N$52,MATCH(ROW()-7,CALC_BASE!$M$3:$M$52,0)),"") ->  | E200: =IFERROR(INDEX(CALC_BASE!$O$3:$O$52,MATCH(ROW()-7,CALC_BASE!$M$3:$M$52,0)),"") ->  | F200: =IFERROR(INDEX(CALC_BASE!$P$3:$P$52,MATCH(ROW()-7,CALC_BASE!$M$3:$M$52,0)),"") ->  | G200: =IFERROR(IF(D200="","",INDEX(tb_vendas[Preço de Venda],MATCH(D200,tb_vendas[N° Pedido/Empresa],0))/F200),"") ->  | H200: =IFERROR(IF(D200="","",INDEX(tb_vendas[Data Fechamento],MATCH(D200,tb_vendas[N° Pedido/Empresa],0))+E200*INDEX(tb_formas_pagamento[Dias_Intervalo],MATCH(INDEX(tb_vendas[Forma_Pagamento],MATCH(D200,tb_vendas[N° Pedido/Empresa],0)),tb_formas_pagamento[Nome_Forma],0))),"") ->  | J200: =IF(OR(tb_pagamentos[[#This Row],[Data_Vencimento]]="",tb_pagamentos[[#This Row],[Valor_Parcela]]="",tb_pagamentos[[#This Row],[Qtd_Total_Parcelas]]="",tb_pagamentos[[#This Row],[Nr_Pedido]]=""),"",IF(tb_pagamentos[[#This Row],[Data_Pagamento]]<>"","Pago",IF(AND(tb_pagamentos[[#This Row],[Data_Pagamento]]="",tb_pagamentos[[#This Row],[Data_Vencimento]]<TODAY()),"Em Atraso","A vencer"))) -> 
D201: =IFERROR(INDEX(CALC_BASE!$N$3:$N$52,MATCH(ROW()-7,CALC_BASE!$M$3:$M$52,0)),"") ->  | E201: =IFERROR(INDEX(CALC_BASE!$O$3:$O$52,MATCH(ROW()-7,CALC_BASE!$M$3:$M$52,0)),"") ->  | F201: =IFERROR(INDEX(CALC_BASE!$P$3:$P$52,MATCH(ROW()-7,CALC_BASE!$M$3:$M$52,0)),"") ->  | G201: =IFERROR(IF(D201="","",INDEX(tb_vendas[Preço de Venda],MATCH(D201,tb_vendas[N° Pedido/Empresa],0))/F201),"") ->  | H201: =IFERROR(IF(D201="","",INDEX(tb_vendas[Data Fechamento],MATCH(D201,tb_vendas[N° Pedido/Empresa],0))+E201*INDEX(tb_formas_pagamento[Dias_Intervalo],MATCH(INDEX(tb_vendas[Forma_Pagamento],MATCH(D201,tb_vendas[N° Pedido/Empresa],0)),tb_formas_pagamento[Nome_Forma],0))),"") ->  | J201: =IF(OR(tb_pagamentos[[#This Row],[Data_Vencimento]]="",tb_pagamentos[[#This Row],[Valor_Parcela]]="",tb_pagamentos[[#This Row],[Qtd_Total_Parcelas]]="",tb_pagamentos[[#This Row],[Nr_Pedido]]=""),"",IF(tb_pagamentos[[#This Row],[Data_Pagamento]]<>"","Pago",IF(AND(tb_pagamentos[[#This Row],[Data_Pagamento]]="",tb_pagamentos[[#This Row],[Data_Vencimento]]<TODAY()),"Em Atraso","A vencer"))) -> 
D202: =IFERROR(INDEX(CALC_BASE!$N$3:$N$52,MATCH(ROW()-7,CALC_BASE!$M$3:$M$52,0)),"") ->  | E202: =IFERROR(INDEX(CALC_BASE!$O$3:$O$52,MATCH(ROW()-7,CALC_BASE!$M$3:$M$52,0)),"") ->  | F202: =IFERROR(INDEX(CALC_BASE!$P$3:$P$52,MATCH(ROW()-7,CALC_BASE!$M$3:$M$52,0)),"") ->  | G202: =IFERROR(IF(D202="","",INDEX(tb_vendas[Preço de Venda],MATCH(D202,tb_vendas[N° Pedido/Empresa],0))/F202),"") ->  | H202: =IFERROR(IF(D202="","",INDEX(tb_vendas[Data Fechamento],MATCH(D202,tb_vendas[N° Pedido/Empresa],0))+E202*INDEX(tb_formas_pagamento[Dias_Intervalo],MATCH(INDEX(tb_vendas[Forma_Pagamento],MATCH(D202,tb_vendas[N° Pedido/Empresa],0)),tb_formas_pagamento[Nome_Forma],0))),"") ->  | J202: =IF(OR(tb_pagamentos[[#This Row],[Data_Vencimento]]="",tb_pagamentos[[#This Row],[Valor_Parcela]]="",tb_pagamentos[[#This Row],[Qtd_Total_Parcelas]]="",tb_pagamentos[[#This Row],[Nr_Pedido]]=""),"",IF(tb_pagamentos[[#This Row],[Data_Pagamento]]<>"","Pago",IF(AND(tb_pagamentos[[#This Row],[Data_Pagamento]]="",tb_pagamentos[[#This Row],[Data_Vencimento]]<TODAY()),"Em Atraso","A vencer"))) -> 
D203: =IFERROR(INDEX(CALC_BASE!$N$3:$N$52,MATCH(ROW()-7,CALC_BASE!$M$3:$M$52,0)),"") ->  | E203: =IFERROR(INDEX(CALC_BASE!$O$3:$O$52,MATCH(ROW()-7,CALC_BASE!$M$3:$M$52,0)),"") ->  | F203: =IFERROR(INDEX(CALC_BASE!$P$3:$P$52,MATCH(ROW()-7,CALC_BASE!$M$3:$M$52,0)),"") ->  | G203: =IFERROR(IF(D203="","",INDEX(tb_vendas[Preço de Venda],MATCH(D203,tb_vendas[N° Pedido/Empresa],0))/F203),"") ->  | H203: =IFERROR(IF(D203="","",INDEX(tb_vendas[Data Fechamento],MATCH(D203,tb_vendas[N° Pedido/Empresa],0))+E203*INDEX(tb_formas_pagamento[Dias_Intervalo],MATCH(INDEX(tb_vendas[Forma_Pagamento],MATCH(D203,tb_vendas[N° Pedido/Empresa],0)),tb_formas_pagamento[Nome_Forma],0))),"") ->  | J203: =IF(OR(tb_pagamentos[[#This Row],[Data_Vencimento]]="",tb_pagamentos[[#This Row],[Valor_Parcela]]="",tb_pagamentos[[#This Row],[Qtd_Total_Parcelas]]="",tb_pagamentos[[#This Row],[Nr_Pedido]]=""),"",IF(tb_pagamentos[[#This Row],[Data_Pagamento]]<>"","Pago",IF(AND(tb_pagamentos[[#This Row],[Data_Pagamento]]="",tb_pagamentos[[#This Row],[Data_Vencimento]]<TODAY()),"Em Atraso","A vencer"))) -> 
... 799 more rows

Sheet DESPESAS (hidden)
C3: Total Despesas | D3: Maior Categoria | E3: Qtd Lançamentos
C4: =SUM(tb_despesas[Valor]) -> R$ 38,401.53 | D4: =IFERROR(INDEX(tb_categorias_despesa[Nome_Categoria],MATCH(MAX(COUNTIF(tb_despesas[Categoria],tb_categorias_despesa[Nome_Categoria])),COUNTIF(tb_despesas[Categoria],tb_categorias_despesa[Nome_Categoria]),0)),"-") -> Material | E4: =COUNTA(tb_despesas[Descrição]) -> 31
C5: 💰 CONTROLE DE DESPESAS
C7: Data | D7: Valor | E7: Descrição | F7: Categoria
C8: 2026-05-15 | D8: R$ 586.00 | E8: Exemplo de despesa | F8: Outros
C9: 2025-01-31 | D9: R$ 2,634.51 | E9: Pagamento de funcionário | F9: Mão de Obra
C10: 2025-02-05 | D10: R$ 244.41 | E10: Frete de entrega cliente | F10: Frete
C11: 2025-03-04 | D11: R$ 2,619.36 | E11: Discos de corte | F11: Material
C12: 2025-03-30 | D12: R$ 617.64 | E12: Tubos retangulares estoque | F12: Material
C13: 2025-04-08 | D13: R$ 179.11 | E13: Conserto veículo | F13: Outros
C14: 2025-04-15 | D14: R$ 1,350.00 | E14: Manutenção dobradeira | F14: Serviços Terceiros
C15: 2025-05-03 | D15: R$ 980.00 | E15: DAS Simples Nacional | F15: Impostos
C16: 2025-05-21 | D16: R$ 380.00 | E16: Luvas de proteção | F16: EPI
C17: 2025-06-02 | D17: R$ 3,100.00 | E17: Aluguel do galpão | F17: Fixo
C18: 2025-06-14 | D18: R$ 2,100.00 | E18: Compra de aço carbono | F18: Material
C19: 2025-07-02 | D19: R$ 750.00 | E19: Campanha Google Ads março | F19: Marketing (Google ADS)
C20: 2025-07-17 | D20: R$ 480.00 | E20: Conta de energia elétrica | F20: Fixo
C21: 2025-08-01 | D21: R$ 1,620.50 | E21: Horas extras operador CNC | F21: Mão de Obra
C22: 2025-08-19 | D22: R$ 290.00 | E22: Transporte de matéria-prima | F22: Frete
C23: 2025-08-31 | D23: R$ 215.00 | E23: Óculos de segurança | F23: EPI
C24: 2025-09-15 | D24: R$ 1,200.00 | E24: FGTS mensal | F24: Impostos
C25: 2025-09-30 | D25: R$ 870.00 | E25: Revisão torno CNC | F25: Serviços Terceiros
C26: 2025-10-20 | D26: R$ 3,250.00 | E26: Aluguel do galpão | F26: Fixo
C27: 2025-11-04 | D27: R$ 545.00 | E27: Eletrodos de solda | F27: Material
C28: 2025-11-19 | D28: R$ 920.00 | E28: Impulsionamento redes sociais | F28: Marketing (Google ADS)
C29: 2025-12-06 | D29: R$ 2,850.00 | E29: Pagamento de funcionário | F29: Mão de Obra
C30: 2025-12-19 | D30: R$ 145.00 | E30: Material de escritório | F30: Outros
C31: 2026-01-03 | D31: R$ 680.00 | E31: INSS patronal | F31: Impostos
C32: 2026-01-18 | D32: R$ 3,250.00 | E32: Conta de energia elétrica | F32: Fixo
C33: 2026-02-02 | D33: R$ 1,100.00 | E33: Calibração equipamentos | F33: Serviços Terceiros
C34: 2026-02-17 | D34: R$ 440.00 | E34: Ponteiras em lote | F34: Material
C35: 2026-03-04 | D35: R$ 3,900.00 | E35: Freelancer soldagem | F35: Mão de Obra
C36: 2026-03-17 | D36: R$ 330.00 | E36: Anúncios Google Ads abril | F36: Marketing (Google ADS)
C37: 2026-04-03 | D37: R$ 195.00 | E37: Botas de segurança | F37: EPI
C38: 2026-04-18 | D38: R$ 580.00 | E38: ISS sobre serviços | F38: Impostos

Sheet PARAMETROS (hidden)
C5: ⚙ PARÂMETROS DO SISTEMA
C6: Formas de Pagamento | H6: Categorias de Despesa | J6: Configurações
C7: ID_Forma | D7: Nome_Forma | E7: Qtd_Parcelas | F7: Dias_Intervalo | H7: ID_Categoria | I7: Nome_Categoria | J7: Taxa Padrão (%)
C8: FP001 | D8: A VISTA | E8: 1 | F8: 0 | H8: CAT001 | I8: Mão de Obra | J8: 11%
C9: FP002 | D9: 28 DIAS | E9: 1 | F9: 28 | H9: CAT002 | I9: Material | J9: 5%
C10: FP003 | D10: 14/28 | E10: 2 | F10: 14 | H10: CAT003 | I10: EPI
C11: FP004 | D11: 28/42 | E11: 2 | F11: 14 | H11: CAT004 | I11: Marketing (Google ADS)
C12: FP005 | D12: 30/60 | E12: 2 | F12: 30 | H12: CAT005 | I12: Fixo
C13: FP006 | D13: 28/56 | E13: 2 | F13: 28 | H13: CAT006 | I13: Impostos
C14: FP007 | D14: 21/35/49 | E14: 3 | F14: 14 | H14: CAT007 | I14: Frete
C15: FP008 | D15: 15/30/45 | E15: 3 | F15: 15 | H15: CAT008 | I15: Serviços Terceiros
C16: FP009 | D16: 28/42/56 | E16: 3 | F16: 14 | H16: CAT009 | I16: Outros
C17: FP010 | D17: 28/56/84 | E17: 3 | F17: 28
C18: FP011 | D18: 28/42/56/70 | E18: 4 | F18: 14
C19: FP012 | D19: 30/45/60/75 | E19: 4 | F19: 15

Sheet CALC_BASE (hidden)
L2: Acum_Parcelas | M2: Idx_Parcela | N2: Nr_Pedido_Map | O2: Nr_Parcela_Map | P2: Qtd_Total_Map
C3: CALC_BASE - Aba de uso interno. Nao altere manualmente. | L3: =IFERROR(IF(VENDAS!$C$9="","",SUM(IFERROR(VENDAS!$S$9:$S$9*1,0))),"") -> 4 | M3: =ROW()-2 -> 1 | N3: =IFERROR(IF((ROW()-2)<1,"",IF((ROW()-2)>IFERROR(INDEX(CALC_BASE!$L$3:$L$57,MATCH(TRUE,CALC_BASE!$L$3:$L$57<>"",0)+COUNTA(VENDAS!$C$9:$C$1058)-1),0),"",INDEX(VENDAS!$C$9:$C$1058,MATCH(TRUE,CALC_BASE!$L$3:$L$57>=(ROW()-2),0)))),"") -> PED-001 | O3: =IFERROR(IF(N3="","",(ROW()-2)-(IF(MATCH(TRUE,CALC_BASE!$L$3:$L$57>=(ROW()-2),0)=1,0,INDEX(CALC_BASE!$L$3:$L$57,MATCH(TRUE,CALC_BASE!$L$3:$L$57>=(ROW()-2),0)-1)))),"") -> 1 | P3: =IFERROR(IF(N3="","",INDEX(VENDAS!$S$9:$S$1058,MATCH(TRUE,CALC_BASE!$L$3:$L$57>=(ROW()-2),0))),"") -> 4
L4: =IFERROR(IF(VENDAS!$C$10="","",L3+SUM(IFERROR(VENDAS!$S$10:$S$10*1,0))),"") -> 7 | M4: =ROW()-2 -> 2 | N4: =IFERROR(IF((ROW()-2)<1,"",IF((ROW()-2)>IFERROR(INDEX(CALC_BASE!$L$3:$L$57,MATCH(TRUE,CALC_BASE!$L$3:$L$57<>"",0)+COUNTA(VENDAS!$C$9:$C$1058)-1),0),"",INDEX(VENDAS!$C$9:$C$1058,MATCH(TRUE,CALC_BASE!$L$3:$L$57>=(ROW()-2),0)))),"") -> PED-001 | O4: =IFERROR(IF(N4="","",(ROW()-2)-(IF(MATCH(TRUE,CALC_BASE!$L$3:$L$57>=(ROW()-2),0)=1,0,INDEX(CALC_BASE!$L$3:$L$57,MATCH(TRUE,CALC_BASE!$L$3:$L$57>=(ROW()-2),0)-1)))),"") -> 2 | P4: =IFERROR(IF(N4="","",INDEX(VENDAS!$S$9:$S$1058,MATCH(TRUE,CALC_BASE!$L$3:$L$57>=(ROW()-2),0))),"") -> 4
L5: =IFERROR(IF(VENDAS!$C$11="","",L4+SUM(IFERROR(VENDAS!$S$11:$S$11*1,0))),"") -> 9 | M5: 3 | N5: =IFERROR(IF((ROW()-2)<1,"",IF((ROW()-2)>IFERROR(INDEX(CALC_BASE!$L$3:$L$57,MATCH(TRUE,CALC_BASE!$L$3:$L$57<>"",0)+COUNTA(VENDAS!$C$9:$C$1058)-1),0),"",INDEX(VENDAS!$C$9:$C$1058,MATCH(TRUE,CALC_BASE!$L$3:$L$57>=(ROW()-2),0)))),"") -> PED-001 | O5: =IFERROR(IF(N5="","",(ROW()-2)-(IF(MATCH(TRUE,CALC_BASE!$L$3:$L$57>=(ROW()-2),0)=1,0,INDEX(CALC_BASE!$L$3:$L$57,MATCH(TRUE,CALC_BASE!$L$3:$L$57>=(ROW()-2),0)-1)))),"") -> 3 | P5: =IFERROR(IF(N5="","",INDEX(VENDAS!$S$9:$S$1058,MATCH(TRUE,CALC_BASE!$L$3:$L$57>=(ROW()-2),0))),"") -> 4
L6: =IFERROR(IF(VENDAS!$C$12="","",L5+SUM(IFERROR(VENDAS!$S$12:$S$12*1,0))),"") -> 10 | M6: 4 | N6: =IFERROR(IF((ROW()-2)<1,"",IF((ROW()-2)>IFERROR(INDEX(CALC_BASE!$L$3:$L$57,MATCH(TRUE,CALC_BASE!$L$3:$L$57<>"",0)+COUNTA(VENDAS!$C$9:$C$1058)-1),0),"",INDEX(VENDAS!$C$9:$C$1058,MATCH(TRUE,CALC_BASE!$L$3:$L$57>=(ROW()-2),0)))),"") -> PED-001 | O6: =IFERROR(IF(N6="","",(ROW()-2)-(IF(MATCH(TRUE,CALC_BASE!$L$3:$L$57>=(ROW()-2),0)=1,0,INDEX(CALC_BASE!$L$3:$L$57,MATCH(TRUE,CALC_BASE!$L$3:$L$57>=(ROW()-2),0)-1)))),"") -> 4 | P6: =IFERROR(IF(N6="","",INDEX(VENDAS!$S$9:$S$1058,MATCH(TRUE,CALC_BASE!$L$3:$L$57>=(ROW()-2),0))),"") -> 4
C7: FILTROS ATIVOS (referem ao RELATORIO_FINANCEIRO) | L7: =IFERROR(IF(VENDAS!$C$13="","",L6+SUM(IFERROR(VENDAS!$S$13:$S$13*1,0))),"") -> 13 | M7: 5 | N7: =IFERROR(IF((ROW()-2)<1,"",IF((ROW()-2)>IFERROR(INDEX(CALC_BASE!$L$3:$L$57,MATCH(TRUE,CALC_BASE!$L$3:$L$57<>"",0)+COUNTA(VENDAS!$C$9:$C$1058)-1),0),"",INDEX(VENDAS!$C$9:$C$1058,MATCH(TRUE,CALC_BASE!$L$3:$L$57>=(ROW()-2),0)))),"") -> PED-002 | O7: =IFERROR(IF(N7="","",(ROW()-2)-(IF(MATCH(TRUE,CALC_BASE!$L$3:$L$57>=(ROW()-2),0)=1,0,INDEX(CALC_BASE!$L$3:$L$57,MATCH(TRUE,CALC_BASE!$L$3:$L$57>=(ROW()-2),0)-1)))),"") -> 1 | P7: =IFERROR(IF(N7="","",INDEX(VENDAS!$S$9:$S$1058,MATCH(TRUE,CALC_BASE!$L$3:$L$57>=(ROW()-2),0))),"") -> 3
C8: Data Inicial: | D8: =rng_filtro_data_ini -> 00:00:00 | L8: =IFERROR(IF(VENDAS!$C$14="","",L7+SUM(IFERROR(VENDAS!$S$14:$S$14*1,0))),"") -> 17 | M8: 6 | N8: =IFERROR(IF((ROW()-2)<1,"",IF((ROW()-2)>IFERROR(INDEX(CALC_BASE!$L$3:$L$57,MATCH(TRUE,CALC_BASE!$L$3:$L$57<>"",0)+COUNTA(VENDAS!$C$9:$C$1058)-1),0),"",INDEX(VENDAS!$C$9:$C$1058,MATCH(TRUE,CALC_BASE!$L$3:$L$57>=(ROW()-2),0)))),"") -> PED-002 | O8: =IFERROR(IF(N8="","",(ROW()-2)-(IF(MATCH(TRUE,CALC_BASE!$L$3:$L$57>=(ROW()-2),0)=1,0,INDEX(CALC_BASE!$L$3:$L$57,MATCH(TRUE,CALC_BASE!$L$3:$L$57>=(ROW()-2),0)-1)))),"") -> 2 | P8: =IFERROR(IF(N8="","",INDEX(VENDAS!$S$9:$S$1058,MATCH(TRUE,CALC_BASE!$L$3:$L$57>=(ROW()-2),0))),"") -> 3
C9: Data Final: | D9: =rng_filtro_data_fim -> 00:00:00 | L9: =IFERROR(IF(VENDAS!$C$15="","",L8+SUM(IFERROR(VENDAS!$S$15:$S$15*1,0))),"") -> 19 | M9: 7 | N9: =IFERROR(IF((ROW()-2)<1,"",IF((ROW()-2)>IFERROR(INDEX(CALC_BASE!$L$3:$L$57,MATCH(TRUE,CALC_BASE!$L$3:$L$57<>"",0)+COUNTA(VENDAS!$C$9:$C$1058)-1),0),"",INDEX(VENDAS!$C$9:$C$1058,MATCH(TRUE,CALC_BASE!$L$3:$L$57>=(ROW()-2),0)))),"") -> PED-002 | O9: =IFERROR(IF(N9="","",(ROW()-2)-(IF(MATCH(TRUE,CALC_BASE!$L$3:$L$57>=(ROW()-2),0)=1,0,INDEX(CALC_BASE!$L$3:$L$57,MATCH(TRUE,CALC_BASE!$L$3:$L$57>=(ROW()-2),0)-1)))),"") -> 3 | P9: =IFERROR(IF(N9="","",INDEX(VENDAS!$S$9:$S$1058,MATCH(TRUE,CALC_BASE!$L$3:$L$57>=(ROW()-2),0))),"") -> 3
C10: Status: | D10: =rng_filtro_status -> Todos | L10: =IFERROR(IF(VENDAS!$C$16="","",L9+SUM(IFERROR(VENDAS!$S$16:$S$16*1,0))),"") -> 22 | M10: 8 | N10: =IFERROR(IF((ROW()-2)<1,"",IF((ROW()-2)>IFERROR(INDEX(CALC_BASE!$L$3:$L$57,MATCH(TRUE,CALC_BASE!$L$3:$L$57<>"",0)+COUNTA(VENDAS!$C$9:$C$1058)-1),0),"",INDEX(VENDAS!$C$9:$C$1058,MATCH(TRUE,CALC_BASE!$L$3:$L$57>=(ROW()-2),0)))),"") -> PED-003 | O10: =IFERROR(IF(N10="","",(ROW()-2)-(IF(MATCH(TRUE,CALC_BASE!$L$3:$L$57>=(ROW()-2),0)=1,0,INDEX(CALC_BASE!$L$3:$L$57,MATCH(TRUE,CALC_BASE!$L$3:$L$57>=(ROW()-2),0)-1)))),"") -> 1 | P10: =IFERROR(IF(N10="","",INDEX(VENDAS!$S$9:$S$1058,MATCH(TRUE,CALC_BASE!$L$3:$L$57>=(ROW()-2),0))),"") -> 2
C11: Categoria: | D11: =rng_filtro_categoria -> Todas | L11: =IFERROR(IF(VENDAS!$C$17="","",L10+SUM(IFERROR(VENDAS!$S$17:$S$17*1,0))),"") -> 25 | M11: 9 | N11: =IFERROR(IF((ROW()-2)<1,"",IF((ROW()-2)>IFERROR(INDEX(CALC_BASE!$L$3:$L$57,MATCH(TRUE,CALC_BASE!$L$3:$L$57<>"",0)+COUNTA(VENDAS!$C$9:$C$1058)-1),0),"",INDEX(VENDAS!$C$9:$C$1058,MATCH(TRUE,CALC_BASE!$L$3:$L$57>=(ROW()-2),0)))),"") -> PED-003 | O11: =IFERROR(IF(N11="","",(ROW()-2)-(IF(MATCH(TRUE,CALC_BASE!$L$3:$L$57>=(ROW()-2),0)=1,0,INDEX(CALC_BASE!$L$3:$L$57,MATCH(TRUE,CALC_BASE!$L$3:$L$57>=(ROW()-2),0)-1)))),"") -> 2 | P11: =IFERROR(IF(N11="","",INDEX(VENDAS!$S$9:$S$1058,MATCH(TRUE,CALC_BASE!$L$3:$L$57>=(ROW()-2),0))),"") -> 2
L12: =IFERROR(IF(VENDAS!$C$18="","",L11+SUM(IFERROR(VENDAS!$S$18:$S$18*1,0))),"") -> 26 | M12: 10 | N12: =IFERROR(IF((ROW()-2)<1,"",IF((ROW()-2)>IFERROR(INDEX(CALC_BASE!$L$3:$L$57,MATCH(TRUE,CALC_BASE!$L$3:$L$57<>"",0)+COUNTA(VENDAS!$C$9:$C$1058)-1),0),"",INDEX(VENDAS!$C$9:$C$1058,MATCH(TRUE,CALC_BASE!$L$3:$L$57>=(ROW()-2),0)))),"") -> PED-004 | O12: =IFERROR(IF(N12="","",(ROW()-2)-(IF(MATCH(TRUE,CALC_BASE!$L$3:$L$57>=(ROW()-2),0)=1,0,INDEX(CALC_BASE!$L$3:$L$57,MATCH(TRUE,CALC_BASE!$L$3:$L$57>=(ROW()-2),0)-1)))),"") -> 1 | P12: =IFERROR(IF(N12="","",INDEX(VENDAS!$S$9:$S$1058,MATCH(TRUE,CALC_BASE!$L$3:$L$57>=(ROW()-2),0))),"") -> 1
C13: KPIs - RECEITAS | L13: =IFERROR(IF(VENDAS!$C$19="","",L12+SUM(IFERROR(VENDAS!$S$19:$S$19*1,0))),"") -> 28 | M13: 11 | N13: =IFERROR(IF((ROW()-2)<1,"",IF((ROW()-2)>IFERROR(INDEX(CALC_BASE!$L$3:$L$57,MATCH(TRUE,CALC_BASE!$L$3:$L$57<>"",0)+COUNTA(VENDAS!$C$9:$C$1058)-1),0),"",INDEX(VENDAS!$C$9:$C$1058,MATCH(TRUE,CALC_BASE!$L$3:$L$57>=(ROW()-2),0)))),"") -> PED-005 | O13: =IFERROR(IF(N13="","",(ROW()-2)-(IF(MATCH(TRUE,CALC_BASE!$L$3:$L$57>=(ROW()-2),0)=1,0,INDEX(CALC_BASE!$L$3:$L$57,MATCH(TRUE,CALC_BASE!$L$3:$L$57>=(ROW()-2),0)-1)))),"") -> 1 | P13: =IFERROR(IF(N13="","",INDEX(VENDAS!$S$9:$S$1058,MATCH(TRUE,CALC_BASE!$L$3:$L$57>=(ROW()-2),0))),"") -> 3
C14: Faturamento Total (Preço Venda) | D14: =IFERROR(SUMPRODUCT((tb_vendas[Data Fechamento]>=IF(rng_filtro_data_ini="",DATE(2000,1,1),rng_filtro_data_ini))*(tb_vendas[Data Fechamento]<=IF(rng_filtro_data_fim="",DATE(2099,12,31),rng_filtro_data_fim))*IF(rng_filtro_status="Todos",1,IF(rng_filtro_status="",1,(tb_vendas[Status]=rng_filtro_status)))*tb_vendas[Preço de Venda]),0) -> R$ 167,622.55 | F14: Pago | L14: =IFERROR(IF(VENDAS!$C$20="","",L13+SUM(IFERROR(VENDAS!$S$20:$S$20*1,0))),"") -> 29 | M14: 12 | N14: =IFERROR(IF((ROW()-2)<1,"",IF((ROW()-2)>IFERROR(INDEX(CALC_BASE!$L$3:$L$57,MATCH(TRUE,CALC_BASE!$L$3:$L$57<>"",0)+COUNTA(VENDAS!$C$9:$C$1058)-1),0),"",INDEX(VENDAS!$C$9:$C$1058,MATCH(TRUE,CALC_BASE!$L$3:$L$57>=(ROW()-2),0)))),"") -> PED-005 | O14: =IFERROR(IF(N14="","",(ROW()-2)-(IF(MATCH(TRUE,CALC_BASE!$L$3:$L$57>=(ROW()-2),0)=1,0,INDEX(CALC_BASE!$L$3:$L$57,MATCH(TRUE,CALC_BASE!$L$3:$L$57>=(ROW()-2),0)-1)))),"") -> 2 | P14: =IFERROR(IF(N14="","",INDEX(VENDAS!$S$9:$S$1058,MATCH(TRUE,CALC_BASE!$L$3:$L$57>=(ROW()-2),0))),"") -> 3
C15: Rendimento Total (Lucro Bruto) | D15: =IFERROR(SUMPRODUCT((tb_vendas[Data Fechamento]>=IF(rng_filtro_data_ini="",DATE(2000,1,1),rng_filtro_data_ini))*(tb_vendas[Data Fechamento]<=IF(rng_filtro_data_fim="",DATE(2099,12,31),rng_filtro_data_fim))*IF(rng_filtro_status="Todos",1,IF(rng_filtro_status="",1,(tb_vendas[Status]=rng_filtro_status)))*tb_vendas[Rendimento/Saldo final]),0) -> R$ 78,814.13 | F15: Em Atraso | L15: =IFERROR(IF(VENDAS!$C$21="","",L14+SUM(IFERROR(VENDAS!$S$21:$S$21*1,0))),"") -> 33 | M15: 13 | N15: =IFERROR(IF((ROW()-2)<1,"",IF((ROW()-2)>IFERROR(INDEX(CALC_BASE!$L$3:$L$57,MATCH(TRUE,CALC_BASE!$L$3:$L$57<>"",0)+COUNTA(VENDAS!$C$9:$C$1058)-1),0),"",INDEX(VENDAS!$C$9:$C$1058,MATCH(TRUE,CALC_BASE!$L$3:$L$57>=(ROW()-2),0)))),"") -> PED-005 | O15: =IFERROR(IF(N15="","",(ROW()-2)-(IF(MATCH(TRUE,CALC_BASE!$L$3:$L$57>=(ROW()-2),0)=1,0,INDEX(CALC_BASE!$L$3:$L$57,MATCH(TRUE,CALC_BASE!$L$3:$L$57>=(ROW()-2),0)-1)))),"") -> 3 | P15: =IFERROR(IF(N15="","",INDEX(VENDAS!$S$9:$S$1058,MATCH(TRUE,CALC_BASE!$L$3:$L$57>=(ROW()-2),0))),"") -> 3
C16: A Receber Total (R$) | D16: =IF(OR(D8=0,D9=0),SUMIFS(tb_pagamentos[Valor_Parcela],tb_pagamentos[Status_Parcela],"<>"&"Pago"), SUMIFS(tb_pagamentos[Valor_Parcela],tb_pagamentos[Data_Vencimento],"<="&D9,tb_pagamentos[Data_Vencimento],">="&D8,tb_pagamentos[Status_Parcela],"<>"&"Pago")) -> R$ 60,490.67 | F16: A vencer | L16: =IFERROR(IF(VENDAS!$C$22="","",L15+SUM(IFERROR(VENDAS!$S$22:$S$22*1,0))),"") -> 34 | M16: 14 | N16: =IFERROR(IF((ROW()-2)<1,"",IF((ROW()-2)>IFERROR(INDEX(CALC_BASE!$L$3:$L$57,MATCH(TRUE,CALC_BASE!$L$3:$L$57<>"",0)+COUNTA(VENDAS!$C$9:$C$1058)-1),0),"",INDEX(VENDAS!$C$9:$C$1058,MATCH(TRUE,CALC_BASE!$L$3:$L$57>=(ROW()-2),0)))),"") -> PED-006 | O16: =IFERROR(IF(N16="","",(ROW()-2)-(IF(MATCH(TRUE,CALC_BASE!$L$3:$L$57>=(ROW()-2),0)=1,0,INDEX(CALC_BASE!$L$3:$L$57,MATCH(TRUE,CALC_BASE!$L$3:$L$57>=(ROW()-2),0)-1)))),"") -> 1 | P16: =IFERROR(IF(N16="","",INDEX(VENDAS!$S$9:$S$1058,MATCH(TRUE,CALC_BASE!$L$3:$L$57>=(ROW()-2),0))),"") -> 4
C17: R$ em Taxas | D17: =SUM(tb_vendas[R$_Taxas]) -> R$ 14,722.39 | L17: =IFERROR(IF(VENDAS!$C$23="","",L16+SUM(IFERROR(VENDAS!$S$23:$S$23*1,0))),"") -> 37 | M17: 15 | N17: =IFERROR(IF((ROW()-2)<1,"",IF((ROW()-2)>IFERROR(INDEX(CALC_BASE!$L$3:$L$57,MATCH(TRUE,CALC_BASE!$L$3:$L$57<>"",0)+COUNTA(VENDAS!$C$9:$C$1058)-1),0),"",INDEX(VENDAS!$C$9:$C$1058,MATCH(TRUE,CALC_BASE!$L$3:$L$57>=(ROW()-2),0)))),"") -> PED-006 | O17: =IFERROR(IF(N17="","",(ROW()-2)-(IF(MATCH(TRUE,CALC_BASE!$L$3:$L$57>=(ROW()-2),0)=1,0,INDEX(CALC_BASE!$L$3:$L$57,MATCH(TRUE,CALC_BASE!$L$3:$L$57>=(ROW()-2),0)-1)))),"") -> 2 | P17: =IFERROR(IF(N17="","",INDEX(VENDAS!$S$9:$S$1058,MATCH(TRUE,CALC_BASE!$L$3:$L$57>=(ROW()-2),0))),"") -> 4
C18: Inadimplência (R$) | D18: =IF(OR(D8=0,D9=0),SUMIFS(tb_pagamentos[Valor_Parcela],tb_pagamentos[Status_Parcela],"Em Atraso"),SUMIFS(tb_pagamentos[Valor_Parcela],tb_pagamentos[Data_Vencimento],"<="&D9,tb_pagamentos[Data_Vencimento],">="&D8,tb_pagamentos[Status_Parcela],"Em Atraso")) -> R$ 52,119.50 | L18: =IFERROR(IF(VENDAS!$C$24="","",L17+SUM(IFERROR(VENDAS!$S$24:$S$24*1,0))),"") -> 39 | M18: 16 | N18: =IFERROR(IF((ROW()-2)<1,"",IF((ROW()-2)>IFERROR(INDEX(CALC_BASE!$L$3:$L$57,MATCH(TRUE,CALC_BASE!$L$3:$L$57<>"",0)+COUNTA(VENDAS!$C$9:$C$1058)-1),0),"",INDEX(VENDAS!$C$9:$C$1058,MATCH(TRUE,CALC_BASE!$L$3:$L$57>=(ROW()-2),0)))),"") -> PED-006 | O18: =IFERROR(IF(N18="","",(ROW()-2)-(IF(MATCH(TRUE,CALC_BASE!$L$3:$L$57>=(ROW()-2),0)=1,0,INDEX(CALC_BASE!$L$3:$L$57,MATCH(TRUE,CALC_BASE!$L$3:$L$57>=(ROW()-2),0)-1)))),"") -> 3 | P18: =IFERROR(IF(N18="","",INDEX(VENDAS!$S$9:$S$1058,MATCH(TRUE,CALC_BASE!$L$3:$L$57>=(ROW()-2),0))),"") -> 4
C19: Parcelas a Vencer (qtd) | D19: =IFERROR(COUNTIF(tb_pagamentos[Status_Parcela],"A Vencer"),0) -> 7 | L19: =IFERROR(IF(VENDAS!$C$25="","",L18+SUM(IFERROR(VENDAS!$S$25:$S$25*1,0))),"") -> 43 | M19: 17 | N19: =IFERROR(IF((ROW()-2)<1,"",IF((ROW()-2)>IFERROR(INDEX(CALC_BASE!$L$3:$L$57,MATCH(TRUE,CALC_BASE!$L$3:$L$57<>"",0)+COUNTA(VENDAS!$C$9:$C$1058)-1),0),"",INDEX(VENDAS!$C$9:$C$1058,MATCH(TRUE,CALC_BASE!$L$3:$L$57>=(ROW()-2),0)))),"") -> PED-006 | O19: =IFERROR(IF(N19="","",(ROW()-2)-(IF(MATCH(TRUE,CALC_BASE!$L$3:$L$57>=(ROW()-2),0)=1,0,INDEX(CALC_BASE!$L$3:$L$57,MATCH(TRUE,CALC_BASE!$L$3:$L$57>=(ROW()-2),0)-1)))),"") -> 4 | P19: =IFERROR(IF(N19="","",INDEX(VENDAS!$S$9:$S$1058,MATCH(TRUE,CALC_BASE!$L$3:$L$57>=(ROW()-2),0))),"") -> 4
C20: Parcelas em Atraso (qtd) | D20: =IFERROR(COUNTIF(tb_pagamentos[Status_Parcela],"Em Atraso"),0) -> 47 | L20: =IFERROR(IF(VENDAS!$C$26="","",L19+SUM(IFERROR(VENDAS!$S$26:$S$26*1,0))),"") -> 46 | M20: 18 | N20: =IFERROR(IF((ROW()-2)<1,"",IF((ROW()-2)>IFERROR(INDEX(CALC_BASE!$L$3:$L$57,MATCH(TRUE,CALC_BASE!$L$3:$L$57<>"",0)+COUNTA(VENDAS!$C$9:$C$1058)-1),0),"",INDEX(VENDAS!$C$9:$C$1058,MATCH(TRUE,CALC_BASE!$L$3:$L$57>=(ROW()-2),0)))),"") -> PED-007 | O20: =IFERROR(IF(N20="","",(ROW()-2)-(IF(MATCH(TRUE,CALC_BASE!$L$3:$L$57>=(ROW()-2),0)=1,0,INDEX(CALC_BASE!$L$3:$L$57,MATCH(TRUE,CALC_BASE!$L$3:$L$57>=(ROW()-2),0)-1)))),"") -> 1 | P20: =IFERROR(IF(N20="","",INDEX(VENDAS!$S$9:$S$1058,MATCH(TRUE,CALC_BASE!$L$3:$L$57>=(ROW()-2),0))),"") -> 2
L21: =IFERROR(IF(VENDAS!$C$27="","",L20+SUM(IFERROR(VENDAS!$S$27:$S$27*1,0))),"") -> 48 | M21: 19 | N21: =IFERROR(IF((ROW()-2)<1,"",IF((ROW()-2)>IFERROR(INDEX(CALC_BASE!$L$3:$L$57,MATCH(TRUE,CALC_BASE!$L$3:$L$57<>"",0)+COUNTA(VENDAS!$C$9:$C$1058)-1),0),"",INDEX(VENDAS!$C$9:$C$1058,MATCH(TRUE,CALC_BASE!$L$3:$L$57>=(ROW()-2),0)))),"") -> PED-007 | O21: =IFERROR(IF(N21="","",(ROW()-2)-(IF(MATCH(TRUE,CALC_BASE!$L$3:$L$57>=(ROW()-2),0)=1,0,INDEX(CALC_BASE!$L$3:$L$57,MATCH(TRUE,CALC_BASE!$L$3:$L$57>=(ROW()-2),0)-1)))),"") -> 2 | P21: =IFERROR(IF(N21="","",INDEX(VENDAS!$S$9:$S$1058,MATCH(TRUE,CALC_BASE!$L$3:$L$57>=(ROW()-2),0))),"") -> 2
C22: KPIs - DESPESAS | L22: =IFERROR(IF(VENDAS!$C$28="","",L21+SUM(IFERROR(VENDAS!$S$28:$S$28*1,0))),"") -> 51 | M22: 20 | N22: =IFERROR(IF((ROW()-2)<1,"",IF((ROW()-2)>IFERROR(INDEX(CALC_BASE!$L$3:$L$57,MATCH(TRUE,CALC_BASE!$L$3:$L$57<>"",0)+COUNTA(VENDAS!$C$9:$C$1058)-1),0),"",INDEX(VENDAS!$C$9:$C$1058,MATCH(TRUE,CALC_BASE!$L$3:$L$57>=(ROW()-2),0)))),"") -> PED-008 | O22: =IFERROR(IF(N22="","",(ROW()-2)-(IF(MATCH(TRUE,CALC_BASE!$L$3:$L$57>=(ROW()-2),0)=1,0,INDEX(CALC_BASE!$L$3:$L$57,MATCH(TRUE,CALC_BASE!$L$3:$L$57>=(ROW()-2),0)-1)))),"") -> 1 | P22: =IFERROR(IF(N22="","",INDEX(VENDAS!$S$9:$S$1058,MATCH(TRUE,CALC_BASE!$L$3:$L$57>=(ROW()-2),0))),"") -> 3
C23: Despesas Totais (R$) | D23: =IFERROR(SUMPRODUCT((tb_despesas[Data]>=IF(rng_filtro_data_ini="",DATE(2000,1,1),rng_filtro_data_ini))*(tb_despesas[Data]<=IF(rng_filtro_data_fim="",DATE(2099,12,31),rng_filtro_data_fim))*IF(OR(rng_filtro_categoria="Todas",rng_filtro_categoria=""),1,(tb_despesas[Categoria]=rng_filtro_categoria))*tb_despesas[Valor]),0) -> R$ 38,401.53 | L23: =IFERROR(IF(VENDAS!$C$29="","",L22+SUM(IFERROR(VENDAS!$S$29:$S$29*1,0))),"") -> 53 | M23: 21 | N23: =IFERROR(IF((ROW()-2)<1,"",IF((ROW()-2)>IFERROR(INDEX(CALC_BASE!$L$3:$L$57,MATCH(TRUE,CALC_BASE!$L$3:$L$57<>"",0)+COUNTA(VENDAS!$C$9:$C$1058)-1),0),"",INDEX(VENDAS!$C$9:$C$1058,MATCH(TRUE,CALC_BASE!$L$3:$L$57>=(ROW()-2),0)))),"") -> PED-008 | O23: =IFERROR(IF(N23="","",(ROW()-2)-(IF(MATCH(TRUE,CALC_BASE!$L$3:$L$57>=(ROW()-2),0)=1,0,INDEX(CALC_BASE!$L$3:$L$57,MATCH(TRUE,CALC_BASE!$L$3:$L$57>=(ROW()-2),0)-1)))),"") -> 2 | P23: =IFERROR(IF(N23="","",INDEX(VENDAS!$S$9:$S$1058,MATCH(TRUE,CALC_BASE!$L$3:$L$57>=(ROW()-2),0))),"") -> 3
C24: Maior Categoria de Despesa | D24: =IFERROR(INDEX(tb_categorias_despesa[Nome_Categoria],MATCH(MAX(COUNTIF(tb_despesas[Categoria],tb_categorias_despesa[Nome_Categoria])),COUNTIF(tb_despesas[Categoria],tb_categorias_despesa[Nome_Categoria]),0)),"-") -> Material | L24: =IFERROR(IF(VENDAS!$C$30="","",L23+SUM(IFERROR(VENDAS!$S$30:$S$30*1,0))),"") -> 54 | M24: 22 | N24: =IFERROR(IF((ROW()-2)<1,"",IF((ROW()-2)>IFERROR(INDEX(CALC_BASE!$L$3:$L$57,MATCH(TRUE,CALC_BASE!$L$3:$L$57<>"",0)+COUNTA(VENDAS!$C$9:$C$1058)-1),0),"",INDEX(VENDAS!$C$9:$C$1058,MATCH(TRUE,CALC_BASE!$L$3:$L$57>=(ROW()-2),0)))),"") -> PED-008 | O24: =IFERROR(IF(N24="","",(ROW()-2)-(IF(MATCH(TRUE,CALC_BASE!$L$3:$L$57>=(ROW()-2),0)=1,0,INDEX(CALC_BASE!$L$3:$L$57,MATCH(TRUE,CALC_BASE!$L$3:$L$57>=(ROW()-2),0)-1)))),"") -> 3 | P24: =IFERROR(IF(N24="","",INDEX(VENDAS!$S$9:$S$1058,MATCH(TRUE,CALC_BASE!$L$3:$L$57>=(ROW()-2),0))),"") -> 3
L25: =IFERROR(IF(VENDAS!$C$31="","",L24+SUM(IFERROR(VENDAS!$S$31:$S$31*1,0))),"") -> 56 | M25: 23 | N25: =IFERROR(IF((ROW()-2)<1,"",IF((ROW()-2)>IFERROR(INDEX(CALC_BASE!$L$3:$L$57,MATCH(TRUE,CALC_BASE!$L$3:$L$57<>"",0)+COUNTA(VENDAS!$C$9:$C$1058)-1),0),"",INDEX(VENDAS!$C$9:$C$1058,MATCH(TRUE,CALC_BASE!$L$3:$L$57>=(ROW()-2),0)))),"") -> PED-009 | O25: =IFERROR(IF(N25="","",(ROW()-2)-(IF(MATCH(TRUE,CALC_BASE!$L$3:$L$57>=(ROW()-2),0)=1,0,INDEX(CALC_BASE!$L$3:$L$57,MATCH(TRUE,CALC_BASE!$L$3:$L$57>=(ROW()-2),0)-1)))),"") -> 1 | P25: =IFERROR(IF(N25="","",INDEX(VENDAS!$S$9:$S$1058,MATCH(TRUE,CALC_BASE!$L$3:$L$57>=(ROW()-2),0))),"") -> 3
C26: FATURAMENTO MES A MES (base para gráfico) | L26: =IFERROR(IF(VENDAS!$C$32="","",L25+SUM(IFERROR(VENDAS!$S$32:$S$32*1,0))),"") -> 57 | M26: 24 | N26: =IFERROR(IF((ROW()-2)<1,"",IF((ROW()-2)>IFERROR(INDEX(CALC_BASE!$L$3:$L$57,MATCH(TRUE,CALC_BASE!$L$3:$L$57<>"",0)+COUNTA(VENDAS!$C$9:$C$1058)-1),0),"",INDEX(VENDAS!$C$9:$C$1058,MATCH(TRUE,CALC_BASE!$L$3:$L$57>=(ROW()-2),0)))),"") -> PED-009 | O26: =IFERROR(IF(N26="","",(ROW()-2)-(IF(MATCH(TRUE,CALC_BASE!$L$3:$L$57>=(ROW()-2),0)=1,0,INDEX(CALC_BASE!$L$3:$L$57,MATCH(TRUE,CALC_BASE!$L$3:$L$57>=(ROW()-2),0)-1)))),"") -> 2 | P26: =IFERROR(IF(N26="","",INDEX(VENDAS!$S$9:$S$1058,MATCH(TRUE,CALC_BASE!$L$3:$L$57>=(ROW()-2),0))),"") -> 3
C27: AnoMes | D27: Faturamento | E27: Rendimento | G27: =IFERROR(INDEX(tb_vendas[N° Pedido/Empresa],MATCH(H27,tb_vendas[Rendimento/Saldo final],0)),"") -> PED-052 | H27: =IFERROR(LARGE(IF(YEAR(tb_vendas[Data Fechamento])=RELATORIO_FINANCEIRO!$D$18,IF(rng_filtro_status="Todos",1,IF(rng_filtro_status="",1,(tb_vendas[Status]=rng_filtro_status)))*tb_vendas[Rendimento/Saldo final],""),10),0) -> R$ 816.00 | L27: =IFERROR(IF(VENDAS!$C$33="","",L26+SUM(IFERROR(VENDAS!$S$33:$S$33*1,0))),"") -> 61 | M27: 25 | N27: =IFERROR(IF((ROW()-2)<1,"",IF((ROW()-2)>IFERROR(INDEX(CALC_BASE!$L$3:$L$57,MATCH(TRUE,CALC_BASE!$L$3:$L$57<>"",0)+COUNTA(VENDAS!$C$9:$C$1058)-1),0),"",INDEX(VENDAS!$C$9:$C$1058,MATCH(TRUE,CALC_BASE!$L$3:$L$57>=(ROW()-2),0)))),"") -> PED-009 | O27: =IFERROR(IF(N27="","",(ROW()-2)-(IF(MATCH(TRUE,CALC_BASE!$L$3:$L$57>=(ROW()-2),0)=1,0,INDEX(CALC_BASE!$L$3:$L$57,MATCH(TRUE,CALC_BASE!$L$3:$L$57>=(ROW()-2),0)-1)))),"") -> 3 | P27: =IFERROR(IF(N27="","",INDEX(VENDAS!$S$9:$S$1058,MATCH(TRUE,CALC_BASE!$L$3:$L$57>=(ROW()-2),0))),"") -> 3
C28: =TEXT(DATE(RELATORIO_FINANCEIRO!$D$18,1,1),"YYYY-MM") -> 2026-01 | D28: =IFERROR(SUMPRODUCT((TEXT(tb_vendas[Data Fechamento],"YYYY-MM")=C28)*IF(rng_filtro_status="Todos",1,IF(rng_filtro_status="",1,(tb_vendas[Status]=rng_filtro_status)))*tb_vendas[Preço de Venda]),0) -> R$ 5,230.00 | E28: =IFERROR(SUMPRODUCT((TEXT(tb_vendas[Data Fechamento],"YYYY-MM")=C28)*IF(rng_filtro_status="Todos",1,IF(rng_filtro_status="",1,(tb_vendas[Status]=rng_filtro_status)))*tb_vendas[Rendimento/Saldo final]),0) -> R$ 2,794.70 | G28: =IFERROR(INDEX(tb_vendas[N° Pedido/Empresa],MATCH(H28,tb_vendas[Rendimento/Saldo final],0)),"") -> PED-043 | H28: =IFERROR(LARGE(IF(YEAR(tb_vendas[Data Fechamento])=RELATORIO_FINANCEIRO!$D$18,IF(rng_filtro_status="Todos",1,IF(rng_filtro_status="",1,(tb_vendas[Status]=rng_filtro_status)))*tb_vendas[Rendimento/Saldo final],""),9),0) -> R$ 897.50 | L28: =IFERROR(IF(VENDAS!$C$34="","",L27+SUM(IFERROR(VENDAS!$S$34:$S$34*1,0))),"") -> 64 | M28: 26 | N28: =IFERROR(IF((ROW()-2)<1,"",IF((ROW()-2)>IFERROR(INDEX(CALC_BASE!$L$3:$L$57,MATCH(TRUE,CALC_BASE!$L$3:$L$57<>"",0)+COUNTA(VENDAS!$C$9:$C$1058)-1),0),"",INDEX(VENDAS!$C$9:$C$1058,MATCH(TRUE,CALC_BASE!$L$3:$L$57>=(ROW()-2),0)))),"") -> PED-010 | O28: =IFERROR(IF(N28="","",(ROW()-2)-(IF(MATCH(TRUE,CALC_BASE!$L$3:$L$57>=(ROW()-2),0)=1,0,INDEX(CALC_BASE!$L$3:$L$57,MATCH(TRUE,CALC_BASE!$L$3:$L$57>=(ROW()-2),0)-1)))),"") -> 1 | P28: =IFERROR(IF(N28="","",INDEX(VENDAS!$S$9:$S$1058,MATCH(TRUE,CALC_BASE!$L$3:$L$57>=(ROW()-2),0))),"") -> 1
C29: =TEXT(DATE(RELATORIO_FINANCEIRO!$D$18,2,1),"YYYY-MM") -> 2026-02 | D29: =IFERROR(SUMPRODUCT((TEXT(tb_vendas[Data Fechamento],"YYYY-MM")=C29)*IF(rng_filtro_status="Todos",1,IF(rng_filtro_status="",1,(tb_vendas[Status]=rng_filtro_status)))*tb_vendas[Preço de Venda]),0) -> R$ 5,750.00 | E29: =IFERROR(SUMPRODUCT((TEXT(tb_vendas[Data Fechamento],"YYYY-MM")=C29)*IF(rng_filtro_status="Todos",1,IF(rng_filtro_status="",1,(tb_vendas[Status]=rng_filtro_status)))*tb_vendas[Rendimento/Saldo final]),0) -> R$ 2,804.00 | G29: =IFERROR(INDEX(tb_vendas[N° Pedido/Empresa],MATCH(H29,tb_vendas[Rendimento/Saldo final],0)),"") -> PED-004 | H29: =IFERROR(LARGE(IF(YEAR(tb_vendas[Data Fechamento])=RELATORIO_FINANCEIRO!$D$18,IF(rng_filtro_status="Todos",1,IF(rng_filtro_status="",1,(tb_vendas[Status]=rng_filtro_status)))*tb_vendas[Rendimento/Saldo final],""),8),0) -> R$ 905.91 | L29: =IFERROR(IF(VENDAS!$C$35="","",L28+SUM(IFERROR(VENDAS!$S$35:$S$35*1,0))),"") -> 65 | M29: 27 | N29: =IFERROR(IF((ROW()-2)<1,"",IF((ROW()-2)>IFERROR(INDEX(CALC_BASE!$L$3:$L$57,MATCH(TRUE,CALC_BASE!$L$3:$L$57<>"",0)+COUNTA(VENDAS!$C$9:$C$1058)-1),0),"",INDEX(VENDAS!$C$9:$C$1058,MATCH(TRUE,CALC_BASE!$L$3:$L$57>=(ROW()-2),0)))),"") -> PED-011 | O29: =IFERROR(IF(N29="","",(ROW()-2)-(IF(MATCH(TRUE,CALC_BASE!$L$3:$L$57>=(ROW()-2),0)=1,0,INDEX(CALC_BASE!$L$3:$L$57,MATCH(TRUE,CALC_BASE!$L$3:$L$57>=(ROW()-2),0)-1)))),"") -> 1 | P29: =IFERROR(IF(N29="","",INDEX(VENDAS!$S$9:$S$1058,MATCH(TRUE,CALC_BASE!$L$3:$L$57>=(ROW()-2),0))),"") -> 2
C30: =TEXT(DATE(RELATORIO_FINANCEIRO!$D$18,3,1),"YYYY-MM") -> 2026-03 | D30: =IFERROR(SUMPRODUCT((TEXT(tb_vendas[Data Fechamento],"YYYY-MM")=C30)*IF(rng_filtro_status="Todos",1,IF(rng_filtro_status="",1,(tb_vendas[Status]=rng_filtro_status)))*tb_vendas[Preço de Venda]),0) -> R$ 4,820.00 | E30: =IFERROR(SUMPRODUCT((TEXT(tb_vendas[Data Fechamento],"YYYY-MM")=C30)*IF(rng_filtro_status="Todos",1,IF(rng_filtro_status="",1,(tb_vendas[Status]=rng_filtro_status)))*tb_vendas[Rendimento/Saldo final]),0) -> R$ 2,418.80 | G30: =IFERROR(INDEX(tb_vendas[N° Pedido/Empresa],MATCH(H30,tb_vendas[Rendimento/Saldo final],0)),"") -> PED-034 | H30: =IFERROR(LARGE(IF(YEAR(tb_vendas[Data Fechamento])=RELATORIO_FINANCEIRO!$D$18,IF(rng_filtro_status="Todos",1,IF(rng_filtro_status="",1,(tb_vendas[Status]=rng_filtro_status)))*tb_vendas[Rendimento/Saldo final],""),7),0) -> R$ 1,041.00 | L30: =IFERROR(IF(VENDAS!$C$36="","",L29+SUM(IFERROR(VENDAS!$S$36:$S$36*1,0))),"") -> 69 | M30: 28 | N30: =IFERROR(IF((ROW()-2)<1,"",IF((ROW()-2)>IFERROR(INDEX(CALC_BASE!$L$3:$L$57,MATCH(TRUE,CALC_BASE!$L$3:$L$57<>"",0)+COUNTA(VENDAS!$C$9:$C$1058)-1),0),"",INDEX(VENDAS!$C$9:$C$1058,MATCH(TRUE,CALC_BASE!$L$3:$L$57>=(ROW()-2),0)))),"") -> PED-011 | O30: =IFERROR(IF(N30="","",(ROW()-2)-(IF(MATCH(TRUE,CALC_BASE!$L$3:$L$57>=(ROW()-2),0)=1,0,INDEX(CALC_BASE!$L$3:$L$57,MATCH(TRUE,CALC_BASE!$L$3:$L$57>=(ROW()-2),0)-1)))),"") -> 2 | P30: =IFERROR(IF(N30="","",INDEX(VENDAS!$S$9:$S$1058,MATCH(TRUE,CALC_BASE!$L$3:$L$57>=(ROW()-2),0))),"") -> 2
C31: =TEXT(DATE(RELATORIO_FINANCEIRO!$D$18,4,1),"YYYY-MM") -> 2026-04 | D31: =IFERROR(SUMPRODUCT((TEXT(tb_vendas[Data Fechamento],"YYYY-MM")=C31)*IF(rng_filtro_status="Todos",1,IF(rng_filtro_status="",1,(tb_vendas[Status]=rng_filtro_status)))*tb_vendas[Preço de Venda]),0) -> R$ 2,707.25 | E31: =IFERROR(SUMPRODUCT((TEXT(tb_vendas[Data Fechamento],"YYYY-MM")=C31)*IF(rng_filtro_status="Todos",1,IF(rng_filtro_status="",1,(tb_vendas[Status]=rng_filtro_status)))*tb_vendas[Rendimento/Saldo final]),0) -> R$ 1,327.91 | G31: =IFERROR(INDEX(tb_vendas[N° Pedido/Empresa],MATCH(H31,tb_vendas[Rendimento/Saldo final],0)),"") -> PED-049 | H31: =IFERROR(LARGE(IF(YEAR(tb_vendas[Data Fechamento])=RELATORIO_FINANCEIRO!$D$18,IF(rng_filtro_status="Todos",1,IF(rng_filtro_status="",1,(tb_vendas[Status]=rng_filtro_status)))*tb_vendas[Rendimento/Saldo final],""),6),0) -> R$ 1,218.00 | L31: =IFERROR(IF(VENDAS!$C$37="","",L30+SUM(IFERROR(VENDAS!$S$37:$S$37*1,0))),"") -> 71 | M31: 29 | N31: =IFERROR(IF((ROW()-2)<1,"",IF((ROW()-2)>IFERROR(INDEX(CALC_BASE!$L$3:$L$57,MATCH(TRUE,CALC_BASE!$L$3:$L$57<>"",0)+COUNTA(VENDAS!$C$9:$C$1058)-1),0),"",INDEX(VENDAS!$C$9:$C$1058,MATCH(TRUE,CALC_BASE!$L$3:$L$57>=(ROW()-2),0)))),"") -> PED-012 | O31: =IFERROR(IF(N31="","",(ROW()-2)-(IF(MATCH(TRUE,CALC_BASE!$L$3:$L$57>=(ROW()-2),0)=1,0,INDEX(CALC_BASE!$L$3:$L$57,MATCH(TRUE,CALC_BASE!$L$3:$L$57>=(ROW()-2),0)-1)))),"") -> 1 | P31: =IFERROR(IF(N31="","",INDEX(VENDAS!$S$9:$S$1058,MATCH(TRUE,CALC_BASE!$L$3:$L$57>=(ROW()-2),0))),"") -> 1
C32: =TEXT(DATE(RELATORIO_FINANCEIRO!$D$18,5,1),"YYYY-MM") -> 2026-05 | D32: =IFERROR(SUMPRODUCT((TEXT(tb_vendas[Data Fechamento],"YYYY-MM")=C32)*IF(rng_filtro_status="Todos",1,IF(rng_filtro_status="",1,(tb_vendas[Status]=rng_filtro_status)))*tb_vendas[Preço de Venda]),0) -> R$ 4,780.00 | E32: =IFERROR(SUMPRODUCT((TEXT(tb_vendas[Data Fechamento],"YYYY-MM")=C32)*IF(rng_filtro_status="Todos",1,IF(rng_filtro_status="",1,(tb_vendas[Status]=rng_filtro_status)))*tb_vendas[Rendimento/Saldo final]),0) -> R$ 2,303.20 | G32: =IFERROR(INDEX(tb_vendas[N° Pedido/Empresa],MATCH(H32,tb_vendas[Rendimento/Saldo final],0)),"") -> PED-015 | H32: =IFERROR(LARGE(IF(YEAR(tb_vendas[Data Fechamento])=RELATORIO_FINANCEIRO!$D$18,IF(rng_filtro_status="Todos",1,IF(rng_filtro_status="",1,(tb_vendas[Status]=rng_filtro_status)))*tb_vendas[Rendimento/Saldo final],""),5),0) -> R$ 1,322.50 | L32: =IFERROR(IF(VENDAS!$C$38="","",L31+SUM(IFERROR(VENDAS!$S$38:$S$38*1,0))),"") -> 74 | M32: 30 | N32: =IFERROR(IF((ROW()-2)<1,"",IF((ROW()-2)>IFERROR(INDEX(CALC_BASE!$L$3:$L$57,MATCH(TRUE,CALC_BASE!$L$3:$L$57<>"",0)+COUNTA(VENDAS!$C$9:$C$1058)-1),0),"",INDEX(VENDAS!$C$9:$C$1058,MATCH(TRUE,CALC_BASE!$L$3:$L$57>=(ROW()-2),0)))),"") -> PED-013 | O32: =IFERROR(IF(N32="","",(ROW()-2)-(IF(MATCH(TRUE,CALC_BASE!$L$3:$L$57>=(ROW()-2),0)=1,0,INDEX(CALC_BASE!$L$3:$L$57,MATCH(TRUE,CALC_BASE!$L$3:$L$57>=(ROW()-2),0)-1)))),"") -> 1 | P32: =IFERROR(IF(N32="","",INDEX(VENDAS!$S$9:$S$1058,MATCH(TRUE,CALC_BASE!$L$3:$L$57>=(ROW()-2),0))),"") -> 4
C33: =TEXT(DATE(RELATORIO_FINANCEIRO!$D$18,6,1),"YYYY-MM") -> 2026-06 | D33: =IFERROR(SUMPRODUCT((TEXT(tb_vendas[Data Fechamento],"YYYY-MM")=C33)*IF(rng_filtro_status="Todos",1,IF(rng_filtro_status="",1,(tb_vendas[Status]=rng_filtro_status)))*tb_vendas[Preço de Venda]),0) -> R$ 3,100.00 | E33: =IFERROR(SUMPRODUCT((TEXT(tb_vendas[Data Fechamento],"YYYY-MM")=C33)*IF(rng_filtro_status="Todos",1,IF(rng_filtro_status="",1,(tb_vendas[Status]=rng_filtro_status)))*tb_vendas[Rendimento/Saldo final]),0) -> R$ 1,459.00 | G33: =IFERROR(INDEX(tb_vendas[N° Pedido/Empresa],MATCH(H33,tb_vendas[Rendimento/Saldo final],0)),"") -> PED-041 | H33: =IFERROR(LARGE(IF(YEAR(tb_vendas[Data Fechamento])=RELATORIO_FINANCEIRO!$D$18,IF(rng_filtro_status="Todos",1,IF(rng_filtro_status="",1,(tb_vendas[Status]=rng_filtro_status)))*tb_vendas[Rendimento/Saldo final],""),4),0) -> R$ 1,356.00 | L33: =IFERROR(IF(VENDAS!$C$39="","",L32+SUM(IFERROR(VENDAS!$S$39:$S$39*1,0))),"") -> 77 | M33: 31 | N33: =IFERROR(IF((ROW()-2)<1,"",IF((ROW()-2)>IFERROR(INDEX(CALC_BASE!$L$3:$L$57,MATCH(TRUE,CALC_BASE!$L$3:$L$57<>"",0)+COUNTA(VENDAS!$C$9:$C$1058)-1),0),"",INDEX(VENDAS!$C$9:$C$1058,MATCH(TRUE,CALC_BASE!$L$3:$L$57>=(ROW()-2),0)))),"") -> PED-013 | O33: =IFERROR(IF(N33="","",(ROW()-2)-(IF(MATCH(TRUE,CALC_BASE!$L$3:$L$57>=(ROW()-2),0)=1,0,INDEX(CALC_BASE!$L$3:$L$57,MATCH(TRUE,CALC_BASE!$L$3:$L$57>=(ROW()-2),0)-1)))),"") -> 2 | P33: =IFERROR(IF(N33="","",INDEX(VENDAS!$S$9:$S$1058,MATCH(TRUE,CALC_BASE!$L$3:$L$57>=(ROW()-2),0))),"") -> 4
C34: =TEXT(DATE(RELATORIO_FINANCEIRO!$D$18,7,1),"YYYY-MM") -> 2026-07 | D34: =IFERROR(SUMPRODUCT((TEXT(tb_vendas[Data Fechamento],"YYYY-MM")=C34)*IF(rng_filtro_status="Todos",1,IF(rng_filtro_status="",1,(tb_vendas[Status]=rng_filtro_status)))*tb_vendas[Preço de Venda]),0) -> R$ 2,900.00 | E34: =IFERROR(SUMPRODUCT((TEXT(tb_vendas[Data Fechamento],"YYYY-MM")=C34)*IF(rng_filtro_status="Todos",1,IF(rng_filtro_status="",1,(tb_vendas[Status]=rng_filtro_status)))*tb_vendas[Rendimento/Saldo final]),0) -> R$ 1,356.00 | G34: =IFERROR(INDEX(tb_vendas[N° Pedido/Empresa],MATCH(H34,tb_vendas[Rendimento/Saldo final],0)),"") -> PED-019 | H34: =IFERROR(LARGE(IF(YEAR(tb_vendas[Data Fechamento])=RELATORIO_FINANCEIRO!$D$18,IF(rng_filtro_status="Todos",1,IF(rng_filtro_status="",1,(tb_vendas[Status]=rng_filtro_status)))*tb_vendas[Rendimento/Saldo final],""),3),0) -> R$ 1,459.00 | L34: =IFERROR(IF(VENDAS!$C$40="","",L33+SUM(IFERROR(VENDAS!$S$40:$S$40*1,0))),"") -> 78 | M34: 32 | N34: =IFERROR(IF((ROW()-2)<1,"",IF((ROW()-2)>IFERROR(INDEX(CALC_BASE!$L$3:$L$57,MATCH(TRUE,CALC_BASE!$L$3:$L$57<>"",0)+COUNTA(VENDAS!$C$9:$C$1058)-1),0),"",INDEX(VENDAS!$C$9:$C$1058,MATCH(TRUE,CALC_BASE!$L$3:$L$57>=(ROW()-2),0)))),"") -> PED-013 | O34: =IFERROR(IF(N34="","",(ROW()-2)-(IF(MATCH(TRUE,CALC_BASE!$L$3:$L$57>=(ROW()-2),0)=1,0,INDEX(CALC_BASE!$L$3:$L$57,MATCH(TRUE,CALC_BASE!$L$3:$L$57>=(ROW()-2),0)-1)))),"") -> 3 | P34: =IFERROR(IF(N34="","",INDEX(VENDAS!$S$9:$S$1058,MATCH(TRUE,CALC_BASE!$L$3:$L$57>=(ROW()-2),0))),"") -> 4
C35: =TEXT(DATE(RELATORIO_FINANCEIRO!$D$18,8,1),"YYYY-MM") -> 2026-08 | D35: =IFERROR(SUMPRODUCT((TEXT(tb_vendas[Data Fechamento],"YYYY-MM")=C35)*IF(rng_filtro_status="Todos",1,IF(rng_filtro_status="",1,(tb_vendas[Status]=rng_filtro_status)))*tb_vendas[Preço de Venda]),0) -> 0 | E35: =IFERROR(SUMPRODUCT((TEXT(tb_vendas[Data Fechamento],"YYYY-MM")=C35)*IF(rng_filtro_status="Todos",1,IF(rng_filtro_status="",1,(tb_vendas[Status]=rng_filtro_status)))*tb_vendas[Rendimento/Saldo final]),0) -> 0 | G35: =IFERROR(INDEX(tb_vendas[N° Pedido/Empresa],MATCH(H35,tb_vendas[Rendimento/Saldo final],0)),"") -> PED-037 | H35: =IFERROR(LARGE(IF(YEAR(tb_vendas[Data Fechamento])=RELATORIO_FINANCEIRO!$D$18,IF(rng_filtro_status="Todos",1,IF(rng_filtro_status="",1,(tb_vendas[Status]=rng_filtro_status)))*tb_vendas[Rendimento/Saldo final],""),2),0) -> R$ 1,762.00 | L35: =IFERROR(IF(VENDAS!$C$41="","",L34+SUM(IFERROR(VENDAS!$S$41:$S$41*1,0))),"") -> 80 | M35: 33 | N35: =IFERROR(IF((ROW()-2)<1,"",IF((ROW()-2)>IFERROR(INDEX(CALC_BASE!$L$3:$L$57,MATCH(TRUE,CALC_BASE!$L$3:$L$57<>"",0)+COUNTA(VENDAS!$C$9:$C$1058)-1),0),"",INDEX(VENDAS!$C$9:$C$1058,MATCH(TRUE,CALC_BASE!$L$3:$L$57>=(ROW()-2),0)))),"") -> PED-013 | O35: =IFERROR(IF(N35="","",(ROW()-2)-(IF(MATCH(TRUE,CALC_BASE!$L$3:$L$57>=(ROW()-2),0)=1,0,INDEX(CALC_BASE!$L$3:$L$57,MATCH(TRUE,CALC_BASE!$L$3:$L$57>=(ROW()-2),0)-1)))),"") -> 4 | P35: =IFERROR(IF(N35="","",INDEX(VENDAS!$S$9:$S$1058,MATCH(TRUE,CALC_BASE!$L$3:$L$57>=(ROW()-2),0))),"") -> 4
C36: =TEXT(DATE(RELATORIO_FINANCEIRO!$D$18,9,1),"YYYY-MM") -> 2026-09 | D36: =IFERROR(SUMPRODUCT((TEXT(tb_vendas[Data Fechamento],"YYYY-MM")=C36)*IF(rng_filtro_status="Todos",1,IF(rng_filtro_status="",1,(tb_vendas[Status]=rng_filtro_status)))*tb_vendas[Preço de Venda]),0) -> 0 | E36: =IFERROR(SUMPRODUCT((TEXT(tb_vendas[Data Fechamento],"YYYY-MM")=C36)*IF(rng_filtro_status="Todos",1,IF(rng_filtro_status="",1,(tb_vendas[Status]=rng_filtro_status)))*tb_vendas[Rendimento/Saldo final]),0) -> 0 | G36: =IFERROR(INDEX(tb_vendas[N° Pedido/Empresa],MATCH(H36,tb_vendas[Rendimento/Saldo final],0)),"") -> PED-005 | H36: =IFERROR(LARGE(IF(YEAR(tb_vendas[Data Fechamento])=RELATORIO_FINANCEIRO!$D$18,IF(rng_filtro_status="Todos",1,IF(rng_filtro_status="",1,(tb_vendas[Status]=rng_filtro_status)))*tb_vendas[Rendimento/Saldo final],""),1),0) -> R$ 2,029.32 | L36: =IFERROR(IF(VENDAS!$C$42="","",L35+SUM(IFERROR(VENDAS!$S$42:$S$42*1,0))),"") -> 81 | M36: 34 | N36: =IFERROR(IF((ROW()-2)<1,"",IF((ROW()-2)>IFERROR(INDEX(CALC_BASE!$L$3:$L$57,MATCH(TRUE,CALC_BASE!$L$3:$L$57<>"",0)+COUNTA(VENDAS!$C$9:$C$1058)-1),0),"",INDEX(VENDAS!$C$9:$C$1058,MATCH(TRUE,CALC_BASE!$L$3:$L$57>=(ROW()-2),0)))),"") -> PED-014 | O36: =IFERROR(IF(N36="","",(ROW()-2)-(IF(MATCH(TRUE,CALC_BASE!$L$3:$L$57>=(ROW()-2),0)=1,0,INDEX(CALC_BASE!$L$3:$L$57,MATCH(TRUE,CALC_BASE!$L$3:$L$57>=(ROW()-2),0)-1)))),"") -> 1 | P36: =IFERROR(IF(N36="","",INDEX(VENDAS!$S$9:$S$1058,MATCH(TRUE,CALC_BASE!$L$3:$L$57>=(ROW()-2),0))),"") -> 1
C37: =TEXT(DATE(RELATORIO_FINANCEIRO!$D$18,10,1),"YYYY-MM") -> 2026-10 | D37: =IFERROR(SUMPRODUCT((TEXT(tb_vendas[Data Fechamento],"YYYY-MM")=C37)*IF(rng_filtro_status="Todos",1,IF(rng_filtro_status="",1,(tb_vendas[Status]=rng_filtro_status)))*tb_vendas[Preço de Venda]),0) -> 0 | E37: =IFERROR(SUMPRODUCT((TEXT(tb_vendas[Data Fechamento],"YYYY-MM")=C37)*IF(rng_filtro_status="Todos",1,IF(rng_filtro_status="",1,(tb_vendas[Status]=rng_filtro_status)))*tb_vendas[Rendimento/Saldo final]),0) -> 0 | G37: DESPESAS POR CATEGORIA (base para gráfico pizza) | L37: =IFERROR(IF(VENDAS!$C$43="","",L36+SUM(IFERROR(VENDAS!$S$43:$S$43*1,0))),"") -> 85 | M37: 35 | N37: =IFERROR(IF((ROW()-2)<1,"",IF((ROW()-2)>IFERROR(INDEX(CALC_BASE!$L$3:$L$57,MATCH(TRUE,CALC_BASE!$L$3:$L$57<>"",0)+COUNTA(VENDAS!$C$9:$C$1058)-1),0),"",INDEX(VENDAS!$C$9:$C$1058,MATCH(TRUE,CALC_BASE!$L$3:$L$57>=(ROW()-2),0)))),"") -> PED-015 | O37: =IFERROR(IF(N37="","",(ROW()-2)-(IF(MATCH(TRUE,CALC_BASE!$L$3:$L$57>=(ROW()-2),0)=1,0,INDEX(CALC_BASE!$L$3:$L$57,MATCH(TRUE,CALC_BASE!$L$3:$L$57>=(ROW()-2),0)-1)))),"") -> 1 | P37: =IFERROR(IF(N37="","",INDEX(VENDAS!$S$9:$S$1058,MATCH(TRUE,CALC_BASE!$L$3:$L$57>=(ROW()-2),0))),"") -> 3
C38: =TEXT(DATE(RELATORIO_FINANCEIRO!$D$18,11,1),"YYYY-MM") -> 2026-11 | D38: =IFERROR(SUMPRODUCT((TEXT(tb_vendas[Data Fechamento],"YYYY-MM")=C38)*IF(rng_filtro_status="Todos",1,IF(rng_filtro_status="",1,(tb_vendas[Status]=rng_filtro_status)))*tb_vendas[Preço de Venda]),0) -> R$ 3,921.17 | E38: =IFERROR(SUMPRODUCT((TEXT(tb_vendas[Data Fechamento],"YYYY-MM")=C38)*IF(rng_filtro_status="Todos",1,IF(rng_filtro_status="",1,(tb_vendas[Status]=rng_filtro_status)))*tb_vendas[Rendimento/Saldo final]),0) -> R$ 2,029.32 | G38: Categoria | H38: Total | L38: =IFERROR(IF(VENDAS!$C$44="","",L37+SUM(IFERROR(VENDAS!$S$44:$S$44*1,0))),"") -> 87 | M38: 36 | N38: =IFERROR(IF((ROW()-2)<1,"",IF((ROW()-2)>IFERROR(INDEX(CALC_BASE!$L$3:$L$57,MATCH(TRUE,CALC_BASE!$L$3:$L$57<>"",0)+COUNTA(VENDAS!$C$9:$C$1058)-1),0),"",INDEX(VENDAS!$C$9:$C$1058,MATCH(TRUE,CALC_BASE!$L$3:$L$57>=(ROW()-2),0)))),"") -> PED-015 | O38: =IFERROR(IF(N38="","",(ROW()-2)-(IF(MATCH(TRUE,CALC_BASE!$L$3:$L$57>=(ROW()-2),0)=1,0,INDEX(CALC_BASE!$L$3:$L$57,MATCH(TRUE,CALC_BASE!$L$3:$L$57>=(ROW()-2),0)-1)))),"") -> 2 | P38: =IFERROR(IF(N38="","",INDEX(VENDAS!$S$9:$S$1058,MATCH(TRUE,CALC_BASE!$L$3:$L$57>=(ROW()-2),0))),"") -> 3
C39: =TEXT(DATE(RELATORIO_FINANCEIRO!$D$18,12,1),"YYYY-MM") -> 2026-12 | D39: =IFERROR(SUMPRODUCT((TEXT(tb_vendas[Data Fechamento],"YYYY-MM")=C39)*IF(rng_filtro_status="Todos",1,IF(rng_filtro_status="",1,(tb_vendas[Status]=rng_filtro_status)))*tb_vendas[Preço de Venda]),0) -> 0 | E39: =IFERROR(SUMPRODUCT((TEXT(tb_vendas[Data Fechamento],"YYYY-MM")=C39)*IF(rng_filtro_status="Todos",1,IF(rng_filtro_status="",1,(tb_vendas[Status]=rng_filtro_status)))*tb_vendas[Rendimento/Saldo final]),0) -> 0 | G39: Mão de Obra | H39: =IFERROR(SUMPRODUCT((tb_despesas[Categoria]=G39)*(YEAR(tb_despesas[Data])=RELATORIO_FINANCEIRO!$D$18)*tb_despesas[Valor]),0) -> R$ 3,900.00 | L39: =IFERROR(IF(VENDAS!$C$45="","",L38+SUM(IFERROR(VENDAS!$S$45:$S$45*1,0))),"") -> 90 | M39: 37 | N39: =IFERROR(IF((ROW()-2)<1,"",IF((ROW()-2)>IFERROR(INDEX(CALC_BASE!$L$3:$L$57,MATCH(TRUE,CALC_BASE!$L$3:$L$57<>"",0)+COUNTA(VENDAS!$C$9:$C$1058)-1),0),"",INDEX(VENDAS!$C$9:$C$1058,MATCH(TRUE,CALC_BASE!$L$3:$L$57>=(ROW()-2),0)))),"") -> PED-015 | O39: =IFERROR(IF(N39="","",(ROW()-2)-(IF(MATCH(TRUE,CALC_BASE!$L$3:$L$57>=(ROW()-2),0)=1,0,INDEX(CALC_BASE!$L$3:$L$57,MATCH(TRUE,CALC_BASE!$L$3:$L$57>=(ROW()-2),0)-1)))),"") -> 3 | P39: =IFERROR(IF(N39="","",INDEX(VENDAS!$S$9:$S$1058,MATCH(TRUE,CALC_BASE!$L$3:$L$57>=(ROW()-2),0))),"") -> 3
C40: =TEXT(DATE(RELATORIO_FINANCEIRO!$D$18,1,1),"YYYY-MM") -> 2026-01 | D40: =IFERROR(SUMPRODUCT((TEXT(tb_despesas[Data],"YYYY-MM")=C40)*IF(OR(rng_filtro_categoria="Todas",rng_filtro_categoria=""),1,(tb_despesas[Categoria]=rng_filtro_categoria))*tb_despesas[Valor]),0) -> R$ 3,930.00 | E40: =IFERROR(SUMPRODUCT((TEXT(tb_vendas[Data Fechamento],"YYYY-MM")=C40)*IF(rng_filtro_status="Todos",1,IF(rng_filtro_status="",1,(tb_vendas[Status]=rng_filtro_status)))*tb_vendas[Rendimento/Saldo final]),0) -> R$ 2,794.70 | G40: Material | H40: =IFERROR(SUMPRODUCT((tb_despesas[Categoria]=G40)*(YEAR(tb_despesas[Data])=RELATORIO_FINANCEIRO!$D$18)*tb_despesas[Valor]),0) -> R$ 440.00 | L40: =IFERROR(IF(VENDAS!$C$46="","",L39+SUM(IFERROR(VENDAS!$S$46:$S$46*1,0))),"") -> 91 | M40: 38 | N40: =IFERROR(IF((ROW()-2)<1,"",IF((ROW()-2)>IFERROR(INDEX(CALC_BASE!$L$3:$L$57,MATCH(TRUE,CALC_BASE!$L$3:$L$57<>"",0)+COUNTA(VENDAS!$C$9:$C$1058)-1),0),"",INDEX(VENDAS!$C$9:$C$1058,MATCH(TRUE,CALC_BASE!$L$3:$L$57>=(ROW()-2),0)))),"") -> PED-016 | O40: =IFERROR(IF(N40="","",(ROW()-2)-(IF(MATCH(TRUE,CALC_BASE!$L$3:$L$57>=(ROW()-2),0)=1,0,INDEX(CALC_BASE!$L$3:$L$57,MATCH(TRUE,CALC_BASE!$L$3:$L$57>=(ROW()-2),0)-1)))),"") -> 1 | P40: =IFERROR(IF(N40="","",INDEX(VENDAS!$S$9:$S$1058,MATCH(TRUE,CALC_BASE!$L$3:$L$57>=(ROW()-2),0))),"") -> 2
C41: =TEXT(DATE(RELATORIO_FINANCEIRO!$D$18,2,1),"YYYY-MM") -> 2026-02 | D41: =IFERROR(SUMPRODUCT((TEXT(tb_despesas[Data],"YYYY-MM")=C41)*IF(OR(rng_filtro_categoria="Todas",rng_filtro_categoria=""),1,(tb_despesas[Categoria]=rng_filtro_categoria))*tb_despesas[Valor]),0) -> R$ 1,540.00 | E41: =IFERROR(SUMPRODUCT((TEXT(tb_vendas[Data Fechamento],"YYYY-MM")=C41)*IF(rng_filtro_status="Todos",1,IF(rng_filtro_status="",1,(tb_vendas[Status]=rng_filtro_status)))*tb_vendas[Rendimento/Saldo final]),0) -> R$ 2,804.00 | G41: EPI | H41: =IFERROR(SUMPRODUCT((tb_despesas[Categoria]=G41)*(YEAR(tb_despesas[Data])=RELATORIO_FINANCEIRO!$D$18)*tb_despesas[Valor]),0) -> R$ 195.00 | L41: =IFERROR(IF(VENDAS!$C$47="","",L40+SUM(IFERROR(VENDAS!$S$47:$S$47*1,0))),"") -> 95 | M41: 39 | N41: =IFERROR(IF((ROW()-2)<1,"",IF((ROW()-2)>IFERROR(INDEX(CALC_BASE!$L$3:$L$57,MATCH(TRUE,CALC_BASE!$L$3:$L$57<>"",0)+COUNTA(VENDAS!$C$9:$C$1058)-1),0),"",INDEX(VENDAS!$C$9:$C$1058,MATCH(TRUE,CALC_BASE!$L$3:$L$57>=(ROW()-2),0)))),"") -> PED-016 | O41: =IFERROR(IF(N41="","",(ROW()-2)-(IF(MATCH(TRUE,CALC_BASE!$L$3:$L$57>=(ROW()-2),0)=1,0,INDEX(CALC_BASE!$L$3:$L$57,MATCH(TRUE,CALC_BASE!$L$3:$L$57>=(ROW()-2),0)-1)))),"") -> 2 | P41: =IFERROR(IF(N41="","",INDEX(VENDAS!$S$9:$S$1058,MATCH(TRUE,CALC_BASE!$L$3:$L$57>=(ROW()-2),0))),"") -> 2
C42: =TEXT(DATE(RELATORIO_FINANCEIRO!$D$18,3,1),"YYYY-MM") -> 2026-03 | D42: =IFERROR(SUMPRODUCT((TEXT(tb_despesas[Data],"YYYY-MM")=C42)*IF(OR(rng_filtro_categoria="Todas",rng_filtro_categoria=""),1,(tb_despesas[Categoria]=rng_filtro_categoria))*tb_despesas[Valor]),0) -> R$ 4,230.00 | E42: =IFERROR(SUMPRODUCT((TEXT(tb_vendas[Data Fechamento],"YYYY-MM")=C42)*IF(rng_filtro_status="Todos",1,IF(rng_filtro_status="",1,(tb_vendas[Status]=rng_filtro_status)))*tb_vendas[Rendimento/Saldo final]),0) -> R$ 2,418.80 | G42: Marketing (Google ADS) | H42: =IFERROR(SUMPRODUCT((tb_despesas[Categoria]=G42)*(YEAR(tb_despesas[Data])=RELATORIO_FINANCEIRO!$D$18)*tb_despesas[Valor]),0) -> R$ 330.00 | L42: =IFERROR(IF(VENDAS!$C$48="","",L41+SUM(IFERROR(VENDAS!$S$48:$S$48*1,0))),"") -> 97 | M42: 40 | N42: =IFERROR(IF((ROW()-2)<1,"",IF((ROW()-2)>IFERROR(INDEX(CALC_BASE!$L$3:$L$57,MATCH(TRUE,CALC_BASE!$L$3:$L$57<>"",0)+COUNTA(VENDAS!$C$9:$C$1058)-1),0),"",INDEX(VENDAS!$C$9:$C$1058,MATCH(TRUE,CALC_BASE!$L$3:$L$57>=(ROW()-2),0)))),"") -> PED-017 | O42: =IFERROR(IF(N42="","",(ROW()-2)-(IF(MATCH(TRUE,CALC_BASE!$L$3:$L$57>=(ROW()-2),0)=1,0,INDEX(CALC_BASE!$L$3:$L$57,MATCH(TRUE,CALC_BASE!$L$3:$L$57>=(ROW()-2),0)-1)))),"") -> 1 | P42: =IFERROR(IF(N42="","",INDEX(VENDAS!$S$9:$S$1058,MATCH(TRUE,CALC_BASE!$L$3:$L$57>=(ROW()-2),0))),"") -> 4
C43: =TEXT(DATE(RELATORIO_FINANCEIRO!$D$18,4,1),"YYYY-MM") -> 2026-04 | D43: =IFERROR(SUMPRODUCT((TEXT(tb_despesas[Data],"YYYY-MM")=C43)*IF(OR(rng_filtro_categoria="Todas",rng_filtro_categoria=""),1,(tb_despesas[Categoria]=rng_filtro_categoria))*tb_despesas[Valor]),0) -> R$ 775.00 | E43: =IFERROR(SUMPRODUCT((TEXT(tb_vendas[Data Fechamento],"YYYY-MM")=C43)*IF(rng_filtro_status="Todos",1,IF(rng_filtro_status="",1,(tb_vendas[Status]=rng_filtro_status)))*tb_vendas[Rendimento/Saldo final]),0) -> R$ 1,327.91 | G43: Fixo | H43: =IFERROR(SUMPRODUCT((tb_despesas[Categoria]=G43)*(YEAR(tb_despesas[Data])=RELATORIO_FINANCEIRO!$D$18)*tb_despesas[Valor]),0) -> R$ 3,250.00 | L43: =IFERROR(IF(VENDAS!$C$49="","",L42+SUM(IFERROR(VENDAS!$S$49:$S$49*1,0))),"") -> 100 | M43: 41 | N43: =IFERROR(IF((ROW()-2)<1,"",IF((ROW()-2)>IFERROR(INDEX(CALC_BASE!$L$3:$L$57,MATCH(TRUE,CALC_BASE!$L$3:$L$57<>"",0)+COUNTA(VENDAS!$C$9:$C$1058)-1),0),"",INDEX(VENDAS!$C$9:$C$1058,MATCH(TRUE,CALC_BASE!$L$3:$L$57>=(ROW()-2),0)))),"") -> PED-017 | O43: =IFERROR(IF(N43="","",(ROW()-2)-(IF(MATCH(TRUE,CALC_BASE!$L$3:$L$57>=(ROW()-2),0)=1,0,INDEX(CALC_BASE!$L$3:$L$57,MATCH(TRUE,CALC_BASE!$L$3:$L$57>=(ROW()-2),0)-1)))),"") -> 2 | P43: =IFERROR(IF(N43="","",INDEX(VENDAS!$S$9:$S$1058,MATCH(TRUE,CALC_BASE!$L$3:$L$57>=(ROW()-2),0))),"") -> 4
C44: =TEXT(DATE(RELATORIO_FINANCEIRO!$D$18,5,1),"YYYY-MM") -> 2026-05 | D44: =IFERROR(SUMPRODUCT((TEXT(tb_despesas[Data],"YYYY-MM")=C44)*IF(OR(rng_filtro_categoria="Todas",rng_filtro_categoria=""),1,(tb_despesas[Categoria]=rng_filtro_categoria))*tb_despesas[Valor]),0) -> R$ 586.00 | E44: =IFERROR(SUMPRODUCT((TEXT(tb_vendas[Data Fechamento],"YYYY-MM")=C44)*IF(rng_filtro_status="Todos",1,IF(rng_filtro_status="",1,(tb_vendas[Status]=rng_filtro_status)))*tb_vendas[Rendimento/Saldo final]),0) -> R$ 2,303.20 | G44: Impostos | H44: =IFERROR(SUMPRODUCT((tb_despesas[Categoria]=G44)*(YEAR(tb_despesas[Data])=RELATORIO_FINANCEIRO!$D$18)*tb_despesas[Valor]),0) -> R$ 1,260.00 | L44: =IFERROR(IF(VENDAS!$C$50="","",L43+SUM(IFERROR(VENDAS!$S$50:$S$50*1,0))),"") -> 103 | M44: 42 | N44: =IFERROR(IF((ROW()-2)<1,"",IF((ROW()-2)>IFERROR(INDEX(CALC_BASE!$L$3:$L$57,MATCH(TRUE,CALC_BASE!$L$3:$L$57<>"",0)+COUNTA(VENDAS!$C$9:$C$1058)-1),0),"",INDEX(VENDAS!$C$9:$C$1058,MATCH(TRUE,CALC_BASE!$L$3:$L$57>=(ROW()-2),0)))),"") -> PED-017 | O44: =IFERROR(IF(N44="","",(ROW()-2)-(IF(MATCH(TRUE,CALC_BASE!$L$3:$L$57>=(ROW()-2),0)=1,0,INDEX(CALC_BASE!$L$3:$L$57,MATCH(TRUE,CALC_BASE!$L$3:$L$57>=(ROW()-2),0)-1)))),"") -> 3 | P44: =IFERROR(IF(N44="","",INDEX(VENDAS!$S$9:$S$1058,MATCH(TRUE,CALC_BASE!$L$3:$L$57>=(ROW()-2),0))),"") -> 4
C45: =TEXT(DATE(RELATORIO_FINANCEIRO!$D$18,6,1),"YYYY-MM") -> 2026-06 | D45: =IFERROR(SUMPRODUCT((TEXT(tb_despesas[Data],"YYYY-MM")=C45)*IF(OR(rng_filtro_categoria="Todas",rng_filtro_categoria=""),1,(tb_despesas[Categoria]=rng_filtro_categoria))*tb_despesas[Valor]),0) -> 0 | E45: =IFERROR(SUMPRODUCT((TEXT(tb_vendas[Data Fechamento],"YYYY-MM")=C45)*IF(rng_filtro_status="Todos",1,IF(rng_filtro_status="",1,(tb_vendas[Status]=rng_filtro_status)))*tb_vendas[Rendimento/Saldo final]),0) -> R$ 1,459.00 | G45: Frete | H45: =IFERROR(SUMPRODUCT((tb_despesas[Categoria]=G45)*(YEAR(tb_despesas[Data])=RELATORIO_FINANCEIRO!$D$18)*tb_despesas[Valor]),0) -> 0 | L45: =IFERROR(IF(VENDAS!$C$51="","",L44+SUM(IFERROR(VENDAS!$S$51:$S$51*1,0))),"") -> 104 | M45: 43 | N45: =IFERROR(IF((ROW()-2)<1,"",IF((ROW()-2)>IFERROR(INDEX(CALC_BASE!$L$3:$L$57,MATCH(TRUE,CALC_BASE!$L$3:$L$57<>"",0)+COUNTA(VENDAS!$C$9:$C$1058)-1),0),"",INDEX(VENDAS!$C$9:$C$1058,MATCH(TRUE,CALC_BASE!$L$3:$L$57>=(ROW()-2),0)))),"") -> PED-017 | O45: =IFERROR(IF(N45="","",(ROW()-2)-(IF(MATCH(TRUE,CALC_BASE!$L$3:$L$57>=(ROW()-2),0)=1,0,INDEX(CALC_BASE!$L$3:$L$57,MATCH(TRUE,CALC_BASE!$L$3:$L$57>=(ROW()-2),0)-1)))),"") -> 4 | P45: =IFERROR(IF(N45="","",INDEX(VENDAS!$S$9:$S$1058,MATCH(TRUE,CALC_BASE!$L$3:$L$57>=(ROW()-2),0))),"") -> 4
C46: =TEXT(DATE(RELATORIO_FINANCEIRO!$D$18,7,1),"YYYY-MM") -> 2026-07 | D46: =IFERROR(SUMPRODUCT((TEXT(tb_despesas[Data],"YYYY-MM")=C46)*IF(OR(rng_filtro_categoria="Todas",rng_filtro_categoria=""),1,(tb_despesas[Categoria]=rng_filtro_categoria))*tb_despesas[Valor]),0) -> 0 | E46: =IFERROR(SUMPRODUCT((TEXT(tb_vendas[Data Fechamento],"YYYY-MM")=C46)*IF(rng_filtro_status="Todos",1,IF(rng_filtro_status="",1,(tb_vendas[Status]=rng_filtro_status)))*tb_vendas[Rendimento/Saldo final]),0) -> R$ 1,356.00 | G46: Serviços Terceiros | H46: =IFERROR(SUMPRODUCT((tb_despesas[Categoria]=G46)*(YEAR(tb_despesas[Data])=RELATORIO_FINANCEIRO!$D$18)*tb_despesas[Valor]),0) -> R$ 1,100.00 | L46: =IFERROR(IF(VENDAS!$C$52="","",L45+SUM(IFERROR(VENDAS!$S$52:$S$52*1,0))),"") -> 106 | M46: 44 | N46: =IFERROR(IF((ROW()-2)<1,"",IF((ROW()-2)>IFERROR(INDEX(CALC_BASE!$L$3:$L$57,MATCH(TRUE,CALC_BASE!$L$3:$L$57<>"",0)+COUNTA(VENDAS!$C$9:$C$1058)-1),0),"",INDEX(VENDAS!$C$9:$C$1058,MATCH(TRUE,CALC_BASE!$L$3:$L$57>=(ROW()-2),0)))),"") -> PED-018 | O46: =IFERROR(IF(N46="","",(ROW()-2)-(IF(MATCH(TRUE,CALC_BASE!$L$3:$L$57>=(ROW()-2),0)=1,0,INDEX(CALC_BASE!$L$3:$L$57,MATCH(TRUE,CALC_BASE!$L$3:$L$57>=(ROW()-2),0)-1)))),"") -> 1 | P46: =IFERROR(IF(N46="","",INDEX(VENDAS!$S$9:$S$1058,MATCH(TRUE,CALC_BASE!$L$3:$L$57>=(ROW()-2),0))),"") -> 3
C47: =TEXT(DATE(RELATORIO_FINANCEIRO!$D$18,8,1),"YYYY-MM") -> 2026-08 | D47: =IFERROR(SUMPRODUCT((TEXT(tb_despesas[Data],"YYYY-MM")=C47)*IF(OR(rng_filtro_categoria="Todas",rng_filtro_categoria=""),1,(tb_despesas[Categoria]=rng_filtro_categoria))*tb_despesas[Valor]),0) -> 0 | E47: =IFERROR(SUMPRODUCT((TEXT(tb_vendas[Data Fechamento],"YYYY-MM")=C47)*IF(rng_filtro_status="Todos",1,IF(rng_filtro_status="",1,(tb_vendas[Status]=rng_filtro_status)))*tb_vendas[Rendimento/Saldo final]),0) -> 0 | G47: Outros | H47: =IFERROR(SUMPRODUCT((tb_despesas[Categoria]=G47)*(YEAR(tb_despesas[Data])=RELATORIO_FINANCEIRO!$D$18)*tb_despesas[Valor]),0) -> R$ 586.00 | L47: =IFERROR(IF(VENDAS!$C$53="","",L46+SUM(IFERROR(VENDAS!$S$53:$S$53*1,0))),"") -> 107 | M47: 45 | N47: =IFERROR(IF((ROW()-2)<1,"",IF((ROW()-2)>IFERROR(INDEX(CALC_BASE!$L$3:$L$57,MATCH(TRUE,CALC_BASE!$L$3:$L$57<>"",0)+COUNTA(VENDAS!$C$9:$C$1058)-1),0),"",INDEX(VENDAS!$C$9:$C$1058,MATCH(TRUE,CALC_BASE!$L$3:$L$57>=(ROW()-2),0)))),"") -> PED-018 | O47: =IFERROR(IF(N47="","",(ROW()-2)-(IF(MATCH(TRUE,CALC_BASE!$L$3:$L$57>=(ROW()-2),0)=1,0,INDEX(CALC_BASE!$L$3:$L$57,MATCH(TRUE,CALC_BASE!$L$3:$L$57>=(ROW()-2),0)-1)))),"") -> 2 | P47: =IFERROR(IF(N47="","",INDEX(VENDAS!$S$9:$S$1058,MATCH(TRUE,CALC_BASE!$L$3:$L$57>=(ROW()-2),0))),"") -> 3
C48: =TEXT(DATE(RELATORIO_FINANCEIRO!$D$18,9,1),"YYYY-MM") -> 2026-09 | D48: =IFERROR(SUMPRODUCT((TEXT(tb_despesas[Data],"YYYY-MM")=C48)*IF(OR(rng_filtro_categoria="Todas",rng_filtro_categoria=""),1,(tb_despesas[Categoria]=rng_filtro_categoria))*tb_despesas[Valor]),0) -> 0 | E48: =IFERROR(SUMPRODUCT((TEXT(tb_vendas[Data Fechamento],"YYYY-MM")=C48)*IF(rng_filtro_status="Todos",1,IF(rng_filtro_status="",1,(tb_vendas[Status]=rng_filtro_status)))*tb_vendas[Rendimento/Saldo final]),0) -> 0 | L48: =IFERROR(IF(VENDAS!$C$54="","",L47+SUM(IFERROR(VENDAS!$S$54:$S$54*1,0))),"") -> 110 | M48: 46 | N48: =IFERROR(IF((ROW()-2)<1,"",IF((ROW()-2)>IFERROR(INDEX(CALC_BASE!$L$3:$L$57,MATCH(TRUE,CALC_BASE!$L$3:$L$57<>"",0)+COUNTA(VENDAS!$C$9:$C$1058)-1),0),"",INDEX(VENDAS!$C$9:$C$1058,MATCH(TRUE,CALC_BASE!$L$3:$L$57>=(ROW()-2),0)))),"") -> PED-018 | O48: =IFERROR(IF(N48="","",(ROW()-2)-(IF(MATCH(TRUE,CALC_BASE!$L$3:$L$57>=(ROW()-2),0)=1,0,INDEX(CALC_BASE!$L$3:$L$57,MATCH(TRUE,CALC_BASE!$L$3:$L$57>=(ROW()-2),0)-1)))),"") -> 3 | P48: =IFERROR(IF(N48="","",INDEX(VENDAS!$S$9:$S$1058,MATCH(TRUE,CALC_BASE!$L$3:$L$57>=(ROW()-2),0))),"") -> 3
C49: =TEXT(DATE(RELATORIO_FINANCEIRO!$D$18,10,1),"YYYY-MM") -> 2026-10 | D49: =IFERROR(SUMPRODUCT((TEXT(tb_despesas[Data],"YYYY-MM")=C49)*IF(OR(rng_filtro_categoria="Todas",rng_filtro_categoria=""),1,(tb_despesas[Categoria]=rng_filtro_categoria))*tb_despesas[Valor]),0) -> 0 | E49: =IFERROR(SUMPRODUCT((TEXT(tb_vendas[Data Fechamento],"YYYY-MM")=C49)*IF(rng_filtro_status="Todos",1,IF(rng_filtro_status="",1,(tb_vendas[Status]=rng_filtro_status)))*tb_vendas[Rendimento/Saldo final]),0) -> 0 | G49: CHECK — Pedidos com Forma_Pagamento preenchida mas SEM parcelas geradas | L49: =IFERROR(IF(VENDAS!$C$55="","",L48+SUM(IFERROR(VENDAS!$S$55:$S$55*1,0))),"") -> 112 | M49: 47 | N49: =IFERROR(IF((ROW()-2)<1,"",IF((ROW()-2)>IFERROR(INDEX(CALC_BASE!$L$3:$L$57,MATCH(TRUE,CALC_BASE!$L$3:$L$57<>"",0)+COUNTA(VENDAS!$C$9:$C$1058)-1),0),"",INDEX(VENDAS!$C$9:$C$1058,MATCH(TRUE,CALC_BASE!$L$3:$L$57>=(ROW()-2),0)))),"") -> PED-019 | O49: =IFERROR(IF(N49="","",(ROW()-2)-(IF(MATCH(TRUE,CALC_BASE!$L$3:$L$57>=(ROW()-2),0)=1,0,INDEX(CALC_BASE!$L$3:$L$57,MATCH(TRUE,CALC_BASE!$L$3:$L$57>=(ROW()-2),0)-1)))),"") -> 1 | P49: =IFERROR(IF(N49="","",INDEX(VENDAS!$S$9:$S$1058,MATCH(TRUE,CALC_BASE!$L$3:$L$57>=(ROW()-2),0))),"") -> 2
